Workbook

Sheet Übersicht
D1: Kreisrundenwettkampf | J1: Saison | K1: 2024/2025 | M1: 3. Kreisklasse | P1: Damen
C3: Wettkampftag: | D3: 18.08. | E3: 01.09. | F3: 15.09. | G3: 29.09. | H3: 13.10. | I3: 17.11. | J3: Hinrunde | L3: 12.01. | M3: 26.01. | N3: 09.02. | O3: 23.02. | P3: 09.03. | Q3: 23.03. | R3: Rückrunde | T3: Serie komplett
A4: Pos. | B4: Verein / Gruppe | D4: Börger | E4: Neuvrees | F4: Börgermoor | G4: Lorup | H4: Ostenwalde | I4: Spahnharrenstätte | J4: Schnitt | K4: Gesamt | L4: =D4 -> Börger | M4: Börgermoor | N4: Neuvrees | O4: Lorup | P4: Ostenwalde | Q4: Spahnharrenstätte | R4: Schnitt | S4: Gesamt | T4: Schnitt | U4: Gesamt | V4: Differenz
A6: 1 | B6: ='Übersicht Gruppen'!B2 -> Lorup III | D6: ='Übersicht Gruppen'!C2 -> 931.6 | E6: ='Übersicht Gruppen'!D2 -> 931.3 | F6: ='Übersicht Gruppen'!E2 -> 927.6 | G6: ='Übersicht Gruppen'!F2 -> 933.5 | H6: ='Übersicht Gruppen'!G2 -> 920.3 | I6: ='Übersicht Gruppen'!H2 -> 924.4 | J6: ='Übersicht Gruppen'!I2 -> 928.12 | K6: =SUM(D6:I6) -> 5,568.7 | L6: ='Übersicht Gruppen'!K2 -> 924.1 | M6: ='Übersicht Gruppen'!L2 -> 926.0 | N6: ='Übersicht Gruppen'!M2 -> 927.7 | O6: ='Übersicht Gruppen'!N2 -> 931.5 | P6: ='Übersicht Gruppen'!O2 -> 923.7 | Q6: ='Übersicht Gruppen'!P2 -> 0.0 | R6: ='Übersicht Gruppen'!Q2 -> 926.60 | S6: =SUM(L6:Q6) -> 4,633.0 | T6: ='Übersicht Gruppen'!S2 -> 927.43 | U6: =SUM(S6+K6) -> 10,201.7
A7: 2 | B7: ='Übersicht Gruppen'!B3 -> Spahnharrenstätte I | D7: ='Übersicht Gruppen'!C3 -> 919.0 | E7: ='Übersicht Gruppen'!D3 -> 932.9 | F7: ='Übersicht Gruppen'!E3 -> 928.2 | G7: ='Übersicht Gruppen'!F3 -> 928.9 | H7: ='Übersicht Gruppen'!G3 -> 917.3 | I7: ='Übersicht Gruppen'!H3 -> 928.2 | J7: ='Übersicht Gruppen'!I3 -> 925.75 | K7: 5,554.5 | L7: ='Übersicht Gruppen'!K3 -> 927.2 | M7: ='Übersicht Gruppen'!L3 -> 919.2 | N7: ='Übersicht Gruppen'!M3 -> 928.9 | O7: ='Übersicht Gruppen'!N3 -> 922.0 | P7: ='Übersicht Gruppen'!O3 -> 924.2 | Q7: ='Übersicht Gruppen'!P3 -> 0.0 | R7: ='Übersicht Gruppen'!Q3 -> 924.30 | S7: 4,621.5 | T7: ='Übersicht Gruppen'!S3 -> 925.09 | U7: =SUM(S7+K7) -> 10,176.0 | V7: =(U6-U7)*-1 -> -25.7
A8: 3 | B8: ='Übersicht Gruppen'!B4 -> Börger II | D8: ='Übersicht Gruppen'!C4 -> 912.5 | E8: ='Übersicht Gruppen'!D4 -> 915.6 | F8: ='Übersicht Gruppen'!E4 -> 922.7 | G8: ='Übersicht Gruppen'!F4 -> 935.3 | H8: ='Übersicht Gruppen'!G4 -> 921.1 | I8: ='Übersicht Gruppen'!H4 -> 933.1 | J8: ='Übersicht Gruppen'!I4 -> 923.38 | K8: 5,540.3 | L8: ='Übersicht Gruppen'!K4 -> 923.0 | M8: ='Übersicht Gruppen'!L4 -> 927.6 | N8: ='Übersicht Gruppen'!M4 -> 927.5 | O8: ='Übersicht Gruppen'!N4 -> 928.8 | P8: ='Übersicht Gruppen'!O4 -> 928.7 | Q8: ='Übersicht Gruppen'!P4 -> 0.0 | R8: ='Übersicht Gruppen'!Q4 -> 927.12 | S8: 4,635.6 | T8: ='Übersicht Gruppen'!S4 -> 925.08 | U8: 10,175.9 | V8: =(U7-U8)*-1 -> -0.1
A9: 4 | B9: ='Übersicht Gruppen'!B5 -> Neuvrees II | D9: ='Übersicht Gruppen'!C5 -> 924.0 | E9: ='Übersicht Gruppen'!D5 -> 921.9 | F9: ='Übersicht Gruppen'!E5 -> 925.5 | G9: ='Übersicht Gruppen'!F5 -> 931.3 | H9: ='Übersicht Gruppen'!G5 -> 913.8 | I9: ='Übersicht Gruppen'!H5 -> 933.5 | J9: ='Übersicht Gruppen'!I5 -> 925.00 | K9: 5,550.0 | L9: ='Übersicht Gruppen'!K5 -> 922.6 | M9: ='Übersicht Gruppen'!L5 -> 927.1 | N9: ='Übersicht Gruppen'!M5 -> 925.2 | O9: ='Übersicht Gruppen'!N5 -> 929.3 | P9: ='Übersicht Gruppen'!O5 -> 913.5 | Q9: ='Übersicht Gruppen'!P5 -> 0.0 | R9: ='Übersicht Gruppen'!Q5 -> 923.54 | S9: 4,617.7 | T9: ='Übersicht Gruppen'!S5 -> 924.34 | U9: 10,167.7 | V9: -8.2
A10: 5 | B10: ='Übersicht Gruppen'!B6 -> Börgermoor I | D10: ='Übersicht Gruppen'!C6 -> 911.8 | E10: ='Übersicht Gruppen'!D6 -> 914.6 | F10: ='Übersicht Gruppen'!E6 -> 922.2 | G10: ='Übersicht Gruppen'!F6 -> 933.2 | H10: ='Übersicht Gruppen'!G6 -> 921.9 | I10: ='Übersicht Gruppen'!H6 -> 925.3 | J10: ='Übersicht Gruppen'!I6 -> 921.50 | K10: 5,529.0 | L10: ='Übersicht Gruppen'!K6 -> 923.9 | M10: ='Übersicht Gruppen'!L6 -> 934.1 | N10: ='Übersicht Gruppen'!M6 -> 928.0 | O10: ='Übersicht Gruppen'!N6 -> 918.3 | P10: ='Übersicht Gruppen'!O6 -> 916.8 | Q10: ='Übersicht Gruppen'!P6 -> 0.0 | R10: ='Übersicht Gruppen'!Q6 -> 924.22 | S10: 4,621.1 | T10: ='Übersicht Gruppen'!S6 -> 922.74 | U10: 10,150.1 | V10: -17.6
A11: 6 | B11: ='Übersicht Gruppen'!B7 -> Ostenwalde II | D11: ='Übersicht Gruppen'!C7 -> 911.2 | E11: ='Übersicht Gruppen'!D7 -> 914.0 | F11: ='Übersicht Gruppen'!E7 -> 924.3 | G11: ='Übersicht Gruppen'!F7 -> 918.2 | H11: ='Übersicht Gruppen'!G7 -> 907.8 | I11: ='Übersicht Gruppen'!H7 -> 909.3 | J11: ='Übersicht Gruppen'!I7 -> 914.13 | K11: 5,484.8 | L11: ='Übersicht Gruppen'!K7 -> 912.4 | M11: ='Übersicht Gruppen'!L7 -> 908.8 | N11: ='Übersicht Gruppen'!M7 -> 912.5 | O11: ='Übersicht Gruppen'!N7 -> 912.4 | P11: ='Übersicht Gruppen'!O7 -> 917.0 | Q11: ='Übersicht Gruppen'!P7 -> 0.0 | R11: ='Übersicht Gruppen'!Q7 -> 912.62 | S11: 4,563.1 | T11: ='Übersicht Gruppen'!S7 -> 913.45 | U11: 10,047.9 | V11: -102.2
C13: Schnitt: | D13: =AVERAGE(D6:D11) -> 918.4 | E13: =AVERAGE(E6:E11) -> 921.7 | F13: 925.1 | G13: 930.1 | H13: 917.0 | I13: 925.6 | J13: 922.98 | K13: =SUM(K6:K11)/6 -> 5,537.9 | L13: 922.2 | M13: 923.8 | N13: 925.0 | O13: 923.7 | P13: 920.7 | Q13: 0.0 | R13: 923.07 | S13: 4615.3 | T13: 923.02 | U13: 10,153.2
J15: Hinrunde | R15: Rückrunde | T15: Serie komplett | V15: Differenz
A16: Pos. | B16: Vorname Name | C16: Verein / Gruppe | J16: Schnitt | K16: Gesamt | R16: Schnitt | S16: Gesamt | T16: Schnitt | U16: Gesamt
A17: 1 | B17: ='Übersicht Schützen'!A2 -> Nadine Krömer | C17: ='Übersicht Schützen'!B2 -> Lorup III | D17: ='Übersicht Schützen'!C2 -> 314.2 | E17: ='Übersicht Schützen'!D2 -> 313.3 | F17: ='Übersicht Schützen'!E2 -> 313.8 | G17: ='Übersicht Schützen'!F2 -> 315.1 | H17: ='Übersicht Schützen'!G2 -> 308.1 | I17: ='Übersicht Schützen'!H2 -> 312.2 | J17: ='Übersicht Schützen'!I2 -> 312.78 | K17: =SUM(D17:I17) -> 1,876.7 | L17: ='Übersicht Schützen'!L2 -> 310.4 | M17: ='Übersicht Schützen'!M2 -> 312.1 | N17: ='Übersicht Schützen'!N2 -> 312.6 | O17: ='Übersicht Schützen'!O2 -> 315.7 | P17: ='Übersicht Schützen'!P2 -> 309.8 | Q17: ='Übersicht Schützen'!Q2 -> 0.0 | R17: ='Übersicht Schützen'!R2 -> 312.12 | S17: =SUM(L17:Q17) -> 1,560.6 | T17: ='Übersicht Schützen'!U2 -> 312.48 | U17: =SUM(K17+S17) -> 3,437.3
A18: 2 | B18: ='Übersicht Schützen'!A3 -> Anna Temmen | C18: ='Übersicht Schützen'!B3 -> Ostenwalde II | D18: ='Übersicht Schützen'!C3 -> 307.5 | E18: ='Übersicht Schützen'!D3 -> 311.9 | F18: ='Übersicht Schützen'!E3 -> 316.6 | G18: ='Übersicht Schützen'!F3 -> 315.0 | H18: ='Übersicht Schützen'!G3 -> 311.6 | I18: ='Übersicht Schützen'!H3 -> 311.6 | J18: ='Übersicht Schützen'!I3 -> 312.37 | K18: =SUM(D18:I18) -> 1,874.2 | L18: ='Übersicht Schützen'!L3 -> 309.5 | M18: ='Übersicht Schützen'!M3 -> 311.3 | N18: ='Übersicht Schützen'!N3 -> 310.8 | O18: ='Übersicht Schützen'!O3 -> 313.3 | P18: ='Übersicht Schützen'!P3 -> 312.2 | Q18: ='Übersicht Schützen'!Q3 -> 0.0 | R18: ='Übersicht Schützen'!R3 -> 311.42 | S18: =SUM(L18:Q18) -> 1,557.1 | T18: ='Übersicht Schützen'!U3 -> 311.94 | U18: =SUM(K18+S18) -> 3,431.3 | V18: =(U17-U18)*-1 -> -6.0
A19: 3 | B19: ='Übersicht Schützen'!A4 -> Margret Pohlgeers | C19: ='Übersicht Schützen'!B4 -> Börger II | D19: ='Übersicht Schützen'!C4 -> 310.6 | E19: ='Übersicht Schützen'!D4 -> 307.4 | F19: ='Übersicht Schützen'!E4 -> 311.3 | G19: ='Übersicht Schützen'!F4 -> 315.2 | H19: ='Übersicht Schützen'!G4 -> 311.3 | I19: ='Übersicht Schützen'!H4 -> 312.9 | J19: ='Übersicht Schützen'!I4 -> 311.45 | K19: =SUM(D19:I19) -> 1,868.7 | L19: ='Übersicht Schützen'!L4 -> 308.8 | M19: ='Übersicht Schützen'!M4 -> 312.9 | N19: ='Übersicht Schützen'!N4 -> 312.4 | O19: ='Übersicht Schützen'!O4 -> 313.7 | P19: ='Übersicht Schützen'!P4 -> 308.5 | Q19: ='Übersicht Schützen'!Q4 -> 0.0 | R19: ='Übersicht Schützen'!R4 -> 311.26 | S19: 1,556.3 | T19: ='Übersicht Schützen'!U4 -> 311.36 | U19: 3,425.0 | V19: =(U18-U19)*-1 -> -6.3
A20: 4 | B20: ='Übersicht Schützen'!A5 -> Monika Jansen | C20: ='Übersicht Schützen'!B5 -> Spahnharrenstätte I | D20: ='Übersicht Schützen'!C5 -> 312.1 | E20: ='Übersicht Schützen'!D5 -> 312.7 | F20: ='Übersicht Schützen'!E5 -> 315.1 | G20: ='Übersicht Schützen'!F5 -> 316.1 | H20: ='Übersicht Schützen'!G5 -> 303.0 | I20: ='Übersicht Schützen'!H5 -> 311.3 | J20: ='Übersicht Schützen'!I5 -> 311.72 | K20: 1,870.3 | L20: ='Übersicht Schützen'!L5 -> 304.5 | M20: ='Übersicht Schützen'!M5 -> 309.6 | N20: ='Übersicht Schützen'!N5 -> 309.7 | O20: ='Übersicht Schützen'!O5 -> 308.6 | P20: ='Übersicht Schützen'!P5 -> 309.9 | Q20: ='Übersicht Schützen'!Q5 -> 0.0 | R20: ='Übersicht Schützen'!R5 -> 308.46 | S20: 1,542.3 | T20: ='Übersicht Schützen'!U5 -> 310.24 | U20: 3,412.6 | V20: -12.4
A21: 5 | B21: ='Übersicht Schützen'!A6 -> Hanna Gebken | C21: ='Übersicht Schützen'!B6 -> Lorup III | D21: ='Übersicht Schützen'!C6 -> 309.8 | E21: ='Übersicht Schützen'!D6 -> 311.6 | F21: ='Übersicht Schützen'!E6 -> 309.9 | G21: ='Übersicht Schützen'!F6 -> 312.2 | H21: ='Übersicht Schützen'!G6 -> 312.1 | I21: ='Übersicht Schützen'!H6 -> 306.7 | J21: ='Übersicht Schützen'!I6 -> 310.38 | K21: 1,862.3 | L21: ='Übersicht Schützen'!L6 -> 309.6 | M21: ='Übersicht Schützen'!M6 -> 307.2 | N21: ='Übersicht Schützen'!N6 -> 309.4 | O21: ='Übersicht Schützen'!O6 -> 307.5 | P21: ='Übersicht Schützen'!P6 -> 305.1 | Q21: ='Übersicht Schützen'!Q6 -> 0.0 | R21: ='Übersicht Schützen'!R6 -> 307.76 | S21: 1,538.8 | T21: ='Übersicht Schützen'!U6 -> 309.19 | U21: 3,401.1 | V21: -11.5
A22: 6 | B22: ='Übersicht Schützen'!A7 -> Maria Beusing | C22: ='Übersicht Schützen'!B7 -> Spahnharrenstätte I | D22: ='Übersicht Schützen'!C7 -> 304.1 | E22: ='Übersicht Schützen'!D7 -> 308.3 | F22: ='Übersicht Schützen'!E7 -> 308.1 | G22: ='Übersicht Schützen'!F7 -> 310.8 | H22: ='Übersicht Schützen'!G7 -> 308.6 | I22: ='Übersicht Schützen'!H7 -> 309.6 | J22: ='Übersicht Schützen'!I7 -> 308.25 | K22: 1,849.5 | L22: ='Übersicht Schützen'!L7 -> 314.9 | M22: ='Übersicht Schützen'!M7 -> 309.9 | N22: ='Übersicht Schützen'!N7 -> 310.8 | O22: ='Übersicht Schützen'!O7 -> 308.6 | P22: ='Übersicht Schützen'!P7 -> 307.0 | Q22: ='Übersicht Schützen'!Q7 -> 0.0 | R22: ='Übersicht Schützen'!R7 -> 310.24 | S22: 1,551.2 | T22: ='Übersicht Schützen'!U7 -> 309.15 | U22: 3,400.7 | V22: -0.4
A23: 7 | B23: ='Übersicht Schützen'!A8 -> Claudia Rolfes | C23: ='Übersicht Schützen'!B8 -> Neuvrees II | D23: ='Übersicht Schützen'!C8 -> 305.2 | E23: ='Übersicht Schützen'!D8 -> 305.4 | F23: ='Übersicht Schützen'!E8 -> 306.8 | G23: ='Übersicht Schützen'!F8 -> 311.3 | H23: ='Übersicht Schützen'!G8 -> 305.4 | I23: ='Übersicht Schützen'!H8 -> 311.4 | J23: ='Übersicht Schützen'!I8 -> 307.58 | K23: 1,845.5 | L23: ='Übersicht Schützen'!L8 -> 313.1 | M23: ='Übersicht Schützen'!M8 -> 309.2 | N23: ='Übersicht Schützen'!N8 -> 307.9 | O23: ='Übersicht Schützen'!O8 -> 313.3 | P23: ='Übersicht Schützen'!P8 -> 303.7 | Q23: ='Übersicht Schützen'!Q8 -> 0.0 | R23: ='Übersicht Schützen'!R8 -> 309.44 | S23: 1,547.2 | T23: ='Übersicht Schützen'!U8 -> 308.43 | U23: 3,392.7 | V23: -8.0
A24: 8 | B24: ='Übersicht Schützen'!A9 -> Silvia Thunert | C24: ='Übersicht Schützen'!B9 -> Neuvrees II | D24: ='Übersicht Schützen'!C9 -> 310.7 | E24: ='Übersicht Schützen'!D9 -> 311.3 | F24: ='Übersicht Schützen'!E9 -> 309.0 | G24: ='Übersicht Schützen'!F9 -> 307.4 | H24: ='Übersicht Schützen'!G9 -> 301.7 | I24: ='Übersicht Schützen'!H9 -> 312.0 | J24: ='Übersicht Schützen'!I9 -> 308.68 | K24: 1,852.1 | L24: ='Übersicht Schützen'!L9 -> 307.2 | M24: ='Übersicht Schützen'!M9 -> 306.8 | N24: ='Übersicht Schützen'!N9 -> 311.3 | O24: ='Übersicht Schützen'!O9 -> 307.0 | P24: ='Übersicht Schützen'!P9 -> 304.8 | Q24: ='Übersicht Schützen'!Q9 -> 0.0 | R24: ='Übersicht Schützen'!R9 -> 307.42 | S24: 1,537.1 | T24: ='Übersicht Schützen'!U9 -> 308.11 | U24: 3,389.2 | V24: -3.5
A25: 9 | B25: ='Übersicht Schützen'!A10 -> Sarah Deyen | C25: ='Übersicht Schützen'!B10 -> Neuvrees II | D25: ='Übersicht Schützen'!C10 -> 308.1 | E25: ='Übersicht Schützen'!D10 -> 305.2 | F25: ='Übersicht Schützen'!E10 -> 309.7 | G25: ='Übersicht Schützen'!F10 -> 312.6 | H25: ='Übersicht Schützen'!G10 -> 301.4 | I25: ='Übersicht Schützen'!H10 -> 310.1 | J25: ='Übersicht Schützen'!I10 -> 307.85 | K25: 1,847.1 | L25: ='Übersicht Schützen'!L10 -> 302.3 | M25: ='Übersicht Schützen'!M10 -> 311.1 | N25: ='Übersicht Schützen'!N10 -> 306.0 | O25: ='Übersicht Schützen'!O10 -> 309.0 | P25: ='Übersicht Schützen'!P10 -> 304.4 | Q25: ='Übersicht Schützen'!Q10 -> 0.0 | R25: ='Übersicht Schützen'!R10 -> 306.56 | S25: 1,532.8 | T25: ='Übersicht Schützen'!U10 -> 307.26 | U25: 3,379.9 | V25: -9.3
A26: 10 | B26: ='Übersicht Schützen'!A11 -> Ulla Schnieders | C26: ='Übersicht Schützen'!B11 -> Börgermoor I | D26: ='Übersicht Schützen'!C11 -> 306.6 | E26: ='Übersicht Schützen'!D11 -> 308.5 | F26: ='Übersicht Schützen'!E11 -> 309.8 | G26: ='Übersicht Schützen'!F11 -> 310.1 | H26: ='Übersicht Schützen'!G11 -> 308.8 | I26: ='Übersicht Schützen'!H11 -> 307.1 | J26: ='Übersicht Schützen'!I11 -> 308.48 | K26: 1,850.9 | L26: ='Übersicht Schützen'!L11 -> 300.9 | M26: ='Übersicht Schützen'!M11 -> 302.9 | N26: ='Übersicht Schützen'!N11 -> 304.0 | O26: ='Übersicht Schützen'!O11 -> 308.2 | P26: ='Übersicht Schützen'!P11 -> 310.0 | Q26: ='Übersicht Schützen'!Q11 -> 0.0 | R26: ='Übersicht Schützen'!R11 -> 305.20 | S26: 1,526.0 | T26: ='Übersicht Schützen'!U11 -> 306.99 | U26: 3,376.9 | V26: -3.0
A27: 11 | B27: ='Übersicht Schützen'!A12 -> Kerstin Sträche | C27: ='Übersicht Schützen'!B12 -> Spahnharrenstätte I | D27: ='Übersicht Schützen'!C12 -> 302.8 | E27: ='Übersicht Schützen'!D12 -> 311.9 | F27: ='Übersicht Schützen'!E12 -> 305.0 | G27: ='Übersicht Schützen'!F12 -> 302.0 | H27: ='Übersicht Schützen'!G12 -> 305.7 | I27: ='Übersicht Schützen'!H12 -> 307.3 | J27: ='Übersicht Schützen'!I12 -> 305.78 | K27: 1,834.7 | L27: ='Übersicht Schützen'!L12 -> 307.8 | M27: ='Übersicht Schützen'!M12 -> 299.7 | N27: ='Übersicht Schützen'!N12 -> 308.4 | O27: ='Übersicht Schützen'!O12 -> 304.8 | P27: ='Übersicht Schützen'!P12 -> 307.3 | Q27: ='Übersicht Schützen'!Q12 -> 0.0 | R27: ='Übersicht Schützen'!R12 -> 305.60 | S27: 1,528.0 | T27: ='Übersicht Schützen'!U12 -> 305.70 | U27: 3,362.7 | V27: -14.2
A28: 12 | B28: ='Übersicht Schützen'!A13 -> Marina Schrand | C28: ='Übersicht Schützen'!B13 -> Lorup III | D28: ='Übersicht Schützen'!C13 -> 305.9 | E28: ='Übersicht Schützen'!D13 -> 306.4 | F28: ='Übersicht Schützen'!E13 -> 303.9 | G28: ='Übersicht Schützen'!F13 -> 306.2 | H28: ='Übersicht Schützen'!G13 -> 303.0 | I28: ='Übersicht Schützen'!H13 -> 305.5 | J28: ='Übersicht Schützen'!I13 -> 305.15 | K28: 1,830.9 | L28: ='Übersicht Schützen'!L13 -> 304.1 | M28: ='Übersicht Schützen'!M13 -> 306.7 | N28: ='Übersicht Schützen'!N13 -> 303.5 | O28: ='Übersicht Schützen'!O13 -> 308.3 | P28: ='Übersicht Schützen'!P13 -> 308.8 | Q28: ='Übersicht Schützen'!Q13 -> 0.0 | R28: ='Übersicht Schützen'!R13 -> 306.28 | S28: 1,531.4 | T28: ='Übersicht Schützen'!U13 -> 305.66 | U28: 3,362.3 | V28: -0.4
A29: 13 | B29: ='Übersicht Schützen'!A14 -> Waltraud Dobelmann | C29: ='Übersicht Schützen'!B14 -> Börgermoor I | D29: ='Übersicht Schützen'!C14 -> 305.9 | E29: ='Übersicht Schützen'!D14 -> 303.7 | F29: ='Übersicht Schützen'!E14 -> 300.0 | G29: ='Übersicht Schützen'!F14 -> 308.5 | H29: ='Übersicht Schützen'!G14 -> 302.8 | I29: ='Übersicht Schützen'!H14 -> 302.8 | J29: ='Übersicht Schützen'!I14 -> 303.95 | K29: 1,823.7 | L29: ='Übersicht Schützen'!L14 -> 303.6 | M29: ='Übersicht Schützen'!M14 -> 311.1 | N29: ='Übersicht Schützen'!N14 -> 304.6 | O29: ='Übersicht Schützen'!O14 -> 304.7 | P29: ='Übersicht Schützen'!P14 -> 309.2 | Q29: ='Übersicht Schützen'!Q14 -> 0.0 | R29: ='Übersicht Schützen'!R14 -> 306.64 | S29: 1,533.2 | T29: ='Übersicht Schützen'!U14 -> 305.17 | U29: 3,356.9 | V29: -5.4
A30: 14 | B30: ='Übersicht Schützen'!A15 -> Anni Küwen | C30: ='Übersicht Schützen'!B15 -> Börgermoor I | D30: ='Übersicht Schützen'!C15 -> 299.3 | E30: ='Übersicht Schützen'!D15 -> 300.1 | F30: ='Übersicht Schützen'!E15 -> 306.2 | G30: ='Übersicht Schützen'!F15 -> 312.6 | H30: ='Übersicht Schützen'!G15 -> 297.9 | I30: ='Übersicht Schützen'!H15 -> 308.9 | J30: ='Übersicht Schützen'!I15 -> 304.17 | K30: 1,825.0 | L30: ='Übersicht Schützen'!L15 -> 308.6 | M30: ='Übersicht Schützen'!M15 -> 310.7 | N30: ='Übersicht Schützen'!N15 -> 311.1 | O30: ='Übersicht Schützen'!O15 -> 302.0 | P30: ='Übersicht Schützen'!P15 -> 297.6 | Q30: ='Übersicht Schützen'!Q15 -> 0.0 | R30: ='Übersicht Schützen'!R15 -> 306.00 | S30: 1,530.0 | T30: ='Übersicht Schützen'!U15 -> 305.00 | U30: 3,355.0 | V30: -1.9
A31: 15 | B31: ='Übersicht Schützen'!A16 -> Monika Reimann | C31: ='Übersicht Schützen'!B16 -> Lorup III | D31: ='Übersicht Schützen'!C16 -> 307.6 | E31: ='Übersicht Schützen'!D16 -> 303.8 | F31: ='Übersicht Schützen'!E16 -> 299.9 | G31: ='Übersicht Schützen'!F16 -> 305.8 | H31: ='Übersicht Schützen'!G16 -> 305.2 | I31: ='Übersicht Schützen'!H16 -> 304.6 | J31: ='Übersicht Schützen'!I16 -> 304.48 | K31: 1,826.9 | L31: ='Übersicht Schützen'!L16 -> 308.3 | M31: ='Übersicht Schützen'!M16 -> 301.8 | N31: ='Übersicht Schützen'!N16 -> 305.7 | O31: ='Übersicht Schützen'!O16 -> 304.1 | P31: ='Übersicht Schützen'!P16 -> 304.8 | Q31: ='Übersicht Schützen'!Q16 -> 0.0 | R31: ='Übersicht Schützen'!R16 -> 304.94 | S31: 1,524.7 | T31: ='Übersicht Schützen'!U16 -> 304.69 | U31: 3,351.6 | V31: -3.4
A32: 16 | B32: ='Übersicht Schützen'!A17 -> Gertrud Kuchta | C32: ='Übersicht Schützen'!B17 -> Börger II | D32: ='Übersicht Schützen'!C17 -> 300.7 | E32: ='Übersicht Schützen'!D17 -> 303.7 | F32: ='Übersicht Schützen'!E17 -> 305.3 | G32: ='Übersicht Schützen'!F17 -> 305.0 | H32: ='Übersicht Schützen'!G17 -> 301.0 | I32: ='Übersicht Schützen'!H17 -> 310.4 | J32: ='Übersicht Schützen'!I17 -> 304.35 | K32: 1,826.1 | L32: ='Übersicht Schützen'!L17 -> 303.7 | M32: ='Übersicht Schützen'!M17 -> 305.8 | N32: ='Übersicht Schützen'!N17 -> 307.5 | O32: ='Übersicht Schützen'!O17 -> 301.6 | P32: ='Übersicht Schützen'!P17 -> 304.8 | Q32: ='Übersicht Schützen'!Q17 -> 0.0 | R32: ='Übersicht Schützen'!R17 -> 304.68 | S32: 1,523.4 | T32: ='Übersicht Schützen'!U17 -> 304.50 | U32: 3,349.5 | V32: -2.1
A33: 17 | B33: ='Übersicht Schützen'!A18 -> Carmen Benten | C33: ='Übersicht Schützen'!B18 -> Ostenwalde II | D33: ='Übersicht Schützen'!C18 -> 301.6 | E33: ='Übersicht Schützen'!D18 -> 308.7 | F33: ='Übersicht Schützen'!E18 -> 308.4 | G33: ='Übersicht Schützen'!F18 -> 304.5 | H33: ='Übersicht Schützen'!G18 -> 296.8 | I33: ='Übersicht Schützen'!H18 -> 297.8 | J33: ='Übersicht Schützen'!I18 -> 302.97 | K33: 1,817.8 | L33: ='Übersicht Schützen'!L18 -> 306.8 | M33: ='Übersicht Schützen'!M18 -> 298.0 | N33: ='Übersicht Schützen'!N18 -> 309.8 | O33: ='Übersicht Schützen'!O18 -> 307.2 | P33: ='Übersicht Schützen'!P18 -> 308.0 | Q33: ='Übersicht Schützen'!Q18 -> 0.0 | R33: ='Übersicht Schützen'!R18 -> 305.96 | S33: 1,529.8 | T33: ='Übersicht Schützen'!U18 -> 304.33 | U33: 3,347.6 | V33: -1.9
A34: 18 | B34: ='Übersicht Schützen'!A19 -> Gundula Schwarte | C34: ='Übersicht Schützen'!B19 -> Börger II | D34: ='Übersicht Schützen'!C19 -> 297.5 | E34: ='Übersicht Schützen'!D19 -> 298.7 | F34: ='Übersicht Schützen'!E19 -> 307.5 | G34: ='Übersicht Schützen'!F19 -> 308.9 | H34: ='Übersicht Schützen'!G19 -> 304.4 | I34: ='Übersicht Schützen'!H19 -> 301.6 | J34: ='Übersicht Schützen'!I19 -> 303.10 | K34: 1,818.6 | L34: ='Übersicht Schützen'!L19 -> 300.6 | M34: ='Übersicht Schützen'!M19 -> 300.3 | N34: ='Übersicht Schützen'!N19 -> 303.0 | O34: ='Übersicht Schützen'!O19 -> 305.2 | P34: ='Übersicht Schützen'!P19 -> 307.9 | Q34: ='Übersicht Schützen'!Q19 -> 0.0 | R34: ='Übersicht Schützen'!R19 -> 303.40 | S34: 1,517.0 | T34: ='Übersicht Schützen'!U19 -> 303.24 | U34: 3,335.6 | V34: -12.0
A35: 19 | B35: ='Übersicht Schützen'!A20 -> Margret Pohlmann | C35: ='Übersicht Schützen'!B20 -> Neuvrees II | D35: ='Übersicht Schützen'!C20 -> 298.4 | E35: ='Übersicht Schützen'!D20 -> 302.3 | F35: ='Übersicht Schützen'!E20 -> 296.6 | G35: ='Übersicht Schützen'!F20 -> 302.3 | H35: ='Übersicht Schützen'!G20 -> 306.7 | I35: ='Übersicht Schützen'!H20 -> 301.1 | J35: ='Übersicht Schützen'!I20 -> 301.23 | K35: 1,807.4 | L35: ='Übersicht Schützen'!L20 -> 301.2 | M35: ='Übersicht Schützen'!M20 -> 302.0 | N35: ='Übersicht Schützen'!N20 -> 300.8 | O35: ='Übersicht Schützen'!O20 -> 297.6 | P35: ='Übersicht Schützen'!P20 -> 304.3 | Q35: ='Übersicht Schützen'!Q20 -> 0.0 | R35: ='Übersicht Schützen'!R20 -> 301.18 | S35: 1,505.9 | T35: ='Übersicht Schützen'!U20 -> 301.21 | U35: 3,313.3 | V35: -22.3
A36: 20 | B36: ='Übersicht Schützen'!A21 -> Annette Schwarte | C36: ='Übersicht Schützen'!B21 -> Börger II | D36: ='Übersicht Schützen'!C21 -> 301.2 | E36: ='Übersicht Schützen'!D21 -> 298.2 | F36: ='Übersicht Schützen'!E21 -> 306.1 | G36: ='Übersicht Schützen'!F21 -> 304.3 | H36: ='Übersicht Schützen'!G21 -> 301.2 | I36: ='Übersicht Schützen'!H21 -> 305.3 | J36: ='Übersicht Schützen'!I21 -> 302.72 | K36: 1,816.3 | L36: ='Übersicht Schützen'!L21 -> 296.1 | M36: ='Übersicht Schützen'!M21 -> 303.1 | N36: ='Übersicht Schützen'!N21 -> 299.0 | O36: ='Übersicht Schützen'!O21 -> 304.5 | P36: ='Übersicht Schützen'!P21 -> 290.6 | Q36: ='Übersicht Schützen'!Q21 -> 0.0 | R36: ='Übersicht Schützen'!R21 -> 298.66 | S36: 1,493.3 | T36: ='Übersicht Schützen'!U21 -> 300.87 | U36: 3,309.6 | V36: -3.7
A37: 21 | B37: ='Übersicht Schützen'!A22 -> Nina Krömer | C37: ='Übersicht Schützen'!B22 -> Lorup III | D37: ='Übersicht Schützen'!C22 -> 274.4 | E37: ='Übersicht Schützen'!D22 -> 292.3 | F37: ='Übersicht Schützen'!E22 -> 304.6 | G37: ='Übersicht Schützen'!F22 -> 298.0 | H37: ='Übersicht Schützen'!G22 -> 287.8 | I37: ='Übersicht Schützen'!H22 -> 305.4 | J37: ='Übersicht Schützen'!I22 -> 293.75 | K37: 1,762.5 | L37: ='Übersicht Schützen'!L22 -> 299.7 | M37: ='Übersicht Schützen'!M22 -> 292.7 | N37: ='Übersicht Schützen'!N22 -> 296.0 | O37: ='Übersicht Schützen'!O22 -> 303.1 | P37: ='Übersicht Schützen'!P22 -> 291.6 | Q37: ='Übersicht Schützen'!Q22 -> 0.0 | R37: ='Übersicht Schützen'!R22 -> 296.62 | S37: 1,483.1 | T37: ='Übersicht Schützen'!U22 -> 295.05 | U37: 3,245.6 | V37: -64.0
A38: 22 | B38: ='Übersicht Schützen'!A23 -> Silvia Junge | C38: ='Übersicht Schützen'!B23 -> Neuvrees II | D38: ='Übersicht Schützen'!C23 -> 296.5 | E38: ='Übersicht Schützen'!D23 -> 294.8 | F38: ='Übersicht Schützen'!E23 -> 283.0 | G38: ='Übersicht Schützen'!F23 -> 280.9 | H38: ='Übersicht Schützen'!G23 -> 290.8 | I38: ='Übersicht Schützen'!H23 -> 299.5 | J38: ='Übersicht Schützen'!I23 -> 290.92 | K38: 1,745.5 | L38: ='Übersicht Schützen'!L23 -> 300.3 | M38: ='Übersicht Schützen'!M23 -> 299.8 | N38: ='Übersicht Schützen'!N23 -> 247.4 | O38: ='Übersicht Schützen'!O23 -> 297.2 | P38: ='Übersicht Schützen'!P23 -> 301.9 | Q38: ='Übersicht Schützen'!Q23 -> 0.0 | R38: ='Übersicht Schützen'!R23 -> 289.32 | S38: 1,446.6 | T38: ='Übersicht Schützen'!U23 -> 290.19 | U38: 3,192.1 | V38: -53.5
A39: 23 | B39: ='Übersicht Schützen'!A24 -> Jasmin Kramer | C39: ='Übersicht Schützen'!B24 -> Börgermoor I | D39: ='Übersicht Schützen'!C24 -> 298.8 | E39: ='Übersicht Schützen'!D24 -> 302.4 | F39: ='Übersicht Schützen'!E24 -> 306.2 | G39: ='Übersicht Schützen'!F24 -> 310.5 | H39: ='Übersicht Schützen'!G24 -> 310.3 | I39: ='Übersicht Schützen'!H24 -> 309.3 | J39: ='Übersicht Schützen'!I24 -> 306.25 | K39: 1,837.5 | L39: ='Übersicht Schützen'!L24 -> 311.7 | M39: ='Übersicht Schützen'!M24 -> 312.3 | N39: ='Übersicht Schützen'!N24 -> 312.3 | O39: ='Übersicht Schützen'!O24 -> 305.4 | P39: ='Übersicht Schützen'!P24 -> 0.0 | Q39: ='Übersicht Schützen'!Q24 -> 0.0 | R39: ='Übersicht Schützen'!R24 -> 310.43 | S39: 1,241.7 | T39: ='Übersicht Schützen'!U24 -> 307.92 | U39: 3,079.2 | V39: -112.9
A40: 24 | B40: ='Übersicht Schützen'!A25 -> Rita Hanekamp | C40: ='Übersicht Schützen'!B25 -> Spahnharrenstätte I | D40: ='Übersicht Schützen'!C25 -> 295.1 | E40: ='Übersicht Schützen'!D25 -> 300.5 | F40: ='Übersicht Schützen'!E25 -> 288.4 | G40: ='Übersicht Schützen'!F25 -> 296.9 | H40: ='Übersicht Schützen'!G25 -> 287.8 | I40: ='Übersicht Schützen'!H25 -> 287.0 | J40: ='Übersicht Schützen'!I25 -> 292.62 | K40: 1,755.7 | L40: ='Übersicht Schützen'!L25 -> 0.0 | M40: ='Übersicht Schützen'!M25 -> 284.9 | N40: ='Übersicht Schützen'!N25 -> 296.3 | O40: ='Übersicht Schützen'!O25 -> 295.2 | P40: ='Übersicht Schützen'!P25 -> 291.8 | Q40: ='Übersicht Schützen'!Q25 -> 0.0 | R40: ='Übersicht Schützen'!R25 -> 292.05 | S40: 1,168.2 | T40: ='Übersicht Schützen'!U25 -> 292.39 | U40: 2,923.9 | V40: -155.3
A41: 25 | B41: ='Übersicht Schützen'!A26 -> Petra Dödtmann | C41: ='Übersicht Schützen'!B26 -> Börger II | D41: ='Übersicht Schützen'!C26 -> 0.0 | E41: ='Übersicht Schützen'!D26 -> 304.5 | F41: ='Übersicht Schützen'!E26 -> 0.0 | G41: ='Übersicht Schützen'!F26 -> 315.1 | H41: ='Übersicht Schützen'!G26 -> 305.4 | I41: ='Übersicht Schützen'!H26 -> 309.8 | J41: ='Übersicht Schützen'!I26 -> 308.70 | K41: 1,234.8 | L41: ='Übersicht Schützen'!L26 -> 310.5 | M41: ='Übersicht Schützen'!M26 -> 308.9 | N41: ='Übersicht Schützen'!N26 -> 307.6 | O41: ='Übersicht Schützen'!O26 -> 309.9 | P41: ='Übersicht Schützen'!P26 -> 312.3 | Q41: ='Übersicht Schützen'!Q26 -> 0.0 | R41: ='Übersicht Schützen'!R26 -> 309.84 | S41: 1,549.2 | T41: ='Übersicht Schützen'!U26 -> 309.33 | U41: 2,784.0 | V41: -139.9
A42: 26 | B42: ='Übersicht Schützen'!A27 -> Sarah Meiners | C42: ='Übersicht Schützen'!B27 -> Ostenwalde II | D42: ='Übersicht Schützen'!C27 -> 292.6 | E42: ='Übersicht Schützen'!D27 -> 291.6 | F42: ='Übersicht Schützen'!E27 -> 286.0 | G42: ='Übersicht Schützen'!F27 -> 290.4 | H42: ='Übersicht Schützen'!G27 -> 286.8 | I42: ='Übersicht Schützen'!H27 -> 278.1 | J42: ='Übersicht Schützen'!I27 -> 287.58 | K42: 1,725.5 | L42: ='Übersicht Schützen'!L27 -> 286.3 | M42: ='Übersicht Schützen'!M27 -> 0.0 | N42: ='Übersicht Schützen'!N27 -> 291.9 | O42: ='Übersicht Schützen'!O27 -> 291.9 | P42: ='Übersicht Schützen'!P27 -> 0.0 | Q42: ='Übersicht Schützen'!Q27 -> 0.0 | R42: ='Übersicht Schützen'!R27 -> 290.03 | S42: 870.1 | T42: ='Übersicht Schützen'!U27 -> 288.40 | U42: 2,595.6 | V42: -188.4
A43: 27 | B43: ='Übersicht Schützen'!A28 -> Helga Meiners | C43: ='Übersicht Schützen'!B28 -> Ostenwalde II | D43: ='Übersicht Schützen'!C28 -> 302.1 | E43: ='Übersicht Schützen'!D28 -> 293.4 | F43: ='Übersicht Schützen'!E28 -> 299.3 | G43: ='Übersicht Schützen'!F28 -> 298.7 | H43: ='Übersicht Schützen'!G28 -> 299.4 | I43: ='Übersicht Schützen'!H28 -> 299.9 | J43: ='Übersicht Schützen'!I28 -> 298.80 | K43: 1,792.8 | L43: ='Übersicht Schützen'!L28 -> 296.1 | M43: ='Übersicht Schützen'!M28 -> 291.6 | N43: ='Übersicht Schützen'!N28 -> 0.0 | O43: ='Übersicht Schützen'!O28 -> 0.0 | P43: ='Übersicht Schützen'!P28 -> 0.0 | Q43: ='Übersicht Schützen'!Q28 -> 0.0 | R43: ='Übersicht Schützen'!R28 -> 293.85 | S43: 587.7 | T43: ='Übersicht Schützen'!U28 -> 297.56 | U43: 2,380.5 | V43: -215.1
A44: 28 | B44: ='Übersicht Schützen'!A29 -> Sarah Breer | C44: ='Übersicht Schützen'!B29 -> Börger II | D44: ='Übersicht Schützen'!C29 -> 288.8 | E44: ='Übersicht Schützen'!D29 -> 283.5 | F44: ='Übersicht Schützen'!E29 -> 284.3 | G44: ='Übersicht Schützen'!F29 -> 0.0 | H44: ='Übersicht Schützen'!G29 -> 266.4 | I44: ='Übersicht Schützen'!H29 -> 271.9 | J44: ='Übersicht Schützen'!I29 -> 278.97 | K44: 1,394.9 | L44: ='Übersicht Schützen'!L29 -> 266.2 | M44: ='Übersicht Schützen'!M29 -> 0.0 | N44: ='Übersicht Schützen'!N29 -> 0.0 | O44: ='Übersicht Schützen'!O29 -> 0.0 | P44: ='Übersicht Schützen'!P29 -> 0.0 | Q44: ='Übersicht Schützen'!Q29 -> 0.0 | R44: ='Übersicht Schützen'!R29 -> 266.20 | S44: 266.2 | T44: ='Übersicht Schützen'!U29 -> 276.84 | U44: 1,661.1 | V44: -719.5
A45: 29 | B45: ='Übersicht Schützen'!A30 -> Harma Steenken | C45: ='Übersicht Schützen'!B30 -> Neuvrees II | D45: ='Übersicht Schützen'!C30 -> 275.9 | E45: ='Übersicht Schützen'!D30 -> 297.5 | F45: ='Übersicht Schützen'!E30 -> 0.0 | G45: ='Übersicht Schützen'!F30 -> 268.4 | H45: ='Übersicht Schützen'!G30 -> 0.0 | I45: ='Übersicht Schützen'!H30 -> 0.0 | J45: ='Übersicht Schützen'!I30 -> 280.60 | K45: 841.8 | L45: ='Übersicht Schützen'!L30 -> 261.1 | M45: ='Übersicht Schützen'!M30 -> 0.0 | N45: ='Übersicht Schützen'!N30 -> 282.0 | O45: ='Übersicht Schützen'!O30 -> 0.0 | P45: ='Übersicht Schützen'!P30 -> 0.0 | Q45: ='Übersicht Schützen'!Q30 -> 0.0 | R45: ='Übersicht Schützen'!R30 -> 271.55 | S45: 543.1 | T45: ='Übersicht Schützen'!U30 -> 276.98 | U45: 1,384.9 | V45: 0.0
A46: 30 | B46: ='Übersicht Schützen'!A31 -> Margret Büter | C46: ='Übersicht Schützen'!B31 -> Lorup III | D46: ='Übersicht Schützen'!C31 -> 288.4 | E46: ='Übersicht Schützen'!D31 -> 277.1 | F46: ='Übersicht Schützen'!E31 -> 0.0 | G46: ='Übersicht Schützen'!F31 -> 0.0 | H46: ='Übersicht Schützen'!G31 -> 0.0 | I46: ='Übersicht Schützen'!H31 -> 0.0 | J46: ='Übersicht Schützen'!I31 -> 282.75 | K46: 565.5 | L46: ='Übersicht Schützen'!L31 -> 0.0 | M46: ='Übersicht Schützen'!M31 -> 0.0 | N46: ='Übersicht Schützen'!N31 -> 0.0 | O46: ='Übersicht Schützen'!O31 -> 0.0 | P46: ='Übersicht Schützen'!P31 -> 0.0 | Q46: ='Übersicht Schützen'!Q31 -> 0.0 | R46: ='Übersicht Schützen'!R31 -> 0.00 | S46: 0.0 | T46: ='Übersicht Schützen'!U31 -> 282.75 | U46: 565.5 | V46: -819.4
A47: 31 | B47: ='Übersicht Schützen'!A32 -> Evelyn Feder | C47: ='Übersicht Schützen'!B32 -> Ostenwalde II | D47: ='Übersicht Schützen'!C32 -> 0.0 | E47: ='Übersicht Schützen'!D32 -> 0.0 | F47: ='Übersicht Schützen'!E32 -> 0.0 | G47: ='Übersicht Schützen'!F32 -> 0.0 | H47: ='Übersicht Schützen'!G32 -> 0.0 | I47: ='Übersicht Schützen'!H32 -> 0.0 | J47: ='Übersicht Schützen'!I32 -> 0.00 | K47: 0.0 | L47: ='Übersicht Schützen'!L32 -> 0.0 | M47: ='Übersicht Schützen'!M32 -> 299.5 | N47: ='Übersicht Schützen'!N32 -> 0.0 | O47: ='Übersicht Schützen'!O32 -> 0.0 | P47: ='Übersicht Schützen'!P32 -> 0.0 | Q47: ='Übersicht Schützen'!Q32 -> 0.0 | R47: ='Übersicht Schützen'!R32 -> 299.50 | S47: 299.5 | T47: ='Übersicht Schützen'!U32 -> 299.50 | U47: 299.5 | V47: =(U46-U47)*-1 -> -266.0
A48: 32 | B48: ='Übersicht Schützen'!A33 -> Anna -Maria Wimberg | C48: ='Übersicht Schützen'!B33 -> Ostenwalde II | D48: ='Übersicht Schützen'!C33 -> 0.0 | E48: ='Übersicht Schützen'!D33 -> 0.0 | F48: ='Übersicht Schützen'!E33 -> 0.0 | G48: ='Übersicht Schützen'!F33 -> 0.0 | H48: ='Übersicht Schützen'!G33 -> 0.0 | I48: ='Übersicht Schützen'!H33 -> 0.0 | J48: ='Übersicht Schützen'!I33 -> 0.00 | K48: 0.0 | L48: ='Übersicht Schützen'!L33 -> 0.0 | M48: ='Übersicht Schützen'!M33 -> 0.0 | N48: ='Übersicht Schützen'!N33 -> 0.0 | O48: ='Übersicht Schützen'!O33 -> 0.0 | P48: ='Übersicht Schützen'!P33 -> 296.8 | Q48: ='Übersicht Schützen'!Q33 -> 0.0 | R48: ='Übersicht Schützen'!R33 -> 296.80 | S48: 296.8 | T48: ='Übersicht Schützen'!U33 -> 296.80 | U48: 296.8 | V48: -2.7
A49: 33 | B49: ='Übersicht Schützen'!A34 -> Schütze 35 | C49: ='Übersicht Schützen'!B34 -> Spahnharrenstätte I | D49: ='Übersicht Schützen'!C34 -> 0.0 | E49: ='Übersicht Schützen'!D34 -> 278.6 | F49: ='Übersicht Schützen'!E34 -> 0.0 | G49: ='Übersicht Schützen'!F34 -> 0.0 | H49: ='Übersicht Schützen'!G34 -> 0.0 | I49: ='Übersicht Schützen'!H34 -> 0.0 | J49: ='Übersicht Schützen'!I34 -> 278.60 | K49: 278.6 | L49: ='Übersicht Schützen'!L34 -> 0.0 | M49: ='Übersicht Schützen'!M34 -> 0.0 | N49: ='Übersicht Schützen'!N34 -> 0.0 | O49: ='Übersicht Schützen'!O34 -> 0.0 | P49: ='Übersicht Schützen'!P34 -> 0.0 | Q49: ='Übersicht Schützen'!Q34 -> 0.0 | R49: ='Übersicht Schützen'!R34 -> 0.00 | S49: 0.0 | T49: ='Übersicht Schützen'!U34 -> 278.60 | U49: 278.6 | V49: -18.2
A50: 34 | B50: ='Übersicht Schützen'!A35 -> Schütze 17 | C50: ='Übersicht Schützen'!B35 -> Börgermoor I | D50: ='Übersicht Schützen'!C35 -> 0.0 | E50: ='Übersicht Schützen'!D35 -> 0.0 | F50: ='Übersicht Schützen'!E35 -> 0.0 | G50: ='Übersicht Schützen'!F35 -> 0.0 | H50: ='Übersicht Schützen'!G35 -> 0.0 | I50: ='Übersicht Schützen'!H35 -> 0.0 | J50: ='Übersicht Schützen'!I35 -> 0.00 | K50: 0.0 | L50: ='Übersicht Schützen'!L35 -> 0.0 | M50: ='Übersicht Schützen'!M35 -> 0.0 | N50: ='Übersicht Schützen'!N35 -> 0.0 | O50: ='Übersicht Schützen'!O35 -> 0.0 | P50: ='Übersicht Schützen'!P35 -> 0.0 | Q50: ='Übersicht Schützen'!Q35 -> 0.0 | R50: ='Übersicht Schützen'!R35 -> 0.00 | S50: 0.0 | T50: ='Übersicht Schützen'!U35 -> 0.00 | U50: 0.0 | V50: -278.6
A51: 35 | B51: ='Übersicht Schützen'!A36 -> Schütze 18 | C51: ='Übersicht Schützen'!B36 -> Börgermoor I | D51: ='Übersicht Schützen'!C36 -> 0.0 | E51: ='Übersicht Schützen'!D36 -> 0.0 | F51: ='Übersicht Schützen'!E36 -> 0.0 | G51: ='Übersicht Schützen'!F36 -> 0.0 | H51: ='Übersicht Schützen'!G36 -> 0.0 | I51: ='Übersicht Schützen'!H36 -> 0.0 | J51: ='Übersicht Schützen'!I36 -> 0.00 | K51: 0.0 | L51: ='Übersicht Schützen'!L36 -> 0.0 | M51: ='Übersicht Schützen'!M36 -> 0.0 | N51: ='Übersicht Schützen'!N36 -> 0.0 | O51: ='Übersicht Schützen'!O36 -> 0.0 | P51: ='Übersicht Schützen'!P36 -> 0.0 | Q51: ='Übersicht Schützen'!Q36 -> 0.0 | R51: ='Übersicht Schützen'!R36 -> 0.00 | S51: 0.0 | T51: ='Übersicht Schützen'!U36 -> 0.00 | U51: 0.0 | V51: =(U50-U51)*-1 -> 0.0
A52: 36 | B52: ='Übersicht Schützen'!A37 -> Schütze 36 | C52: ='Übersicht Schützen'!B37 -> Spahnharrenstätte I | D52: ='Übersicht Schützen'!C37 -> 0.0 | E52: ='Übersicht Schützen'!D37 -> 0.0 | F52: ='Übersicht Schützen'!E37 -> 0.0 | G52: ='Übersicht Schützen'!F37 -> 0.0 | H52: ='Übersicht Schützen'!G37 -> 0.0 | I52: ='Übersicht Schützen'!H37 -> 0.0 | J52: ='Übersicht Schützen'!I37 -> 0.00 | K52: 0.0 | L52: ='Übersicht Schützen'!L37 -> 0.0 | M52: ='Übersicht Schützen'!M37 -> 0.0 | N52: ='Übersicht Schützen'!N37 -> 0.0 | O52: ='Übersicht Schützen'!O37 -> 0.0 | P52: ='Übersicht Schützen'!P37 -> 0.0 | Q52: ='Übersicht Schützen'!Q37 -> 0.0 | R52: ='Übersicht Schützen'!R37 -> 0.00 | S52: 0.0 | T52: ='Übersicht Schützen'!U37 -> 0.00 | U52: 0.0 | V52: 0.0
C54: Schnitt: | D54: =IF(Formelhilfe!B45 > 0, SUM(D17:D52)/Formelhilfe!B45, 0) -> 300.8 | E54: =IF(Formelhilfe!C45 > 0, SUM(E17:E52)/Formelhilfe!C45, 0) -> 301.6 | F54: =IF(Formelhilfe!D45 > 0, SUM(F17:F52)/Formelhilfe!D45, 0) -> 303.7 | G54: =IF(Formelhilfe!E45 > 0, SUM(G17:G52)/Formelhilfe!E45, 0) -> 305.2 | H54: =IF(Formelhilfe!F45 > 0, SUM(H17:H52)/Formelhilfe!F45, 0) -> 301.1 | I54: =IF(Formelhilfe!G45 > 0, SUM(I17:I52)/Formelhilfe!G45, 0) -> 304.0 | J54: =IF(SUM(J17:J52)<>0,AVERAGEIF(J17:J52,"<>0"),0) -> 301.19 | K54: =IF(SUM(K17:K52)<>0,AVERAGEIF(K17:K52,"<>0"),0) -> 1669.67 | L54: =IF(Formelhilfe!I45 > 0, SUM(L17:L52)/Formelhilfe!I45, 0) -> 301.9 | M54: =IF(Formelhilfe!J45 > 0, SUM(M17:M52)/Formelhilfe!J45, 0) -> 304.5 | N54: =IF(Formelhilfe!K45 > 0, SUM(N17:N52)/Formelhilfe!K45, 0) -> 303.0 | O54: =IF(Formelhilfe!L45 > 0, SUM(O17:O52)/Formelhilfe!L45, 0) -> 305.7 | P54: =IF(Formelhilfe!M45 > 0, SUM(P17:P52)/Formelhilfe!M45, 0) -> 304.5 | Q54: =IF(Formelhilfe!N45 > 0, SUM(Q17:Q52)/Formelhilfe!N45, 0) -> 0.0 | R54: =IF(SUM(R17:R52)<>0,AVERAGEIF(R17:R52,"<>0"),0) -> 301.59 | S54: =IF(SUM(S17:S52)<>0,AVERAGEIF(S17:S52,"<>0"),0) -> 1303.82 | T54: 300.84 | U54: =(K54+S54) -> 2,973.49

Sheet Wettkampf 1
B1: Verein / Gruppe | D1: Ergebnisse | X1: Austragungsort: | Y1: =Übersicht!D4 -> Börger
A2: 1 | B2: Börger II | D2: =G46 -> 912.5 | E2: =IF(H46>4,"Es sind zu viele Schützen in Wertung!"," ") ->  | X2: Wettkampftag: | Y2: =Übersicht!D3 -> 18.08.
A3: 2 | B3: Neuvrees II | D3: =I46 -> 924.0 | E3: =IF(J46>4,"Es sind zu viele Schützen in Wertung!"," ") -> 
A4: 3 | B4: Börgermoor I | D4: =K46 -> 911.8 | E4: =IF(L46>4,"Es sind zu viele Schützen in Wertung!"," ") ->  | Z4: Ansprechpartner für Rückfragen:
A5: 4 | B5: Lorup III | D5: =M46 -> 931.6 | E5: =IF(N46>4,"Es sind zu viele Schützen in Wertung!"," ") ->  | X5: Name: | Y5: Margret Pohlgeers
A6: 5 | B6: Ostenwalde II | D6: =O46 -> 911.2 | E6: =IF(P46>4,"Es sind zu viele Schützen in Wertung!"," ") ->  | X6: Tel: | Y6: 059538976
A7: 6 | B7: Spahnharrenstätte I | D7: =Q46 -> 919.0 | E7: =IF(R46>4,"Es sind zu viele Schützen in Wertung!"," ") ->  | X7: Standaufsicht: | Y7: Johann Pohlgeers
B9: Einzelergebnisse: | C9: Verein/Gruppe (per Dropdown-Feld einzutragen) | D9: Ergebnisse | E9: AW? Dann x eintippen | G9: Verein 1 | I9: Verein 2 | K9: Verein 3 | M9: Verein 4 | O9: Verein 5 | Q9: Verein 6 | U9: Geburtsdatum | W9: Proberechnung bei Streifen:
A10: 1 | B10: Gertrud Kuchta | C10: Börger II | D10: 300.7 | F10: =IF(E10="x","0",D10) -> 300.7 | G10: =IF(C10=$B$2,F10,0) -> 300.7 | H10: =(IF(AND($E10="",$C10=$B$2),1,0)) -> 1 | I10: =IF($C10=$B$3,F10,0) -> 0 | J10: =(IF(AND($E10="",$C10=$B$3),1,0)) -> 0 | K10: =IF($C10=$B$4,F10,0) -> 0 | L10: =(IF(AND($E10="",$C10=$B$4),1,0)) -> 0 | M10: =IF($C10=$B$5,F10,0) -> 0 | N10: =(IF(AND($E10="",$C10=$B$5),1,0)) -> 0 | O10: =IF($C10=$B$6,F10,0) -> 0 | P10: =(IF(AND($E10="",$C10=$B$6),1,0)) -> 0 | Q10: =IF($C10=$B$7,F10,0) -> 0 | R10: =(IF(AND($E10="",$C10=$B$7),1,0)) -> 0 | Z10: =W10+X10+Y10 -> 0.0 | AA10: =IF(Z10=D10,1,0) -> 0 | AB10: =IF(Z10=0,0,1) -> 0 | AC10: =IF(AA10+AB10=2,"Korrekt","") -> 
A11: 2 | B11: Sarah Breer | C11: Börger II | D11: 288.8 | E11: x | F11: =IF(E11="x","0",D11) -> 0 | G11: =IF(C11=$B$2,F11,0) -> 0 | H11: =(IF(AND($E11="",$C11=$B$2),1,0)) -> 0 | I11: =IF($C11=$B$3,F11,0) -> 0 | J11: =(IF(AND($E11="",$C11=$B$3),1,0)) -> 0 | K11: =IF($C11=$B$4,F11,0) -> 0 | L11: =(IF(AND($E11="",$C11=$B$4),1,0)) -> 0 | M11: =IF($C11=$B$5,F11,0) -> 0 | N11: =(IF(AND($E11="",$C11=$B$5),1,0)) -> 0 | O11: =IF($C11=$B$6,F11,0) -> 0 | P11: =(IF(AND($E11="",$C11=$B$6),1,0)) -> 0 | Q11: =IF($C11=$B$7,F11,0) -> 0 | R11: =(IF(AND($E11="",$C11=$B$7),1,0)) -> 0 | Z11: =W11+X11+Y11 -> 0.0 | AA11: =IF(Z11=D11,1,0) -> 0 | AB11: =IF(Z11=0,0,1) -> 0 | AC11: =IF(AA11+AB11=2,"Korrekt","") -> 
A12: 3 | B12: Margret Pohlgeers | C12: Börger II | D12: 310.6 | F12: 310.6 | G12: 310.6 | H12: 1 | I12: 0 | J12: 0 | K12: 0 | L12: 0 | M12: 0 | N12: 0 | O12: 0 | P12: 0 | Q12: 0 | R12: 0 | Z12: 0.0 | AA12: 0 | AB12: 0
A13: 4 | B13: Gundula Schwarte | C13: Börger II | D13: 297.5 | F13: 297.5 | G13: 297.5 | H13: 1 | I13: 0 | J13: 0 | K13: 0 | L13: 0 | M13: 0 | N13: 0 | O13: 0 | P13: 0 | Q13: 0 | R13: 0 | Z13: 0.0 | AA13: 0 | AB13: 0
A14: 5 | B14: Annette Schwarte | C14: Börger II | D14: 301.2 | F14: 301.2 | G14: 301.2 | H14: 1 | I14: 0 | J14: 0 | K14: 0 | L14: 0 | M14: 0 | N14: 0 | O14: 0 | P14: 0 | Q14: 0 | R14: 0 | Z14: 0.0 | AA14: 0 | AB14: 0
A15: 6 | B15: Petra Dödtmann | C15: Börger II | E15: x | F15: 0 | G15: 0 | H15: 0 | I15: 0 | J15: 0 | K15: 0 | L15: 0 | M15: 0 | N15: 0 | O15: 0 | P15: 0 | Q15: 0 | R15: 0 | Z15: 0.0 | AA15: 1 | AB15: 0
A16: 7 | B16: Sarah Deyen | C16: Neuvrees II | D16: 308.1 | F16: 308.1 | G16: 0 | H16: 0 | I16: 308.1 | J16: 1 | K16: 0 | L16: 0 | M16: 0 | N16: 0 | O16: 0 | P16: 0 | Q16: 0 | R16: 0 | Z16: 0.0 | AA16: 0 | AB16: 0
A17: 8 | B17: Silvia Thunert | C17: Neuvrees II | D17: 310.7 | F17: 310.7 | G17: 0 | H17: 0 | I17: 310.7 | J17: 1 | K17: 0 | L17: 0 | M17: 0 | N17: 0 | O17: 0 | P17: 0 | Q17: 0 | R17: 0 | Z17: 0.0 | AA17: 0 | AB17: 0
A18: 9 | B18: Margret Pohlmann | C18: Neuvrees II | D18: 298.4 | F18: 298.4 | G18: 0 | H18: 0 | I18: 298.4 | J18: 1 | K18: 0 | L18: 0 | M18: 0 | N18: 0 | O18: 0 | P18: 0 | Q18: 0 | R18: 0 | Z18: 0.0 | AA18: 0 | AB18: 0
A19: 10 | B19: Harma Steenken | C19: Neuvrees II | D19: 275.9 | E19: x | F19: 0 | G19: 0 | H19: 0 | I19: 0 | J19: 0 | K19: 0 | L19: 0 | M19: 0 | N19: 0 | O19: 0 | P19: 0 | Q19: 0 | R19: 0 | Z19: 0.0 | AA19: 0 | AB19: 0
A20: 11 | B20: Claudia Rolfes | C20: Neuvrees II | D20: 305.2 | F20: 305.2 | G20: 0 | H20: 0 | I20: 305.2 | J20: 1 | K20: 0 | L20: 0 | M20: 0 | N20: 0 | O20: 0 | P20: 0 | Q20: 0 | R20: 0 | Z20: 0.0 | AA20: 0 | AB20: 0
A21: 12 | B21: Silvia Junge | C21: Neuvrees II | D21: 296.5 | E21: x | F21: 0 | G21: 0 | H21: 0 | I21: 0 | J21: 0 | K21: 0 | L21: 0 | M21: 0 | N21: 0 | O21: 0 | P21: 0 | Q21: 0 | R21: 0 | Z21: 0.0 | AA21: 0 | AB21: 0
A22: 13 | B22: Ulla Schnieders | C22: Börgermoor I | D22: 306.6 | F22: 306.6 | G22: 0 | H22: 0 | I22: 0 | J22: 0 | K22: 306.6 | L22: 1 | M22: 0 | N22: 0 | O22: 0 | P22: 0 | Q22: 0 | R22: 0 | Z22: 0.0 | AA22: 0 | AB22: 0
A23: 14 | B23: Jasmin Kramer | C23: Börgermoor I | D23: 298.8 | F23: 298.8 | G23: 0 | H23: 0 | I23: 0 | J23: 0 | K23: 298.8 | L23: 1 | M23: 0 | N23: 0 | O23: 0 | P23: 0 | Q23: 0 | R23: 0 | Z23: 0.0 | AA23: 0 | AB23: 0
A24: 15 | B24: Anni Küwen | C24: Börgermoor I | D24: 299.3 | F24: 299.3 | G24: 0 | H24: 0 | I24: 0 | J24: 0 | K24: 299.3 | L24: 1 | M24: 0 | N24: 0 | O24: 0 | P24: 0 | Q24: 0 | R24: 0 | Z24: 0.0 | AA24: 0 | AB24: 0
A25: 16 | B25: Waltraud Dobelmann | C25: Börgermoor I | D25: 305.9 | F25: 305.9 | G25: 0 | H25: 0 | I25: 0 | J25: 0 | K25: 305.9 | L25: 1 | M25: 0 | N25: 0 | O25: 0 | P25: 0 | Q25: 0 | R25: 0 | Z25: 0.0 | AA25: 0 | AB25: 0
A26: 17 | B26: Schütze 17 | C26: Börgermoor I | E26: x | F26: 0 | G26: 0 | H26: 0 | I26: 0 | J26: 0 | K26: 0 | L26: 0 | M26: 0 | N26: 0 | O26: 0 | P26: 0 | Q26: 0 | R26: 0 | Z26: 0.0 | AA26: 1 | AB26: 0
A27: 18 | B27: Schütze 18 | C27: Börgermoor I | E27: x | F27: 0 | G27: 0 | H27: 0 | I27: 0 | J27: 0 | K27: 0 | L27: 0 | M27: 0 | N27: 0 | O27: 0 | P27: 0 | Q27: 0 | R27: 0 | Z27: 0.0 | AA27: 1 | AB27: 0
A28: 19 | B28: Hanna Gebken | C28: Lorup III | D28: 309.8 | F28: 309.8 | G28: 0 | H28: 0 | I28: 0 | J28: 0 | K28: 0 | L28: 0 | M28: 309.8 | N28: 1 | O28: 0 | P28: 0 | Q28: 0 | R28: 0 | Z28: 0.0 | AA28: 0 | AB28: 0
A29: 20 | B29: Monika Reimann | C29: Lorup III | D29: 307.6 | F29: 307.6 | G29: 0 | H29: 0 | I29: 0 | J29: 0 | K29: 0 | L29: 0 | M29: 307.6 | N29: 1 | O29: 0 | P29: 0 | Q29: 0 | R29: 0 | Z29: 0.0 | AA29: 0 | AB29: 0
A30: 21 | B30: Marina Schrand | C30: Lorup III | D30: 305.9 | F30: 305.9 | G30: 0 | H30: 0 | I30: 0 | J30: 0 | K30: 0 | L30: 0 | M30: 305.9 | N30: 1 | O30: 0 | P30: 0 | Q30: 0 | R30: 0 | Z30: 0.0 | AA30: 0 | AB30: 0
A31: 22 | B31: Nadine Krömer | C31: Lorup III | D31: 314.2 | F31: 314.2 | G31: 0 | H31: 0 | I31: 0 | J31: 0 | K31: 0 | L31: 0 | M31: 314.2 | N31: 1 | O31: 0 | P31: 0 | Q31: 0 | R31: 0 | Z31: 0.0 | AA31: 0 | AB31: 0
A32: 23 | B32: Nina Krömer | C32: Lorup III | D32: 274.4 | E32: x | F32: 0 | G32: 0 | H32: 0 | I32: 0 | J32: 0 | K32: 0 | L32: 0 | M32: 0 | N32: 0 | O32: 0 | P32: 0 | Q32: 0 | R32: 0 | Z32: 0.0 | AA32: 0 | AB32: 0
A33: 24 | B33: Margret Büter | C33: Lorup III | D33: 288.4 | E33: x | F33: 0 | G33: 0 | H33: 0 | I33: 0 | J33: 0 | K33: 0 | L33: 0 | M33: 0 | N33: 0 | O33: 0 | P33: 0 | Q33: 0 | R33: 0 | Z33: 0.0 | AA33: 0 | AB33: 0
A34: 25 | B34: Sarah Meiners | C34: Ostenwalde II | D34: 292.6 | F34: 292.6 | G34: 0 | H34: 0 | I34: 0 | J34: 0 | K34: 0 | L34: 0 | M34: 0 | N34: 0 | O34: 292.6 | P34: 1 | Q34: 0 | R34: 0 | Z34: 0.0 | AA34: 0 | AB34: 0
A35: 26 | B35: Anna Temmen | C35: Ostenwalde II | D35: 307.5 | F35: 307.5 | G35: 0 | H35: 0 | I35: 0 | J35: 0 | K35: 0 | L35: 0 | M35: 0 | N35: 0 | O35: 307.5 | P35: 1 | Q35: 0 | R35: 0 | Z35: 0.0 | AA35: 0 | AB35: 0
A36: 27 | B36: Helga Meiners | C36: Ostenwalde II | D36: 302.1 | F36: 302.1 | G36: 0 | H36: 0 | I36: 0 | J36: 0 | K36: 0 | L36: 0 | M36: 0 | N36: 0 | O36: 302.1 | P36: 1 | Q36: 0 | R36: 0 | Z36: 0.0 | AA36: 0 | AB36: 0
A37: 28 | B37: Carmen Benten | C37: Ostenwalde II | D37: 301.6 | F37: 301.6 | G37: 0 | H37: 0 | I37: 0 | J37: 0 | K37: 0 | L37: 0 | M37: 0 | N37: 0 | O37: 301.6 | P37: 1 | Q37: 0 | R37: 0 | Z37: 0.0 | AA37: 0 | AB37: 0
A38: 29 | B38: Anna -Maria Wimberg | C38: Ostenwalde II | D38: 0.0 | E38: x | F38: 0 | G38: 0 | H38: 0 | I38: 0 | J38: 0 | K38: 0 | L38: 0 | M38: 0 | N38: 0 | O38: 0 | P38: 0 | Q38: 0 | R38: 0 | Z38: 0.0 | AA38: 1 | AB38: 0
A39: 30 | B39: Evelyn Feder | C39: Ostenwalde II | D39: 0.0 | E39: x | F39: 0 | G39: 0 | H39: 0 | I39: 0 | J39: 0 | K39: 0 | L39: 0 | M39: 0 | N39: 0 | O39: 0 | P39: 0 | Q39: 0 | R39: 0 | Z39: 0.0 | AA39: 1 | AB39: 0
A40: 31 | B40: Monika Jansen | C40: Spahnharrenstätte I | D40: 312.1 | F40: 312.1 | G40: 0 | H40: 0 | I40: 0 | J40: 0 | K40: 0 | L40: 0 | M40: 0 | N40: 0 | O40: 0 | P40: 0 | Q40: 312.1 | R40: 1 | Z40: =W40+X40+Y40 -> 0.0 | AA40: =IF(Z40=D40,1,0) -> 0 | AB40: =IF(Z40=0,0,1) -> 0 | AC40: =IF(AA40+AB40=2,"Korrekt","") -> 
A41: 32 | B41: Kerstin Sträche | C41: Spahnharrenstätte I | D41: 302.8 | F41: 302.8 | G41: 0 | H41: 0 | I41: 0 | J41: 0 | K41: 0 | L41: 0 | M41: 0 | N41: 0 | O41: 0 | P41: 0 | Q41: 302.8 | R41: 1 | Z41: 0.0 | AA41: 0 | AB41: 0
A42: 33 | B42: Rita Hanekamp | C42: Spahnharrenstätte I | D42: 295.1 | F42: 295.1 | G42: 0 | H42: 0 | I42: 0 | J42: 0 | K42: 0 | L42: 0 | M42: 0 | N42: 0 | O42: 0 | P42: 0 | Q42: 295.1 | R42: 1 | Z42: 0.0 | AA42: 0 | AB42: 0
A43: 34 | B43: Maria Beusing | C43: Spahnharrenstätte I | D43: 304.1 | F43: 304.1 | G43: 0 | H43: 0 | I43: 0 | J43: 0 | K43: 0 | L43: 0 | M43: 0 | N43: 0 | O43: 0 | P43: 0 | Q43: 304.1 | R43: 1 | Z43: 0.0 | AA43: 0 | AB43: 0
A44: 35 | B44: Schütze 35 | C44: Spahnharrenstätte I | E44: x | F44: 0 | G44: 0 | H44: 0 | I44: 0 | J44: 0 | K44: 0 | L44: 0 | M44: 0 | N44: 0 | O44: 0 | P44: 0 | Q44: 0 | R44: 0 | Z44: 0.0 | AA44: 1 | AB44: 0
A45: 36 | B45: Schütze 36 | C45: Spahnharrenstätte I | E45: x | F45: 0 | G45: 0 | H45: 0 | I45: 0 | J45: 0 | K45: 0 | L45: 0 | M45: 0 | N45: 0 | O45: 0 | P45: 0 | Q45: 0 | R45: 0 | Z45: =W45+X45+Y45 -> 0.0 | AA45: =IF(Z45=D45,1,0) -> 1 | AB45: =IF(Z45=0,0,1) -> 0 | AC45: =IF(AA45+AB45=2,"Korrekt","") -> 
G46: =LARGE(G10:G45,1)+LARGE(G10:G45,2)+LARGE(G10:G45,3) -> 912.5 | H46: =SUM(H10:H45) -> 4 | I46: =LARGE(I10:I45,1)+LARGE(I10:I45,2)+LARGE(I10:I45,3) -> 924 | J46: =SUM(J10:J45) -> 4 | K46: =LARGE(K10:K45,1)+LARGE(K10:K45,2)+LARGE(K10:K45,3) -> 911.8 | L46: =SUM(L10:L45) -> 4 | M46: =LARGE(M10:M45,1)+LARGE(M10:M45,2)+LARGE(M10:M45,3) -> 931.6 | N46: =SUM(N10:N45) -> 4 | O46: =LARGE(O10:O45,1)+LARGE(O10:O45,2)+LARGE(O10:O45,3) -> 911.2 | P46: =SUM(P10:P45) -> 4 | Q46: =LARGE(Q10:Q45,1)+LARGE(Q10:Q45,2)+LARGE(Q10:Q45,3) -> 919 | R46: =SUM(R10:S45) -> 4
C47: per Email an: sk-huemmling@gmx.de

Sheet 2
B1: Verein / Gruppe | D1: Ergebnisse | V1: Austragungsort: | W1: =Übersicht!E4 -> Neuvrees
A2: 1 | B2: ='Wettkampf 1'!B2 -> Börger II | D2: =G46 -> 915.6 | E2: =IF(H46>4,"Es sind zu viele Schützen in Wertung!"," ") ->  | V2: Wettkampftag: | W2: =Übersicht!E3 -> 01.09.
A3: 2 | B3: ='Wettkampf 1'!B3 -> Neuvrees II | D3: =I46 -> 921.9 | E3: =IF(J46>4,"Es sind zu viele Schützen in Wertung!"," ") -> 
A4: 3 | B4: ='Wettkampf 1'!B4 -> Börgermoor I | D4: =K46 -> 914.6 | E4: =IF(L46>4,"Es sind zu viele Schützen in Wertung!"," ") ->  | X4: Ansprechpartner für Rückfragen:
A5: 4 | B5: ='Wettkampf 1'!B5 -> Lorup III | D5: =M46 -> 931.3 | E5: =IF(N46>4,"Es sind zu viele Schützen in Wertung!"," ") ->  | V5: Name: | W5: Silvia Thunert
A6: 5 | B6: ='Wettkampf 1'!B6 -> Ostenwalde II | D6: =O46 -> 914.0 | E6: =IF(P46>4,"Es sind zu viele Schützen in Wertung!"," ") ->  | V6: Tel: | W6: 04493-998686
A7: 6 | B7: ='Wettkampf 1'!B7 -> Spahnharrenstätte I | D7: =Q46 -> 932.9 | E7: =IF(R46>4,"Es sind zu viele Schützen in Wertung!"," ") ->  | V7: Standaufsicht: | W7: Silvia Thunert
B9: Einzelergebnisse: | C9: Verein / Gruppe | D9: Ergebnisse (mindestens 0 eintragen) | E9: AW? Dann x eintippen | G9: Verein 1 | I9: Verein 2 | K9: Verein 3 | M9: Verein 4 | O9: Verein 5 | Q9: Verein 6 | U9: Proberechnung bei Streifen:
A10: 1 | B10: ='Wettkampf 1'!B10 -> Gertrud Kuchta | C10: ='Wettkampf 1'!C10 -> Börger II | D10: 303.7 | F10: =IF(E10="x","0",D10) -> 303.7 | G10: =IF(C10=$B$2,F10,0) -> 303.7 | H10: =(IF(AND($E10="",$C10=$B$2),1,0)) -> 1 | I10: =IF($C10=$B$3,F10,0) -> 0 | J10: =(IF(AND($E10="",$C10=$B$3),1,0)) -> 0 | K10: =IF($C10=$B$4,F10,0) -> 0 | L10: =(IF(AND($E10="",$C10=$B$4),1,0)) -> 0 | M10: =IF($C10=$B$5,F10,0) -> 0 | N10: =(IF(AND($E10="",$C10=$B$5),1,0)) -> 0 | O10: =IF($C10=$B$6,F10,0) -> 0 | P10: =(IF(AND($E10="",$C10=$B$6),1,0)) -> 0 | Q10: =IF($C10=$B$7,F10,0) -> 0 | R10: =(IF(AND($E10="",$C10=$B$7),1,0)) -> 0 | X10: =U10+V10+W10 -> 0.0 | Y10: =IF(X10=D10,1,0) -> 0 | Z10: =IF(X10=0,0,1) -> 0 | AA10: =IF(Y10+Z10=2,"Korrekt","") -> 
A11: 2 | B11: ='Wettkampf 1'!B11 -> Sarah Breer | C11: ='Wettkampf 1'!C11 -> Börger II | D11: 283.5 | E11: x | F11: =IF(E11="x","0",D11) -> 0 | G11: =IF(C11=$B$2,F11,0) -> 0 | H11: =(IF(AND($E11="",$C11=$B$2),1,0)) -> 0 | I11: =IF($C11=$B$3,F11,0) -> 0 | J11: =(IF(AND($E11="",$C11=$B$3),1,0)) -> 0 | K11: =IF($C11=$B$4,F11,0) -> 0 | L11: =(IF(AND($E11="",$C11=$B$4),1,0)) -> 0 | M11: =IF($C11=$B$5,F11,0) -> 0 | N11: =(IF(AND($E11="",$C11=$B$5),1,0)) -> 0 | O11: =IF($C11=$B$6,F11,0) -> 0 | P11: =(IF(AND($E11="",$C11=$B$6),1,0)) -> 0 | Q11: =IF($C11=$B$7,F11,0) -> 0 | R11: =(IF(AND($E11="",$C11=$B$7),1,0)) -> 0 | X11: =U11+V11+W11 -> 0.0 | Y11: =IF(X11=D11,1,0) -> 0 | Z11: =IF(X11=0,0,1) -> 0 | AA11: =IF(Y11+Z11=2,"Korrekt","") -> 
A12: 3 | B12: ='Wettkampf 1'!B12 -> Margret Pohlgeers | C12: ='Wettkampf 1'!C12 -> Börger II | D12: 307.4 | F12: 307.4 | G12: 307.4 | H12: 1 | I12: 0 | J12: 0 | K12: 0 | L12: 0 | M12: 0 | N12: 0 | O12: 0 | P12: 0 | Q12: 0 | R12: 0 | X12: 0.0 | Y12: 0 | Z12: 0
A13: 4 | B13: ='Wettkampf 1'!B13 -> Gundula Schwarte | C13: ='Wettkampf 1'!C13 -> Börger II | D13: 298.7 | E13: x | F13: 0 | G13: 0 | H13: 0 | I13: 0 | J13: 0 | K13: 0 | L13: 0 | M13: 0 | N13: 0 | O13: 0 | P13: 0 | Q13: 0 | R13: 0 | X13: 0.0 | Y13: 0 | Z13: 0
A14: 5 | B14: ='Wettkampf 1'!B14 -> Annette Schwarte | C14: ='Wettkampf 1'!C14 -> Börger II | D14: 298.2 | F14: 298.2 | G14: 298.2 | H14: 1 | I14: 0 | J14: 0 | K14: 0 | L14: 0 | M14: 0 | N14: 0 | O14: 0 | P14: 0 | Q14: 0 | R14: 0 | X14: 0.0 | Y14: 0 | Z14: 0
A15: 6 | B15: ='Wettkampf 1'!B15 -> Petra Dödtmann | C15: ='Wettkampf 1'!C15 -> Börger II | D15: 304.5 | F15: 304.5 | G15: 304.5 | H15: 1 | I15: 0 | J15: 0 | K15: 0 | L15: 0 | M15: 0 | N15: 0 | O15: 0 | P15: 0 | Q15: 0 | R15: 0 | X15: 0.0 | Y15: 0 | Z15: 0
A16: 7 | B16: ='Wettkampf 1'!B16 -> Sarah Deyen | C16: ='Wettkampf 1'!C16 -> Neuvrees II | D16: 305.2 | F16: 305.2 | G16: 0 | H16: 0 | I16: 305.2 | J16: 1 | K16: 0 | L16: 0 | M16: 0 | N16: 0 | O16: 0 | P16: 0 | Q16: 0 | R16: 0 | X16: 0.0 | Y16: 0 | Z16: 0
A17: 8 | B17: ='Wettkampf 1'!B17 -> Silvia Thunert | C17: ='Wettkampf 1'!C17 -> Neuvrees II | D17: 311.3 | F17: 311.3 | G17: 0 | H17: 0 | I17: 311.3 | J17: 1 | K17: 0 | L17: 0 | M17: 0 | N17: 0 | O17: 0 | P17: 0 | Q17: 0 | R17: 0 | X17: 0.0 | Y17: 0 | Z17: 0
A18: 9 | B18: ='Wettkampf 1'!B18 -> Margret Pohlmann | C18: ='Wettkampf 1'!C18 -> Neuvrees II | D18: 302.3 | F18: 302.3 | G18: 0 | H18: 0 | I18: 302.3 | J18: 1 | K18: 0 | L18: 0 | M18: 0 | N18: 0 | O18: 0 | P18: 0 | Q18: 0 | R18: 0 | X18: 0.0 | Y18: 0 | Z18: 0
A19: 10 | B19: ='Wettkampf 1'!B19 -> Harma Steenken | C19: ='Wettkampf 1'!C19 -> Neuvrees II | D19: 297.5 | E19: x | F19: 0 | G19: 0 | H19: 0 | I19: 0 | J19: 0 | K19: 0 | L19: 0 | M19: 0 | N19: 0 | O19: 0 | P19: 0 | Q19: 0 | R19: 0 | X19: 0.0 | Y19: 0 | Z19: 0
A20: 11 | B20: ='Wettkampf 1'!B20 -> Claudia Rolfes | C20: ='Wettkampf 1'!C20 -> Neuvrees II | D20: 305.4 | F20: 305.4 | G20: 0 | H20: 0 | I20: 305.4 | J20: 1 | K20: 0 | L20: 0 | M20: 0 | N20: 0 | O20: 0 | P20: 0 | Q20: 0 | R20: 0 | X20: 0.0 | Y20: 0 | Z20: 0
A21: 12 | B21: ='Wettkampf 1'!B21 -> Silvia Junge | C21: ='Wettkampf 1'!C21 -> Neuvrees II | D21: 294.8 | E21: x | F21: 0 | G21: 0 | H21: 0 | I21: 0 | J21: 0 | K21: 0 | L21: 0 | M21: 0 | N21: 0 | O21: 0 | P21: 0 | Q21: 0 | R21: 0 | X21: 0.0 | Y21: 0 | Z21: 0
A22: 13 | B22: ='Wettkampf 1'!B22 -> Ulla Schnieders | C22: ='Wettkampf 1'!C22 -> Börgermoor I | D22: 308.5 | F22: 308.5 | G22: 0 | H22: 0 | I22: 0 | J22: 0 | K22: 308.5 | L22: 1 | M22: 0 | N22: 0 | O22: 0 | P22: 0 | Q22: 0 | R22: 0 | X22: 0.0 | Y22: 0 | Z22: 0
A23: 14 | B23: ='Wettkampf 1'!B23 -> Jasmin Kramer | C23: ='Wettkampf 1'!C23 -> Börgermoor I | D23: 302.4 | F23: 302.4 | G23: 0 | H23: 0 | I23: 0 | J23: 0 | K23: 302.4 | L23: 1 | M23: 0 | N23: 0 | O23: 0 | P23: 0 | Q23: 0 | R23: 0 | X23: 0.0 | Y23: 0 | Z23: 0
A24: 15 | B24: ='Wettkampf 1'!B24 -> Anni Küwen | C24: ='Wettkampf 1'!C24 -> Börgermoor I | D24: 300.1 | F24: 300.1 | G24: 0 | H24: 0 | I24: 0 | J24: 0 | K24: 300.1 | L24: 1 | M24: 0 | N24: 0 | O24: 0 | P24: 0 | Q24: 0 | R24: 0 | X24: 0.0 | Y24: 0 | Z24: 0
A25: 16 | B25: ='Wettkampf 1'!B25 -> Waltraud Dobelmann | C25: ='Wettkampf 1'!C25 -> Börgermoor I | D25: 303.7 | F25: 303.7 | G25: 0 | H25: 0 | I25: 0 | J25: 0 | K25: 303.7 | L25: 1 | M25: 0 | N25: 0 | O25: 0 | P25: 0 | Q25: 0 | R25: 0 | X25: 0.0 | Y25: 0 | Z25: 0
A26: 17 | B26: ='Wettkampf 1'!B26 -> Schütze 17 | C26: ='Wettkampf 1'!C26 -> Börgermoor I | D26: 0.0 | E26: x | F26: 0 | G26: 0 | H26: 0 | I26: 0 | J26: 0 | K26: 0 | L26: 0 | M26: 0 | N26: 0 | O26: 0 | P26: 0 | Q26: 0 | R26: 0 | X26: 0.0 | Y26: 1 | Z26: 0
A27: 18 | B27: ='Wettkampf 1'!B27 -> Schütze 18 | C27: ='Wettkampf 1'!C27 -> Börgermoor I | D27: 0.0 | E27: x | F27: 0 | G27: 0 | H27: 0 | I27: 0 | J27: 0 | K27: 0 | L27: 0 | M27: 0 | N27: 0 | O27: 0 | P27: 0 | Q27: 0 | R27: 0 | X27: 0.0 | Y27: 1 | Z27: 0
A28: 19 | B28: ='Wettkampf 1'!B28 -> Hanna Gebken | C28: ='Wettkampf 1'!C28 -> Lorup III | D28: 311.6 | F28: 311.6 | G28: 0 | H28: 0 | I28: 0 | J28: 0 | K28: 0 | L28: 0 | M28: 311.6 | N28: 1 | O28: 0 | P28: 0 | Q28: 0 | R28: 0 | X28: 0.0 | Y28: 0 | Z28: 0
A29: 20 | B29: ='Wettkampf 1'!B29 -> Monika Reimann | C29: ='Wettkampf 1'!C29 -> Lorup III | D29: 303.8 | F29: 303.8 | G29: 0 | H29: 0 | I29: 0 | J29: 0 | K29: 0 | L29: 0 | M29: 303.8 | N29: 1 | O29: 0 | P29: 0 | Q29: 0 | R29: 0 | X29: 0.0 | Y29: 0 | Z29: 0
A30: 21 | B30: ='Wettkampf 1'!B30 -> Marina Schrand | C30: ='Wettkampf 1'!C30 -> Lorup III | D30: 306.4 | F30: 306.4 | G30: 0 | H30: 0 | I30: 0 | J30: 0 | K30: 0 | L30: 0 | M30: 306.4 | N30: 1 | O30: 0 | P30: 0 | Q30: 0 | R30: 0 | X30: 0.0 | Y30: 0 | Z30: 0
A31: 22 | B31: ='Wettkampf 1'!B31 -> Nadine Krömer | C31: ='Wettkampf 1'!C31 -> Lorup III | D31: 313.3 | F31: 313.3 | G31: 0 | H31: 0 | I31: 0 | J31: 0 | K31: 0 | L31: 0 | M31: 313.3 | N31: 1 | O31: 0 | P31: 0 | Q31: 0 | R31: 0 | X31: 0.0 | Y31: 0 | Z31: 0
A32: 23 | B32: ='Wettkampf 1'!B32 -> Nina Krömer | C32: ='Wettkampf 1'!C32 -> Lorup III | D32: 292.3 | E32: x | F32: 0 | G32: 0 | H32: 0 | I32: 0 | J32: 0 | K32: 0 | L32: 0 | M32: 0 | N32: 0 | O32: 0 | P32: 0 | Q32: 0 | R32: 0 | X32: 0.0 | Y32: 0 | Z32: 0
A33: 24 | B33: ='Wettkampf 1'!B33 -> Margret Büter | C33: ='Wettkampf 1'!C33 -> Lorup III | D33: 277.1 | E33: x | F33: 0 | G33: 0 | H33: 0 | I33: 0 | J33: 0 | K33: 0 | L33: 0 | M33: 0 | N33: 0 | O33: 0 | P33: 0 | Q33: 0 | R33: 0 | X33: 0.0 | Y33: 0 | Z33: 0
A34: 25 | B34: ='Wettkampf 1'!B34 -> Sarah Meiners | C34: ='Wettkampf 1'!C34 -> Ostenwalde II | D34: 291.6 | F34: 291.6 | G34: 0 | H34: 0 | I34: 0 | J34: 0 | K34: 0 | L34: 0 | M34: 0 | N34: 0 | O34: 291.6 | P34: 1 | Q34: 0 | R34: 0 | X34: 0.0 | Y34: 0 | Z34: 0
A35: 26 | B35: ='Wettkampf 1'!B35 -> Anna Temmen | C35: ='Wettkampf 1'!C35 -> Ostenwalde II | D35: 311.9 | F35: 311.9 | G35: 0 | H35: 0 | I35: 0 | J35: 0 | K35: 0 | L35: 0 | M35: 0 | N35: 0 | O35: 311.9 | P35: 1 | Q35: 0 | R35: 0 | X35: 0.0 | Y35: 0 | Z35: 0
A36: 27 | B36: ='Wettkampf 1'!B36 -> Helga Meiners | C36: ='Wettkampf 1'!C36 -> Ostenwalde II | D36: 293.4 | F36: 293.4 | G36: 0 | H36: 0 | I36: 0 | J36: 0 | K36: 0 | L36: 0 | M36: 0 | N36: 0 | O36: 293.4 | P36: 1 | Q36: 0 | R36: 0 | X36: 0.0 | Y36: 0 | Z36: 0
A37: 28 | B37: ='Wettkampf 1'!B37 -> Carmen Benten | C37: ='Wettkampf 1'!C37 -> Ostenwalde II | D37: 308.7 | F37: 308.7 | G37: 0 | H37: 0 | I37: 0 | J37: 0 | K37: 0 | L37: 0 | M37: 0 | N37: 0 | O37: 308.7 | P37: 1 | Q37: 0 | R37: 0 | X37: 0.0 | Y37: 0 | Z37: 0
A38: 29 | B38: ='Wettkampf 1'!B38 -> Anna -Maria Wimberg | C38: ='Wettkampf 1'!C38 -> Ostenwalde II | D38: 0.0 | E38: x | F38: 0 | G38: 0 | H38: 0 | I38: 0 | J38: 0 | K38: 0 | L38: 0 | M38: 0 | N38: 0 | O38: 0 | P38: 0 | Q38: 0 | R38: 0 | X38: 0.0 | Y38: 1 | Z38: 0
A39: 30 | B39: ='Wettkampf 1'!B39 -> Evelyn Feder | C39: ='Wettkampf 1'!C39 -> Ostenwalde II | D39: 0.0 | E39: x | F39: 0 | G39: 0 | H39: 0 | I39: 0 | J39: 0 | K39: 0 | L39: 0 | M39: 0 | N39: 0 | O39: 0 | P39: 0 | Q39: 0 | R39: 0 | X39: 0.0 | Y39: 1 | Z39: 0
A40: 31 | B40: ='Wettkampf 1'!B40 -> Monika Jansen | C40: ='Wettkampf 1'!C40 -> Spahnharrenstätte I | D40: 312.7 | F40: 312.7 | G40: 0 | H40: 0 | I40: 0 | J40: 0 | K40: 0 | L40: 0 | M40: 0 | N40: 0 | O40: 0 | P40: 0 | Q40: 312.7 | R40: 1 | X40: =U40+V40+W40 -> 0.0 | Y40: =IF(X40=D40,1,0) -> 0 | Z40: =IF(X40=0,0,1) -> 0 | AA40: =IF(Y40+Z40=2,"Korrekt","") -> 
A41: 32 | B41: ='Wettkampf 1'!B41 -> Kerstin Sträche | C41: ='Wettkampf 1'!C41 -> Spahnharrenstätte I | D41: 311.9 | F41: 311.9 | G41: 0 | H41: 0 | I41: 0 | J41: 0 | K41: 0 | L41: 0 | M41: 0 | N41: 0 | O41: 0 | P41: 0 | Q41: 311.9 | R41: 1 | X41: 0.0 | Y41: 0 | Z41: 0
A42: 33 | B42: ='Wettkampf 1'!B42 -> Rita Hanekamp | C42: ='Wettkampf 1'!C42 -> Spahnharrenstätte I | D42: 300.5 | F42: 300.5 | G42: 0 | H42: 0 | I42: 0 | J42: 0 | K42: 0 | L42: 0 | M42: 0 | N42: 0 | O42: 0 | P42: 0 | Q42: 300.5 | R42: 1 | X42: 0.0 | Y42: 0 | Z42: 0
A43: 34 | B43: ='Wettkampf 1'!B43 -> Maria Beusing | C43: ='Wettkampf 1'!C43 -> Spahnharrenstätte I | D43: 308.3 | F43: 308.3 | G43: 0 | H43: 0 | I43: 0 | J43: 0 | K43: 0 | L43: 0 | M43: 0 | N43: 0 | O43: 0 | P43: 0 | Q43: 308.3 | R43: 1 | X43: 0.0 | Y43: 0 | Z43: 0
A44: 35 | B44: ='Wettkampf 1'!B44 -> Schütze 35 | C44: ='Wettkampf 1'!C44 -> Spahnharrenstätte I | D44: 278.6 | E44: x | F44: 0 | G44: 0 | H44: 0 | I44: 0 | J44: 0 | K44: 0 | L44: 0 | M44: 0 | N44: 0 | O44: 0 | P44: 0 | Q44: 0 | R44: 0 | X44: 0.0 | Y44: 0 | Z44: 0
A45: 36 | B45: ='Wettkampf 1'!B45 -> Schütze 36 | C45: ='Wettkampf 1'!C45 -> Spahnharrenstätte I | D45: 0.0 | E45: x | F45: 0 | G45: 0 | H45: 0 | I45: 0 | J45: 0 | K45: 0 | L45: 0 | M45: 0 | N45: 0 | O45: 0 | P45: 0 | Q45: 0 | R45: 0 | X45: =U45+V45+W45 -> 0.0 | Y45: =IF(X45=D45,1,0) -> 1 | Z45: =IF(X45=0,0,1) -> 0 | AA45: =IF(Y45+Z45=2,"Korrekt","") -> 
G46: =LARGE(G10:G45,1)+LARGE(G10:G45,2)+LARGE(G10:G45,3) -> 915.6 | H46: =SUM(H10:H45) -> 4 | I46: =LARGE(I10:I45,1)+LARGE(I10:I45,2)+LARGE(I10:I45,3) -> 921.9 | J46: =SUM(J10:J45) -> 4 | K46: =LARGE(K10:K45,1)+LARGE(K10:K45,2)+LARGE(K10:K45,3) -> 914.6 | L46: =SUM(L10:L45) -> 4 | M46: =LARGE(M10:M45,1)+LARGE(M10:M45,2)+LARGE(M10:M45,3) -> 931.3 | N46: =SUM(N10:N45) -> 4 | O46: =LARGE(O10:O45,1)+LARGE(O10:O45,2)+LARGE(O10:O45,3) -> 914 | P46: =SUM(P10:P45) -> 4 | Q46: =LARGE(Q10:Q45,1)+LARGE(Q10:Q45,2)+LARGE(Q10:Q45,3) -> 932.9 | R46: =SUM(R10:S45) -> 4
C47: per Email an: sk-huemmling@gmx.de

Sheet 3
B1: Verein / Gruppe | D1: Ergebnisse | V1: Austragungsort: | W1: =Übersicht!F4 -> Börgermoor
A2: 1 | B2: ='Wettkampf 1'!B2 -> Börger II | D2: =G46 -> 922.7 | E2: =IF(H46>4,"Es sind zu viele Schützen in Wertung!"," ") ->  | V2: Wettkampftag: | W2: =Übersicht!F3 -> 15.09.
A3: 2 | B3: ='Wettkampf 1'!B3 -> Neuvrees II | D3: =I46 -> 925.5 | E3: =IF(J46>4,"Es sind zu viele Schützen in Wertung!"," ") -> 
A4: 3 | B4: ='Wettkampf 1'!B4 -> Börgermoor I | D4: =K46 -> 922.2 | E4: =IF(L46>4,"Es sind zu viele Schützen in Wertung!"," ") ->  | X4: Ansprechpartner für Rückfragen:
A5: 4 | B5: ='Wettkampf 1'!B5 -> Lorup III | D5: =M46 -> 927.6 | E5: =IF(N46>4,"Es sind zu viele Schützen in Wertung!"," ") ->  | V5: Name: | W5: Ulla Schnieders
A6: 5 | B6: ='Wettkampf 1'!B6 -> Ostenwalde II | D6: =O46 -> 924.3 | E6: =IF(P46>4,"Es sind zu viele Schützen in Wertung!"," ") ->  | V6: Tel: | W6: 0172/4339021
A7: 6 | B7: ='Wettkampf 1'!B7 -> Spahnharrenstätte I | D7: =Q46 -> 928.2 | E7: =IF(R46>4,"Es sind zu viele Schützen in Wertung!"," ") ->  | V7: Standaufsicht: | W7: Ulla Schnieders
B9: Einzelergebnisse: | C9: Verein / Gruppe | D9: Ergebnisse (mindestens 0 eintragen) | E9: AW? Dann x eintippen | G9: Verein 1 | I9: Verein 2 | K9: Verein 3 | M9: Verein 4 | O9: Verein 5 | Q9: Verein 6 | U9: Proberechnung bei Streifen:
A10: 1 | B10: ='Wettkampf 1'!B10 -> Gertrud Kuchta | C10: ='Wettkampf 1'!C10 -> Börger II | D10: 305.3 | F10: =IF(E10="x","0",D10) -> 305.3 | G10: =IF(C10=$B$2,F10,0) -> 305.3 | H10: =(IF(AND($E10="",$C10=$B$2),1,0)) -> 1 | I10: =IF($C10=$B$3,F10,0) -> 0 | J10: =(IF(AND($E10="",$C10=$B$3),1,0)) -> 0 | K10: =IF($C10=$B$4,F10,0) -> 0 | L10: =(IF(AND($E10="",$C10=$B$4),1,0)) -> 0 | M10: =IF($C10=$B$5,F10,0) -> 0 | N10: =(IF(AND($E10="",$C10=$B$5),1,0)) -> 0 | O10: =IF($C10=$B$6,F10,0) -> 0 | P10: =(IF(AND($E10="",$C10=$B$6),1,0)) -> 0 | Q10: =IF($C10=$B$7,F10,0) -> 0 | R10: =(IF(AND($E10="",$C10=$B$7),1,0)) -> 0 | X10: =U10+V10+W10 -> 0.0 | Y10: =IF(X10=D10,1,0) -> 0 | Z10: =IF(X10=0,0,1) -> 0 | AA10: =IF(Y10+Z10=2,"Korrekt","") -> 
A11: 2 | B11: ='Wettkampf 1'!B11 -> Sarah Breer | C11: ='Wettkampf 1'!C11 -> Börger II | D11: 284.3 | E11: x | F11: =IF(E11="x","0",D11) -> 0 | G11: =IF(C11=$B$2,F11,0) -> 0 | H11: =(IF(AND($E11="",$C11=$B$2),1,0)) -> 0 | I11: =IF($C11=$B$3,F11,0) -> 0 | J11: =(IF(AND($E11="",$C11=$B$3),1,0)) -> 0 | K11: =IF($C11=$B$4,F11,0) -> 0 | L11: =(IF(AND($E11="",$C11=$B$4),1,0)) -> 0 | M11: =IF($C11=$B$5,F11,0) -> 0 | N11: =(IF(AND($E11="",$C11=$B$5),1,0)) -> 0 | O11: =IF($C11=$B$6,F11,0) -> 0 | P11: =(IF(AND($E11="",$C11=$B$6),1,0)) -> 0 | Q11: =IF($C11=$B$7,F11,0) -> 0 | R11: =(IF(AND($E11="",$C11=$B$7),1,0)) -> 0 | X11: =U11+V11+W11 -> 0.0 | Y11: =IF(X11=D11,1,0) -> 0 | Z11: =IF(X11=0,0,1) -> 0 | AA11: =IF(Y11+Z11=2,"Korrekt","") -> 
A12: 3 | B12: ='Wettkampf 1'!B12 -> Margret Pohlgeers | C12: ='Wettkampf 1'!C12 -> Börger II | D12: 311.3 | F12: 311.3 | G12: 311.3 | H12: 1 | I12: 0 | J12: 0 | K12: 0 | L12: 0 | M12: 0 | N12: 0 | O12: 0 | P12: 0 | Q12: 0 | R12: 0 | X12: 0.0 | Y12: 0 | Z12: 0
A13: 4 | B13: ='Wettkampf 1'!B13 -> Gundula Schwarte | C13: ='Wettkampf 1'!C13 -> Börger II | D13: 307.5 | E13: x | F13: 0 | G13: 0 | H13: 0 | I13: 0 | J13: 0 | K13: 0 | L13: 0 | M13: 0 | N13: 0 | O13: 0 | P13: 0 | Q13: 0 | R13: 0 | X13: 0.0 | Y13: 0 | Z13: 0
A14: 5 | B14: ='Wettkampf 1'!B14 -> Annette Schwarte | C14: ='Wettkampf 1'!C14 -> Börger II | D14: 306.1 | F14: 306.1 | G14: 306.1 | H14: 1 | I14: 0 | J14: 0 | K14: 0 | L14: 0 | M14: 0 | N14: 0 | O14: 0 | P14: 0 | Q14: 0 | R14: 0 | X14: 0.0 | Y14: 0 | Z14: 0
A15: 6 | B15: ='Wettkampf 1'!B15 -> Petra Dödtmann | C15: ='Wettkampf 1'!C15 -> Börger II | D15: 0.0 | E15: x | F15: 0 | G15: 0 | H15: 0 | I15: 0 | J15: 0 | K15: 0 | L15: 0 | M15: 0 | N15: 0 | O15: 0 | P15: 0 | Q15: 0 | R15: 0 | X15: 0.0 | Y15: 1 | Z15: 0
A16: 7 | B16: ='Wettkampf 1'!B16 -> Sarah Deyen | C16: ='Wettkampf 1'!C16 -> Neuvrees II | D16: 309.7 | F16: 309.7 | G16: 0 | H16: 0 | I16: 309.7 | J16: 1 | K16: 0 | L16: 0 | M16: 0 | N16: 0 | O16: 0 | P16: 0 | Q16: 0 | R16: 0 | X16: 0.0 | Y16: 0 | Z16: 0
A17: 8 | B17: ='Wettkampf 1'!B17 -> Silvia Thunert | C17: ='Wettkampf 1'!C17 -> Neuvrees II | D17: 309.0 | F17: 309.0 | G17: 0 | H17: 0 | I17: 309 | J17: 1 | K17: 0 | L17: 0 | M17: 0 | N17: 0 | O17: 0 | P17: 0 | Q17: 0 | R17: 0 | X17: 0.0 | Y17: 0 | Z17: 0
A18: 9 | B18: ='Wettkampf 1'!B18 -> Margret Pohlmann | C18: ='Wettkampf 1'!C18 -> Neuvrees II | D18: 296.6 | F18: 296.6 | G18: 0 | H18: 0 | I18: 296.6 | J18: 1 | K18: 0 | L18: 0 | M18: 0 | N18: 0 | O18: 0 | P18: 0 | Q18: 0 | R18: 0 | X18: 0.0 | Y18: 0 | Z18: 0
A19: 10 | B19: ='Wettkampf 1'!B19 -> Harma Steenken | C19: ='Wettkampf 1'!C19 -> Neuvrees II | D19: 0.0 | E19: x | F19: 0 | G19: 0 | H19: 0 | I19: 0 | J19: 0 | K19: 0 | L19: 0 | M19: 0 | N19: 0 | O19: 0 | P19: 0 | Q19: 0 | R19: 0 | X19: 0.0 | Y19: 1 | Z19: 0
A20: 11 | B20: ='Wettkampf 1'!B20 -> Claudia Rolfes | C20: ='Wettkampf 1'!C20 -> Neuvrees II | D20: 306.8 | F20: 306.8 | G20: 0 | H20: 0 | I20: 306.8 | J20: 1 | K20: 0 | L20: 0 | M20: 0 | N20: 0 | O20: 0 | P20: 0 | Q20: 0 | R20: 0 | X20: 0.0 | Y20: 0 | Z20: 0
A21: 12 | B21: ='Wettkampf 1'!B21 -> Silvia Junge | C21: ='Wettkampf 1'!C21 -> Neuvrees II | D21: 283.0 | E21: x | F21: 0 | G21: 0 | H21: 0 | I21: 0 | J21: 0 | K21: 0 | L21: 0 | M21: 0 | N21: 0 | O21: 0 | P21: 0 | Q21: 0 | R21: 0 | X21: 0.0 | Y21: 0 | Z21: 0
A22: 13 | B22: ='Wettkampf 1'!B22 -> Ulla Schnieders | C22: ='Wettkampf 1'!C22 -> Börgermoor I | D22: 309.8 | F22: 309.8 | G22: 0 | H22: 0 | I22: 0 | J22: 0 | K22: 309.8 | L22: 1 | M22: 0 | N22: 0 | O22: 0 | P22: 0 | Q22: 0 | R22: 0 | X22: 0.0 | Y22: 0 | Z22: 0
A23: 14 | B23: ='Wettkampf 1'!B23 -> Jasmin Kramer | C23: ='Wettkampf 1'!C23 -> Börgermoor I | D23: 306.2 | F23: 306.2 | G23: 0 | H23: 0 | I23: 0 | J23: 0 | K23: 306.2 | L23: 1 | M23: 0 | N23: 0 | O23: 0 | P23: 0 | Q23: 0 | R23: 0 | X23: 0.0 | Y23: 0 | Z23: 0
A24: 15 | B24: ='Wettkampf 1'!B24 -> Anni Küwen | C24: ='Wettkampf 1'!C24 -> Börgermoor I | D24: 306.2 | F24: 306.2 | G24: 0 | H24: 0 | I24: 0 | J24: 0 | K24: 306.2 | L24: 1 | M24: 0 | N24: 0 | O24: 0 | P24: 0 | Q24: 0 | R24: 0 | X24: 0.0 | Y24: 0 | Z24: 0
A25: 16 | B25: ='Wettkampf 1'!B25 -> Waltraud Dobelmann | C25: ='Wettkampf 1'!C25 -> Börgermoor I | D25: 300.0 | F25: 300.0 | G25: 0 | H25: 0 | I25: 0 | J25: 0 | K25: 300 | L25: 1 | M25: 0 | N25: 0 | O25: 0 | P25: 0 | Q25: 0 | R25: 0 | X25: 0.0 | Y25: 0 | Z25: 0
A26: 17 | B26: ='Wettkampf 1'!B26 -> Schütze 17 | C26: ='Wettkampf 1'!C26 -> Börgermoor I | D26: 0.0 | E26: x | F26: 0 | G26: 0 | H26: 0 | I26: 0 | J26: 0 | K26: 0 | L26: 0 | M26: 0 | N26: 0 | O26: 0 | P26: 0 | Q26: 0 | R26: 0 | X26: 0.0 | Y26: 1 | Z26: 0
A27: 18 | B27: ='Wettkampf 1'!B27 -> Schütze 18 | C27: ='Wettkampf 1'!C27 -> Börgermoor I | D27: 0.0 | E27: x | F27: 0 | G27: 0 | H27: 0 | I27: 0 | J27: 0 | K27: 0 | L27: 0 | M27: 0 | N27: 0 | O27: 0 | P27: 0 | Q27: 0 | R27: 0 | X27: 0.0 | Y27: 1 | Z27: 0
A28: 19 | B28: ='Wettkampf 1'!B28 -> Hanna Gebken | C28: ='Wettkampf 1'!C28 -> Lorup III | D28: 309.9 | F28: 309.9 | G28: 0 | H28: 0 | I28: 0 | J28: 0 | K28: 0 | L28: 0 | M28: 309.9 | N28: 1 | O28: 0 | P28: 0 | Q28: 0 | R28: 0 | X28: 0.0 | Y28: 0 | Z28: 0
A29: 20 | B29: ='Wettkampf 1'!B29 -> Monika Reimann | C29: ='Wettkampf 1'!C29 -> Lorup III | D29: 299.9 | F29: 299.9 | G29: 0 | H29: 0 | I29: 0 | J29: 0 | K29: 0 | L29: 0 | M29: 299.9 | N29: 1 | O29: 0 | P29: 0 | Q29: 0 | R29: 0 | X29: 0.0 | Y29: 0 | Z29: 0
A30: 21 | B30: ='Wettkampf 1'!B30 -> Marina Schrand | C30: ='Wettkampf 1'!C30 -> Lorup III | D30: 303.9 | F30: 303.9 | G30: 0 | H30: 0 | I30: 0 | J30: 0 | K30: 0 | L30: 0 | M30: 303.9 | N30: 1 | O30: 0 | P30: 0 | Q30: 0 | R30: 0 | X30: 0.0 | Y30: 0 | Z30: 0
A31: 22 | B31: ='Wettkampf 1'!B31 -> Nadine Krömer | C31: ='Wettkampf 1'!C31 -> Lorup III | D31: 313.8 | F31: 313.8 | G31: 0 | H31: 0 | I31: 0 | J31: 0 | K31: 0 | L31: 0 | M31: 313.8 | N31: 1 | O31: 0 | P31: 0 | Q31: 0 | R31: 0 | X31: 0.0 | Y31: 0 | Z31: 0
A32: 23 | B32: ='Wettkampf 1'!B32 -> Nina Krömer | C32: ='Wettkampf 1'!C32 -> Lorup III | D32: 304.6 | E32: x | F32: 0 | G32: 0 | H32: 0 | I32: 0 | J32: 0 | K32: 0 | L32: 0 | M32: 0 | N32: 0 | O32: 0 | P32: 0 | Q32: 0 | R32: 0 | X32: 0.0 | Y32: 0 | Z32: 0
A33: 24 | B33: ='Wettkampf 1'!B33 -> Margret Büter | C33: ='Wettkampf 1'!C33 -> Lorup III | D33: 0.0 | E33: x | F33: 0 | G33: 0 | H33: 0 | I33: 0 | J33: 0 | K33: 0 | L33: 0 | M33: 0 | N33: 0 | O33: 0 | P33: 0 | Q33: 0 | R33: 0 | X33: 0.0 | Y33: 1 | Z33: 0
A34: 25 | B34: ='Wettkampf 1'!B34 -> Sarah Meiners | C34: ='Wettkampf 1'!C34 -> Ostenwalde II | D34: 286.0 | F34: 286.0 | G34: 0 | H34: 0 | I34: 0 | J34: 0 | K34: 0 | L34: 0 | M34: 0 | N34: 0 | O34: 286 | P34: 1 | Q34: 0 | R34: 0 | X34: 0.0 | Y34: 0 | Z34: 0
A35: 26 | B35: ='Wettkampf 1'!B35 -> Anna Temmen | C35: ='Wettkampf 1'!C35 -> Ostenwalde II | D35: 316.6 | F35: 316.6 | G35: 0 | H35: 0 | I35: 0 | J35: 0 | K35: 0 | L35: 0 | M35: 0 | N35: 0 | O35: 316.6 | P35: 1 | Q35: 0 | R35: 0 | X35: 0.0 | Y35: 0 | Z35: 0
A36: 27 | B36: ='Wettkampf 1'!B36 -> Helga Meiners | C36: ='Wettkampf 1'!C36 -> Ostenwalde II | D36: 299.3 | F36: 299.3 | G36: 0 | H36: 0 | I36: 0 | J36: 0 | K36: 0 | L36: 0 | M36: 0 | N36: 0 | O36: 299.3 | P36: 1 | Q36: 0 | R36: 0 | X36: 0.0 | Y36: 0 | Z36: 0
A37: 28 | B37: ='Wettkampf 1'!B37 -> Carmen Benten | C37: ='Wettkampf 1'!C37 -> Ostenwalde II | D37: 308.4 | F37: 308.4 | G37: 0 | H37: 0 | I37: 0 | J37: 0 | K37: 0 | L37: 0 | M37: 0 | N37: 0 | O37: 308.4 | P37: 1 | Q37: 0 | R37: 0 | X37: 0.0 | Y37: 0 | Z37: 0
A38: 29 | B38: ='Wettkampf 1'!B38 -> Anna -Maria Wimberg | C38: ='Wettkampf 1'!C38 -> Ostenwalde II | D38: 0.0 | E38: x | F38: 0 | G38: 0 | H38: 0 | I38: 0 | J38: 0 | K38: 0 | L38: 0 | M38: 0 | N38: 0 | O38: 0 | P38: 0 | Q38: 0 | R38: 0 | X38: 0.0 | Y38: 1 | Z38: 0
A39: 30 | B39: ='Wettkampf 1'!B39 -> Evelyn Feder | C39: ='Wettkampf 1'!C39 -> Ostenwalde II | D39: 0.0 | E39: x | F39: 0 | G39: 0 | H39: 0 | I39: 0 | J39: 0 | K39: 0 | L39: 0 | M39: 0 | N39: 0 | O39: 0 | P39: 0 | Q39: 0 | R39: 0 | X39: 0.0 | Y39: 1 | Z39: 0
A40: 31 | B40: ='Wettkampf 1'!B40 -> Monika Jansen | C40: ='Wettkampf 1'!C40 -> Spahnharrenstätte I | D40: 315.1 | F40: 315.1 | G40: 0 | H40: 0 | I40: 0 | J40: 0 | K40: 0 | L40: 0 | M40: 0 | N40: 0 | O40: 0 | P40: 0 | Q40: 315.1 | R40: 1 | X40: 0.0 | Y40: 0 | Z40: 0
A41: 32 | B41: ='Wettkampf 1'!B41 -> Kerstin Sträche | C41: ='Wettkampf 1'!C41 -> Spahnharrenstätte I | D41: 305.0 | F41: 305.0 | G41: 0 | H41: 0 | I41: 0 | J41: 0 | K41: 0 | L41: 0 | M41: 0 | N41: 0 | O41: 0 | P41: 0 | Q41: 305 | R41: 1 | X41: 0.0 | Y41: 0 | Z41: 0
A42: 33 | B42: ='Wettkampf 1'!B42 -> Rita Hanekamp | C42: ='Wettkampf 1'!C42 -> Spahnharrenstätte I | D42: 288.4 | F42: 288.4 | G42: 0 | H42: 0 | I42: 0 | J42: 0 | K42: 0 | L42: 0 | M42: 0 | N42: 0 | O42: 0 | P42: 0 | Q42: 288.4 | R42: 1 | X42: 0.0 | Y42: 0 | Z42: 0
A43: 34 | B43: ='Wettkampf 1'!B43 -> Maria Beusing | C43: ='Wettkampf 1'!C43 -> Spahnharrenstätte I | D43: 308.1 | F43: 308.1 | G43: 0 | H43: 0 | I43: 0 | J43: 0 | K43: 0 | L43: 0 | M43: 0 | N43: 0 | O43: 0 | P43: 0 | Q43: 308.1 | R43: 1 | X43: 0.0 | Y43: 0 | Z43: 0
A44: 35 | B44: ='Wettkampf 1'!B44 -> Schütze 35 | C44: ='Wettkampf 1'!C44 -> Spahnharrenstätte I | D44: 0.0 | E44: x | F44: 0 | G44: 0 | H44: 0 | I44: 0 | J44: 0 | K44: 0 | L44: 0 | M44: 0 | N44: 0 | O44: 0 | P44: 0 | Q44: 0 | R44: 0 | X44: 0.0 | Y44: 1 | Z44: 0
A45: 36 | B45: ='Wettkampf 1'!B45 -> Schütze 36 | C45: ='Wettkampf 1'!C45 -> Spahnharrenstätte I | D45: 0.0 | E45: x | F45: 0 | G45: 0 | H45: 0 | I45: 0 | J45: 0 | K45: 0 | L45: 0 | M45: 0 | N45: 0 | O45: 0 | P45: 0 | Q45: 0 | R45: 0 | X45: 0.0 | Y45: 1 | Z45: 0
G46: =LARGE(G10:G45,1)+LARGE(G10:G45,2)+LARGE(G10:G45,3) -> 922.7 | H46: =SUM(H10:H45) -> 3 | I46: =LARGE(I10:I45,1)+LARGE(I10:I45,2)+LARGE(I10:I45,3) -> 925.5 | J46: =SUM(J10:J45) -> 4 | K46: =LARGE(K10:K45,1)+LARGE(K10:K45,2)+LARGE(K10:K45,3) -> 922.2 | L46: =SUM(L10:L45) -> 4 | M46: =LARGE(M10:M45,1)+LARGE(M10:M45,2)+LARGE(M10:M45,3) -> 927.6 | N46: =SUM(N10:N45) -> 4 | O46: =LARGE(O10:O45,1)+LARGE(O10:O45,2)+LARGE(O10:O45,3) -> 924.3 | P46: =SUM(P10:P45) -> 4 | Q46: =LARGE(Q10:Q45,1)+LARGE(Q10:Q45,2)+LARGE(Q10:Q45,3) -> 928.2 | R46: =SUM(R10:S45) -> 4
C47: per Email an: sk-huemmling@gmx.de

Sheet 4
B1: Verein / Gruppe | D1: Ergebnisse | V1: Austragungsort: | W1: =Übersicht!G4 -> Lorup
A2: 1 | B2: ='Wettkampf 1'!B2 -> Börger II | D2: =G46 -> 935.3 | E2: =IF(H46>4,"Es sind zu viele Schützen in Wertung!"," ") ->  | V2: Wettkampftag: | W2: =Übersicht!G3 -> 29.09.
A3: 2 | B3: ='Wettkampf 1'!B3 -> Neuvrees II | D3: =I46 -> 931.3 | E3: =IF(J46>4,"Es sind zu viele Schützen in Wertung!"," ") -> 
A4: 3 | B4: ='Wettkampf 1'!B4 -> Börgermoor I | D4: =K46 -> 933.2 | E4: =IF(L46>4,"Es sind zu viele Schützen in Wertung!"," ") ->  | X4: Ansprechpartner für Rückfragen:
A5: 4 | B5: ='Wettkampf 1'!B5 -> Lorup III | D5: =M46 -> 933.5 | E5: =IF(N46>4,"Es sind zu viele Schützen in Wertung!"," ") ->  | V5: Name: | W5: Marina Schrand
A6: 5 | B6: ='Wettkampf 1'!B6 -> Ostenwalde II | D6: =O46 -> 918.2 | E6: =IF(P46>4,"Es sind zu viele Schützen in Wertung!"," ") ->  | V6: Tel:
A7: 6 | B7: ='Wettkampf 1'!B7 -> Spahnharrenstätte I | D7: =Q46 -> 928.9 | E7: =IF(R46>4,"Es sind zu viele Schützen in Wertung!"," ") ->  | V7: Standaufsicht: | W7: Hanna Gebken
B9: Einzelergebnisse: | C9: Verein / Gruppe | D9: Ergebnisse (mindestens 0 eintragen) | E9: AW? Dann x eintippen | G9: Verein 1 | I9: Verein 2 | K9: Verein 3 | M9: Verein 4 | O9: Verein 5 | Q9: Verein 6 | U9: Proberechnung bei Streifen:
A10: 1 | B10: ='Wettkampf 1'!B10 -> Gertrud Kuchta | C10: ='Wettkampf 1'!C10 -> Börger II | D10: 305.0 | F10: =IF(E10="x","0",D10) -> 305.0 | G10: =IF(C10=$B$2,F10,0) -> 305 | H10: =(IF(AND($E10="",$C10=$B$2),1,0)) -> 1 | I10: =IF($C10=$B$3,F10,0) -> 0 | J10: =(IF(AND($E10="",$C10=$B$3),1,0)) -> 0 | K10: =IF($C10=$B$4,F10,0) -> 0 | L10: =(IF(AND($E10="",$C10=$B$4),1,0)) -> 0 | M10: =IF($C10=$B$5,F10,0) -> 0 | N10: =(IF(AND($E10="",$C10=$B$5),1,0)) -> 0 | O10: =IF($C10=$B$6,F10,0) -> 0 | P10: =(IF(AND($E10="",$C10=$B$6),1,0)) -> 0 | Q10: =IF($C10=$B$7,F10,0) -> 0 | R10: =(IF(AND($E10="",$C10=$B$7),1,0)) -> 0 | X10: =U10+V10+W10 -> 0.0 | Y10: =IF(X10=D10,1,0) -> 0 | Z10: =IF(X10=0,0,1) -> 0 | AA10: =IF(Y10+Z10=2,"Korrekt","") -> 
A11: 2 | B11: ='Wettkampf 1'!B11 -> Sarah Breer | C11: ='Wettkampf 1'!C11 -> Börger II | E11: x | F11: =IF(E11="x","0",D11) -> 0 | G11: =IF(C11=$B$2,F11,0) -> 0 | H11: =(IF(AND($E11="",$C11=$B$2),1,0)) -> 0 | I11: =IF($C11=$B$3,F11,0) -> 0 | J11: =(IF(AND($E11="",$C11=$B$3),1,0)) -> 0 | K11: =IF($C11=$B$4,F11,0) -> 0 | L11: =(IF(AND($E11="",$C11=$B$4),1,0)) -> 0 | M11: =IF($C11=$B$5,F11,0) -> 0 | N11: =(IF(AND($E11="",$C11=$B$5),1,0)) -> 0 | O11: =IF($C11=$B$6,F11,0) -> 0 | P11: =(IF(AND($E11="",$C11=$B$6),1,0)) -> 0 | Q11: =IF($C11=$B$7,F11,0) -> 0 | R11: =(IF(AND($E11="",$C11=$B$7),1,0)) -> 0 | X11: =U11+V11+W11 -> 0.0 | Y11: =IF(X11=D11,1,0) -> 1 | Z11: =IF(X11=0,0,1) -> 0 | AA11: =IF(Y11+Z11=2,"Korrekt","") -> 
A12: 3 | B12: ='Wettkampf 1'!B12 -> Margret Pohlgeers | C12: ='Wettkampf 1'!C12 -> Börger II | D12: 315.2 | F12: 315.2 | G12: 315.2 | H12: 1 | I12: 0 | J12: 0 | K12: 0 | L12: 0 | M12: 0 | N12: 0 | O12: 0 | P12: 0 | Q12: 0 | R12: 0 | X12: 0.0 | Y12: 0 | Z12: 0
A13: 4 | B13: ='Wettkampf 1'!B13 -> Gundula Schwarte | C13: ='Wettkampf 1'!C13 -> Börger II | D13: 308.9 | E13: x | F13: 0 | G13: 0 | H13: 0 | I13: 0 | J13: 0 | K13: 0 | L13: 0 | M13: 0 | N13: 0 | O13: 0 | P13: 0 | Q13: 0 | R13: 0 | X13: 0.0 | Y13: 0 | Z13: 0
A14: 5 | B14: ='Wettkampf 1'!B14 -> Annette Schwarte | C14: ='Wettkampf 1'!C14 -> Börger II | D14: 304.3 | F14: 304.3 | G14: 304.3 | H14: 1 | I14: 0 | J14: 0 | K14: 0 | L14: 0 | M14: 0 | N14: 0 | O14: 0 | P14: 0 | Q14: 0 | R14: 0 | X14: 0.0 | Y14: 0 | Z14: 0
A15: 6 | B15: ='Wettkampf 1'!B15 -> Petra Dödtmann | C15: ='Wettkampf 1'!C15 -> Börger II | D15: 315.1 | F15: 315.1 | G15: 315.1 | H15: 1 | I15: 0 | J15: 0 | K15: 0 | L15: 0 | M15: 0 | N15: 0 | O15: 0 | P15: 0 | Q15: 0 | R15: 0 | X15: 0.0 | Y15: 0 | Z15: 0
A16: 7 | B16: ='Wettkampf 1'!B16 -> Sarah Deyen | C16: ='Wettkampf 1'!C16 -> Neuvrees II | D16: 312.6 | F16: 312.6 | G16: 0 | H16: 0 | I16: 312.6 | J16: 1 | K16: 0 | L16: 0 | M16: 0 | N16: 0 | O16: 0 | P16: 0 | Q16: 0 | R16: 0 | X16: 0.0 | Y16: 0 | Z16: 0
A17: 8 | B17: ='Wettkampf 1'!B17 -> Silvia Thunert | C17: ='Wettkampf 1'!C17 -> Neuvrees II | D17: 307.4 | F17: 307.4 | G17: 0 | H17: 0 | I17: 307.4 | J17: 1 | K17: 0 | L17: 0 | M17: 0 | N17: 0 | O17: 0 | P17: 0 | Q17: 0 | R17: 0 | X17: 0.0 | Y17: 0 | Z17: 0
A18: 9 | B18: ='Wettkampf 1'!B18 -> Margret Pohlmann | C18: ='Wettkampf 1'!C18 -> Neuvrees II | D18: 302.3 | F18: 302.3 | G18: 0 | H18: 0 | I18: 302.3 | J18: 1 | K18: 0 | L18: 0 | M18: 0 | N18: 0 | O18: 0 | P18: 0 | Q18: 0 | R18: 0 | X18: 0.0 | Y18: 0 | Z18: 0
A19: 10 | B19: ='Wettkampf 1'!B19 -> Harma Steenken | C19: ='Wettkampf 1'!C19 -> Neuvrees II | D19: 268.4 | E19: x | F19: 0 | G19: 0 | H19: 0 | I19: 0 | J19: 0 | K19: 0 | L19: 0 | M19: 0 | N19: 0 | O19: 0 | P19: 0 | Q19: 0 | R19: 0 | X19: 0.0 | Y19: 0 | Z19: 0
A20: 11 | B20: ='Wettkampf 1'!B20 -> Claudia Rolfes | C20: ='Wettkampf 1'!C20 -> Neuvrees II | D20: 311.3 | F20: 311.3 | G20: 0 | H20: 0 | I20: 311.3 | J20: 1 | K20: 0 | L20: 0 | M20: 0 | N20: 0 | O20: 0 | P20: 0 | Q20: 0 | R20: 0 | X20: 0.0 | Y20: 0 | Z20: 0
A21: 12 | B21: ='Wettkampf 1'!B21 -> Silvia Junge | C21: ='Wettkampf 1'!C21 -> Neuvrees II | D21: 280.9 | E21: x | F21: 0 | G21: 0 | H21: 0 | I21: 0 | J21: 0 | K21: 0 | L21: 0 | M21: 0 | N21: 0 | O21: 0 | P21: 0 | Q21: 0 | R21: 0 | X21: 0.0 | Y21: 0 | Z21: 0
A22: 13 | B22: ='Wettkampf 1'!B22 -> Ulla Schnieders | C22: ='Wettkampf 1'!C22 -> Börgermoor I | D22: 310.1 | F22: 310.1 | G22: 0 | H22: 0 | I22: 0 | J22: 0 | K22: 310.1 | L22: 1 | M22: 0 | N22: 0 | O22: 0 | P22: 0 | Q22: 0 | R22: 0 | X22: 0.0 | Y22: 0 | Z22: 0
A23: 14 | B23: ='Wettkampf 1'!B23 -> Jasmin Kramer | C23: ='Wettkampf 1'!C23 -> Börgermoor I | D23: 310.5 | F23: 310.5 | G23: 0 | H23: 0 | I23: 0 | J23: 0 | K23: 310.5 | L23: 1 | M23: 0 | N23: 0 | O23: 0 | P23: 0 | Q23: 0 | R23: 0 | X23: 0.0 | Y23: 0 | Z23: 0
A24: 15 | B24: ='Wettkampf 1'!B24 -> Anni Küwen | C24: ='Wettkampf 1'!C24 -> Börgermoor I | D24: 312.6 | F24: 312.6 | G24: 0 | H24: 0 | I24: 0 | J24: 0 | K24: 312.6 | L24: 1 | M24: 0 | N24: 0 | O24: 0 | P24: 0 | Q24: 0 | R24: 0 | X24: 0.0 | Y24: 0 | Z24: 0
A25: 16 | B25: ='Wettkampf 1'!B25 -> Waltraud Dobelmann | C25: ='Wettkampf 1'!C25 -> Börgermoor I | D25: 308.5 | F25: 308.5 | G25: 0 | H25: 0 | I25: 0 | J25: 0 | K25: 308.5 | L25: 1 | M25: 0 | N25: 0 | O25: 0 | P25: 0 | Q25: 0 | R25: 0 | X25: 0.0 | Y25: 0 | Z25: 0
A26: 17 | B26: ='Wettkampf 1'!B26 -> Schütze 17 | C26: ='Wettkampf 1'!C26 -> Börgermoor I | E26: x | F26: 0 | G26: 0 | H26: 0 | I26: 0 | J26: 0 | K26: 0 | L26: 0 | M26: 0 | N26: 0 | O26: 0 | P26: 0 | Q26: 0 | R26: 0 | X26: 0.0 | Y26: 1 | Z26: 0
A27: 18 | B27: ='Wettkampf 1'!B27 -> Schütze 18 | C27: ='Wettkampf 1'!C27 -> Börgermoor I | E27: x | F27: 0 | G27: 0 | H27: 0 | I27: 0 | J27: 0 | K27: 0 | L27: 0 | M27: 0 | N27: 0 | O27: 0 | P27: 0 | Q27: 0 | R27: 0 | X27: 0.0 | Y27: 1 | Z27: 0
A28: 19 | B28: ='Wettkampf 1'!B28 -> Hanna Gebken | C28: ='Wettkampf 1'!C28 -> Lorup III | D28: 312.2 | F28: 312.2 | G28: 0 | H28: 0 | I28: 0 | J28: 0 | K28: 0 | L28: 0 | M28: 312.2 | N28: 1 | O28: 0 | P28: 0 | Q28: 0 | R28: 0 | X28: 0.0 | Y28: 0 | Z28: 0
A29: 20 | B29: ='Wettkampf 1'!B29 -> Monika Reimann | C29: ='Wettkampf 1'!C29 -> Lorup III | D29: 305.8 | E29: x | F29: 0 | G29: 0 | H29: 0 | I29: 0 | J29: 0 | K29: 0 | L29: 0 | M29: 0 | N29: 0 | O29: 0 | P29: 0 | Q29: 0 | R29: 0 | X29: 0.0 | Y29: 0 | Z29: 0
A30: 21 | B30: ='Wettkampf 1'!B30 -> Marina Schrand | C30: ='Wettkampf 1'!C30 -> Lorup III | D30: 306.2 | F30: 306.2 | G30: 0 | H30: 0 | I30: 0 | J30: 0 | K30: 0 | L30: 0 | M30: 306.2 | N30: 1 | O30: 0 | P30: 0 | Q30: 0 | R30: 0 | X30: 0.0 | Y30: 0 | Z30: 0
A31: 22 | B31: ='Wettkampf 1'!B31 -> Nadine Krömer | C31: ='Wettkampf 1'!C31 -> Lorup III | D31: 315.1 | F31: 315.1 | G31: 0 | H31: 0 | I31: 0 | J31: 0 | K31: 0 | L31: 0 | M31: 315.1 | N31: 1 | O31: 0 | P31: 0 | Q31: 0 | R31: 0 | X31: 0.0 | Y31: 0 | Z31: 0
A32: 23 | B32: ='Wettkampf 1'!B32 -> Nina Krömer | C32: ='Wettkampf 1'!C32 -> Lorup III | D32: 298.0 | F32: 298.0 | G32: 0 | H32: 0 | I32: 0 | J32: 0 | K32: 0 | L32: 0 | M32: 298 | N32: 1 | O32: 0 | P32: 0 | Q32: 0 | R32: 0 | X32: 0.0 | Y32: 0 | Z32: 0
A33: 24 | B33: ='Wettkampf 1'!B33 -> Margret Büter | C33: ='Wettkampf 1'!C33 -> Lorup III | E33: x | F33: 0 | G33: 0 | H33: 0 | I33: 0 | J33: 0 | K33: 0 | L33: 0 | M33: 0 | N33: 0 | O33: 0 | P33: 0 | Q33: 0 | R33: 0 | X33: 0.0 | Y33: 1 | Z33: 0
A34: 25 | B34: ='Wettkampf 1'!B34 -> Sarah Meiners | C34: ='Wettkampf 1'!C34 -> Ostenwalde II | D34: 290.4 | F34: 290.4 | G34: 0 | H34: 0 | I34: 0 | J34: 0 | K34: 0 | L34: 0 | M34: 0 | N34: 0 | O34: 290.4 | P34: 1 | Q34: 0 | R34: 0 | X34: 0.0 | Y34: 0 | Z34: 0
A35: 26 | B35: ='Wettkampf 1'!B35 -> Anna Temmen | C35: ='Wettkampf 1'!C35 -> Ostenwalde II | D35: 315.0 | F35: 315.0 | G35: 0 | H35: 0 | I35: 0 | J35: 0 | K35: 0 | L35: 0 | M35: 0 | N35: 0 | O35: 315 | P35: 1 | Q35: 0 | R35: 0 | X35: 0.0 | Y35: 0 | Z35: 0
A36: 27 | B36: ='Wettkampf 1'!B36 -> Helga Meiners | C36: ='Wettkampf 1'!C36 -> Ostenwalde II | D36: 298.7 | F36: 298.7 | G36: 0 | H36: 0 | I36: 0 | J36: 0 | K36: 0 | L36: 0 | M36: 0 | N36: 0 | O36: 298.7 | P36: 1 | Q36: 0 | R36: 0 | X36: 0.0 | Y36: 0 | Z36: 0
A37: 28 | B37: ='Wettkampf 1'!B37 -> Carmen Benten | C37: ='Wettkampf 1'!C37 -> Ostenwalde II | D37: 304.5 | F37: 304.5 | G37: 0 | H37: 0 | I37: 0 | J37: 0 | K37: 0 | L37: 0 | M37: 0 | N37: 0 | O37: 304.5 | P37: 1 | Q37: 0 | R37: 0 | X37: 0.0 | Y37: 0 | Z37: 0
A38: 29 | B38: ='Wettkampf 1'!B38 -> Anna -Maria Wimberg | C38: ='Wettkampf 1'!C38 -> Ostenwalde II | E38: x | F38: 0 | G38: 0 | H38: 0 | I38: 0 | J38: 0 | K38: 0 | L38: 0 | M38: 0 | N38: 0 | O38: 0 | P38: 0 | Q38: 0 | R38: 0 | X38: 0.0 | Y38: 1 | Z38: 0
A39: 30 | B39: ='Wettkampf 1'!B39 -> Evelyn Feder | C39: ='Wettkampf 1'!C39 -> Ostenwalde II | E39: x | F39: 0 | G39: 0 | H39: 0 | I39: 0 | J39: 0 | K39: 0 | L39: 0 | M39: 0 | N39: 0 | O39: 0 | P39: 0 | Q39: 0 | R39: 0 | X39: 0.0 | Y39: 1 | Z39: 0
A40: 31 | B40: ='Wettkampf 1'!B40 -> Monika Jansen | C40: ='Wettkampf 1'!C40 -> Spahnharrenstätte I | D40: 316.1 | F40: 316.1 | G40: 0 | H40: 0 | I40: 0 | J40: 0 | K40: 0 | L40: 0 | M40: 0 | N40: 0 | O40: 0 | P40: 0 | Q40: 316.1 | R40: 1 | X40: 0.0 | Y40: 0 | Z40: 0
A41: 32 | B41: ='Wettkampf 1'!B41 -> Kerstin Sträche | C41: ='Wettkampf 1'!C41 -> Spahnharrenstätte I | D41: 302.0 | F41: 302.0 | G41: 0 | H41: 0 | I41: 0 | J41: 0 | K41: 0 | L41: 0 | M41: 0 | N41: 0 | O41: 0 | P41: 0 | Q41: 302 | R41: 1 | X41: 0.0 | Y41: 0 | Z41: 0
A42: 33 | B42: ='Wettkampf 1'!B42 -> Rita Hanekamp | C42: ='Wettkampf 1'!C42 -> Spahnharrenstätte I | D42: 296.9 | F42: 296.9 | G42: 0 | H42: 0 | I42: 0 | J42: 0 | K42: 0 | L42: 0 | M42: 0 | N42: 0 | O42: 0 | P42: 0 | Q42: 296.9 | R42: 1 | X42: 0.0 | Y42: 0 | Z42: 0
A43: 34 | B43: ='Wettkampf 1'!B43 -> Maria Beusing | C43: ='Wettkampf 1'!C43 -> Spahnharrenstätte I | D43: 310.8 | F43: 310.8 | G43: 0 | H43: 0 | I43: 0 | J43: 0 | K43: 0 | L43: 0 | M43: 0 | N43: 0 | O43: 0 | P43: 0 | Q43: 310.8 | R43: 1 | X43: 0.0 | Y43: 0 | Z43: 0
A44: 35 | B44: ='Wettkampf 1'!B44 -> Schütze 35 | C44: ='Wettkampf 1'!C44 -> Spahnharrenstätte I | E44: x | F44: 0 | G44: 0 | H44: 0 | I44: 0 | J44: 0 | K44: 0 | L44: 0 | M44: 0 | N44: 0 | O44: 0 | P44: 0 | Q44: 0 | R44: 0 | X44: 0.0 | Y44: 1 | Z44: 0
A45: 36 | B45: ='Wettkampf 1'!B45 -> Schütze 36 | C45: ='Wettkampf 1'!C45 -> Spahnharrenstätte I | E45: x | F45: 0 | G45: 0 | H45: 0 | I45: 0 | J45: 0 | K45: 0 | L45: 0 | M45: 0 | N45: 0 | O45: 0 | P45: 0 | Q45: 0 | R45: 0 | X45: 0.0 | Y45: 1 | Z45: 0
G46: =LARGE(G10:G45,1)+LARGE(G10:G45,2)+LARGE(G10:G45,3) -> 935.3 | H46: =SUM(H10:H45) -> 4 | I46: =LARGE(I10:I45,1)+LARGE(I10:I45,2)+LARGE(I10:I45,3) -> 931.3 | J46: =SUM(J10:J45) -> 4 | K46: =LARGE(K10:K45,1)+LARGE(K10:K45,2)+LARGE(K10:K45,3) -> 933.2 | L46: =SUM(L10:L45) -> 4 | M46: =LARGE(M10:M45,1)+LARGE(M10:M45,2)+LARGE(M10:M45,3) -> 933.5 | N46: =SUM(N10:N45) -> 4 | O46: =LARGE(O10:O45,1)+LARGE(O10:O45,2)+LARGE(O10:O45,3) -> 918.2 | P46: =SUM(P10:P45) -> 4 | Q46: =LARGE(Q10:Q45,1)+LARGE(Q10:Q45,2)+LARGE(Q10:Q45,3) -> 928.9 | R46: =SUM(R10:S45) -> 4
C47: per Email an: sk-huemmling@gmx.de

Sheet 5
B1: Verein / Gruppe | D1: Ergebnisse | V1: Austragungsort: | W1: =Übersicht!H4 -> Ostenwalde
A2: 1 | B2: ='Wettkampf 1'!B2 -> Börger II | D2: =G46 -> 921.1 | E2: =IF(H46>4,"Es sind zu viele Schützen in Wertung!"," ") ->  | V2: Wettkampftag: | W2: =Übersicht!H3 -> 13.10.
A3: 2 | B3: ='Wettkampf 1'!B3 -> Neuvrees II | D3: =I46 -> 913.8 | E3: =IF(J46>4,"Es sind zu viele Schützen in Wertung!"," ") -> 
A4: 3 | B4: ='Wettkampf 1'!B4 -> Börgermoor I | D4: =K46 -> 921.9 | E4: =IF(L46>4,"Es sind zu viele Schützen in Wertung!"," ") ->  | X4: Ansprechpartner für Rückfragen:
A5: 4 | B5: ='Wettkampf 1'!B5 -> Lorup III | D5: =M46 -> 920.3 | E5: =IF(N46>4,"Es sind zu viele Schützen in Wertung!"," ") ->  | V5: Name: | W5: Philipp Schmidt
A6: 5 | B6: ='Wettkampf 1'!B6 -> Ostenwalde II | D6: =O46 -> 907.8 | E6: =IF(P46>4,"Es sind zu viele Schützen in Wertung!"," ") ->  | V6: Tel:
A7: 6 | B7: ='Wettkampf 1'!B7 -> Spahnharrenstätte I | D7: =Q46 -> 917.3 | E7: =IF(R46>4,"Es sind zu viele Schützen in Wertung!"," ") ->  | V7: Standaufsicht: | W7: Philipp Schmidt
B9: Einzelergebnisse: | C9: Verein / Gruppe | D9: Ergebnisse (mindestens 0 eintragen) | E9: AW? Dann x eintippen | G9: Verein 1 | I9: Verein 2 | K9: Verein 3 | M9: Verein 4 | O9: Verein 5 | Q9: Verein 6 | U9: Proberechnung bei Streifen:
A10: 1 | B10: ='Wettkampf 1'!B10 -> Gertrud Kuchta | C10: ='Wettkampf 1'!C10 -> Börger II | D10: 301.0 | E10: x | F10: =IF(E10="x","0",D10) -> 0 | G10: =IF(C10=$B$2,F10,0) -> 0 | H10: =(IF(AND($E10="",$C10=$B$2),1,0)) -> 0 | I10: =IF($C10=$B$3,F10,0) -> 0 | J10: =(IF(AND($E10="",$C10=$B$3),1,0)) -> 0 | K10: =IF($C10=$B$4,F10,0) -> 0 | L10: =(IF(AND($E10="",$C10=$B$4),1,0)) -> 0 | M10: =IF($C10=$B$5,F10,0) -> 0 | N10: =(IF(AND($E10="",$C10=$B$5),1,0)) -> 0 | O10: =IF($C10=$B$6,F10,0) -> 0 | P10: =(IF(AND($E10="",$C10=$B$6),1,0)) -> 0 | Q10: =IF($C10=$B$7,F10,0) -> 0 | R10: =(IF(AND($E10="",$C10=$B$7),1,0)) -> 0 | X10: =U10+V10+W10 -> 0.0 | Y10: =IF(X10=D10,1,0) -> 0 | Z10: =IF(X10=0,0,1) -> 0 | AA10: =IF(Y10+Z10=2,"Korrekt","") -> 
A11: 2 | B11: ='Wettkampf 1'!B11 -> Sarah Breer | C11: ='Wettkampf 1'!C11 -> Börger II | D11: 266.4 | E11: x | F11: =IF(E11="x","0",D11) -> 0 | G11: =IF(C11=$B$2,F11,0) -> 0 | H11: =(IF(AND($E11="",$C11=$B$2),1,0)) -> 0 | I11: =IF($C11=$B$3,F11,0) -> 0 | J11: =(IF(AND($E11="",$C11=$B$3),1,0)) -> 0 | K11: =IF($C11=$B$4,F11,0) -> 0 | L11: =(IF(AND($E11="",$C11=$B$4),1,0)) -> 0 | M11: =IF($C11=$B$5,F11,0) -> 0 | N11: =(IF(AND($E11="",$C11=$B$5),1,0)) -> 0 | O11: =IF($C11=$B$6,F11,0) -> 0 | P11: =(IF(AND($E11="",$C11=$B$6),1,0)) -> 0 | Q11: =IF($C11=$B$7,F11,0) -> 0 | R11: =(IF(AND($E11="",$C11=$B$7),1,0)) -> 0 | X11: =U11+V11+W11 -> 0.0 | Y11: =IF(X11=D11,1,0) -> 0 | Z11: =IF(X11=0,0,1) -> 0 | AA11: =IF(Y11+Z11=2,"Korrekt","") -> 
A12: 3 | B12: ='Wettkampf 1'!B12 -> Margret Pohlgeers | C12: ='Wettkampf 1'!C12 -> Börger II | D12: 311.3 | F12: 311.3 | G12: 311.3 | H12: 1 | I12: 0 | J12: 0 | K12: 0 | L12: 0 | M12: 0 | N12: 0 | O12: 0 | P12: 0 | Q12: 0 | R12: 0 | X12: 0.0 | Y12: 0 | Z12: 0
A13: 4 | B13: ='Wettkampf 1'!B13 -> Gundula Schwarte | C13: ='Wettkampf 1'!C13 -> Börger II | D13: 304.4 | F13: 304.4 | G13: 304.4 | H13: 1 | I13: 0 | J13: 0 | K13: 0 | L13: 0 | M13: 0 | N13: 0 | O13: 0 | P13: 0 | Q13: 0 | R13: 0 | X13: 0.0 | Y13: 0 | Z13: 0
A14: 5 | B14: ='Wettkampf 1'!B14 -> Annette Schwarte | C14: ='Wettkampf 1'!C14 -> Börger II | D14: 301.2 | F14: 301.2 | G14: 301.2 | H14: 1 | I14: 0 | J14: 0 | K14: 0 | L14: 0 | M14: 0 | N14: 0 | O14: 0 | P14: 0 | Q14: 0 | R14: 0 | X14: 0.0 | Y14: 0 | Z14: 0
A15: 6 | B15: ='Wettkampf 1'!B15 -> Petra Dödtmann | C15: ='Wettkampf 1'!C15 -> Börger II | D15: 305.4 | F15: 305.4 | G15: 305.4 | H15: 1 | I15: 0 | J15: 0 | K15: 0 | L15: 0 | M15: 0 | N15: 0 | O15: 0 | P15: 0 | Q15: 0 | R15: 0 | X15: 0.0 | Y15: 0 | Z15: 0
A16: 7 | B16: ='Wettkampf 1'!B16 -> Sarah Deyen | C16: ='Wettkampf 1'!C16 -> Neuvrees II | D16: 301.4 | F16: 301.4 | G16: 0 | H16: 0 | I16: 301.4 | J16: 1 | K16: 0 | L16: 0 | M16: 0 | N16: 0 | O16: 0 | P16: 0 | Q16: 0 | R16: 0 | X16: 0.0 | Y16: 0 | Z16: 0
A17: 8 | B17: ='Wettkampf 1'!B17 -> Silvia Thunert | C17: ='Wettkampf 1'!C17 -> Neuvrees II | D17: 301.7 | F17: 301.7 | G17: 0 | H17: 0 | I17: 301.7 | J17: 1 | K17: 0 | L17: 0 | M17: 0 | N17: 0 | O17: 0 | P17: 0 | Q17: 0 | R17: 0 | X17: 0.0 | Y17: 0 | Z17: 0
A18: 9 | B18: ='Wettkampf 1'!B18 -> Margret Pohlmann | C18: ='Wettkampf 1'!C18 -> Neuvrees II | D18: 306.7 | F18: 306.7 | G18: 0 | H18: 0 | I18: 306.7 | J18: 1 | K18: 0 | L18: 0 | M18: 0 | N18: 0 | O18: 0 | P18: 0 | Q18: 0 | R18: 0 | X18: 0.0 | Y18: 0 | Z18: 0
A19: 10 | B19: ='Wettkampf 1'!B19 -> Harma Steenken | C19: ='Wettkampf 1'!C19 -> Neuvrees II | E19: x | F19: 0 | G19: 0 | H19: 0 | I19: 0 | J19: 0 | K19: 0 | L19: 0 | M19: 0 | N19: 0 | O19: 0 | P19: 0 | Q19: 0 | R19: 0 | X19: 0.0 | Y19: 1 | Z19: 0
A20: 11 | B20: ='Wettkampf 1'!B20 -> Claudia Rolfes | C20: ='Wettkampf 1'!C20 -> Neuvrees II | D20: 305.4 | F20: 305.4 | G20: 0 | H20: 0 | I20: 305.4 | J20: 1 | K20: 0 | L20: 0 | M20: 0 | N20: 0 | O20: 0 | P20: 0 | Q20: 0 | R20: 0 | X20: 0.0 | Y20: 0 | Z20: 0
A21: 12 | B21: ='Wettkampf 1'!B21 -> Silvia Junge | C21: ='Wettkampf 1'!C21 -> Neuvrees II | D21: 290.8 | E21: x | F21: 0 | G21: 0 | H21: 0 | I21: 0 | J21: 0 | K21: 0 | L21: 0 | M21: 0 | N21: 0 | O21: 0 | P21: 0 | Q21: 0 | R21: 0 | X21: 0.0 | Y21: 0 | Z21: 0
A22: 13 | B22: ='Wettkampf 1'!B22 -> Ulla Schnieders | C22: ='Wettkampf 1'!C22 -> Börgermoor I | D22: 308.8 | F22: 308.8 | G22: 0 | H22: 0 | I22: 0 | J22: 0 | K22: 308.8 | L22: 1 | M22: 0 | N22: 0 | O22: 0 | P22: 0 | Q22: 0 | R22: 0 | X22: 0.0 | Y22: 0 | Z22: 0
A23: 14 | B23: ='Wettkampf 1'!B23 -> Jasmin Kramer | C23: ='Wettkampf 1'!C23 -> Börgermoor I | D23: 310.3 | F23: 310.3 | G23: 0 | H23: 0 | I23: 0 | J23: 0 | K23: 310.3 | L23: 1 | M23: 0 | N23: 0 | O23: 0 | P23: 0 | Q23: 0 | R23: 0 | X23: 0.0 | Y23: 0 | Z23: 0
A24: 15 | B24: ='Wettkampf 1'!B24 -> Anni Küwen | C24: ='Wettkampf 1'!C24 -> Börgermoor I | D24: 297.9 | F24: 297.9 | G24: 0 | H24: 0 | I24: 0 | J24: 0 | K24: 297.9 | L24: 1 | M24: 0 | N24: 0 | O24: 0 | P24: 0 | Q24: 0 | R24: 0 | X24: 0.0 | Y24: 0 | Z24: 0
A25: 16 | B25: ='Wettkampf 1'!B25 -> Waltraud Dobelmann | C25: ='Wettkampf 1'!C25 -> Börgermoor I | D25: 302.8 | F25: 302.8 | G25: 0 | H25: 0 | I25: 0 | J25: 0 | K25: 302.8 | L25: 1 | M25: 0 | N25: 0 | O25: 0 | P25: 0 | Q25: 0 | R25: 0 | X25: 0.0 | Y25: 0 | Z25: 0
A26: 17 | B26: ='Wettkampf 1'!B26 -> Schütze 17 | C26: ='Wettkampf 1'!C26 -> Börgermoor I | E26: x | F26: 0 | G26: 0 | H26: 0 | I26: 0 | J26: 0 | K26: 0 | L26: 0 | M26: 0 | N26: 0 | O26: 0 | P26: 0 | Q26: 0 | R26: 0 | X26: 0.0 | Y26: 1 | Z26: 0
A27: 18 | B27: ='Wettkampf 1'!B27 -> Schütze 18 | C27: ='Wettkampf 1'!C27 -> Börgermoor I | E27: x | F27: 0 | G27: 0 | H27: 0 | I27: 0 | J27: 0 | K27: 0 | L27: 0 | M27: 0 | N27: 0 | O27: 0 | P27: 0 | Q27: 0 | R27: 0 | X27: 0.0 | Y27: 1 | Z27: 0
A28: 19 | B28: ='Wettkampf 1'!B28 -> Hanna Gebken | C28: ='Wettkampf 1'!C28 -> Lorup III | D28: 312.1 | F28: 312.1 | G28: 0 | H28: 0 | I28: 0 | J28: 0 | K28: 0 | L28: 0 | M28: 312.1 | N28: 1 | O28: 0 | P28: 0 | Q28: 0 | R28: 0 | X28: 0.0 | Y28: 0 | Z28: 0
A29: 20 | B29: ='Wettkampf 1'!B29 -> Monika Reimann | C29: ='Wettkampf 1'!C29 -> Lorup III | D29: 305.2 | F29: 305.2 | G29: 0 | H29: 0 | I29: 0 | J29: 0 | K29: 0 | L29: 0 | M29: 305.2 | N29: 1 | O29: 0 | P29: 0 | Q29: 0 | R29: 0 | X29: 0.0 | Y29: 0 | Z29: 0
A30: 21 | B30: ='Wettkampf 1'!B30 -> Marina Schrand | C30: ='Wettkampf 1'!C30 -> Lorup III | D30: 303.0 | F30: 303.0 | G30: 0 | H30: 0 | I30: 0 | J30: 0 | K30: 0 | L30: 0 | M30: 303 | N30: 1 | O30: 0 | P30: 0 | Q30: 0 | R30: 0 | X30: 0.0 | Y30: 0 | Z30: 0
A31: 22 | B31: ='Wettkampf 1'!B31 -> Nadine Krömer | C31: ='Wettkampf 1'!C31 -> Lorup III | D31: 308.1 | E31: x | F31: 0 | G31: 0 | H31: 0 | I31: 0 | J31: 0 | K31: 0 | L31: 0 | M31: 0 | N31: 0 | O31: 0 | P31: 0 | Q31: 0 | R31: 0 | X31: 0.0 | Y31: 0 | Z31: 0
A32: 23 | B32: ='Wettkampf 1'!B32 -> Nina Krömer | C32: ='Wettkampf 1'!C32 -> Lorup III | D32: 287.8 | F32: 287.8 | G32: 0 | H32: 0 | I32: 0 | J32: 0 | K32: 0 | L32: 0 | M32: 287.8 | N32: 1 | O32: 0 | P32: 0 | Q32: 0 | R32: 0 | X32: 0.0 | Y32: 0 | Z32: 0
A33: 24 | B33: ='Wettkampf 1'!B33 -> Margret Büter | C33: ='Wettkampf 1'!C33 -> Lorup III | E33: x | F33: 0 | G33: 0 | H33: 0 | I33: 0 | J33: 0 | K33: 0 | L33: 0 | M33: 0 | N33: 0 | O33: 0 | P33: 0 | Q33: 0 | R33: 0 | X33: 0.0 | Y33: 1 | Z33: 0
A34: 25 | B34: ='Wettkampf 1'!B34 -> Sarah Meiners | C34: ='Wettkampf 1'!C34 -> Ostenwalde II | D34: 286.8 | F34: 286.8 | G34: 0 | H34: 0 | I34: 0 | J34: 0 | K34: 0 | L34: 0 | M34: 0 | N34: 0 | O34: 286.8 | P34: 1 | Q34: 0 | R34: 0 | X34: 0.0 | Y34: 0 | Z34: 0
A35: 26 | B35: ='Wettkampf 1'!B35 -> Anna Temmen | C35: ='Wettkampf 1'!C35 -> Ostenwalde II | D35: 311.6 | F35: 311.6 | G35: 0 | H35: 0 | I35: 0 | J35: 0 | K35: 0 | L35: 0 | M35: 0 | N35: 0 | O35: 311.6 | P35: 1 | Q35: 0 | R35: 0 | X35: 0.0 | Y35: 0 | Z35: 0
A36: 27 | B36: ='Wettkampf 1'!B36 -> Helga Meiners | C36: ='Wettkampf 1'!C36 -> Ostenwalde II | D36: 299.4 | F36: 299.4 | G36: 0 | H36: 0 | I36: 0 | J36: 0 | K36: 0 | L36: 0 | M36: 0 | N36: 0 | O36: 299.4 | P36: 1 | Q36: 0 | R36: 0 | X36: 0.0 | Y36: 0 | Z36: 0
A37: 28 | B37: ='Wettkampf 1'!B37 -> Carmen Benten | C37: ='Wettkampf 1'!C37 -> Ostenwalde II | D37: 296.8 | F37: 296.8 | G37: 0 | H37: 0 | I37: 0 | J37: 0 | K37: 0 | L37: 0 | M37: 0 | N37: 0 | O37: 296.8 | P37: 1 | Q37: 0 | R37: 0 | X37: 0.0 | Y37: 0 | Z37: 0
A38: 29 | B38: ='Wettkampf 1'!B38 -> Anna -Maria Wimberg | C38: ='Wettkampf 1'!C38 -> Ostenwalde II | E38: x | F38: 0 | G38: 0 | H38: 0 | I38: 0 | J38: 0 | K38: 0 | L38: 0 | M38: 0 | N38: 0 | O38: 0 | P38: 0 | Q38: 0 | R38: 0 | X38: 0.0 | Y38: 1 | Z38: 0
A39: 30 | B39: ='Wettkampf 1'!B39 -> Evelyn Feder | C39: ='Wettkampf 1'!C39 -> Ostenwalde II | E39: x | F39: 0 | G39: 0 | H39: 0 | I39: 0 | J39: 0 | K39: 0 | L39: 0 | M39: 0 | N39: 0 | O39: 0 | P39: 0 | Q39: 0 | R39: 0 | X39: 0.0 | Y39: 1 | Z39: 0
A40: 31 | B40: ='Wettkampf 1'!B40 -> Monika Jansen | C40: ='Wettkampf 1'!C40 -> Spahnharrenstätte I | D40: 303.0 | F40: 303.0 | G40: 0 | H40: 0 | I40: 0 | J40: 0 | K40: 0 | L40: 0 | M40: 0 | N40: 0 | O40: 0 | P40: 0 | Q40: 303 | R40: 1 | X40: 0.0 | Y40: 0 | Z40: 0
A41: 32 | B41: ='Wettkampf 1'!B41 -> Kerstin Sträche | C41: ='Wettkampf 1'!C41 -> Spahnharrenstätte I | D41: 305.7 | F41: 305.7 | G41: 0 | H41: 0 | I41: 0 | J41: 0 | K41: 0 | L41: 0 | M41: 0 | N41: 0 | O41: 0 | P41: 0 | Q41: 305.7 | R41: 1 | X41: 0.0 | Y41: 0 | Z41: 0
A42: 33 | B42: ='Wettkampf 1'!B42 -> Rita Hanekamp | C42: ='Wettkampf 1'!C42 -> Spahnharrenstätte I | D42: 287.8 | F42: 287.8 | G42: 0 | H42: 0 | I42: 0 | J42: 0 | K42: 0 | L42: 0 | M42: 0 | N42: 0 | O42: 0 | P42: 0 | Q42: 287.8 | R42: 1 | X42: 0.0 | Y42: 0 | Z42: 0
A43: 34 | B43: ='Wettkampf 1'!B43 -> Maria Beusing | C43: ='Wettkampf 1'!C43 -> Spahnharrenstätte I | D43: 308.6 | F43: 308.6 | G43: 0 | H43: 0 | I43: 0 | J43: 0 | K43: 0 | L43: 0 | M43: 0 | N43: 0 | O43: 0 | P43: 0 | Q43: 308.6 | R43: 1 | X43: 0.0 | Y43: 0 | Z43: 0
A44: 35 | B44: ='Wettkampf 1'!B44 -> Schütze 35 | C44: ='Wettkampf 1'!C44 -> Spahnharrenstätte I | E44: x | F44: 0 | G44: 0 | H44: 0 | I44: 0 | J44: 0 | K44: 0 | L44: 0 | M44: 0 | N44: 0 | O44: 0 | P44: 0 | Q44: 0 | R44: 0 | X44: 0.0 | Y44: 1 | Z44: 0
A45: 36 | B45: ='Wettkampf 1'!B45 -> Schütze 36 | C45: ='Wettkampf 1'!C45 -> Spahnharrenstätte I | E45: x | F45: 0 | G45: 0 | H45: 0 | I45: 0 | J45: 0 | K45: 0 | L45: 0 | M45: 0 | N45: 0 | O45: 0 | P45: 0 | Q45: 0 | R45: 0 | X45: 0.0 | Y45: 1 | Z45: 0
G46: =LARGE(G10:G45,1)+LARGE(G10:G45,2)+LARGE(G10:G45,3) -> 921.1 | H46: =SUM(H10:H45) -> 4 | I46: =LARGE(I10:I45,1)+LARGE(I10:I45,2)+LARGE(I10:I45,3) -> 913.8 | J46: =SUM(J10:J45) -> 4 | K46: =LARGE(K10:K45,1)+LARGE(K10:K45,2)+LARGE(K10:K45,3) -> 921.9 | L46: =SUM(L10:L45) -> 4 | M46: =LARGE(M10:M45,1)+LARGE(M10:M45,2)+LARGE(M10:M45,3) -> 920.3 | N46: =SUM(N10:N45) -> 4 | O46: =LARGE(O10:O45,1)+LARGE(O10:O45,2)+LARGE(O10:O45,3) -> 907.8 | P46: =SUM(P10:P45) -> 4 | Q46: =LARGE(Q10:Q45,1)+LARGE(Q10:Q45,2)+LARGE(Q10:Q45,3) -> 917.3 | R46: =SUM(R10:S45) -> 4
C47: per Email an: sk-huemmling@gmx.de

Sheet 6
B1: Verein / Gruppe | D1: Ergebnisse | V1: Austragungsort: | W1: =Übersicht!I4 -> Spahnharrenstätte
A2: 1 | B2: ='Wettkampf 1'!B2 -> Börger II | D2: =G46 -> 933.1 | E2: =IF(H46>4,"Es sind zu viele Schützen in Wertung!"," ") ->  | V2: Wettkampftag: | W2: =Übersicht!I3 -> 17.11.
A3: 2 | B3: ='Wettkampf 1'!B3 -> Neuvrees II | D3: =I46 -> 933.5 | E3: =IF(J46>4,"Es sind zu viele Schützen in Wertung!"," ") -> 
A4: 3 | B4: ='Wettkampf 1'!B4 -> Börgermoor I | D4: =K46 -> 925.3 | E4: =IF(L46>4,"Es sind zu viele Schützen in Wertung!"," ") ->  | X4: Ansprechpartner für Rückfragen:
A5: 4 | B5: ='Wettkampf 1'!B5 -> Lorup III | D5: =M46 -> 924.4 | E5: =IF(N46>4,"Es sind zu viele Schützen in Wertung!"," ") ->  | V5: Name: | W5: Kerstin Sträche
A6: 5 | B6: ='Wettkampf 1'!B6 -> Ostenwalde II | D6: =O46 -> 909.3 | E6: =IF(P46>4,"Es sind zu viele Schützen in Wertung!"," ") ->  | V6: Tel:
A7: 6 | B7: ='Wettkampf 1'!B7 -> Spahnharrenstätte I | D7: =Q46 -> 928.2 | E7: =IF(R46>4,"Es sind zu viele Schützen in Wertung!"," ") ->  | V7: Standaufsicht: | W7: Monika Jansen
B9: Einzelergebnisse: | C9: Verein / Gruppe | D9: Ergebnisse (mindestens 0 eintragen) | E9: AW? Dann x eintippen | G9: Verein 1 | I9: Verein 2 | K9: Verein 3 | M9: Verein 4 | O9: Verein 5 | Q9: Verein 6 | U9: Proberechnung bei Streifen:
A10: 1 | B10: ='Wettkampf 1'!B10 -> Gertrud Kuchta | C10: ='Wettkampf 1'!C10 -> Börger II | D10: 310.4 | F10: =IF(E10="x","0",D10) -> 310.4 | G10: =IF(C10=$B$2,F10,0) -> 310.4 | H10: =(IF(AND($E10="",$C10=$B$2),1,0)) -> 1 | I10: =IF($C10=$B$3,F10,0) -> 0 | J10: =(IF(AND($E10="",$C10=$B$3),1,0)) -> 0 | K10: =IF($C10=$B$4,F10,0) -> 0 | L10: =(IF(AND($E10="",$C10=$B$4),1,0)) -> 0 | M10: =IF($C10=$B$5,F10,0) -> 0 | N10: =(IF(AND($E10="",$C10=$B$5),1,0)) -> 0 | O10: =IF($C10=$B$6,F10,0) -> 0 | P10: =(IF(AND($E10="",$C10=$B$6),1,0)) -> 0 | Q10: =IF($C10=$B$7,F10,0) -> 0 | R10: =(IF(AND($E10="",$C10=$B$7),1,0)) -> 0 | U10: 104.3 | V10: 103.7 | W10: 102.4 | X10: =U10+V10+W10 -> 310.4 | Y10: =IF(X10=D10,1,0) -> 1 | Z10: =IF(X10=0,0,1) -> 1 | AA10: =IF(Y10+Z10=2,"Korrekt","") -> Korrekt
A11: 2 | B11: ='Wettkampf 1'!B11 -> Sarah Breer | C11: ='Wettkampf 1'!C11 -> Börger II | D11: 271.9 | E11: x | F11: =IF(E11="x","0",D11) -> 0 | G11: =IF(C11=$B$2,F11,0) -> 0 | H11: =(IF(AND($E11="",$C11=$B$2),1,0)) -> 0 | I11: =IF($C11=$B$3,F11,0) -> 0 | J11: =(IF(AND($E11="",$C11=$B$3),1,0)) -> 0 | K11: =IF($C11=$B$4,F11,0) -> 0 | L11: =(IF(AND($E11="",$C11=$B$4),1,0)) -> 0 | M11: =IF($C11=$B$5,F11,0) -> 0 | N11: =(IF(AND($E11="",$C11=$B$5),1,0)) -> 0 | O11: =IF($C11=$B$6,F11,0) -> 0 | P11: =(IF(AND($E11="",$C11=$B$6),1,0)) -> 0 | Q11: =IF($C11=$B$7,F11,0) -> 0 | R11: =(IF(AND($E11="",$C11=$B$7),1,0)) -> 0 | U11: 92.0 | V11: 90.3 | W11: 89.5 | X11: =U11+V11+W11 -> 271.8 | Y11: =IF(X11=D11,1,0) -> 0 | Z11: =IF(X11=0,0,1) -> 1 | AA11: =IF(Y11+Z11=2,"Korrekt","") -> 
A12: 3 | B12: ='Wettkampf 1'!B12 -> Margret Pohlgeers | C12: ='Wettkampf 1'!C12 -> Börger II | D12: 312.9 | F12: 312.9 | G12: 312.9 | H12: 1 | I12: 0 | J12: 0 | K12: 0 | L12: 0 | M12: 0 | N12: 0 | O12: 0 | P12: 0 | Q12: 0 | R12: 0 | U12: 105.5 | V12: 103.7 | W12: 103.7 | X12: 312.9 | Y12: 1 | Z12: 1 | AA12: Korrekt
A13: 4 | B13: ='Wettkampf 1'!B13 -> Gundula Schwarte | C13: ='Wettkampf 1'!C13 -> Börger II | D13: 301.6 | E13: x | F13: 0 | G13: 0 | H13: 0 | I13: 0 | J13: 0 | K13: 0 | L13: 0 | M13: 0 | N13: 0 | O13: 0 | P13: 0 | Q13: 0 | R13: 0 | U13: 96.9 | V13: 102.3 | W13: 102.4 | X13: 301.6 | Y13: 1 | Z13: 1 | AA13: Korrekt
A14: 5 | B14: ='Wettkampf 1'!B14 -> Annette Schwarte | C14: ='Wettkampf 1'!C14 -> Börger II | D14: 305.3 | F14: 305.3 | G14: 305.3 | H14: 1 | I14: 0 | J14: 0 | K14: 0 | L14: 0 | M14: 0 | N14: 0 | O14: 0 | P14: 0 | Q14: 0 | R14: 0 | U14: 101.6 | V14: 102.2 | W14: 101.5 | X14: 305.3 | Y14: 1 | Z14: 1 | AA14: Korrekt
A15: 6 | B15: ='Wettkampf 1'!B15 -> Petra Dödtmann | C15: ='Wettkampf 1'!C15 -> Börger II | D15: 309.8 | F15: 309.8 | G15: 309.8 | H15: 1 | I15: 0 | J15: 0 | K15: 0 | L15: 0 | M15: 0 | N15: 0 | O15: 0 | P15: 0 | Q15: 0 | R15: 0 | U15: 103.7 | V15: 103.6 | W15: 102.5 | X15: 309.8 | Y15: 1 | Z15: 1 | AA15: Korrekt
A16: 7 | B16: ='Wettkampf 1'!B16 -> Sarah Deyen | C16: ='Wettkampf 1'!C16 -> Neuvrees II | D16: 310.1 | F16: 310.1 | G16: 0 | H16: 0 | I16: 310.1 | J16: 1 | K16: 0 | L16: 0 | M16: 0 | N16: 0 | O16: 0 | P16: 0 | Q16: 0 | R16: 0 | U16: 103.2 | V16: 103.5 | W16: 103.4 | X16: 310.1 | Y16: 1 | Z16: 1 | AA16: Korrekt
A17: 8 | B17: ='Wettkampf 1'!B17 -> Silvia Thunert | C17: ='Wettkampf 1'!C17 -> Neuvrees II | D17: 312.0 | F17: 312.0 | G17: 0 | H17: 0 | I17: 312 | J17: 1 | K17: 0 | L17: 0 | M17: 0 | N17: 0 | O17: 0 | P17: 0 | Q17: 0 | R17: 0 | U17: 104.2 | V17: 103.6 | W17: 104.2 | X17: 312.0 | Y17: 1 | Z17: 1 | AA17: Korrekt
A18: 9 | B18: ='Wettkampf 1'!B18 -> Margret Pohlmann | C18: ='Wettkampf 1'!C18 -> Neuvrees II | D18: 301.1 | F18: 301.1 | G18: 0 | H18: 0 | I18: 301.1 | J18: 1 | K18: 0 | L18: 0 | M18: 0 | N18: 0 | O18: 0 | P18: 0 | Q18: 0 | R18: 0 | U18: 102.5 | V18: 97.6 | W18: 101.0 | X18: 301.1 | Y18: 1 | Z18: 1 | AA18: Korrekt
A19: 10 | B19: ='Wettkampf 1'!B19 -> Harma Steenken | C19: ='Wettkampf 1'!C19 -> Neuvrees II | E19: x | F19: 0 | G19: 0 | H19: 0 | I19: 0 | J19: 0 | K19: 0 | L19: 0 | M19: 0 | N19: 0 | O19: 0 | P19: 0 | Q19: 0 | R19: 0 | X19: 0.0 | Y19: 1 | Z19: 0
A20: 11 | B20: ='Wettkampf 1'!B20 -> Claudia Rolfes | C20: ='Wettkampf 1'!C20 -> Neuvrees II | D20: 311.4 | F20: 311.4 | G20: 0 | H20: 0 | I20: 311.4 | J20: 1 | K20: 0 | L20: 0 | M20: 0 | N20: 0 | O20: 0 | P20: 0 | Q20: 0 | R20: 0 | U20: 103.8 | V20: 103.6 | W20: 104.0 | X20: 311.4 | Y20: 1 | Z20: 1 | AA20: Korrekt
A21: 12 | B21: ='Wettkampf 1'!B21 -> Silvia Junge | C21: ='Wettkampf 1'!C21 -> Neuvrees II | D21: 299.5 | E21: x | F21: 0 | G21: 0 | H21: 0 | I21: 0 | J21: 0 | K21: 0 | L21: 0 | M21: 0 | N21: 0 | O21: 0 | P21: 0 | Q21: 0 | R21: 0 | U21: 96.9 | V21: 100.1 | W21: 102.5 | X21: 299.5 | Y21: 1 | Z21: 1 | AA21: Korrekt
A22: 13 | B22: ='Wettkampf 1'!B22 -> Ulla Schnieders | C22: ='Wettkampf 1'!C22 -> Börgermoor I | D22: 307.1 | F22: 307.1 | G22: 0 | H22: 0 | I22: 0 | J22: 0 | K22: 307.1 | L22: 1 | M22: 0 | N22: 0 | O22: 0 | P22: 0 | Q22: 0 | R22: 0 | U22: 100.4 | V22: 104.3 | W22: 102.4 | X22: 307.1 | Y22: 1 | Z22: 1 | AA22: Korrekt
A23: 14 | B23: ='Wettkampf 1'!B23 -> Jasmin Kramer | C23: ='Wettkampf 1'!C23 -> Börgermoor I | D23: 309.3 | F23: 309.3 | G23: 0 | H23: 0 | I23: 0 | J23: 0 | K23: 309.3 | L23: 1 | M23: 0 | N23: 0 | O23: 0 | P23: 0 | Q23: 0 | R23: 0 | U23: 105.4 | V23: 103.7 | W23: 100.2 | X23: 309.3 | Y23: 1 | Z23: 1 | AA23: Korrekt
A24: 15 | B24: ='Wettkampf 1'!B24 -> Anni Küwen | C24: ='Wettkampf 1'!C24 -> Börgermoor I | D24: 308.9 | F24: 308.9 | G24: 0 | H24: 0 | I24: 0 | J24: 0 | K24: 308.9 | L24: 1 | M24: 0 | N24: 0 | O24: 0 | P24: 0 | Q24: 0 | R24: 0 | U24: 102.5 | V24: 103.8 | W24: 102.6 | X24: 308.9 | Y24: 1 | Z24: 1 | AA24: Korrekt
A25: 16 | B25: ='Wettkampf 1'!B25 -> Waltraud Dobelmann | C25: ='Wettkampf 1'!C25 -> Börgermoor I | D25: 302.8 | F25: 302.8 | G25: 0 | H25: 0 | I25: 0 | J25: 0 | K25: 302.8 | L25: 1 | M25: 0 | N25: 0 | O25: 0 | P25: 0 | Q25: 0 | R25: 0 | U25: 101.1 | V25: 102.8 | W25: 98.9 | X25: 302.8 | Y25: 1 | Z25: 1 | AA25: Korrekt
A26: 17 | B26: ='Wettkampf 1'!B26 -> Schütze 17 | C26: ='Wettkampf 1'!C26 -> Börgermoor I | E26: x | F26: 0 | G26: 0 | H26: 0 | I26: 0 | J26: 0 | K26: 0 | L26: 0 | M26: 0 | N26: 0 | O26: 0 | P26: 0 | Q26: 0 | R26: 0 | X26: 0.0 | Y26: 1 | Z26: 0
A27: 18 | B27: ='Wettkampf 1'!B27 -> Schütze 18 | C27: ='Wettkampf 1'!C27 -> Börgermoor I | E27: x | F27: 0 | G27: 0 | H27: 0 | I27: 0 | J27: 0 | K27: 0 | L27: 0 | M27: 0 | N27: 0 | O27: 0 | P27: 0 | Q27: 0 | R27: 0 | X27: 0.0 | Y27: 1 | Z27: 0
A28: 19 | B28: ='Wettkampf 1'!B28 -> Hanna Gebken | C28: ='Wettkampf 1'!C28 -> Lorup III | D28: 306.7 | F28: 306.7 | G28: 0 | H28: 0 | I28: 0 | J28: 0 | K28: 0 | L28: 0 | M28: 306.7 | N28: 1 | O28: 0 | P28: 0 | Q28: 0 | R28: 0 | U28: 101.5 | V28: 101.9 | W28: 103.3 | X28: 306.7 | Y28: 1 | Z28: 1 | AA28: Korrekt
A29: 20 | B29: ='Wettkampf 1'!B29 -> Monika Reimann | C29: ='Wettkampf 1'!C29 -> Lorup III | D29: 304.6 | F29: 304.6 | G29: 0 | H29: 0 | I29: 0 | J29: 0 | K29: 0 | L29: 0 | M29: 304.6 | N29: 1 | O29: 0 | P29: 0 | Q29: 0 | R29: 0 | U29: 101.7 | V29: 101.2 | W29: 101.7 | X29: 304.6 | Y29: 1 | Z29: 1 | AA29: Korrekt
A30: 21 | B30: ='Wettkampf 1'!B30 -> Marina Schrand | C30: ='Wettkampf 1'!C30 -> Lorup III | D30: 305.5 | F30: 305.5 | G30: 0 | H30: 0 | I30: 0 | J30: 0 | K30: 0 | L30: 0 | M30: 305.5 | N30: 1 | O30: 0 | P30: 0 | Q30: 0 | R30: 0 | U30: 102.5 | V30: 102.2 | W30: 100.8 | X30: 305.5 | Y30: 1 | Z30: 1 | AA30: Korrekt
A31: 22 | B31: ='Wettkampf 1'!B31 -> Nadine Krömer | C31: ='Wettkampf 1'!C31 -> Lorup III | D31: 312.2 | F31: 312.2 | G31: 0 | H31: 0 | I31: 0 | J31: 0 | K31: 0 | L31: 0 | M31: 312.2 | N31: 1 | O31: 0 | P31: 0 | Q31: 0 | R31: 0 | U31: 104.3 | V31: 103.8 | W31: 104.1 | X31: 312.2 | Y31: 1 | Z31: 1 | AA31: Korrekt
A32: 23 | B32: ='Wettkampf 1'!B32 -> Nina Krömer | C32: ='Wettkampf 1'!C32 -> Lorup III | D32: 305.4 | E32: x | F32: 0 | G32: 0 | H32: 0 | I32: 0 | J32: 0 | K32: 0 | L32: 0 | M32: 0 | N32: 0 | O32: 0 | P32: 0 | Q32: 0 | R32: 0 | U32: 102.0 | V32: 101.5 | W32: 101.9 | X32: 305.4 | Y32: 1 | Z32: 1 | AA32: Korrekt
A33: 24 | B33: ='Wettkampf 1'!B33 -> Margret Büter | C33: ='Wettkampf 1'!C33 -> Lorup III | E33: x | F33: 0 | G33: 0 | H33: 0 | I33: 0 | J33: 0 | K33: 0 | L33: 0 | M33: 0 | N33: 0 | O33: 0 | P33: 0 | Q33: 0 | R33: 0 | X33: 0.0 | Y33: 1 | Z33: 0
A34: 25 | B34: ='Wettkampf 1'!B34 -> Sarah Meiners | C34: ='Wettkampf 1'!C34 -> Ostenwalde II | D34: 278.1 | F34: 278.1 | G34: 0 | H34: 0 | I34: 0 | J34: 0 | K34: 0 | L34: 0 | M34: 0 | N34: 0 | O34: 278.1 | P34: 1 | Q34: 0 | R34: 0 | U34: 83.8 | V34: 97.9 | W34: 96.4 | X34: 278.1 | Y34: 1 | Z34: 1 | AA34: Korrekt
A35: 26 | B35: ='Wettkampf 1'!B35 -> Anna Temmen | C35: ='Wettkampf 1'!C35 -> Ostenwalde II | D35: 311.6 | F35: 311.6 | G35: 0 | H35: 0 | I35: 0 | J35: 0 | K35: 0 | L35: 0 | M35: 0 | N35: 0 | O35: 311.6 | P35: 1 | Q35: 0 | R35: 0 | U35: 102.3 | V35: 104.0 | W35: 105.3 | X35: 311.6 | Y35: 1 | Z35: 1 | AA35: Korrekt
A36: 27 | B36: ='Wettkampf 1'!B36 -> Helga Meiners | C36: ='Wettkampf 1'!C36 -> Ostenwalde II | D36: 299.9 | F36: 299.9 | G36: 0 | H36: 0 | I36: 0 | J36: 0 | K36: 0 | L36: 0 | M36: 0 | N36: 0 | O36: 299.9 | P36: 1 | Q36: 0 | R36: 0 | U36: 101.0 | V36: 96.4 | W36: 102.5 | X36: 299.9 | Y36: 1 | Z36: 1 | AA36: Korrekt
A37: 28 | B37: ='Wettkampf 1'!B37 -> Carmen Benten | C37: ='Wettkampf 1'!C37 -> Ostenwalde II | D37: 297.8 | F37: 297.8 | G37: 0 | H37: 0 | I37: 0 | J37: 0 | K37: 0 | L37: 0 | M37: 0 | N37: 0 | O37: 297.8 | P37: 1 | Q37: 0 | R37: 0 | U37: 94.0 | V37: 101.5 | W37: 102.3 | X37: 297.8 | Y37: 1 | Z37: 1 | AA37: Korrekt
A38: 29 | B38: ='Wettkampf 1'!B38 -> Anna -Maria Wimberg | C38: ='Wettkampf 1'!C38 -> Ostenwalde II | E38: x | F38: 0 | G38: 0 | H38: 0 | I38: 0 | J38: 0 | K38: 0 | L38: 0 | M38: 0 | N38: 0 | O38: 0 | P38: 0 | Q38: 0 | R38: 0 | X38: 0.0 | Y38: 1 | Z38: 0
A39: 30 | B39: ='Wettkampf 1'!B39 -> Evelyn Feder | C39: ='Wettkampf 1'!C39 -> Ostenwalde II | E39: x | F39: 0 | G39: 0 | H39: 0 | I39: 0 | J39: 0 | K39: 0 | L39: 0 | M39: 0 | N39: 0 | O39: 0 | P39: 0 | Q39: 0 | R39: 0 | X39: 0.0 | Y39: 1 | Z39: 0
A40: 31 | B40: ='Wettkampf 1'!B40 -> Monika Jansen | C40: ='Wettkampf 1'!C40 -> Spahnharrenstätte I | D40: 311.3 | F40: 311.3 | G40: 0 | H40: 0 | I40: 0 | J40: 0 | K40: 0 | L40: 0 | M40: 0 | N40: 0 | O40: 0 | P40: 0 | Q40: 311.3 | R40: 1 | U40: 104.7 | V40: 103.2 | W40: 103.4 | X40: 311.3 | Y40: 1 | Z40: 1 | AA40: Korrekt
A41: 32 | B41: ='Wettkampf 1'!B41 -> Kerstin Sträche | C41: ='Wettkampf 1'!C41 -> Spahnharrenstätte I | D41: 307.3 | F41: 307.3 | G41: 0 | H41: 0 | I41: 0 | J41: 0 | K41: 0 | L41: 0 | M41: 0 | N41: 0 | O41: 0 | P41: 0 | Q41: 307.3 | R41: 1 | U41: 102.2 | V41: 103.1 | W41: 102.0 | X41: 307.3 | Y41: 1 | Z41: 1 | AA41: Korrekt
A42: 33 | B42: ='Wettkampf 1'!B42 -> Rita Hanekamp | C42: ='Wettkampf 1'!C42 -> Spahnharrenstätte I | D42: 287.0 | F42: 287.0 | G42: 0 | H42: 0 | I42: 0 | J42: 0 | K42: 0 | L42: 0 | M42: 0 | N42: 0 | O42: 0 | P42: 0 | Q42: 287 | R42: 1 | U42: 95.5 | V42: 95.7 | W42: 95.8 | X42: 287.0 | Y42: 1 | Z42: 1 | AA42: Korrekt
A43: 34 | B43: ='Wettkampf 1'!B43 -> Maria Beusing | C43: ='Wettkampf 1'!C43 -> Spahnharrenstätte I | D43: 309.6 | F43: 309.6 | G43: 0 | H43: 0 | I43: 0 | J43: 0 | K43: 0 | L43: 0 | M43: 0 | N43: 0 | O43: 0 | P43: 0 | Q43: 309.6 | R43: 1 | U43: 102.1 | V43: 103.9 | W43: 103.6 | X43: 309.6 | Y43: 1 | Z43: 1 | AA43: Korrekt
A44: 35 | B44: ='Wettkampf 1'!B44 -> Schütze 35 | C44: ='Wettkampf 1'!C44 -> Spahnharrenstätte I | E44: x | F44: 0 | G44: 0 | H44: 0 | I44: 0 | J44: 0 | K44: 0 | L44: 0 | M44: 0 | N44: 0 | O44: 0 | P44: 0 | Q44: 0 | R44: 0 | X44: 0.0 | Y44: 1 | Z44: 0
A45: 36 | B45: ='Wettkampf 1'!B45 -> Schütze 36 | C45: ='Wettkampf 1'!C45 -> Spahnharrenstätte I | E45: x | F45: 0 | G45: 0 | H45: 0 | I45: 0 | J45: 0 | K45: 0 | L45: 0 | M45: 0 | N45: 0 | O45: 0 | P45: 0 | Q45: 0 | R45: 0 | X45: 0.0 | Y45: 1 | Z45: 0
G46: =LARGE(G10:G45,1)+LARGE(G10:G45,2)+LARGE(G10:G45,3) -> 933.1 | H46: =SUM(H10:H45) -> 4 | I46: =LARGE(I10:I45,1)+LARGE(I10:I45,2)+LARGE(I10:I45,3) -> 933.5 | J46: =SUM(J10:J45) -> 4 | K46: =LARGE(K10:K45,1)+LARGE(K10:K45,2)+LARGE(K10:K45,3) -> 925.3 | L46: =SUM(L10:L45) -> 4 | M46: =LARGE(M10:M45,1)+LARGE(M10:M45,2)+LARGE(M10:M45,3) -> 924.4 | N46: =SUM(N10:N45) -> 4 | O46: =LARGE(O10:O45,1)+LARGE(O10:O45,2)+LARGE(O10:O45,3) -> 909.3 | P46: =SUM(P10:P45) -> 4 | Q46: =LARGE(Q10:Q45,1)+LARGE(Q10:Q45,2)+LARGE(Q10:Q45,3) -> 928.2 | R46: =SUM(R10:S45) -> 4
C47: per Email an: sk-huemmling@gmx.de

Sheet 7
B1: Verein / Gruppe | D1: Ergebnisse | V1: Austragungsort: | W1: =Übersicht!L4 -> Börger
A2: 1 | B2: ='Wettkampf 1'!B2 -> Börger II | D2: =G46 -> 923.0 | E2: =IF(H46>4,"Es sind zu viele Schützen in Wertung!"," ") ->  | V2: Wettkampftag: | W2: =Übersicht!L3 -> 12.01.
A3: 2 | B3: ='Wettkampf 1'!B3 -> Neuvrees II | D3: =I46 -> 922.6 | E3: =IF(J46>4,"Es sind zu viele Schützen in Wertung!"," ") -> 
A4: 3 | B4: ='Wettkampf 1'!B4 -> Börgermoor I | D4: =K46 -> 923.9 | E4: =IF(L46>4,"Es sind zu viele Schützen in Wertung!"," ") ->  | X4: Ansprechpartner für Rückfragen:
A5: 4 | B5: ='Wettkampf 1'!B5 -> Lorup III | D5: =M46 -> 924.1 | E5: =IF(N46>4,"Es sind zu viele Schützen in Wertung!"," ") ->  | V5: Name: | W5: Marina Schrand
A6: 5 | B6: ='Wettkampf 1'!B6 -> Ostenwalde II | D6: =O46 -> 912.4 | E6: =IF(P46>4,"Es sind zu viele Schützen in Wertung!"," ") ->  | V6: Tel:
A7: 6 | B7: ='Wettkampf 1'!B7 -> Spahnharrenstätte I | D7: =Q46 -> 927.2 | E7: =IF(R46>4,"Es sind zu viele Schützen in Wertung!"," ") ->  | V7: Standaufsicht: | W7: Thomas
B9: Einzelergebnisse: | C9: Verein / Gruppe | D9: Ergebnisse (mindestens 0 eintragen) | E9: AW? Dann x eintippen | G9: Verein 1 | I9: Verein 2 | K9: Verein 3 | M9: Verein 4 | O9: Verein 5 | Q9: Verein 6 | U9: Proberechnung bei Streifen:
A10: 1 | B10: ='Wettkampf 1'!B10 -> Gertrud Kuchta | C10: ='Wettkampf 1'!C10 -> Börger II | D10: 303.7 | F10: =IF(E10="x","0",D10) -> 303.7 | G10: =IF(C10=$B$2,F10,0) -> 303.7 | H10: =(IF(AND($E10="",$C10=$B$2),1,0)) -> 1 | I10: =IF($C10=$B$3,F10,0) -> 0 | J10: =(IF(AND($E10="",$C10=$B$3),1,0)) -> 0 | K10: =IF($C10=$B$4,F10,0) -> 0 | L10: =(IF(AND($E10="",$C10=$B$4),1,0)) -> 0 | M10: =IF($C10=$B$5,F10,0) -> 0 | N10: =(IF(AND($E10="",$C10=$B$5),1,0)) -> 0 | O10: =IF($C10=$B$6,F10,0) -> 0 | P10: =(IF(AND($E10="",$C10=$B$6),1,0)) -> 0 | Q10: =IF($C10=$B$7,F10,0) -> 0 | R10: =(IF(AND($E10="",$C10=$B$7),1,0)) -> 0 | X10: =U10+V10+W10 -> 0.0 | Y10: =IF(X10=D10,1,0) -> 0 | Z10: =IF(X10=0,0,1) -> 0 | AA10: =IF(Y10+Z10=2,"Korrekt","") -> 
A11: 2 | B11: ='Wettkampf 1'!B11 -> Sarah Breer | C11: ='Wettkampf 1'!C11 -> Börger II | D11: 266.2 | E11: x | F11: =IF(E11="x","0",D11) -> 0 | G11: =IF(C11=$B$2,F11,0) -> 0 | H11: =(IF(AND($E11="",$C11=$B$2),1,0)) -> 0 | I11: =IF($C11=$B$3,F11,0) -> 0 | J11: =(IF(AND($E11="",$C11=$B$3),1,0)) -> 0 | K11: =IF($C11=$B$4,F11,0) -> 0 | L11: =(IF(AND($E11="",$C11=$B$4),1,0)) -> 0 | M11: =IF($C11=$B$5,F11,0) -> 0 | N11: =(IF(AND($E11="",$C11=$B$5),1,0)) -> 0 | O11: =IF($C11=$B$6,F11,0) -> 0 | P11: =(IF(AND($E11="",$C11=$B$6),1,0)) -> 0 | Q11: =IF($C11=$B$7,F11,0) -> 0 | R11: =(IF(AND($E11="",$C11=$B$7),1,0)) -> 0 | X11: =U11+V11+W11 -> 0.0 | Y11: =IF(X11=D11,1,0) -> 0 | Z11: =IF(X11=0,0,1) -> 0 | AA11: =IF(Y11+Z11=2,"Korrekt","") -> 
A12: 3 | B12: ='Wettkampf 1'!B12 -> Margret Pohlgeers | C12: ='Wettkampf 1'!C12 -> Börger II | D12: 308.8 | F12: 308.8 | G12: 308.8 | H12: 1 | I12: 0 | J12: 0 | K12: 0 | L12: 0 | M12: 0 | N12: 0 | O12: 0 | P12: 0 | Q12: 0 | R12: 0 | X12: 0.0 | Y12: 0 | Z12: 0
A13: 4 | B13: ='Wettkampf 1'!B13 -> Gundula Schwarte | C13: ='Wettkampf 1'!C13 -> Börger II | D13: 300.6 | E13: x | F13: 0 | G13: 0 | H13: 0 | I13: 0 | J13: 0 | K13: 0 | L13: 0 | M13: 0 | N13: 0 | O13: 0 | P13: 0 | Q13: 0 | R13: 0 | X13: 0.0 | Y13: 0 | Z13: 0
A14: 5 | B14: ='Wettkampf 1'!B14 -> Annette Schwarte | C14: ='Wettkampf 1'!C14 -> Börger II | D14: 296.1 | F14: 296.1 | G14: 296.1 | H14: 1 | I14: 0 | J14: 0 | K14: 0 | L14: 0 | M14: 0 | N14: 0 | O14: 0 | P14: 0 | Q14: 0 | R14: 0 | X14: 0.0 | Y14: 0 | Z14: 0
A15: 6 | B15: ='Wettkampf 1'!B15 -> Petra Dödtmann | C15: ='Wettkampf 1'!C15 -> Börger II | D15: 310.5 | F15: 310.5 | G15: 310.5 | H15: 1 | I15: 0 | J15: 0 | K15: 0 | L15: 0 | M15: 0 | N15: 0 | O15: 0 | P15: 0 | Q15: 0 | R15: 0 | X15: 0.0 | Y15: 0 | Z15: 0
A16: 7 | B16: ='Wettkampf 1'!B16 -> Sarah Deyen | C16: ='Wettkampf 1'!C16 -> Neuvrees II | D16: 302.3 | F16: 302.3 | G16: 0 | H16: 0 | I16: 302.3 | J16: 1 | K16: 0 | L16: 0 | M16: 0 | N16: 0 | O16: 0 | P16: 0 | Q16: 0 | R16: 0 | X16: 0.0 | Y16: 0 | Z16: 0
A17: 8 | B17: ='Wettkampf 1'!B17 -> Silvia Thunert | C17: ='Wettkampf 1'!C17 -> Neuvrees II | D17: 307.2 | F17: 307.2 | G17: 0 | H17: 0 | I17: 307.2 | J17: 1 | K17: 0 | L17: 0 | M17: 0 | N17: 0 | O17: 0 | P17: 0 | Q17: 0 | R17: 0 | X17: 0.0 | Y17: 0 | Z17: 0
A18: 9 | B18: ='Wettkampf 1'!B18 -> Margret Pohlmann | C18: ='Wettkampf 1'!C18 -> Neuvrees II | D18: 301.2 | F18: 301.2 | G18: 0 | H18: 0 | I18: 301.2 | J18: 1 | K18: 0 | L18: 0 | M18: 0 | N18: 0 | O18: 0 | P18: 0 | Q18: 0 | R18: 0 | X18: 0.0 | Y18: 0 | Z18: 0
A19: 10 | B19: ='Wettkampf 1'!B19 -> Harma Steenken | C19: ='Wettkampf 1'!C19 -> Neuvrees II | D19: 261.1 | E19: x | F19: 0 | G19: 0 | H19: 0 | I19: 0 | J19: 0 | K19: 0 | L19: 0 | M19: 0 | N19: 0 | O19: 0 | P19: 0 | Q19: 0 | R19: 0 | X19: 0.0 | Y19: 0 | Z19: 0
A20: 11 | B20: ='Wettkampf 1'!B20 -> Claudia Rolfes | C20: ='Wettkampf 1'!C20 -> Neuvrees II | D20: 313.1 | F20: 313.1 | G20: 0 | H20: 0 | I20: 313.1 | J20: 1 | K20: 0 | L20: 0 | M20: 0 | N20: 0 | O20: 0 | P20: 0 | Q20: 0 | R20: 0 | X20: 0.0 | Y20: 0 | Z20: 0
A21: 12 | B21: ='Wettkampf 1'!B21 -> Silvia Junge | C21: ='Wettkampf 1'!C21 -> Neuvrees II | D21: 300.3 | E21: x | F21: 0 | G21: 0 | H21: 0 | I21: 0 | J21: 0 | K21: 0 | L21: 0 | M21: 0 | N21: 0 | O21: 0 | P21: 0 | Q21: 0 | R21: 0 | X21: 0.0 | Y21: 0 | Z21: 0
A22: 13 | B22: ='Wettkampf 1'!B22 -> Ulla Schnieders | C22: ='Wettkampf 1'!C22 -> Börgermoor I | D22: 300.9 | F22: 300.9 | G22: 0 | H22: 0 | I22: 0 | J22: 0 | K22: 300.9 | L22: 1 | M22: 0 | N22: 0 | O22: 0 | P22: 0 | Q22: 0 | R22: 0 | X22: 0.0 | Y22: 0 | Z22: 0
A23: 14 | B23: ='Wettkampf 1'!B23 -> Jasmin Kramer | C23: ='Wettkampf 1'!C23 -> Börgermoor I | D23: 311.7 | F23: 311.7 | G23: 0 | H23: 0 | I23: 0 | J23: 0 | K23: 311.7 | L23: 1 | M23: 0 | N23: 0 | O23: 0 | P23: 0 | Q23: 0 | R23: 0 | X23: 0.0 | Y23: 0 | Z23: 0
A24: 15 | B24: ='Wettkampf 1'!B24 -> Anni Küwen | C24: ='Wettkampf 1'!C24 -> Börgermoor I | D24: 308.6 | F24: 308.6 | G24: 0 | H24: 0 | I24: 0 | J24: 0 | K24: 308.6 | L24: 1 | M24: 0 | N24: 0 | O24: 0 | P24: 0 | Q24: 0 | R24: 0 | X24: 0.0 | Y24: 0 | Z24: 0
A25: 16 | B25: ='Wettkampf 1'!B25 -> Waltraud Dobelmann | C25: ='Wettkampf 1'!C25 -> Börgermoor I | D25: 303.6 | F25: 303.6 | G25: 0 | H25: 0 | I25: 0 | J25: 0 | K25: 303.6 | L25: 1 | M25: 0 | N25: 0 | O25: 0 | P25: 0 | Q25: 0 | R25: 0 | X25: 0.0 | Y25: 0 | Z25: 0
A26: 17 | B26: ='Wettkampf 1'!B26 -> Schütze 17 | C26: ='Wettkampf 1'!C26 -> Börgermoor I | E26: x | F26: 0 | G26: 0 | H26: 0 | I26: 0 | J26: 0 | K26: 0 | L26: 0 | M26: 0 | N26: 0 | O26: 0 | P26: 0 | Q26: 0 | R26: 0 | X26: 0.0 | Y26: 1 | Z26: 0
A27: 18 | B27: ='Wettkampf 1'!B27 -> Schütze 18 | C27: ='Wettkampf 1'!C27 -> Börgermoor I | E27: x | F27: 0 | G27: 0 | H27: 0 | I27: 0 | J27: 0 | K27: 0 | L27: 0 | M27: 0 | N27: 0 | O27: 0 | P27: 0 | Q27: 0 | R27: 0 | X27: 0.0 | Y27: 1 | Z27: 0
A28: 19 | B28: ='Wettkampf 1'!B28 -> Hanna Gebken | C28: ='Wettkampf 1'!C28 -> Lorup III | D28: 309.6 | F28: 309.6 | G28: 0 | H28: 0 | I28: 0 | J28: 0 | K28: 0 | L28: 0 | M28: 309.6 | N28: 1 | O28: 0 | P28: 0 | Q28: 0 | R28: 0 | X28: 0.0 | Y28: 0 | Z28: 0
A29: 20 | B29: ='Wettkampf 1'!B29 -> Monika Reimann | C29: ='Wettkampf 1'!C29 -> Lorup III | D29: 308.3 | E29: x | F29: 0 | G29: 0 | H29: 0 | I29: 0 | J29: 0 | K29: 0 | L29: 0 | M29: 0 | N29: 0 | O29: 0 | P29: 0 | Q29: 0 | R29: 0 | X29: 0.0 | Y29: 0 | Z29: 0
A30: 21 | B30: ='Wettkampf 1'!B30 -> Marina Schrand | C30: ='Wettkampf 1'!C30 -> Lorup III | D30: 304.1 | F30: 304.1 | G30: 0 | H30: 0 | I30: 0 | J30: 0 | K30: 0 | L30: 0 | M30: 304.1 | N30: 1 | O30: 0 | P30: 0 | Q30: 0 | R30: 0 | X30: 0.0 | Y30: 0 | Z30: 0
A31: 22 | B31: ='Wettkampf 1'!B31 -> Nadine Krömer | C31: ='Wettkampf 1'!C31 -> Lorup III | D31: 310.4 | F31: 310.4 | G31: 0 | H31: 0 | I31: 0 | J31: 0 | K31: 0 | L31: 0 | M31: 310.4 | N31: 1 | O31: 0 | P31: 0 | Q31: 0 | R31: 0 | X31: 0.0 | Y31: 0 | Z31: 0
A32: 23 | B32: ='Wettkampf 1'!B32 -> Nina Krömer | C32: ='Wettkampf 1'!C32 -> Lorup III | D32: 299.7 | F32: 299.7 | G32: 0 | H32: 0 | I32: 0 | J32: 0 | K32: 0 | L32: 0 | M32: 299.7 | N32: 1 | O32: 0 | P32: 0 | Q32: 0 | R32: 0 | X32: 0.0 | Y32: 0 | Z32: 0
A33: 24 | B33: ='Wettkampf 1'!B33 -> Margret Büter | C33: ='Wettkampf 1'!C33 -> Lorup III | E33: x | F33: 0 | G33: 0 | H33: 0 | I33: 0 | J33: 0 | K33: 0 | L33: 0 | M33: 0 | N33: 0 | O33: 0 | P33: 0 | Q33: 0 | R33: 0 | X33: 0.0 | Y33: 1 | Z33: 0
A34: 25 | B34: ='Wettkampf 1'!B34 -> Sarah Meiners | C34: ='Wettkampf 1'!C34 -> Ostenwalde II | D34: 286.3 | F34: 286.3 | G34: 0 | H34: 0 | I34: 0 | J34: 0 | K34: 0 | L34: 0 | M34: 0 | N34: 0 | O34: 286.3 | P34: 1 | Q34: 0 | R34: 0 | X34: 0.0 | Y34: 0 | Z34: 0
A35: 26 | B35: ='Wettkampf 1'!B35 -> Anna Temmen | C35: ='Wettkampf 1'!C35 -> Ostenwalde II | D35: 309.5 | F35: 309.5 | G35: 0 | H35: 0 | I35: 0 | J35: 0 | K35: 0 | L35: 0 | M35: 0 | N35: 0 | O35: 309.5 | P35: 1 | Q35: 0 | R35: 0 | X35: 0.0 | Y35: 0 | Z35: 0
A36: 27 | B36: ='Wettkampf 1'!B36 -> Helga Meiners | C36: ='Wettkampf 1'!C36 -> Ostenwalde II | D36: 296.1 | F36: 296.1 | G36: 0 | H36: 0 | I36: 0 | J36: 0 | K36: 0 | L36: 0 | M36: 0 | N36: 0 | O36: 296.1 | P36: 1 | Q36: 0 | R36: 0 | X36: 0.0 | Y36: 0 | Z36: 0
A37: 28 | B37: ='Wettkampf 1'!B37 -> Carmen Benten | C37: ='Wettkampf 1'!C37 -> Ostenwalde II | D37: 306.8 | F37: 306.8 | G37: 0 | H37: 0 | I37: 0 | J37: 0 | K37: 0 | L37: 0 | M37: 0 | N37: 0 | O37: 306.8 | P37: 1 | Q37: 0 | R37: 0 | X37: 0.0 | Y37: 0 | Z37: 0
A38: 29 | B38: ='Wettkampf 1'!B38 -> Anna -Maria Wimberg | C38: ='Wettkampf 1'!C38 -> Ostenwalde II | E38: x | F38: 0 | G38: 0 | H38: 0 | I38: 0 | J38: 0 | K38: 0 | L38: 0 | M38: 0 | N38: 0 | O38: 0 | P38: 0 | Q38: 0 | R38: 0 | X38: 0.0 | Y38: 1 | Z38: 0
A39: 30 | B39: ='Wettkampf 1'!B39 -> Evelyn Feder | C39: ='Wettkampf 1'!C39 -> Ostenwalde II | E39: x | F39: 0 | G39: 0 | H39: 0 | I39: 0 | J39: 0 | K39: 0 | L39: 0 | M39: 0 | N39: 0 | O39: 0 | P39: 0 | Q39: 0 | R39: 0 | X39: 0.0 | Y39: 1 | Z39: 0
A40: 31 | B40: ='Wettkampf 1'!B40 -> Monika Jansen | C40: ='Wettkampf 1'!C40 -> Spahnharrenstätte I | D40: 304.5 | F40: 304.5 | G40: 0 | H40: 0 | I40: 0 | J40: 0 | K40: 0 | L40: 0 | M40: 0 | N40: 0 | O40: 0 | P40: 0 | Q40: 304.5 | R40: 1 | X40: 0.0 | Y40: 0 | Z40: 0
A41: 32 | B41: ='Wettkampf 1'!B41 -> Kerstin Sträche | C41: ='Wettkampf 1'!C41 -> Spahnharrenstätte I | D41: 307.8 | F41: 307.8 | G41: 0 | H41: 0 | I41: 0 | J41: 0 | K41: 0 | L41: 0 | M41: 0 | N41: 0 | O41: 0 | P41: 0 | Q41: 307.8 | R41: 1 | X41: 0.0 | Y41: 0 | Z41: 0
A42: 33 | B42: ='Wettkampf 1'!B42 -> Rita Hanekamp | C42: ='Wettkampf 1'!C42 -> Spahnharrenstätte I | F42: 0.0 | G42: 0 | H42: 0 | I42: 0 | J42: 0 | K42: 0 | L42: 0 | M42: 0 | N42: 0 | O42: 0 | P42: 0 | Q42: 0 | R42: 1 | X42: 0.0 | Y42: 1 | Z42: 0
A43: 34 | B43: ='Wettkampf 1'!B43 -> Maria Beusing | C43: ='Wettkampf 1'!C43 -> Spahnharrenstätte I | D43: 314.9 | F43: 314.9 | G43: 0 | H43: 0 | I43: 0 | J43: 0 | K43: 0 | L43: 0 | M43: 0 | N43: 0 | O43: 0 | P43: 0 | Q43: 314.9 | R43: 1 | X43: 0.0 | Y43: 0 | Z43: 0
A44: 35 | B44: ='Wettkampf 1'!B44 -> Schütze 35 | C44: ='Wettkampf 1'!C44 -> Spahnharrenstätte I | E44: x | F44: 0 | G44: 0 | H44: 0 | I44: 0 | J44: 0 | K44: 0 | L44: 0 | M44: 0 | N44: 0 | O44: 0 | P44: 0 | Q44: 0 | R44: 0 | X44: 0.0 | Y44: 1 | Z44: 0
A45: 36 | B45: ='Wettkampf 1'!B45 -> Schütze 36 | C45: ='Wettkampf 1'!C45 -> Spahnharrenstätte I | E45: x | F45: 0 | G45: 0 | H45: 0 | I45: 0 | J45: 0 | K45: 0 | L45: 0 | M45: 0 | N45: 0 | O45: 0 | P45: 0 | Q45: 0 | R45: 0 | X45: 0.0 | Y45: 1 | Z45: 0
G46: =LARGE(G10:G45,1)+LARGE(G10:G45,2)+LARGE(G10:G45,3) -> 923 | H46: =SUM(H10:H45) -> 4 | I46: =LARGE(I10:I45,1)+LARGE(I10:I45,2)+LARGE(I10:I45,3) -> 922.6 | J46: =SUM(J10:J45) -> 4 | K46: =LARGE(K10:K45,1)+LARGE(K10:K45,2)+LARGE(K10:K45,3) -> 923.9 | L46: =SUM(L10:L45) -> 4 | M46: =LARGE(M10:M45,1)+LARGE(M10:M45,2)+LARGE(M10:M45,3) -> 924.1 | N46: =SUM(N10:N45) -> 4 | O46: =LARGE(O10:O45,1)+LARGE(O10:O45,2)+LARGE(O10:O45,3) -> 912.4 | P46: =SUM(P10:P45) -> 4 | Q46: =LARGE(Q10:Q45,1)+LARGE(Q10:Q45,2)+LARGE(Q10:Q45,3) -> 927.2 | R46: =SUM(R10:S45) -> 4
C47: per Email an: sk-huemmling@gmx.de

Sheet 8
B1: Verein / Gruppe | D1: Ergebnisse | V1: Austragungsort: | W1: =Übersicht!M4 -> Börgermoor
A2: 1 | B2: ='Wettkampf 1'!B2 -> Börger II | D2: =G46 -> 927.6 | E2: =IF(H46>4,"Es sind zu viele Schützen in Wertung!"," ") ->  | V2: Wettkampftag: | W2: =Übersicht!M3 -> 26.01.
A3: 2 | B3: ='Wettkampf 1'!B3 -> Neuvrees II | D3: =I46 -> 927.1 | E3: =IF(J46>4,"Es sind zu viele Schützen in Wertung!"," ") -> 
A4: 3 | B4: ='Wettkampf 1'!B4 -> Börgermoor I | D4: =K46 -> 934.1 | E4: =IF(L46>4,"Es sind zu viele Schützen in Wertung!"," ") ->  | X4: Ansprechpartner für Rückfragen:
A5: 4 | B5: ='Wettkampf 1'!B5 -> Lorup III | D5: =M46 -> 926.0 | E5: =IF(N46>4,"Es sind zu viele Schützen in Wertung!"," ") ->  | V5: Name: | W5: Schnieder Ulla
A6: 5 | B6: ='Wettkampf 1'!B6 -> Ostenwalde II | D6: =O46 -> 908.8 | E6: =IF(P46>4,"Es sind zu viele Schützen in Wertung!"," ") ->  | V6: Tel: | W6: 01724339021
A7: 6 | B7: ='Wettkampf 1'!B7 -> Spahnharrenstätte I | D7: =Q46 -> 919.2 | E7: =IF(R46>4,"Es sind zu viele Schützen in Wertung!"," ") ->  | V7: Standaufsicht: | W7: Schnieders Ulla
B9: Einzelergebnisse: | C9: Verein / Gruppe | D9: Ergebnisse (mindestens 0 eintragen) | E9: AW? Dann x eintippen | G9: Verein 1 | I9: Verein 2 | K9: Verein 3 | M9: Verein 4 | O9: Verein 5 | Q9: Verein 6 | U9: Proberechnung bei Streifen:
A10: 1 | B10: ='Wettkampf 1'!B10 -> Gertrud Kuchta | C10: ='Wettkampf 1'!C10 -> Börger II | D10: 305.8 | F10: =IF(E10="x","0",D10) -> 305.8 | G10: =IF(C10=$B$2,F10,0) -> 305.8 | H10: =(IF(AND($E10="",$C10=$B$2),1,0)) -> 1 | I10: =IF($C10=$B$3,F10,0) -> 0 | J10: =(IF(AND($E10="",$C10=$B$3),1,0)) -> 0 | K10: =IF($C10=$B$4,F10,0) -> 0 | L10: =(IF(AND($E10="",$C10=$B$4),1,0)) -> 0 | M10: =IF($C10=$B$5,F10,0) -> 0 | N10: =(IF(AND($E10="",$C10=$B$5),1,0)) -> 0 | O10: =IF($C10=$B$6,F10,0) -> 0 | P10: =(IF(AND($E10="",$C10=$B$6),1,0)) -> 0 | Q10: =IF($C10=$B$7,F10,0) -> 0 | R10: =(IF(AND($E10="",$C10=$B$7),1,0)) -> 0 | X10: =U10+V10+W10 -> 0.0 | Y10: =IF(X10=D10,1,0) -> 0 | Z10: =IF(X10=0,0,1) -> 0 | AA10: =IF(Y10+Z10=2,"Korrekt","") -> 
A11: 2 | B11: ='Wettkampf 1'!B11 -> Sarah Breer | C11: ='Wettkampf 1'!C11 -> Börger II | D11: 0.0 | E11: x | F11: =IF(E11="x","0",D11) -> 0 | G11: =IF(C11=$B$2,F11,0) -> 0 | H11: =(IF(AND($E11="",$C11=$B$2),1,0)) -> 0 | I11: =IF($C11=$B$3,F11,0) -> 0 | J11: =(IF(AND($E11="",$C11=$B$3),1,0)) -> 0 | K11: =IF($C11=$B$4,F11,0) -> 0 | L11: =(IF(AND($E11="",$C11=$B$4),1,0)) -> 0 | M11: =IF($C11=$B$5,F11,0) -> 0 | N11: =(IF(AND($E11="",$C11=$B$5),1,0)) -> 0 | O11: =IF($C11=$B$6,F11,0) -> 0 | P11: =(IF(AND($E11="",$C11=$B$6),1,0)) -> 0 | Q11: =IF($C11=$B$7,F11,0) -> 0 | R11: =(IF(AND($E11="",$C11=$B$7),1,0)) -> 0 | X11: =U11+V11+W11 -> 0.0 | Y11: =IF(X11=D11,1,0) -> 1 | Z11: =IF(X11=0,0,1) -> 0 | AA11: =IF(Y11+Z11=2,"Korrekt","") -> 
A12: 3 | B12: ='Wettkampf 1'!B12 -> Margret Pohlgeers | C12: ='Wettkampf 1'!C12 -> Börger II | D12: 312.9 | F12: 312.9 | G12: 312.9 | H12: 1 | I12: 0 | J12: 0 | K12: 0 | L12: 0 | M12: 0 | N12: 0 | O12: 0 | P12: 0 | Q12: 0 | R12: 0 | X12: 0.0 | Y12: 0 | Z12: 0
A13: 4 | B13: ='Wettkampf 1'!B13 -> Gundula Schwarte | C13: ='Wettkampf 1'!C13 -> Börger II | D13: 300.3 | E13: x | F13: 0 | G13: 0 | H13: 0 | I13: 0 | J13: 0 | K13: 0 | L13: 0 | M13: 0 | N13: 0 | O13: 0 | P13: 0 | Q13: 0 | R13: 0 | X13: 0.0 | Y13: 0 | Z13: 0
A14: 5 | B14: ='Wettkampf 1'!B14 -> Annette Schwarte | C14: ='Wettkampf 1'!C14 -> Börger II | D14: 303.1 | F14: 303.1 | G14: 303.1 | H14: 1 | I14: 0 | J14: 0 | K14: 0 | L14: 0 | M14: 0 | N14: 0 | O14: 0 | P14: 0 | Q14: 0 | R14: 0 | X14: 0.0 | Y14: 0 | Z14: 0
A15: 6 | B15: ='Wettkampf 1'!B15 -> Petra Dödtmann | C15: ='Wettkampf 1'!C15 -> Börger II | D15: 308.9 | F15: 308.9 | G15: 308.9 | H15: 1 | I15: 0 | J15: 0 | K15: 0 | L15: 0 | M15: 0 | N15: 0 | O15: 0 | P15: 0 | Q15: 0 | R15: 0 | X15: 0.0 | Y15: 0 | Z15: 0
A16: 7 | B16: ='Wettkampf 1'!B16 -> Sarah Deyen | C16: ='Wettkampf 1'!C16 -> Neuvrees II | D16: 311.1 | F16: 311.1 | G16: 0 | H16: 0 | I16: 311.1 | J16: 1 | K16: 0 | L16: 0 | M16: 0 | N16: 0 | O16: 0 | P16: 0 | Q16: 0 | R16: 0 | X16: 0.0 | Y16: 0 | Z16: 0
A17: 8 | B17: ='Wettkampf 1'!B17 -> Silvia Thunert | C17: ='Wettkampf 1'!C17 -> Neuvrees II | D17: 306.8 | F17: 306.8 | G17: 0 | H17: 0 | I17: 306.8 | J17: 1 | K17: 0 | L17: 0 | M17: 0 | N17: 0 | O17: 0 | P17: 0 | Q17: 0 | R17: 0 | X17: 0.0 | Y17: 0 | Z17: 0
A18: 9 | B18: ='Wettkampf 1'!B18 -> Margret Pohlmann | C18: ='Wettkampf 1'!C18 -> Neuvrees II | D18: 302.0 | F18: 302.0 | G18: 0 | H18: 0 | I18: 302 | J18: 1 | K18: 0 | L18: 0 | M18: 0 | N18: 0 | O18: 0 | P18: 0 | Q18: 0 | R18: 0 | X18: 0.0 | Y18: 0 | Z18: 0
A19: 10 | B19: ='Wettkampf 1'!B19 -> Harma Steenken | C19: ='Wettkampf 1'!C19 -> Neuvrees II | D19: 0.0 | E19: x | F19: 0 | G19: 0 | H19: 0 | I19: 0 | J19: 0 | K19: 0 | L19: 0 | M19: 0 | N19: 0 | O19: 0 | P19: 0 | Q19: 0 | R19: 0 | X19: 0.0 | Y19: 1 | Z19: 0
A20: 11 | B20: ='Wettkampf 1'!B20 -> Claudia Rolfes | C20: ='Wettkampf 1'!C20 -> Neuvrees II | D20: 309.2 | F20: 309.2 | G20: 0 | H20: 0 | I20: 309.2 | J20: 1 | K20: 0 | L20: 0 | M20: 0 | N20: 0 | O20: 0 | P20: 0 | Q20: 0 | R20: 0 | X20: 0.0 | Y20: 0 | Z20: 0
A21: 12 | B21: ='Wettkampf 1'!B21 -> Silvia Junge | C21: ='Wettkampf 1'!C21 -> Neuvrees II | D21: 299.8 | E21: x | F21: 0 | G21: 0 | H21: 0 | I21: 0 | J21: 0 | K21: 0 | L21: 0 | M21: 0 | N21: 0 | O21: 0 | P21: 0 | Q21: 0 | R21: 0 | X21: 0.0 | Y21: 0 | Z21: 0
A22: 13 | B22: ='Wettkampf 1'!B22 -> Ulla Schnieders | C22: ='Wettkampf 1'!C22 -> Börgermoor I | D22: 302.9 | F22: 302.9 | G22: 0 | H22: 0 | I22: 0 | J22: 0 | K22: 302.9 | L22: 1 | M22: 0 | N22: 0 | O22: 0 | P22: 0 | Q22: 0 | R22: 0 | X22: 0.0 | Y22: 0 | Z22: 0
A23: 14 | B23: ='Wettkampf 1'!B23 -> Jasmin Kramer | C23: ='Wettkampf 1'!C23 -> Börgermoor I | D23: 312.3 | F23: 312.3 | G23: 0 | H23: 0 | I23: 0 | J23: 0 | K23: 312.3 | L23: 1 | M23: 0 | N23: 0 | O23: 0 | P23: 0 | Q23: 0 | R23: 0 | X23: 0.0 | Y23: 0 | Z23: 0
A24: 15 | B24: ='Wettkampf 1'!B24 -> Anni Küwen | C24: ='Wettkampf 1'!C24 -> Börgermoor I | D24: 310.7 | F24: 310.7 | G24: 0 | H24: 0 | I24: 0 | J24: 0 | K24: 310.7 | L24: 1 | M24: 0 | N24: 0 | O24: 0 | P24: 0 | Q24: 0 | R24: 0 | X24: 0.0 | Y24: 0 | Z24: 0
A25: 16 | B25: ='Wettkampf 1'!B25 -> Waltraud Dobelmann | C25: ='Wettkampf 1'!C25 -> Börgermoor I | D25: 311.1 | F25: 311.1 | G25: 0 | H25: 0 | I25: 0 | J25: 0 | K25: 311.1 | L25: 1 | M25: 0 | N25: 0 | O25: 0 | P25: 0 | Q25: 0 | R25: 0 | X25: 0.0 | Y25: 0 | Z25: 0
A26: 17 | B26: ='Wettkampf 1'!B26 -> Schütze 17 | C26: ='Wettkampf 1'!C26 -> Börgermoor I | D26: 0.0 | E26: x | F26: 0 | G26: 0 | H26: 0 | I26: 0 | J26: 0 | K26: 0 | L26: 0 | M26: 0 | N26: 0 | O26: 0 | P26: 0 | Q26: 0 | R26: 0 | X26: 0.0 | Y26: 1 | Z26: 0
A27: 18 | B27: ='Wettkampf 1'!B27 -> Schütze 18 | C27: ='Wettkampf 1'!C27 -> Börgermoor I | D27: 0.0 | E27: x | F27: 0 | G27: 0 | H27: 0 | I27: 0 | J27: 0 | K27: 0 | L27: 0 | M27: 0 | N27: 0 | O27: 0 | P27: 0 | Q27: 0 | R27: 0 | X27: 0.0 | Y27: 1 | Z27: 0
A28: 19 | B28: ='Wettkampf 1'!B28 -> Hanna Gebken | C28: ='Wettkampf 1'!C28 -> Lorup III | D28: 307.2 | F28: 307.2 | G28: 0 | H28: 0 | I28: 0 | J28: 0 | K28: 0 | L28: 0 | M28: 307.2 | N28: 1 | O28: 0 | P28: 0 | Q28: 0 | R28: 0 | X28: 0.0 | Y28: 0 | Z28: 0
A29: 20 | B29: ='Wettkampf 1'!B29 -> Monika Reimann | C29: ='Wettkampf 1'!C29 -> Lorup III | D29: 301.8 | F29: 301.8 | G29: 0 | H29: 0 | I29: 0 | J29: 0 | K29: 0 | L29: 0 | M29: 301.8 | N29: 1 | O29: 0 | P29: 0 | Q29: 0 | R29: 0 | X29: 0.0 | Y29: 0 | Z29: 0
A30: 21 | B30: ='Wettkampf 1'!B30 -> Marina Schrand | C30: ='Wettkampf 1'!C30 -> Lorup III | D30: 306.7 | F30: 306.7 | G30: 0 | H30: 0 | I30: 0 | J30: 0 | K30: 0 | L30: 0 | M30: 306.7 | N30: 1 | O30: 0 | P30: 0 | Q30: 0 | R30: 0 | X30: 0.0 | Y30: 0 | Z30: 0
A31: 22 | B31: ='Wettkampf 1'!B31 -> Nadine Krömer | C31: ='Wettkampf 1'!C31 -> Lorup III | D31: 312.1 | F31: 312.1 | G31: 0 | H31: 0 | I31: 0 | J31: 0 | K31: 0 | L31: 0 | M31: 312.1 | N31: 1 | O31: 0 | P31: 0 | Q31: 0 | R31: 0 | X31: 0.0 | Y31: 0 | Z31: 0
A32: 23 | B32: ='Wettkampf 1'!B32 -> Nina Krömer | C32: ='Wettkampf 1'!C32 -> Lorup III | D32: 292.7 | E32: x | F32: 0 | G32: 0 | H32: 0 | I32: 0 | J32: 0 | K32: 0 | L32: 0 | M32: 0 | N32: 0 | O32: 0 | P32: 0 | Q32: 0 | R32: 0 | X32: 0.0 | Y32: 0 | Z32: 0
A33: 24 | B33: ='Wettkampf 1'!B33 -> Margret Büter | C33: ='Wettkampf 1'!C33 -> Lorup III | D33: 0.0 | E33: x | F33: 0 | G33: 0 | H33: 0 | I33: 0 | J33: 0 | K33: 0 | L33: 0 | M33: 0 | N33: 0 | O33: 0 | P33: 0 | Q33: 0 | R33: 0 | X33: 0.0 | Y33: 1 | Z33: 0
A34: 25 | B34: ='Wettkampf 1'!B34 -> Sarah Meiners | C34: ='Wettkampf 1'!C34 -> Ostenwalde II | D34: 0.0 | E34: x | F34: 0 | G34: 0 | H34: 0 | I34: 0 | J34: 0 | K34: 0 | L34: 0 | M34: 0 | N34: 0 | O34: 0 | P34: 0 | Q34: 0 | R34: 0 | X34: 0.0 | Y34: 1 | Z34: 0
A35: 26 | B35: ='Wettkampf 1'!B35 -> Anna Temmen | C35: ='Wettkampf 1'!C35 -> Ostenwalde II | D35: 311.3 | F35: 311.3 | G35: 0 | H35: 0 | I35: 0 | J35: 0 | K35: 0 | L35: 0 | M35: 0 | N35: 0 | O35: 311.3 | P35: 1 | Q35: 0 | R35: 0 | X35: 0.0 | Y35: 0 | Z35: 0
A36: 27 | B36: ='Wettkampf 1'!B36 -> Helga Meiners | C36: ='Wettkampf 1'!C36 -> Ostenwalde II | D36: 291.6 | F36: 291.6 | G36: 0 | H36: 0 | I36: 0 | J36: 0 | K36: 0 | L36: 0 | M36: 0 | N36: 0 | O36: 291.6 | P36: 1 | Q36: 0 | R36: 0 | X36: 0.0 | Y36: 0 | Z36: 0
A37: 28 | B37: ='Wettkampf 1'!B37 -> Carmen Benten | C37: ='Wettkampf 1'!C37 -> Ostenwalde II | D37: 298.0 | F37: 298.0 | G37: 0 | H37: 0 | I37: 0 | J37: 0 | K37: 0 | L37: 0 | M37: 0 | N37: 0 | O37: 298 | P37: 1 | Q37: 0 | R37: 0 | X37: 0.0 | Y37: 0 | Z37: 0
A38: 29 | B38: ='Wettkampf 1'!B38 -> Anna -Maria Wimberg | C38: ='Wettkampf 1'!C38 -> Ostenwalde II | D38: 0.0 | E38: x | F38: 0 | G38: 0 | H38: 0 | I38: 0 | J38: 0 | K38: 0 | L38: 0 | M38: 0 | N38: 0 | O38: 0 | P38: 0 | Q38: 0 | R38: 0 | X38: 0.0 | Y38: 1 | Z38: 0
A39: 30 | B39: ='Wettkampf 1'!B39 -> Evelyn Feder | C39: ='Wettkampf 1'!C39 -> Ostenwalde II | D39: 299.5 | F39: 299.5 | G39: 0 | H39: 0 | I39: 0 | J39: 0 | K39: 0 | L39: 0 | M39: 0 | N39: 0 | O39: 299.5 | P39: 1 | Q39: 0 | R39: 0 | X39: 0.0 | Y39: 0 | Z39: 0
A40: 31 | B40: ='Wettkampf 1'!B40 -> Monika Jansen | C40: ='Wettkampf 1'!C40 -> Spahnharrenstätte I | D40: 309.6 | F40: 309.6 | G40: 0 | H40: 0 | I40: 0 | J40: 0 | K40: 0 | L40: 0 | M40: 0 | N40: 0 | O40: 0 | P40: 0 | Q40: 309.6 | R40: 1 | X40: 0.0 | Y40: 0 | Z40: 0
A41: 32 | B41: ='Wettkampf 1'!B41 -> Kerstin Sträche | C41: ='Wettkampf 1'!C41 -> Spahnharrenstätte I | D41: 299.7 | F41: 299.7 | G41: 0 | H41: 0 | I41: 0 | J41: 0 | K41: 0 | L41: 0 | M41: 0 | N41: 0 | O41: 0 | P41: 0 | Q41: 299.7 | R41: 1 | X41: 0.0 | Y41: 0 | Z41: 0
A42: 33 | B42: ='Wettkampf 1'!B42 -> Rita Hanekamp | C42: ='Wettkampf 1'!C42 -> Spahnharrenstätte I | D42: 284.9 | F42: 284.9 | G42: 0 | H42: 0 | I42: 0 | J42: 0 | K42: 0 | L42: 0 | M42: 0 | N42: 0 | O42: 0 | P42: 0 | Q42: 284.9 | R42: 1 | X42: 0.0 | Y42: 0 | Z42: 0
A43: 34 | B43: ='Wettkampf 1'!B43 -> Maria Beusing | C43: ='Wettkampf 1'!C43 -> Spahnharrenstätte I | D43: 309.9 | F43: 309.9 | G43: 0 | H43: 0 | I43: 0 | J43: 0 | K43: 0 | L43: 0 | M43: 0 | N43: 0 | O43: 0 | P43: 0 | Q43: 309.9 | R43: 1 | X43: 0.0 | Y43: 0 | Z43: 0
A44: 35 | B44: ='Wettkampf 1'!B44 -> Schütze 35 | C44: ='Wettkampf 1'!C44 -> Spahnharrenstätte I | D44: 0.0 | E44: x | F44: 0 | G44: 0 | H44: 0 | I44: 0 | J44: 0 | K44: 0 | L44: 0 | M44: 0 | N44: 0 | O44: 0 | P44: 0 | Q44: 0 | R44: 0 | X44: 0.0 | Y44: 1 | Z44: 0
A45: 36 | B45: ='Wettkampf 1'!B45 -> Schütze 36 | C45: ='Wettkampf 1'!C45 -> Spahnharrenstätte I | D45: 0.0 | E45: x | F45: 0 | G45: 0 | H45: 0 | I45: 0 | J45: 0 | K45: 0 | L45: 0 | M45: 0 | N45: 0 | O45: 0 | P45: 0 | Q45: 0 | R45: 0 | X45: 0.0 | Y45: 1 | Z45: 0
G46: =LARGE(G10:G45,1)+LARGE(G10:G45,2)+LARGE(G10:G45,3) -> 927.6 | H46: =SUM(H10:H45) -> 4 | I46: =LARGE(I10:I45,1)+LARGE(I10:I45,2)+LARGE(I10:I45,3) -> 927.1 | J46: =SUM(J10:J45) -> 4 | K46: =LARGE(K10:K45,1)+LARGE(K10:K45,2)+LARGE(K10:K45,3) -> 934.1 | L46: =SUM(L10:L45) -> 4 | M46: =LARGE(M10:M45,1)+LARGE(M10:M45,2)+LARGE(M10:M45,3) -> 926 | N46: =SUM(N10:N45) -> 4 | O46: =LARGE(O10:O45,1)+LARGE(O10:O45,2)+LARGE(O10:O45,3) -> 908.8 | P46: =SUM(P10:P45) -> 4 | Q46: =LARGE(Q10:Q45,1)+LARGE(Q10:Q45,2)+LARGE(Q10:Q45,3) -> 919.2 | R46: =SUM(R10:S45) -> 4
C47: per Email an: sk-huemmling@gmx.de

Sheet 9
B1: Verein / Gruppe | D1: Ergebnisse | V1: Austragungsort: | W1: =Übersicht!N4 -> Neuvrees
A2: 1 | B2: ='Wettkampf 1'!B2 -> Börger II | D2: =G46 -> 927.5 | E2: =IF(H46>4,"Es sind zu viele Schützen in Wertung!"," ") ->  | V2: Wettkampftag: | W2: =Übersicht!N3 -> 09.02.
A3: 2 | B3: ='Wettkampf 1'!B3 -> Neuvrees II | D3: =I46 -> 925.2 | E3: =IF(J46>4,"Es sind zu viele Schützen in Wertung!"," ") -> 
A4: 3 | B4: ='Wettkampf 1'!B4 -> Börgermoor I | D4: =K46 -> 928.0 | E4: =IF(L46>4,"Es sind zu viele Schützen in Wertung!"," ") ->  | X4: Ansprechpartner für Rückfragen:
A5: 4 | B5: ='Wettkampf 1'!B5 -> Lorup III | D5: =M46 -> 927.7 | E5: =IF(N46>4,"Es sind zu viele Schützen in Wertung!"," ") ->  | V5: Name: | W5: Silvia Thunert
A6: 5 | B6: ='Wettkampf 1'!B6 -> Ostenwalde II | D6: =O46 -> 912.5 | E6: =IF(P46>4,"Es sind zu viele Schützen in Wertung!"," ") ->  | V6: Tel: | W6: 04493-998686
A7: 6 | B7: ='Wettkampf 1'!B7 -> Spahnharrenstätte I | D7: =Q46 -> 928.9 | E7: =IF(R46>4,"Es sind zu viele Schützen in Wertung!"," ") ->  | V7: Standaufsicht: | W7: Wilhelm Gerdes, Lorup
B9: Einzelergebnisse: | C9: Verein / Gruppe | D9: Ergebnisse (mindestens 0 eintragen) | E9: AW? Dann x eintippen | G9: Verein 1 | I9: Verein 2 | K9: Verein 3 | M9: Verein 4 | O9: Verein 5 | Q9: Verein 6 | U9: Proberechnung bei Streifen:
A10: 1 | B10: ='Wettkampf 1'!B10 -> Gertrud Kuchta | C10: ='Wettkampf 1'!C10 -> Börger II | D10: 307.5 | F10: =IF(E10="x","0",D10) -> 307.5 | G10: =IF(C10=$B$2,F10,0) -> 307.5 | H10: =(IF(AND($E10="",$C10=$B$2),1,0)) -> 1 | I10: =IF($C10=$B$3,F10,0) -> 0 | J10: =(IF(AND($E10="",$C10=$B$3),1,0)) -> 0 | K10: =IF($C10=$B$4,F10,0) -> 0 | L10: =(IF(AND($E10="",$C10=$B$4),1,0)) -> 0 | M10: =IF($C10=$B$5,F10,0) -> 0 | N10: =(IF(AND($E10="",$C10=$B$5),1,0)) -> 0 | O10: =IF($C10=$B$6,F10,0) -> 0 | P10: =(IF(AND($E10="",$C10=$B$6),1,0)) -> 0 | Q10: =IF($C10=$B$7,F10,0) -> 0 | R10: =(IF(AND($E10="",$C10=$B$7),1,0)) -> 0 | U10: 101.6 | V10: 102.2 | W10: 103.7 | X10: =U10+V10+W10 -> 307.5 | Y10: =IF(X10=D10,1,0) -> 1 | Z10: =IF(X10=0,0,1) -> 1 | AA10: =IF(Y10+Z10=2,"Korrekt","") -> Korrekt
A11: 2 | B11: ='Wettkampf 1'!B11 -> Sarah Breer | C11: ='Wettkampf 1'!C11 -> Börger II | D11: 0.0 | E11: x | F11: =IF(E11="x","0",D11) -> 0 | G11: =IF(C11=$B$2,F11,0) -> 0 | H11: =(IF(AND($E11="",$C11=$B$2),1,0)) -> 0 | I11: =IF($C11=$B$3,F11,0) -> 0 | J11: =(IF(AND($E11="",$C11=$B$3),1,0)) -> 0 | K11: =IF($C11=$B$4,F11,0) -> 0 | L11: =(IF(AND($E11="",$C11=$B$4),1,0)) -> 0 | M11: =IF($C11=$B$5,F11,0) -> 0 | N11: =(IF(AND($E11="",$C11=$B$5),1,0)) -> 0 | O11: =IF($C11=$B$6,F11,0) -> 0 | P11: =(IF(AND($E11="",$C11=$B$6),1,0)) -> 0 | Q11: =IF($C11=$B$7,F11,0) -> 0 | R11: =(IF(AND($E11="",$C11=$B$7),1,0)) -> 0 | U11: 0.0 | V11: 0.0 | W11: 0.0 | X11: =U11+V11+W11 -> 0.0 | Y11: =IF(X11=D11,1,0) -> 1 | Z11: =IF(X11=0,0,1) -> 0 | AA11: =IF(Y11+Z11=2,"Korrekt","") -> 
A12: 3 | B12: ='Wettkampf 1'!B12 -> Margret Pohlgeers | C12: ='Wettkampf 1'!C12 -> Börger II | D12: 312.4 | F12: 312.4 | G12: 312.4 | H12: 1 | I12: 0 | J12: 0 | K12: 0 | L12: 0 | M12: 0 | N12: 0 | O12: 0 | P12: 0 | Q12: 0 | R12: 0 | U12: 104.3 | V12: 105.3 | W12: 102.8 | X12: 312.4 | Y12: 1 | Z12: 1 | AA12: Korrekt
A13: 4 | B13: ='Wettkampf 1'!B13 -> Gundula Schwarte | C13: ='Wettkampf 1'!C13 -> Börger II | D13: 303.0 | E13: x | F13: 0 | G13: 0 | H13: 0 | I13: 0 | J13: 0 | K13: 0 | L13: 0 | M13: 0 | N13: 0 | O13: 0 | P13: 0 | Q13: 0 | R13: 0 | U13: 101.5 | V13: 101.0 | W13: 100.5 | X13: 303.0 | Y13: 1 | Z13: 1 | AA13: Korrekt
A14: 5 | B14: ='Wettkampf 1'!B14 -> Annette Schwarte | C14: ='Wettkampf 1'!C14 -> Börger II | D14: 299.0 | F14: 299.0 | G14: 299 | H14: 1 | I14: 0 | J14: 0 | K14: 0 | L14: 0 | M14: 0 | N14: 0 | O14: 0 | P14: 0 | Q14: 0 | R14: 0 | U14: 102.1 | V14: 99.7 | W14: 97.2 | X14: 299.0 | Y14: 1 | Z14: 1 | AA14: Korrekt
A15: 6 | B15: ='Wettkampf 1'!B15 -> Petra Dödtmann | C15: ='Wettkampf 1'!C15 -> Börger II | D15: 307.6 | F15: 307.6 | G15: 307.6 | H15: 1 | I15: 0 | J15: 0 | K15: 0 | L15: 0 | M15: 0 | N15: 0 | O15: 0 | P15: 0 | Q15: 0 | R15: 0 | U15: 102.9 | V15: 103.9 | W15: 100.8 | X15: 307.6 | Y15: 1 | Z15: 1 | AA15: Korrekt
A16: 7 | B16: ='Wettkampf 1'!B16 -> Sarah Deyen | C16: ='Wettkampf 1'!C16 -> Neuvrees II | D16: 306.0 | F16: 306.0 | G16: 0 | H16: 0 | I16: 306 | J16: 1 | K16: 0 | L16: 0 | M16: 0 | N16: 0 | O16: 0 | P16: 0 | Q16: 0 | R16: 0 | U16: 101.5 | V16: 101.6 | W16: 102.9 | X16: 306.0 | Y16: 1 | Z16: 1 | AA16: Korrekt
A17: 8 | B17: ='Wettkampf 1'!B17 -> Silvia Thunert | C17: ='Wettkampf 1'!C17 -> Neuvrees II | D17: 311.3 | F17: 311.3 | G17: 0 | H17: 0 | I17: 311.3 | J17: 1 | K17: 0 | L17: 0 | M17: 0 | N17: 0 | O17: 0 | P17: 0 | Q17: 0 | R17: 0 | U17: 103.5 | V17: 104.0 | W17: 103.8 | X17: 311.3 | Y17: 1 | Z17: 1 | AA17: Korrekt
A18: 9 | B18: ='Wettkampf 1'!B18 -> Margret Pohlmann | C18: ='Wettkampf 1'!C18 -> Neuvrees II | D18: 300.8 | F18: 300.8 | G18: 0 | H18: 0 | I18: 300.8 | J18: 1 | K18: 0 | L18: 0 | M18: 0 | N18: 0 | O18: 0 | P18: 0 | Q18: 0 | R18: 0 | U18: 99.1 | V18: 101.2 | W18: 100.5 | X18: 300.8 | Y18: 1 | Z18: 1 | AA18: Korrekt
A19: 10 | B19: ='Wettkampf 1'!B19 -> Harma Steenken | C19: ='Wettkampf 1'!C19 -> Neuvrees II | D19: 282.0 | E19: x | F19: 0 | G19: 0 | H19: 0 | I19: 0 | J19: 0 | K19: 0 | L19: 0 | M19: 0 | N19: 0 | O19: 0 | P19: 0 | Q19: 0 | R19: 0 | U19: 96.4 | V19: 89.2 | W19: 96.4 | X19: 282.0 | Y19: 1 | Z19: 1 | AA19: Korrekt
A20: 11 | B20: ='Wettkampf 1'!B20 -> Claudia Rolfes | C20: ='Wettkampf 1'!C20 -> Neuvrees II | D20: 307.9 | F20: 307.9 | G20: 0 | H20: 0 | I20: 307.9 | J20: 1 | K20: 0 | L20: 0 | M20: 0 | N20: 0 | O20: 0 | P20: 0 | Q20: 0 | R20: 0 | U20: 101.0 | V20: 103.6 | W20: 103.3 | X20: 307.9 | Y20: 1 | Z20: 1 | AA20: Korrekt
A21: 12 | B21: ='Wettkampf 1'!B21 -> Silvia Junge | C21: ='Wettkampf 1'!C21 -> Neuvrees II | D21: 247.4 | E21: x | F21: 0 | G21: 0 | H21: 0 | I21: 0 | J21: 0 | K21: 0 | L21: 0 | M21: 0 | N21: 0 | O21: 0 | P21: 0 | Q21: 0 | R21: 0 | U21: 66.0 | V21: 80.8 | W21: 100.6 | X21: 247.4 | Y21: 1 | Z21: 1 | AA21: Korrekt
A22: 13 | B22: ='Wettkampf 1'!B22 -> Ulla Schnieders | C22: ='Wettkampf 1'!C22 -> Börgermoor I | D22: 304.0 | F22: 304.0 | G22: 0 | H22: 0 | I22: 0 | J22: 0 | K22: 304 | L22: 1 | M22: 0 | N22: 0 | O22: 0 | P22: 0 | Q22: 0 | R22: 0 | U22: 102.5 | V22: 100.3 | W22: 101.2 | X22: 304.0 | Y22: 1 | Z22: 1 | AA22: Korrekt
A23: 14 | B23: ='Wettkampf 1'!B23 -> Jasmin Kramer | C23: ='Wettkampf 1'!C23 -> Börgermoor I | D23: 312.3 | F23: 312.3 | G23: 0 | H23: 0 | I23: 0 | J23: 0 | K23: 312.3 | L23: 1 | M23: 0 | N23: 0 | O23: 0 | P23: 0 | Q23: 0 | R23: 0 | U23: 105.0 | V23: 103.2 | W23: 104.1 | X23: 312.3 | Y23: 1 | Z23: 1 | AA23: Korrekt
A24: 15 | B24: ='Wettkampf 1'!B24 -> Anni Küwen | C24: ='Wettkampf 1'!C24 -> Börgermoor I | D24: 311.1 | F24: 311.1 | G24: 0 | H24: 0 | I24: 0 | J24: 0 | K24: 311.1 | L24: 1 | M24: 0 | N24: 0 | O24: 0 | P24: 0 | Q24: 0 | R24: 0 | U24: 103.5 | V24: 104.0 | W24: 103.6 | X24: 311.1 | Y24: 1 | Z24: 1 | AA24: Korrekt
A25: 16 | B25: ='Wettkampf 1'!B25 -> Waltraud Dobelmann | C25: ='Wettkampf 1'!C25 -> Börgermoor I | D25: 304.6 | F25: 304.6 | G25: 0 | H25: 0 | I25: 0 | J25: 0 | K25: 304.6 | L25: 1 | M25: 0 | N25: 0 | O25: 0 | P25: 0 | Q25: 0 | R25: 0 | U25: 99.2 | V25: 101.7 | W25: 103.7 | X25: 304.6 | Y25: 1 | Z25: 1 | AA25: Korrekt
A26: 17 | B26: ='Wettkampf 1'!B26 -> Schütze 17 | C26: ='Wettkampf 1'!C26 -> Börgermoor I | D26: 0.0 | E26: x | F26: 0 | G26: 0 | H26: 0 | I26: 0 | J26: 0 | K26: 0 | L26: 0 | M26: 0 | N26: 0 | O26: 0 | P26: 0 | Q26: 0 | R26: 0 | X26: 0.0 | Y26: 1 | Z26: 0
A27: 18 | B27: ='Wettkampf 1'!B27 -> Schütze 18 | C27: ='Wettkampf 1'!C27 -> Börgermoor I | D27: 0.0 | E27: x | F27: 0 | G27: 0 | H27: 0 | I27: 0 | J27: 0 | K27: 0 | L27: 0 | M27: 0 | N27: 0 | O27: 0 | P27: 0 | Q27: 0 | R27: 0 | X27: 0.0 | Y27: 1 | Z27: 0
A28: 19 | B28: ='Wettkampf 1'!B28 -> Hanna Gebken | C28: ='Wettkampf 1'!C28 -> Lorup III | D28: 309.4 | F28: 309.4 | G28: 0 | H28: 0 | I28: 0 | J28: 0 | K28: 0 | L28: 0 | M28: 309.4 | N28: 1 | O28: 0 | P28: 0 | Q28: 0 | R28: 0 | U28: 102.6 | V28: 103.1 | W28: 103.7 | X28: 309.4 | Y28: 1 | Z28: 1 | AA28: Korrekt
A29: 20 | B29: ='Wettkampf 1'!B29 -> Monika Reimann | C29: ='Wettkampf 1'!C29 -> Lorup III | D29: 305.7 | F29: 305.7 | G29: 0 | H29: 0 | I29: 0 | J29: 0 | K29: 0 | L29: 0 | M29: 305.7 | N29: 1 | O29: 0 | P29: 0 | Q29: 0 | R29: 0 | U29: 102.7 | V29: 101.1 | W29: 101.9 | X29: 305.7 | Y29: 1 | Z29: 1 | AA29: Korrekt
A30: 21 | B30: ='Wettkampf 1'!B30 -> Marina Schrand | C30: ='Wettkampf 1'!C30 -> Lorup III | D30: 303.5 | F30: 303.5 | G30: 0 | H30: 0 | I30: 0 | J30: 0 | K30: 0 | L30: 0 | M30: 303.5 | N30: 1 | O30: 0 | P30: 0 | Q30: 0 | R30: 0 | U30: 100.6 | V30: 101.0 | W30: 101.9 | X30: 303.5 | Y30: 1 | Z30: 1 | AA30: Korrekt
A31: 22 | B31: ='Wettkampf 1'!B31 -> Nadine Krömer | C31: ='Wettkampf 1'!C31 -> Lorup III | D31: 312.6 | F31: 312.6 | G31: 0 | H31: 0 | I31: 0 | J31: 0 | K31: 0 | L31: 0 | M31: 312.6 | N31: 1 | O31: 0 | P31: 0 | Q31: 0 | R31: 0 | U31: 105.5 | V31: 103.5 | W31: 103.6 | X31: 312.6 | Y31: 1 | Z31: 1 | AA31: Korrekt
A32: 23 | B32: ='Wettkampf 1'!B32 -> Nina Krömer | C32: ='Wettkampf 1'!C32 -> Lorup III | D32: 296.0 | E32: x | F32: 0 | G32: 0 | H32: 0 | I32: 0 | J32: 0 | K32: 0 | L32: 0 | M32: 0 | N32: 0 | O32: 0 | P32: 0 | Q32: 0 | R32: 0 | U32: 97.0 | V32: 100.3 | W32: 98.7 | X32: 296.0 | Y32: 1 | Z32: 1 | AA32: Korrekt
A33: 24 | B33: ='Wettkampf 1'!B33 -> Margret Büter | C33: ='Wettkampf 1'!C33 -> Lorup III | D33: 0.0 | E33: x | F33: 0 | G33: 0 | H33: 0 | I33: 0 | J33: 0 | K33: 0 | L33: 0 | M33: 0 | N33: 0 | O33: 0 | P33: 0 | Q33: 0 | R33: 0 | X33: 0.0 | Y33: 1 | Z33: 0
A34: 25 | B34: ='Wettkampf 1'!B34 -> Sarah Meiners | C34: ='Wettkampf 1'!C34 -> Ostenwalde II | D34: 291.9 | F34: 291.9 | G34: 0 | H34: 0 | I34: 0 | J34: 0 | K34: 0 | L34: 0 | M34: 0 | N34: 0 | O34: 291.9 | P34: 1 | Q34: 0 | R34: 0 | U34: 96.9 | V34: 95.5 | W34: 99.5 | X34: 291.9 | Y34: 1 | Z34: 1 | AA34: Korrekt
A35: 26 | B35: ='Wettkampf 1'!B35 -> Anna Temmen | C35: ='Wettkampf 1'!C35 -> Ostenwalde II | D35: 310.8 | F35: 310.8 | G35: 0 | H35: 0 | I35: 0 | J35: 0 | K35: 0 | L35: 0 | M35: 0 | N35: 0 | O35: 310.8 | P35: 1 | Q35: 0 | R35: 0 | U35: 104.8 | V35: 102.1 | W35: 103.9 | X35: 310.8 | Y35: 1 | Z35: 1 | AA35: Korrekt
A36: 27 | B36: ='Wettkampf 1'!B36 -> Helga Meiners | C36: ='Wettkampf 1'!C36 -> Ostenwalde II | D36: 0.0 | E36: x | F36: 0 | G36: 0 | H36: 0 | I36: 0 | J36: 0 | K36: 0 | L36: 0 | M36: 0 | N36: 0 | O36: 0 | P36: 0 | Q36: 0 | R36: 0 | X36: 0.0 | Y36: 1 | Z36: 0
A37: 28 | B37: ='Wettkampf 1'!B37 -> Carmen Benten | C37: ='Wettkampf 1'!C37 -> Ostenwalde II | D37: 309.8 | F37: 309.8 | G37: 0 | H37: 0 | I37: 0 | J37: 0 | K37: 0 | L37: 0 | M37: 0 | N37: 0 | O37: 309.8 | P37: 1 | Q37: 0 | R37: 0 | U37: 102.5 | V37: 102.9 | W37: 104.4 | X37: 309.8 | Y37: 1 | Z37: 1 | AA37: Korrekt
A38: 29 | B38: ='Wettkampf 1'!B38 -> Anna -Maria Wimberg | C38: ='Wettkampf 1'!C38 -> Ostenwalde II | D38: 0.0 | E38: x | F38: 0 | G38: 0 | H38: 0 | I38: 0 | J38: 0 | K38: 0 | L38: 0 | M38: 0 | N38: 0 | O38: 0 | P38: 0 | Q38: 0 | R38: 0 | X38: 0.0 | Y38: 1 | Z38: 0
A39: 30 | B39: ='Wettkampf 1'!B39 -> Evelyn Feder | C39: ='Wettkampf 1'!C39 -> Ostenwalde II | D39: 0.0 | E39: x | F39: 0 | G39: 0 | H39: 0 | I39: 0 | J39: 0 | K39: 0 | L39: 0 | M39: 0 | N39: 0 | O39: 0 | P39: 0 | Q39: 0 | R39: 0 | X39: 0.0 | Y39: 1 | Z39: 0
A40: 31 | B40: ='Wettkampf 1'!B40 -> Monika Jansen | C40: ='Wettkampf 1'!C40 -> Spahnharrenstätte I | D40: 309.7 | F40: 309.7 | G40: 0 | H40: 0 | I40: 0 | J40: 0 | K40: 0 | L40: 0 | M40: 0 | N40: 0 | O40: 0 | P40: 0 | Q40: 309.7 | R40: 1 | U40: 102.7 | V40: 100.9 | W40: 106.1 | X40: 309.7 | Y40: 1 | Z40: 1 | AA40: Korrekt
A41: 32 | B41: ='Wettkampf 1'!B41 -> Kerstin Sträche | C41: ='Wettkampf 1'!C41 -> Spahnharrenstätte I | D41: 308.4 | F41: 308.4 | G41: 0 | H41: 0 | I41: 0 | J41: 0 | K41: 0 | L41: 0 | M41: 0 | N41: 0 | O41: 0 | P41: 0 | Q41: 308.4 | R41: 1 | U41: 103.0 | V41: 102.6 | W41: 102.8 | X41: 308.4 | Y41: 1 | Z41: 1 | AA41: Korrekt
A42: 33 | B42: ='Wettkampf 1'!B42 -> Rita Hanekamp | C42: ='Wettkampf 1'!C42 -> Spahnharrenstätte I | D42: 296.3 | F42: 296.3 | G42: 0 | H42: 0 | I42: 0 | J42: 0 | K42: 0 | L42: 0 | M42: 0 | N42: 0 | O42: 0 | P42: 0 | Q42: 296.3 | R42: 1 | U42: 99.4 | V42: 98.0 | W42: 98.9 | X42: 296.3 | Y42: 1 | Z42: 1 | AA42: Korrekt
A43: 34 | B43: ='Wettkampf 1'!B43 -> Maria Beusing | C43: ='Wettkampf 1'!C43 -> Spahnharrenstätte I | D43: 310.8 | F43: 310.8 | G43: 0 | H43: 0 | I43: 0 | J43: 0 | K43: 0 | L43: 0 | M43: 0 | N43: 0 | O43: 0 | P43: 0 | Q43: 310.8 | R43: 1 | U43: 105.9 | V43: 100.7 | W43: 104.2 | X43: 310.8 | Y43: 1 | Z43: 1 | AA43: Korrekt
A44: 35 | B44: ='Wettkampf 1'!B44 -> Schütze 35 | C44: ='Wettkampf 1'!C44 -> Spahnharrenstätte I | D44: 0.0 | E44: x | F44: 0 | G44: 0 | H44: 0 | I44: 0 | J44: 0 | K44: 0 | L44: 0 | M44: 0 | N44: 0 | O44: 0 | P44: 0 | Q44: 0 | R44: 0 | X44: 0.0 | Y44: 1 | Z44: 0
A45: 36 | B45: ='Wettkampf 1'!B45 -> Schütze 36 | C45: ='Wettkampf 1'!C45 -> Spahnharrenstätte I | D45: 0.0 | E45: x | F45: 0 | G45: 0 | H45: 0 | I45: 0 | J45: 0 | K45: 0 | L45: 0 | M45: 0 | N45: 0 | O45: 0 | P45: 0 | Q45: 0 | R45: 0 | X45: 0.0 | Y45: 1 | Z45: 0
G46: =LARGE(G10:G45,1)+LARGE(G10:G45,2)+LARGE(G10:G45,3) -> 927.5 | H46: =SUM(H10:H45) -> 4 | I46: =LARGE(I10:I45,1)+LARGE(I10:I45,2)+LARGE(I10:I45,3) -> 925.2 | J46: =SUM(J10:J45) -> 4 | K46: =LARGE(K10:K45,1)+LARGE(K10:K45,2)+LARGE(K10:K45,3) -> 928 | L46: =SUM(L10:L45) -> 4 | M46: =LARGE(M10:M45,1)+LARGE(M10:M45,2)+LARGE(M10:M45,3) -> 927.7 | N46: =SUM(N10:N45) -> 4 | O46: =LARGE(O10:O45,1)+LARGE(O10:O45,2)+LARGE(O10:O45,3) -> 912.5 | P46: =SUM(P10:P45) -> 3 | Q46: =LARGE(Q10:Q45,1)+LARGE(Q10:Q45,2)+LARGE(Q10:Q45,3) -> 928.9 | R46: =SUM(R10:S45) -> 4
C47: per Email an: sk-huemmling@gmx.de

Sheet 10
B1: Verein / Gruppe | D1: Ergebnisse | V1: Austragungsort: | W1: =Übersicht!O4 -> Lorup
A2: 1 | B2: ='Wettkampf 1'!B2 -> Börger II | D2: =G46 -> 928.8 | E2: =IF(H46>4,"Es sind zu viele Schützen in Wertung!"," ") ->  | V2: Wettkampftag: | W2: =Übersicht!O3 -> 23.02.
A3: 2 | B3: ='Wettkampf 1'!B3 -> Neuvrees II | D3: =I46 -> 929.3 | E3: =IF(J46>4,"Es sind zu viele Schützen in Wertung!"," ") -> 
A4: 3 | B4: ='Wettkampf 1'!B4 -> Börgermoor I | D4: =K46 -> 918.3 | E4: =IF(L46>4,"Es sind zu viele Schützen in Wertung!"," ") ->  | X4: Ansprechpartner für Rückfragen:
A5: 4 | B5: ='Wettkampf 1'!B5 -> Lorup III | D5: =M46 -> 931.5 | E5: =IF(N46>4,"Es sind zu viele Schützen in Wertung!"," ") ->  | V5: Name: | W5: Margret Pohlgeers
A6: 5 | B6: ='Wettkampf 1'!B6 -> Ostenwalde II | D6: =O46 -> 912.4 | E6: =IF(P46>4,"Es sind zu viele Schützen in Wertung!"," ") ->  | V6: Tel: | W6: 05953/8976
A7: 6 | B7: ='Wettkampf 1'!B7 -> Spahnharrenstätte I | D7: =Q46 -> 922.0 | E7: =IF(R46>4,"Es sind zu viele Schützen in Wertung!"," ") ->  | V7: Standaufsicht: | W7: Hans Pohlgeers
B9: Einzelergebnisse: | C9: Verein / Gruppe | D9: Ergebnisse (mindestens 0 eintragen) | E9: AW? Dann x eintippen | G9: Verein 1 | I9: Verein 2 | K9: Verein 3 | M9: Verein 4 | O9: Verein 5 | Q9: Verein 6 | U9: Proberechnung bei Streifen:
A10: 1 | B10: ='Wettkampf 1'!B10 -> Gertrud Kuchta | C10: ='Wettkampf 1'!C10 -> Börger II | D10: 301.6 | F10: =IF(E10="x","0",D10) -> 301.6 | G10: =IF(C10=$B$2,F10,0) -> 301.6 | H10: =(IF(AND($E10="",$C10=$B$2),1,0)) -> 1 | I10: =IF($C10=$B$3,F10,0) -> 0 | J10: =(IF(AND($E10="",$C10=$B$3),1,0)) -> 0 | K10: =IF($C10=$B$4,F10,0) -> 0 | L10: =(IF(AND($E10="",$C10=$B$4),1,0)) -> 0 | M10: =IF($C10=$B$5,F10,0) -> 0 | N10: =(IF(AND($E10="",$C10=$B$5),1,0)) -> 0 | O10: =IF($C10=$B$6,F10,0) -> 0 | P10: =(IF(AND($E10="",$C10=$B$6),1,0)) -> 0 | Q10: =IF($C10=$B$7,F10,0) -> 0 | R10: =(IF(AND($E10="",$C10=$B$7),1,0)) -> 0 | X10: =U10+V10+W10 -> 0.0 | Y10: =IF(X10=D10,1,0) -> 0 | Z10: =IF(X10=0,0,1) -> 0 | AA10: =IF(Y10+Z10=2,"Korrekt","") -> 
A11: 2 | B11: ='Wettkampf 1'!B11 -> Sarah Breer | C11: ='Wettkampf 1'!C11 -> Börger II | D11: 0.0 | E11: x | F11: =IF(E11="x","0",D11) -> 0 | G11: =IF(C11=$B$2,F11,0) -> 0 | H11: =(IF(AND($E11="",$C11=$B$2),1,0)) -> 0 | I11: =IF($C11=$B$3,F11,0) -> 0 | J11: =(IF(AND($E11="",$C11=$B$3),1,0)) -> 0 | K11: =IF($C11=$B$4,F11,0) -> 0 | L11: =(IF(AND($E11="",$C11=$B$4),1,0)) -> 0 | M11: =IF($C11=$B$5,F11,0) -> 0 | N11: =(IF(AND($E11="",$C11=$B$5),1,0)) -> 0 | O11: =IF($C11=$B$6,F11,0) -> 0 | P11: =(IF(AND($E11="",$C11=$B$6),1,0)) -> 0 | Q11: =IF($C11=$B$7,F11,0) -> 0 | R11: =(IF(AND($E11="",$C11=$B$7),1,0)) -> 0 | X11: =U11+V11+W11 -> 0.0 | Y11: =IF(X11=D11,1,0) -> 1 | Z11: =IF(X11=0,0,1) -> 0 | AA11: =IF(Y11+Z11=2,"Korrekt","") -> 
A12: 3 | B12: ='Wettkampf 1'!B12 -> Margret Pohlgeers | C12: ='Wettkampf 1'!C12 -> Börger II | D12: 313.7 | F12: 313.7 | G12: 313.7 | H12: 1 | I12: 0 | J12: 0 | K12: 0 | L12: 0 | M12: 0 | N12: 0 | O12: 0 | P12: 0 | Q12: 0 | R12: 0 | X12: 0.0 | Y12: 0 | Z12: 0
A13: 4 | B13: ='Wettkampf 1'!B13 -> Gundula Schwarte | C13: ='Wettkampf 1'!C13 -> Börger II | D13: 305.2 | F13: 305.2 | G13: 305.2 | H13: 1 | I13: 0 | J13: 0 | K13: 0 | L13: 0 | M13: 0 | N13: 0 | O13: 0 | P13: 0 | Q13: 0 | R13: 0 | X13: 0.0 | Y13: 0 | Z13: 0
A14: 5 | B14: ='Wettkampf 1'!B14 -> Annette Schwarte | C14: ='Wettkampf 1'!C14 -> Börger II | D14: 304.5 | E14: x | F14: 0 | G14: 0 | H14: 0 | I14: 0 | J14: 0 | K14: 0 | L14: 0 | M14: 0 | N14: 0 | O14: 0 | P14: 0 | Q14: 0 | R14: 0 | X14: 0.0 | Y14: 0 | Z14: 0
A15: 6 | B15: ='Wettkampf 1'!B15 -> Petra Dödtmann | C15: ='Wettkampf 1'!C15 -> Börger II | D15: 309.9 | F15: 309.9 | G15: 309.9 | H15: 1 | I15: 0 | J15: 0 | K15: 0 | L15: 0 | M15: 0 | N15: 0 | O15: 0 | P15: 0 | Q15: 0 | R15: 0 | X15: 0.0 | Y15: 0 | Z15: 0
A16: 7 | B16: ='Wettkampf 1'!B16 -> Sarah Deyen | C16: ='Wettkampf 1'!C16 -> Neuvrees II | D16: 309.0 | F16: 309.0 | G16: 0 | H16: 0 | I16: 309 | J16: 1 | K16: 0 | L16: 0 | M16: 0 | N16: 0 | O16: 0 | P16: 0 | Q16: 0 | R16: 0 | X16: 0.0 | Y16: 0 | Z16: 0
A17: 8 | B17: ='Wettkampf 1'!B17 -> Silvia Thunert | C17: ='Wettkampf 1'!C17 -> Neuvrees II | D17: 307.0 | F17: 307.0 | G17: 0 | H17: 0 | I17: 307 | J17: 1 | K17: 0 | L17: 0 | M17: 0 | N17: 0 | O17: 0 | P17: 0 | Q17: 0 | R17: 0 | X17: 0.0 | Y17: 0 | Z17: 0
A18: 9 | B18: ='Wettkampf 1'!B18 -> Margret Pohlmann | C18: ='Wettkampf 1'!C18 -> Neuvrees II | D18: 297.6 | F18: 297.6 | G18: 0 | H18: 0 | I18: 297.6 | J18: 1 | K18: 0 | L18: 0 | M18: 0 | N18: 0 | O18: 0 | P18: 0 | Q18: 0 | R18: 0 | X18: 0.0 | Y18: 0 | Z18: 0
A19: 10 | B19: ='Wettkampf 1'!B19 -> Harma Steenken | C19: ='Wettkampf 1'!C19 -> Neuvrees II | D19: 0.0 | E19: x | F19: 0 | G19: 0 | H19: 0 | I19: 0 | J19: 0 | K19: 0 | L19: 0 | M19: 0 | N19: 0 | O19: 0 | P19: 0 | Q19: 0 | R19: 0 | X19: 0.0 | Y19: 1 | Z19: 0
A20: 11 | B20: ='Wettkampf 1'!B20 -> Claudia Rolfes | C20: ='Wettkampf 1'!C20 -> Neuvrees II | D20: 313.3 | F20: 313.3 | G20: 0 | H20: 0 | I20: 313.3 | J20: 1 | K20: 0 | L20: 0 | M20: 0 | N20: 0 | O20: 0 | P20: 0 | Q20: 0 | R20: 0 | X20: 0.0 | Y20: 0 | Z20: 0
A21: 12 | B21: ='Wettkampf 1'!B21 -> Silvia Junge | C21: ='Wettkampf 1'!C21 -> Neuvrees II | D21: 297.2 | E21: x | F21: 0 | G21: 0 | H21: 0 | I21: 0 | J21: 0 | K21: 0 | L21: 0 | M21: 0 | N21: 0 | O21: 0 | P21: 0 | Q21: 0 | R21: 0 | X21: 0.0 | Y21: 0 | Z21: 0
A22: 13 | B22: ='Wettkampf 1'!B22 -> Ulla Schnieders | C22: ='Wettkampf 1'!C22 -> Börgermoor I | D22: 308.2 | F22: 308.2 | G22: 0 | H22: 0 | I22: 0 | J22: 0 | K22: 308.2 | L22: 1 | M22: 0 | N22: 0 | O22: 0 | P22: 0 | Q22: 0 | R22: 0 | X22: 0.0 | Y22: 0 | Z22: 0
A23: 14 | B23: ='Wettkampf 1'!B23 -> Jasmin Kramer | C23: ='Wettkampf 1'!C23 -> Börgermoor I | D23: 305.4 | F23: 305.4 | G23: 0 | H23: 0 | I23: 0 | J23: 0 | K23: 305.4 | L23: 1 | M23: 0 | N23: 0 | O23: 0 | P23: 0 | Q23: 0 | R23: 0 | X23: 0.0 | Y23: 0 | Z23: 0
A24: 15 | B24: ='Wettkampf 1'!B24 -> Anni Küwen | C24: ='Wettkampf 1'!C24 -> Börgermoor I | D24: 302.0 | F24: 302.0 | G24: 0 | H24: 0 | I24: 0 | J24: 0 | K24: 302 | L24: 1 | M24: 0 | N24: 0 | O24: 0 | P24: 0 | Q24: 0 | R24: 0 | X24: 0.0 | Y24: 0 | Z24: 0
A25: 16 | B25: ='Wettkampf 1'!B25 -> Waltraud Dobelmann | C25: ='Wettkampf 1'!C25 -> Börgermoor I | D25: 304.7 | F25: 304.7 | G25: 0 | H25: 0 | I25: 0 | J25: 0 | K25: 304.7 | L25: 1 | M25: 0 | N25: 0 | O25: 0 | P25: 0 | Q25: 0 | R25: 0 | X25: 0.0 | Y25: 0 | Z25: 0
A26: 17 | B26: ='Wettkampf 1'!B26 -> Schütze 17 | C26: ='Wettkampf 1'!C26 -> Börgermoor I | E26: x | F26: 0 | G26: 0 | H26: 0 | I26: 0 | J26: 0 | K26: 0 | L26: 0 | M26: 0 | N26: 0 | O26: 0 | P26: 0 | Q26: 0 | R26: 0 | X26: 0.0 | Y26: 1 | Z26: 0
A27: 18 | B27: ='Wettkampf 1'!B27 -> Schütze 18 | C27: ='Wettkampf 1'!C27 -> Börgermoor I | E27: x | F27: 0 | G27: 0 | H27: 0 | I27: 0 | J27: 0 | K27: 0 | L27: 0 | M27: 0 | N27: 0 | O27: 0 | P27: 0 | Q27: 0 | R27: 0 | X27: 0.0 | Y27: 1 | Z27: 0
A28: 19 | B28: ='Wettkampf 1'!B28 -> Hanna Gebken | C28: ='Wettkampf 1'!C28 -> Lorup III | D28: 307.5 | F28: 307.5 | G28: 0 | H28: 0 | I28: 0 | J28: 0 | K28: 0 | L28: 0 | M28: 307.5 | N28: 1 | O28: 0 | P28: 0 | Q28: 0 | R28: 0 | X28: 0.0 | Y28: 0 | Z28: 0
A29: 20 | B29: ='Wettkampf 1'!B29 -> Monika Reimann | C29: ='Wettkampf 1'!C29 -> Lorup III | D29: 304.1 | F29: 304.1 | G29: 0 | H29: 0 | I29: 0 | J29: 0 | K29: 0 | L29: 0 | M29: 304.1 | N29: 1 | O29: 0 | P29: 0 | Q29: 0 | R29: 0 | X29: 0.0 | Y29: 0 | Z29: 0
A30: 21 | B30: ='Wettkampf 1'!B30 -> Marina Schrand | C30: ='Wettkampf 1'!C30 -> Lorup III | D30: 308.3 | F30: 308.3 | G30: 0 | H30: 0 | I30: 0 | J30: 0 | K30: 0 | L30: 0 | M30: 308.3 | N30: 1 | O30: 0 | P30: 0 | Q30: 0 | R30: 0 | X30: 0.0 | Y30: 0 | Z30: 0
A31: 22 | B31: ='Wettkampf 1'!B31 -> Nadine Krömer | C31: ='Wettkampf 1'!C31 -> Lorup III | D31: 315.7 | F31: 315.7 | G31: 0 | H31: 0 | I31: 0 | J31: 0 | K31: 0 | L31: 0 | M31: 315.7 | N31: 1 | O31: 0 | P31: 0 | Q31: 0 | R31: 0 | X31: 0.0 | Y31: 0 | Z31: 0
A32: 23 | B32: ='Wettkampf 1'!B32 -> Nina Krömer | C32: ='Wettkampf 1'!C32 -> Lorup III | D32: 303.1 | E32: x | F32: 0 | G32: 0 | H32: 0 | I32: 0 | J32: 0 | K32: 0 | L32: 0 | M32: 0 | N32: 0 | O32: 0 | P32: 0 | Q32: 0 | R32: 0 | X32: 0.0 | Y32: 0 | Z32: 0
A33: 24 | B33: ='Wettkampf 1'!B33 -> Margret Büter | C33: ='Wettkampf 1'!C33 -> Lorup III | D33: 0.0 | E33: x | F33: 0 | G33: 0 | H33: 0 | I33: 0 | J33: 0 | K33: 0 | L33: 0 | M33: 0 | N33: 0 | O33: 0 | P33: 0 | Q33: 0 | R33: 0 | X33: 0.0 | Y33: 1 | Z33: 0
A34: 25 | B34: ='Wettkampf 1'!B34 -> Sarah Meiners | C34: ='Wettkampf 1'!C34 -> Ostenwalde II | D34: 291.9 | F34: 291.9 | G34: 0 | H34: 0 | I34: 0 | J34: 0 | K34: 0 | L34: 0 | M34: 0 | N34: 0 | O34: 291.9 | P34: 1 | Q34: 0 | R34: 0 | X34: 0.0 | Y34: 0 | Z34: 0
A35: 26 | B35: ='Wettkampf 1'!B35 -> Anna Temmen | C35: ='Wettkampf 1'!C35 -> Ostenwalde II | D35: 313.3 | F35: 313.3 | G35: 0 | H35: 0 | I35: 0 | J35: 0 | K35: 0 | L35: 0 | M35: 0 | N35: 0 | O35: 313.3 | P35: 1 | Q35: 0 | R35: 0 | X35: 0.0 | Y35: 0 | Z35: 0
A36: 27 | B36: ='Wettkampf 1'!B36 -> Helga Meiners | C36: ='Wettkampf 1'!C36 -> Ostenwalde II | D36: 0.0 | F36: 0.0 | G36: 0 | H36: 0 | I36: 0 | J36: 0 | K36: 0 | L36: 0 | M36: 0 | N36: 0 | O36: 0 | P36: 1 | Q36: 0 | R36: 0 | X36: 0.0 | Y36: 1 | Z36: 0
A37: 28 | B37: ='Wettkampf 1'!B37 -> Carmen Benten | C37: ='Wettkampf 1'!C37 -> Ostenwalde II | D37: 307.2 | F37: 307.2 | G37: 0 | H37: 0 | I37: 0 | J37: 0 | K37: 0 | L37: 0 | M37: 0 | N37: 0 | O37: 307.2 | P37: 1 | Q37: 0 | R37: 0 | X37: 0.0 | Y37: 0 | Z37: 0
A38: 29 | B38: ='Wettkampf 1'!B38 -> Anna -Maria Wimberg | C38: ='Wettkampf 1'!C38 -> Ostenwalde II | D38: 0.0 | E38: x | F38: 0 | G38: 0 | H38: 0 | I38: 0 | J38: 0 | K38: 0 | L38: 0 | M38: 0 | N38: 0 | O38: 0 | P38: 0 | Q38: 0 | R38: 0 | X38: 0.0 | Y38: 1 | Z38: 0
A39: 30 | B39: ='Wettkampf 1'!B39 -> Evelyn Feder | C39: ='Wettkampf 1'!C39 -> Ostenwalde II | D39: 0.0 | E39: x | F39: 0 | G39: 0 | H39: 0 | I39: 0 | J39: 0 | K39: 0 | L39: 0 | M39: 0 | N39: 0 | O39: 0 | P39: 0 | Q39: 0 | R39: 0 | X39: 0.0 | Y39: 1 | Z39: 0
A40: 31 | B40: ='Wettkampf 1'!B40 -> Monika Jansen | C40: ='Wettkampf 1'!C40 -> Spahnharrenstätte I | D40: 308.6 | F40: 308.6 | G40: 0 | H40: 0 | I40: 0 | J40: 0 | K40: 0 | L40: 0 | M40: 0 | N40: 0 | O40: 0 | P40: 0 | Q40: 308.6 | R40: 1 | X40: 0.0 | Y40: 0 | Z40: 0
A41: 32 | B41: ='Wettkampf 1'!B41 -> Kerstin Sträche | C41: ='Wettkampf 1'!C41 -> Spahnharrenstätte I | D41: 304.8 | F41: 304.8 | G41: 0 | H41: 0 | I41: 0 | J41: 0 | K41: 0 | L41: 0 | M41: 0 | N41: 0 | O41: 0 | P41: 0 | Q41: 304.8 | R41: 1 | X41: 0.0 | Y41: 0 | Z41: 0
A42: 33 | B42: ='Wettkampf 1'!B42 -> Rita Hanekamp | C42: ='Wettkampf 1'!C42 -> Spahnharrenstätte I | D42: 295.2 | F42: 295.2 | G42: 0 | H42: 0 | I42: 0 | J42: 0 | K42: 0 | L42: 0 | M42: 0 | N42: 0 | O42: 0 | P42: 0 | Q42: 295.2 | R42: 1 | X42: 0.0 | Y42: 0 | Z42: 0
A43: 34 | B43: ='Wettkampf 1'!B43 -> Maria Beusing | C43: ='Wettkampf 1'!C43 -> Spahnharrenstätte I | D43: 308.6 | F43: 308.6 | G43: 0 | H43: 0 | I43: 0 | J43: 0 | K43: 0 | L43: 0 | M43: 0 | N43: 0 | O43: 0 | P43: 0 | Q43: 308.6 | R43: 1 | X43: 0.0 | Y43: 0 | Z43: 0
A44: 35 | B44: ='Wettkampf 1'!B44 -> Schütze 35 | C44: ='Wettkampf 1'!C44 -> Spahnharrenstätte I | E44: x | F44: 0 | G44: 0 | H44: 0 | I44: 0 | J44: 0 | K44: 0 | L44: 0 | M44: 0 | N44: 0 | O44: 0 | P44: 0 | Q44: 0 | R44: 0 | X44: 0.0 | Y44: 1 | Z44: 0
A45: 36 | B45: ='Wettkampf 1'!B45 -> Schütze 36 | C45: ='Wettkampf 1'!C45 -> Spahnharrenstätte I | E45: x | F45: 0 | G45: 0 | H45: 0 | I45: 0 | J45: 0 | K45: 0 | L45: 0 | M45: 0 | N45: 0 | O45: 0 | P45: 0 | Q45: 0 | R45: 0 | X45: 0.0 | Y45: 1 | Z45: 0
G46: =LARGE(G10:G45,1)+LARGE(G10:G45,2)+LARGE(G10:G45,3) -> 928.8 | H46: =SUM(H10:H45) -> 4 | I46: =LARGE(I10:I45,1)+LARGE(I10:I45,2)+LARGE(I10:I45,3) -> 929.3 | J46: =SUM(J10:J45) -> 4 | K46: =LARGE(K10:K45,1)+LARGE(K10:K45,2)+LARGE(K10:K45,3) -> 918.3 | L46: =SUM(L10:L45) -> 4 | M46: =LARGE(M10:M45,1)+LARGE(M10:M45,2)+LARGE(M10:M45,3) -> 931.5 | N46: =SUM(N10:N45) -> 4 | O46: =LARGE(O10:O45,1)+LARGE(O10:O45,2)+LARGE(O10:O45,3) -> 912.4 | P46: =SUM(P10:P45) -> 4 | Q46: =LARGE(Q10:Q45,1)+LARGE(Q10:Q45,2)+LARGE(Q10:Q45,3) -> 922 | R46: =SUM(R10:S45) -> 4
C47: per Email an: sk-huemmling@gmx.de

Sheet 11
B1: Verein / Gruppe | D1: Ergebnisse | V1: Austragungsort: | W1: =Übersicht!P4 -> Ostenwalde
A2: 1 | B2: ='Wettkampf 1'!B2 -> Börger II | D2: =G46 -> 928.7 | E2: =IF(H46>4,"Es sind zu viele Schützen in Wertung!"," ") ->  | V2: Wettkampftag: | W2: =Übersicht!P3 -> 09.03.
A3: 2 | B3: ='Wettkampf 1'!B3 -> Neuvrees II | D3: =I46 -> 913.5 | E3: =IF(J46>4,"Es sind zu viele Schützen in Wertung!"," ") -> 
A4: 3 | B4: ='Wettkampf 1'!B4 -> Börgermoor I | D4: =K46 -> 916.8 | E4: =IF(L46>4,"Es sind zu viele Schützen in Wertung!"," ") ->  | X4: Ansprechpartner für Rückfragen:
A5: 4 | B5: ='Wettkampf 1'!B5 -> Lorup III | D5: =M46 -> 923.7 | E5: =IF(N46>4,"Es sind zu viele Schützen in Wertung!"," ") ->  | V5: Name: | W5: Carmen Benten
A6: 5 | B6: ='Wettkampf 1'!B6 -> Ostenwalde II | D6: =O46 -> 917.0 | E6: =IF(P46>4,"Es sind zu viele Schützen in Wertung!"," ") ->  | V6: Tel: | W6: 0176-56776324
A7: 6 | B7: ='Wettkampf 1'!B7 -> Spahnharrenstätte I | D7: =Q46 -> 924.2 | E7: =IF(R46>4,"Es sind zu viele Schützen in Wertung!"," ") ->  | V7: Standaufsicht: | W7: C. Benten / M. Brinkmann
B9: Einzelergebnisse: | C9: Verein / Gruppe | D9: Ergebnisse (mindestens 0 eintragen) | E9: AW? Dann x eintippen | G9: Verein 1 | I9: Verein 2 | K9: Verein 3 | M9: Verein 4 | O9: Verein 5 | Q9: Verein 6 | U9: Proberechnung bei Streifen:
A10: 1 | B10: ='Wettkampf 1'!B10 -> Gertrud Kuchta | C10: ='Wettkampf 1'!C10 -> Börger II | D10: 304.8 | E10: x | F10: =IF(E10="x","0",D10) -> 0 | G10: =IF(C10=$B$2,F10,0) -> 0 | H10: =(IF(AND($E10="",$C10=$B$2),1,0)) -> 0 | I10: =IF($C10=$B$3,F10,0) -> 0 | J10: =(IF(AND($E10="",$C10=$B$3),1,0)) -> 0 | K10: =IF($C10=$B$4,F10,0) -> 0 | L10: =(IF(AND($E10="",$C10=$B$4),1,0)) -> 0 | M10: =IF($C10=$B$5,F10,0) -> 0 | N10: =(IF(AND($E10="",$C10=$B$5),1,0)) -> 0 | O10: =IF($C10=$B$6,F10,0) -> 0 | P10: =(IF(AND($E10="",$C10=$B$6),1,0)) -> 0 | Q10: =IF($C10=$B$7,F10,0) -> 0 | R10: =(IF(AND($E10="",$C10=$B$7),1,0)) -> 0 | X10: =U10+V10+W10 -> 0.0 | Y10: =IF(X10=D10,1,0) -> 0 | Z10: =IF(X10=0,0,1) -> 0 | AA10: =IF(Y10+Z10=2,"Korrekt","") -> 
A11: 2 | B11: ='Wettkampf 1'!B11 -> Sarah Breer | C11: ='Wettkampf 1'!C11 -> Börger II | E11: x | F11: =IF(E11="x","0",D11) -> 0 | G11: =IF(C11=$B$2,F11,0) -> 0 | H11: =(IF(AND($E11="",$C11=$B$2),1,0)) -> 0 | I11: =IF($C11=$B$3,F11,0) -> 0 | J11: =(IF(AND($E11="",$C11=$B$3),1,0)) -> 0 | K11: =IF($C11=$B$4,F11,0) -> 0 | L11: =(IF(AND($E11="",$C11=$B$4),1,0)) -> 0 | M11: =IF($C11=$B$5,F11,0) -> 0 | N11: =(IF(AND($E11="",$C11=$B$5),1,0)) -> 0 | O11: =IF($C11=$B$6,F11,0) -> 0 | P11: =(IF(AND($E11="",$C11=$B$6),1,0)) -> 0 | Q11: =IF($C11=$B$7,F11,0) -> 0 | R11: =(IF(AND($E11="",$C11=$B$7),1,0)) -> 0 | X11: =U11+V11+W11 -> 0.0 | Y11: =IF(X11=D11,1,0) -> 1 | Z11: =IF(X11=0,0,1) -> 0 | AA11: =IF(Y11+Z11=2,"Korrekt","") -> 
A12: 3 | B12: ='Wettkampf 1'!B12 -> Margret Pohlgeers | C12: ='Wettkampf 1'!C12 -> Börger II | D12: 308.5 | F12: 308.5 | G12: 308.5 | H12: 1 | I12: 0 | J12: 0 | K12: 0 | L12: 0 | M12: 0 | N12: 0 | O12: 0 | P12: 0 | Q12: 0 | R12: 0 | X12: 0.0 | Y12: 0 | Z12: 0
A13: 4 | B13: ='Wettkampf 1'!B13 -> Gundula Schwarte | C13: ='Wettkampf 1'!C13 -> Börger II | D13: 307.9 | F13: 307.9 | G13: 307.9 | H13: 1 | I13: 0 | J13: 0 | K13: 0 | L13: 0 | M13: 0 | N13: 0 | O13: 0 | P13: 0 | Q13: 0 | R13: 0 | X13: 0.0 | Y13: 0 | Z13: 0
A14: 5 | B14: ='Wettkampf 1'!B14 -> Annette Schwarte | C14: ='Wettkampf 1'!C14 -> Börger II | D14: 290.6 | F14: 290.6 | G14: 290.6 | H14: 1 | I14: 0 | J14: 0 | K14: 0 | L14: 0 | M14: 0 | N14: 0 | O14: 0 | P14: 0 | Q14: 0 | R14: 0 | X14: 0.0 | Y14: 0 | Z14: 0
A15: 6 | B15: ='Wettkampf 1'!B15 -> Petra Dödtmann | C15: ='Wettkampf 1'!C15 -> Börger II | D15: 312.3 | F15: 312.3 | G15: 312.3 | H15: 1 | I15: 0 | J15: 0 | K15: 0 | L15: 0 | M15: 0 | N15: 0 | O15: 0 | P15: 0 | Q15: 0 | R15: 0 | X15: 0.0 | Y15: 0 | Z15: 0
A16: 7 | B16: ='Wettkampf 1'!B16 -> Sarah Deyen | C16: ='Wettkampf 1'!C16 -> Neuvrees II | D16: 304.4 | F16: 304.4 | G16: 0 | H16: 0 | I16: 304.4 | J16: 1 | K16: 0 | L16: 0 | M16: 0 | N16: 0 | O16: 0 | P16: 0 | Q16: 0 | R16: 0 | X16: 0.0 | Y16: 0 | Z16: 0
A17: 8 | B17: ='Wettkampf 1'!B17 -> Silvia Thunert | C17: ='Wettkampf 1'!C17 -> Neuvrees II | D17: 304.8 | F17: 304.8 | G17: 0 | H17: 0 | I17: 304.8 | J17: 1 | K17: 0 | L17: 0 | M17: 0 | N17: 0 | O17: 0 | P17: 0 | Q17: 0 | R17: 0 | X17: 0.0 | Y17: 0 | Z17: 0
A18: 9 | B18: ='Wettkampf 1'!B18 -> Margret Pohlmann | C18: ='Wettkampf 1'!C18 -> Neuvrees II | D18: 304.3 | F18: 304.3 | G18: 0 | H18: 0 | I18: 304.3 | J18: 1 | K18: 0 | L18: 0 | M18: 0 | N18: 0 | O18: 0 | P18: 0 | Q18: 0 | R18: 0 | X18: 0.0 | Y18: 0 | Z18: 0
A19: 10 | B19: ='Wettkampf 1'!B19 -> Harma Steenken | C19: ='Wettkampf 1'!C19 -> Neuvrees II | E19: x | F19: 0 | G19: 0 | H19: 0 | I19: 0 | J19: 0 | K19: 0 | L19: 0 | M19: 0 | N19: 0 | O19: 0 | P19: 0 | Q19: 0 | R19: 0 | X19: 0.0 | Y19: 1 | Z19: 0
A20: 11 | B20: ='Wettkampf 1'!B20 -> Claudia Rolfes | C20: ='Wettkampf 1'!C20 -> Neuvrees II | D20: 303.7 | F20: 303.7 | G20: 0 | H20: 0 | I20: 303.7 | J20: 1 | K20: 0 | L20: 0 | M20: 0 | N20: 0 | O20: 0 | P20: 0 | Q20: 0 | R20: 0 | X20: 0.0 | Y20: 0 | Z20: 0
A21: 12 | B21: ='Wettkampf 1'!B21 -> Silvia Junge | C21: ='Wettkampf 1'!C21 -> Neuvrees II | D21: 301.9 | E21: x | F21: 0 | G21: 0 | H21: 0 | I21: 0 | J21: 0 | K21: 0 | L21: 0 | M21: 0 | N21: 0 | O21: 0 | P21: 0 | Q21: 0 | R21: 0 | X21: 0.0 | Y21: 0 | Z21: 0
A22: 13 | B22: ='Wettkampf 1'!B22 -> Ulla Schnieders | C22: ='Wettkampf 1'!C22 -> Börgermoor I | D22: 310.0 | F22: 310.0 | G22: 0 | H22: 0 | I22: 0 | J22: 0 | K22: 310 | L22: 1 | M22: 0 | N22: 0 | O22: 0 | P22: 0 | Q22: 0 | R22: 0 | X22: 0.0 | Y22: 0 | Z22: 0
A23: 14 | B23: ='Wettkampf 1'!B23 -> Jasmin Kramer | C23: ='Wettkampf 1'!C23 -> Börgermoor I | F23: 0.0 | G23: 0 | H23: 0 | I23: 0 | J23: 0 | K23: 0 | L23: 1 | M23: 0 | N23: 0 | O23: 0 | P23: 0 | Q23: 0 | R23: 0 | X23: 0.0 | Y23: 1 | Z23: 0
A24: 15 | B24: ='Wettkampf 1'!B24 -> Anni Küwen | C24: ='Wettkampf 1'!C24 -> Börgermoor I | D24: 297.6 | F24: 297.6 | G24: 0 | H24: 0 | I24: 0 | J24: 0 | K24: 297.6 | L24: 1 | M24: 0 | N24: 0 | O24: 0 | P24: 0 | Q24: 0 | R24: 0 | X24: 0.0 | Y24: 0 | Z24: 0
A25: 16 | B25: ='Wettkampf 1'!B25 -> Waltraud Dobelmann | C25: ='Wettkampf 1'!C25 -> Börgermoor I | D25: 309.2 | F25: 309.2 | G25: 0 | H25: 0 | I25: 0 | J25: 0 | K25: 309.2 | L25: 1 | M25: 0 | N25: 0 | O25: 0 | P25: 0 | Q25: 0 | R25: 0 | X25: 0.0 | Y25: 0 | Z25: 0
A26: 17 | B26: ='Wettkampf 1'!B26 -> Schütze 17 | C26: ='Wettkampf 1'!C26 -> Börgermoor I | E26: x | F26: 0 | G26: 0 | H26: 0 | I26: 0 | J26: 0 | K26: 0 | L26: 0 | M26: 0 | N26: 0 | O26: 0 | P26: 0 | Q26: 0 | R26: 0 | X26: 0.0 | Y26: 1 | Z26: 0
A27: 18 | B27: ='Wettkampf 1'!B27 -> Schütze 18 | C27: ='Wettkampf 1'!C27 -> Börgermoor I | E27: x | F27: 0 | G27: 0 | H27: 0 | I27: 0 | J27: 0 | K27: 0 | L27: 0 | M27: 0 | N27: 0 | O27: 0 | P27: 0 | Q27: 0 | R27: 0 | X27: 0.0 | Y27: 1 | Z27: 0
A28: 19 | B28: ='Wettkampf 1'!B28 -> Hanna Gebken | C28: ='Wettkampf 1'!C28 -> Lorup III | D28: 305.1 | F28: 305.1 | G28: 0 | H28: 0 | I28: 0 | J28: 0 | K28: 0 | L28: 0 | M28: 305.1 | N28: 1 | O28: 0 | P28: 0 | Q28: 0 | R28: 0 | X28: 0.0 | Y28: 0 | Z28: 0
A29: 20 | B29: ='Wettkampf 1'!B29 -> Monika Reimann | C29: ='Wettkampf 1'!C29 -> Lorup III | D29: 304.8 | F29: 304.8 | G29: 0 | H29: 0 | I29: 0 | J29: 0 | K29: 0 | L29: 0 | M29: 304.8 | N29: 1 | O29: 0 | P29: 0 | Q29: 0 | R29: 0 | X29: 0.0 | Y29: 0 | Z29: 0
A30: 21 | B30: ='Wettkampf 1'!B30 -> Marina Schrand | C30: ='Wettkampf 1'!C30 -> Lorup III | D30: 308.8 | F30: 308.8 | G30: 0 | H30: 0 | I30: 0 | J30: 0 | K30: 0 | L30: 0 | M30: 308.8 | N30: 1 | O30: 0 | P30: 0 | Q30: 0 | R30: 0 | X30: 0.0 | Y30: 0 | Z30: 0
A31: 22 | B31: ='Wettkampf 1'!B31 -> Nadine Krömer | C31: ='Wettkampf 1'!C31 -> Lorup III | D31: 309.8 | F31: 309.8 | G31: 0 | H31: 0 | I31: 0 | J31: 0 | K31: 0 | L31: 0 | M31: 309.8 | N31: 1 | O31: 0 | P31: 0 | Q31: 0 | R31: 0 | X31: 0.0 | Y31: 0 | Z31: 0
A32: 23 | B32: ='Wettkampf 1'!B32 -> Nina Krömer | C32: ='Wettkampf 1'!C32 -> Lorup III | D32: 291.6 | E32: x | F32: 0 | G32: 0 | H32: 0 | I32: 0 | J32: 0 | K32: 0 | L32: 0 | M32: 0 | N32: 0 | O32: 0 | P32: 0 | Q32: 0 | R32: 0 | X32: 0.0 | Y32: 0 | Z32: 0
A33: 24 | B33: ='Wettkampf 1'!B33 -> Margret Büter | C33: ='Wettkampf 1'!C33 -> Lorup III | E33: x | F33: 0 | G33: 0 | H33: 0 | I33: 0 | J33: 0 | K33: 0 | L33: 0 | M33: 0 | N33: 0 | O33: 0 | P33: 0 | Q33: 0 | R33: 0 | X33: 0.0 | Y33: 1 | Z33: 0
A34: 25 | B34: ='Wettkampf 1'!B34 -> Sarah Meiners | C34: ='Wettkampf 1'!C34 -> Ostenwalde II | E34: x | F34: 0 | G34: 0 | H34: 0 | I34: 0 | J34: 0 | K34: 0 | L34: 0 | M34: 0 | N34: 0 | O34: 0 | P34: 0 | Q34: 0 | R34: 0 | X34: 0.0 | Y34: 1 | Z34: 0
A35: 26 | B35: ='Wettkampf 1'!B35 -> Anna Temmen | C35: ='Wettkampf 1'!C35 -> Ostenwalde II | D35: 312.2 | F35: 312.2 | G35: 0 | H35: 0 | I35: 0 | J35: 0 | K35: 0 | L35: 0 | M35: 0 | N35: 0 | O35: 312.2 | P35: 1 | Q35: 0 | R35: 0 | X35: 0.0 | Y35: 0 | Z35: 0
A36: 27 | B36: ='Wettkampf 1'!B36 -> Helga Meiners | C36: ='Wettkampf 1'!C36 -> Ostenwalde II | E36: x | F36: 0 | G36: 0 | H36: 0 | I36: 0 | J36: 0 | K36: 0 | L36: 0 | M36: 0 | N36: 0 | O36: 0 | P36: 0 | Q36: 0 | R36: 0 | X36: 0.0 | Y36: 1 | Z36: 0
A37: 28 | B37: ='Wettkampf 1'!B37 -> Carmen Benten | C37: ='Wettkampf 1'!C37 -> Ostenwalde II | D37: 308.0 | F37: 308.0 | G37: 0 | H37: 0 | I37: 0 | J37: 0 | K37: 0 | L37: 0 | M37: 0 | N37: 0 | O37: 308 | P37: 1 | Q37: 0 | R37: 0 | X37: 0.0 | Y37: 0 | Z37: 0
A38: 29 | B38: ='Wettkampf 1'!B38 -> Anna -Maria Wimberg | C38: ='Wettkampf 1'!C38 -> Ostenwalde II | D38: 296.8 | F38: 296.8 | G38: 0 | H38: 0 | I38: 0 | J38: 0 | K38: 0 | L38: 0 | M38: 0 | N38: 0 | O38: 296.8 | P38: 1 | Q38: 0 | R38: 0 | X38: 0.0 | Y38: 0 | Z38: 0
A39: 30 | B39: ='Wettkampf 1'!B39 -> Evelyn Feder | C39: ='Wettkampf 1'!C39 -> Ostenwalde II | E39: x | F39: 0 | G39: 0 | H39: 0 | I39: 0 | J39: 0 | K39: 0 | L39: 0 | M39: 0 | N39: 0 | O39: 0 | P39: 0 | Q39: 0 | R39: 0 | X39: 0.0 | Y39: 1 | Z39: 0
A40: 31 | B40: ='Wettkampf 1'!B40 -> Monika Jansen | C40: ='Wettkampf 1'!C40 -> Spahnharrenstätte I | D40: 309.9 | F40: 309.9 | G40: 0 | H40: 0 | I40: 0 | J40: 0 | K40: 0 | L40: 0 | M40: 0 | N40: 0 | O40: 0 | P40: 0 | Q40: 309.9 | R40: 1 | X40: 0.0 | Y40: 0 | Z40: 0
A41: 32 | B41: ='Wettkampf 1'!B41 -> Kerstin Sträche | C41: ='Wettkampf 1'!C41 -> Spahnharrenstätte I | D41: 307.3 | F41: 307.3 | G41: 0 | H41: 0 | I41: 0 | J41: 0 | K41: 0 | L41: 0 | M41: 0 | N41: 0 | O41: 0 | P41: 0 | Q41: 307.3 | R41: 1 | X41: 0.0 | Y41: 0 | Z41: 0
A42: 33 | B42: ='Wettkampf 1'!B42 -> Rita Hanekamp | C42: ='Wettkampf 1'!C42 -> Spahnharrenstätte I | D42: 291.8 | F42: 291.8 | G42: 0 | H42: 0 | I42: 0 | J42: 0 | K42: 0 | L42: 0 | M42: 0 | N42: 0 | O42: 0 | P42: 0 | Q42: 291.8 | R42: 1 | X42: 0.0 | Y42: 0 | Z42: 0
A43: 34 | B43: ='Wettkampf 1'!B43 -> Maria Beusing | C43: ='Wettkampf 1'!C43 -> Spahnharrenstätte I | D43: 307.0 | F43: 307.0 | G43: 0 | H43: 0 | I43: 0 | J43: 0 | K43: 0 | L43: 0 | M43: 0 | N43: 0 | O43: 0 | P43: 0 | Q43: 307 | R43: 1 | X43: 0.0 | Y43: 0 | Z43: 0
A44: 35 | B44: ='Wettkampf 1'!B44 -> Schütze 35 | C44: ='Wettkampf 1'!C44 -> Spahnharrenstätte I | E44: x | F44: 0 | G44: 0 | H44: 0 | I44: 0 | J44: 0 | K44: 0 | L44: 0 | M44: 0 | N44: 0 | O44: 0 | P44: 0 | Q44: 0 | R44: 0 | X44: 0.0 | Y44: 1 | Z44: 0
A45: 36 | B45: ='Wettkampf 1'!B45 -> Schütze 36 | C45: ='Wettkampf 1'!C45 -> Spahnharrenstätte I | E45: x | F45: 0 | G45: 0 | H45: 0 | I45: 0 | J45: 0 | K45: 0 | L45: 0 | M45: 0 | N45: 0 | O45: 0 | P45: 0 | Q45: 0 | R45: 0 | X45: 0.0 | Y45: 1 | Z45: 0
G46: =LARGE(G10:G45,1)+LARGE(G10:G45,2)+LARGE(G10:G45,3) -> 928.7 | H46: =SUM(H10:H45) -> 4 | I46: =LARGE(I10:I45,1)+LARGE(I10:I45,2)+LARGE(I10:I45,3) -> 913.5 | J46: =SUM(J10:J45) -> 4 | K46: =LARGE(K10:K45,1)+LARGE(K10:K45,2)+LARGE(K10:K45,3) -> 916.8 | L46: =SUM(L10:L45) -> 4 | M46: =LARGE(M10:M45,1)+LARGE(M10:M45,2)+LARGE(M10:M45,3) -> 923.7 | N46: =SUM(N10:N45) -> 4 | O46: =LARGE(O10:O45,1)+LARGE(O10:O45,2)+LARGE(O10:O45,3) -> 917 | P46: =SUM(P10:P45) -> 3 | Q46: =LARGE(Q10:Q45,1)+LARGE(Q10:Q45,2)+LARGE(Q10:Q45,3) -> 924.2 | R46: =SUM(R10:S45) -> 4
C47: per Email an: sk-huemmling@gmx.de

Sheet 12
B1: Verein / Gruppe | D1: Ergebnisse | V1: Austragungsort: | W1: =Übersicht!Q4 -> Spahnharrenstätte
A2: 1 | B2: ='Wettkampf 1'!B2 -> Börger II | D2: =G46 -> 0.0 | E2: =IF(H46>4,"Es sind zu viele Schützen in Wertung!"," ") -> Es sind zu viele Schützen in Wertung! | V2: Wettkampftag: | W2: =Übersicht!Q3 -> 23.03.
A3: 2 | B3: ='Wettkampf 1'!B3 -> Neuvrees II | D3: =I46 -> 0.0 | E3: =IF(J46>4,"Es sind zu viele Schützen in Wertung!"," ") -> Es sind zu viele Schützen in Wertung!
A4: 3 | B4: ='Wettkampf 1'!B4 -> Börgermoor I | D4: =K46 -> 0.0 | E4: =IF(L46>4,"Es sind zu viele Schützen in Wertung!"," ") -> Es sind zu viele Schützen in Wertung! | X4: Ansprechpartner für Rückfragen:
A5: 4 | B5: ='Wettkampf 1'!B5 -> Lorup III | D5: =M46 -> 0.0 | E5: =IF(N46>4,"Es sind zu viele Schützen in Wertung!"," ") -> Es sind zu viele Schützen in Wertung! | V5: Name:
A6: 5 | B6: ='Wettkampf 1'!B6 -> Ostenwalde II | D6: =O46 -> 0.0 | E6: =IF(P46>4,"Es sind zu viele Schützen in Wertung!"," ") -> Es sind zu viele Schützen in Wertung! | V6: Tel:
A7: 6 | B7: ='Wettkampf 1'!B7 -> Spahnharrenstätte I | D7: =Q46 -> 0.0 | E7: =IF(R46>4,"Es sind zu viele Schützen in Wertung!"," ") -> Es sind zu viele Schützen in Wertung! | V7: Standaufsicht: | W7: eintragen
B9: Einzelergebnisse: | C9: Verein / Gruppe | D9: Ergebnisse (mindestens 0 eintragen) | E9: AW? Dann x eintippen | G9: Verein 1 | I9: Verein 2 | K9: Verein 3 | M9: Verein 4 | O9: Verein 5 | Q9: Verein 6 | U9: Proberechnung bei Streifen:
A10: 1 | B10: ='Wettkampf 1'!B10 -> Gertrud Kuchta | C10: ='Wettkampf 1'!C10 -> Börger II | F10: =IF(E10="x","0",D10) -> 0.0 | G10: =IF(C10=$B$2,F10,0) -> 0 | H10: =(IF(AND($E10="",$C10=$B$2),1,0)) -> 1 | I10: =IF($C10=$B$3,F10,0) -> 0 | J10: =(IF(AND($E10="",$C10=$B$3),1,0)) -> 0 | K10: =IF($C10=$B$4,F10,0) -> 0 | L10: =(IF(AND($E10="",$C10=$B$4),1,0)) -> 0 | M10: =IF($C10=$B$5,F10,0) -> 0 | N10: =(IF(AND($E10="",$C10=$B$5),1,0)) -> 0 | O10: =IF($C10=$B$6,F10,0) -> 0 | P10: =(IF(AND($E10="",$C10=$B$6),1,0)) -> 0 | Q10: =IF($C10=$B$7,F10,0) -> 0 | R10: =(IF(AND($E10="",$C10=$B$7),1,0)) -> 0 | X10: =U10+V10+W10 -> 0.0 | Y10: =IF(X10=D10,1,0) -> 1 | Z10: =IF(X10=0,0,1) -> 0 | AA10: =IF(Y10+Z10=2,"Korrekt","") -> 
A11: 2 | B11: ='Wettkampf 1'!B11 -> Sarah Breer | C11: ='Wettkampf 1'!C11 -> Börger II | F11: =IF(E11="x","0",D11) -> 0.0 | G11: =IF(C11=$B$2,F11,0) -> 0 | H11: =(IF(AND($E11="",$C11=$B$2),1,0)) -> 1 | I11: =IF($C11=$B$3,F11,0) -> 0 | J11: =(IF(AND($E11="",$C11=$B$3),1,0)) -> 0 | K11: =IF($C11=$B$4,F11,0) -> 0 | L11: =(IF(AND($E11="",$C11=$B$4),1,0)) -> 0 | M11: =IF($C11=$B$5,F11,0) -> 0 | N11: =(IF(AND($E11="",$C11=$B$5),1,0)) -> 0 | O11: =IF($C11=$B$6,F11,0) -> 0 | P11: =(IF(AND($E11="",$C11=$B$6),1,0)) -> 0 | Q11: =IF($C11=$B$7,F11,0) -> 0 | R11: =(IF(AND($E11="",$C11=$B$7),1,0)) -> 0 | X11: =U11+V11+W11 -> 0.0 | Y11: =IF(X11=D11,1,0) -> 1 | Z11: =IF(X11=0,0,1) -> 0 | AA11: =IF(Y11+Z11=2,"Korrekt","") -> 
A12: 3 | B12: ='Wettkampf 1'!B12 -> Margret Pohlgeers | C12: ='Wettkampf 1'!C12 -> Börger II | F12: 0.0 | G12: 0 | H12: 1 | I12: 0 | J12: 0 | K12: 0 | L12: 0 | M12: 0 | N12: 0 | O12: 0 | P12: 0 | Q12: 0 | R12: 0 | X12: 0.0 | Y12: 1 | Z12: 0
A13: 4 | B13: ='Wettkampf 1'!B13 -> Gundula Schwarte | C13: ='Wettkampf 1'!C13 -> Börger II | F13: 0.0 | G13: 0 | H13: 1 | I13: 0 | J13: 0 | K13: 0 | L13: 0 | M13: 0 | N13: 0 | O13: 0 | P13: 0 | Q13: 0 | R13: 0 | X13: 0.0 | Y13: 1 | Z13: 0
A14: 5 | B14: ='Wettkampf 1'!B14 -> Annette Schwarte | C14: ='Wettkampf 1'!C14 -> Börger II | F14: 0.0 | G14: 0 | H14: 1 | I14: 0 | J14: 0 | K14: 0 | L14: 0 | M14: 0 | N14: 0 | O14: 0 | P14: 0 | Q14: 0 | R14: 0 | X14: 0.0 | Y14: 1 | Z14: 0
A15: 6 | B15: ='Wettkampf 1'!B15 -> Petra Dödtmann | C15: ='Wettkampf 1'!C15 -> Börger II | F15: 0.0 | G15: 0 | H15: 1 | I15: 0 | J15: 0 | K15: 0 | L15: 0 | M15: 0 | N15: 0 | O15: 0 | P15: 0 | Q15: 0 | R15: 0 | X15: 0.0 | Y15: 1 | Z15: 0
A16: 7 | B16: ='Wettkampf 1'!B16 -> Sarah Deyen | C16: ='Wettkampf 1'!C16 -> Neuvrees II | F16: 0.0 | G16: 0 | H16: 0 | I16: 0 | J16: 1 | K16: 0 | L16: 0 | M16: 0 | N16: 0 | O16: 0 | P16: 0 | Q16: 0 | R16: 0 | X16: 0.0 | Y16: 1 | Z16: 0
A17: 8 | B17: ='Wettkampf 1'!B17 -> Silvia Thunert | C17: ='Wettkampf 1'!C17 -> Neuvrees II | F17: 0.0 | G17: 0 | H17: 0 | I17: 0 | J17: 1 | K17: 0 | L17: 0 | M17: 0 | N17: 0 | O17: 0 | P17: 0 | Q17: 0 | R17: 0 | X17: 0.0 | Y17: 1 | Z17: 0
A18: 9 | B18: ='Wettkampf 1'!B18 -> Margret Pohlmann | C18: ='Wettkampf 1'!C18 -> Neuvrees II | F18: 0.0 | G18: 0 | H18: 0 | I18: 0 | J18: 1 | K18: 0 | L18: 0 | M18: 0 | N18: 0 | O18: 0 | P18: 0 | Q18: 0 | R18: 0 | X18: 0.0 | Y18: 1 | Z18: 0
A19: 10 | B19: ='Wettkampf 1'!B19 -> Harma Steenken | C19: ='Wettkampf 1'!C19 -> Neuvrees II | F19: 0.0 | G19: 0 | H19: 0 | I19: 0 | J19: 1 | K19: 0 | L19: 0 | M19: 0 | N19: 0 | O19: 0 | P19: 0 | Q19: 0 | R19: 0 | X19: 0.0 | Y19: 1 | Z19: 0
A20: 11 | B20: ='Wettkampf 1'!B20 -> Claudia Rolfes | C20: ='Wettkampf 1'!C20 -> Neuvrees II | F20: 0.0 | G20: 0 | H20: 0 | I20: 0 | J20: 1 | K20: 0 | L20: 0 | M20: 0 | N20: 0 | O20: 0 | P20: 0 | Q20: 0 | R20: 0 | X20: 0.0 | Y20: 1 | Z20: 0
A21: 12 | B21: ='Wettkampf 1'!B21 -> Silvia Junge | C21: ='Wettkampf 1'!C21 -> Neuvrees II | F21: 0.0 | G21: 0 | H21: 0 | I21: 0 | J21: 1 | K21: 0 | L21: 0 | M21: 0 | N21: 0 | O21: 0 | P21: 0 | Q21: 0 | R21: 0 | X21: 0.0 | Y21: 1 | Z21: 0
A22: 13 | B22: ='Wettkampf 1'!B22 -> Ulla Schnieders | C22: ='Wettkampf 1'!C22 -> Börgermoor I | F22: 0.0 | G22: 0 | H22: 0 | I22: 0 | J22: 0 | K22: 0 | L22: 1 | M22: 0 | N22: 0 | O22: 0 | P22: 0 | Q22: 0 | R22: 0 | X22: 0.0 | Y22: 1 | Z22: 0
A23: 14 | B23: ='Wettkampf 1'!B23 -> Jasmin Kramer | C23: ='Wettkampf 1'!C23 -> Börgermoor I | F23: 0.0 | G23: 0 | H23: 0 | I23: 0 | J23: 0 | K23: 0 | L23: 1 | M23: 0 | N23: 0 | O23: 0 | P23: 0 | Q23: 0 | R23: 0 | X23: 0.0 | Y23: 1 | Z23: 0
A24: 15 | B24: ='Wettkampf 1'!B24 -> Anni Küwen | C24: ='Wettkampf 1'!C24 -> Börgermoor I | F24: 0.0 | G24: 0 | H24: 0 | I24: 0 | J24: 0 | K24: 0 | L24: 1 | M24: 0 | N24: 0 | O24: 0 | P24: 0 | Q24: 0 | R24: 0 | X24: 0.0 | Y24: 1 | Z24: 0
A25: 16 | B25: ='Wettkampf 1'!B25 -> Waltraud Dobelmann | C25: ='Wettkampf 1'!C25 -> Börgermoor I | F25: 0.0 | G25: 0 | H25: 0 | I25: 0 | J25: 0 | K25: 0 | L25: 1 | M25: 0 | N25: 0 | O25: 0 | P25: 0 | Q25: 0 | R25: 0 | X25: 0.0 | Y25: 1 | Z25: 0
A26: 17 | B26: ='Wettkampf 1'!B26 -> Schütze 17 | C26: ='Wettkampf 1'!C26 -> Börgermoor I | F26: 0.0 | G26: 0 | H26: 0 | I26: 0 | J26: 0 | K26: 0 | L26: 1 | M26: 0 | N26: 0 | O26: 0 | P26: 0 | Q26: 0 | R26: 0 | X26: 0.0 | Y26: 1 | Z26: 0
A27: 18 | B27: ='Wettkampf 1'!B27 -> Schütze 18 | C27: ='Wettkampf 1'!C27 -> Börgermoor I | F27: 0.0 | G27: 0 | H27: 0 | I27: 0 | J27: 0 | K27: 0 | L27: 1 | M27: 0 | N27: 0 | O27: 0 | P27: 0 | Q27: 0 | R27: 0 | X27: 0.0 | Y27: 1 | Z27: 0
A28: 19 | B28: ='Wettkampf 1'!B28 -> Hanna Gebken | C28: ='Wettkampf 1'!C28 -> Lorup III | F28: 0.0 | G28: 0 | H28: 0 | I28: 0 | J28: 0 | K28: 0 | L28: 0 | M28: 0 | N28: 1 | O28: 0 | P28: 0 | Q28: 0 | R28: 0 | X28: 0.0 | Y28: 1 | Z28: 0
A29: 20 | B29: ='Wettkampf 1'!B29 -> Monika Reimann | C29: ='Wettkampf 1'!C29 -> Lorup III | F29: 0.0 | G29: 0 | H29: 0 | I29: 0 | J29: 0 | K29: 0 | L29: 0 | M29: 0 | N29: 1 | O29: 0 | P29: 0 | Q29: 0 | R29: 0 | X29: 0.0 | Y29: 1 | Z29: 0
A30: 21 | B30: ='Wettkampf 1'!B30 -> Marina Schrand | C30: ='Wettkampf 1'!C30 -> Lorup III | F30: 0.0 | G30: 0 | H30: 0 | I30: 0 | J30: 0 | K30: 0 | L30: 0 | M30: 0 | N30: 1 | O30: 0 | P30: 0 | Q30: 0 | R30: 0 | X30: 0.0 | Y30: 1 | Z30: 0
A31: 22 | B31: ='Wettkampf 1'!B31 -> Nadine Krömer | C31: ='Wettkampf 1'!C31 -> Lorup III | F31: 0.0 | G31: 0 | H31: 0 | I31: 0 | J31: 0 | K31: 0 | L31: 0 | M31: 0 | N31: 1 | O31: 0 | P31: 0 | Q31: 0 | R31: 0 | X31: 0.0 | Y31: 1 | Z31: 0
A32: 23 | B32: ='Wettkampf 1'!B32 -> Nina Krömer | C32: ='Wettkampf 1'!C32 -> Lorup III | F32: 0.0 | G32: 0 | H32: 0 | I32: 0 | J32: 0 | K32: 0 | L32: 0 | M32: 0 | N32: 1 | O32: 0 | P32: 0 | Q32: 0 | R32: 0 | X32: 0.0 | Y32: 1 | Z32: 0
A33: 24 | B33: ='Wettkampf 1'!B33 -> Margret Büter | C33: ='Wettkampf 1'!C33 -> Lorup III | F33: 0.0 | G33: 0 | H33: 0 | I33: 0 | J33: 0 | K33: 0 | L33: 0 | M33: 0 | N33: 1 | O33: 0 | P33: 0 | Q33: 0 | R33: 0 | X33: 0.0 | Y33: 1 | Z33: 0
A34: 25 | B34: ='Wettkampf 1'!B34 -> Sarah Meiners | C34: ='Wettkampf 1'!C34 -> Ostenwalde II | F34: 0.0 | G34: 0 | H34: 0 | I34: 0 | J34: 0 | K34: 0 | L34: 0 | M34: 0 | N34: 0 | O34: 0 | P34: 1 | Q34: 0 | R34: 0 | X34: 0.0 | Y34: 1 | Z34: 0
A35: 26 | B35: ='Wettkampf 1'!B35 -> Anna Temmen | C35: ='Wettkampf 1'!C35 -> Ostenwalde II | F35: 0.0 | G35: 0 | H35: 0 | I35: 0 | J35: 0 | K35: 0 | L35: 0 | M35: 0 | N35: 0 | O35: 0 | P35: 1 | Q35: 0 | R35: 0 | X35: 0.0 | Y35: 1 | Z35: 0
A36: 27 | B36: ='Wettkampf 1'!B36 -> Helga Meiners | C36: ='Wettkampf 1'!C36 -> Ostenwalde II | F36: 0.0 | G36: 0 | H36: 0 | I36: 0 | J36: 0 | K36: 0 | L36: 0 | M36: 0 | N36: 0 | O36: 0 | P36: 1 | Q36: 0 | R36: 0 | X36: 0.0 | Y36: 1 | Z36: 0
A37: 28 | B37: ='Wettkampf 1'!B37 -> Carmen Benten | C37: ='Wettkampf 1'!C37 -> Ostenwalde II | F37: 0.0 | G37: 0 | H37: 0 | I37: 0 | J37: 0 | K37: 0 | L37: 0 | M37: 0 | N37: 0 | O37: 0 | P37: 1 | Q37: 0 | R37: 0 | X37: 0.0 | Y37: 1 | Z37: 0
A38: 29 | B38: ='Wettkampf 1'!B38 -> Anna -Maria Wimberg | C38: ='Wettkampf 1'!C38 -> Ostenwalde II | F38: 0.0 | G38: 0 | H38: 0 | I38: 0 | J38: 0 | K38: 0 | L38: 0 | M38: 0 | N38: 0 | O38: 0 | P38: 1 | Q38: 0 | R38: 0 | X38: 0.0 | Y38: 1 | Z38: 0
A39: 30 | B39: ='Wettkampf 1'!B39 -> Evelyn Feder | C39: ='Wettkampf 1'!C39 -> Ostenwalde II | F39: 0.0 | G39: 0 | H39: 0 | I39: 0 | J39: 0 | K39: 0 | L39: 0 | M39: 0 | N39: 0 | O39: 0 | P39: 1 | Q39: 0 | R39: 0 | X39: 0.0 | Y39: 1 | Z39: 0
A40: 31 | B40: ='Wettkampf 1'!B40 -> Monika Jansen | C40: ='Wettkampf 1'!C40 -> Spahnharrenstätte I | F40: 0.0 | G40: 0 | H40: 0 | I40: 0 | J40: 0 | K40: 0 | L40: 0 | M40: 0 | N40: 0 | O40: 0 | P40: 0 | Q40: 0 | R40: 1 | X40: 0.0 | Y40: 1 | Z40: 0
A41: 32 | B41: ='Wettkampf 1'!B41 -> Kerstin Sträche | C41: ='Wettkampf 1'!C41 -> Spahnharrenstätte I | F41: 0.0 | G41: 0 | H41: 0 | I41: 0 | J41: 0 | K41: 0 | L41: 0 | M41: 0 | N41: 0 | O41: 0 | P41: 0 | Q41: 0 | R41: 1 | X41: 0.0 | Y41: 1 | Z41: 0
A42: 33 | B42: ='Wettkampf 1'!B42 -> Rita Hanekamp | C42: ='Wettkampf 1'!C42 -> Spahnharrenstätte I | F42: 0.0 | G42: 0 | H42: 0 | I42: 0 | J42: 0 | K42: 0 | L42: 0 | M42: 0 | N42: 0 | O42: 0 | P42: 0 | Q42: 0 | R42: 1 | X42: 0.0 | Y42: 1 | Z42: 0
A43: 34 | B43: ='Wettkampf 1'!B43 -> Maria Beusing | C43: ='Wettkampf 1'!C43 -> Spahnharrenstätte I | F43: 0.0 | G43: 0 | H43: 0 | I43: 0 | J43: 0 | K43: 0 | L43: 0 | M43: 0 | N43: 0 | O43: 0 | P43: 0 | Q43: 0 | R43: 1 | X43: 0.0 | Y43: 1 | Z43: 0
A44: 35 | B44: ='Wettkampf 1'!B44 -> Schütze 35 | C44: ='Wettkampf 1'!C44 -> Spahnharrenstätte I | F44: 0.0 | G44: 0 | H44: 0 | I44: 0 | J44: 0 | K44: 0 | L44: 0 | M44: 0 | N44: 0 | O44: 0 | P44: 0 | Q44: 0 | R44: 1 | X44: 0.0 | Y44: 1 | Z44: 0
A45: 36 | B45: ='Wettkampf 1'!B45 -> Schütze 36 | C45: ='Wettkampf 1'!C45 -> Spahnharrenstätte I | F45: 0.0 | G45: 0 | H45: 0 | I45: 0 | J45: 0 | K45: 0 | L45: 0 | M45: 0 | N45: 0 | O45: 0 | P45: 0 | Q45: 0 | R45: 1 | X45: 0.0 | Y45: 1 | Z45: 0
G46: =LARGE(G10:G45,1)+LARGE(G10:G45,2)+LARGE(G10:G45,3) -> 0 | H46: =SUM(H10:H45) -> 6 | I46: =LARGE(I10:I45,1)+LARGE(I10:I45,2)+LARGE(I10:I45,3) -> 0 | J46: =SUM(J10:J45) -> 6 | K46: =LARGE(K10:K45,1)+LARGE(K10:K45,2)+LARGE(K10:K45,3) -> 0 | L46: =SUM(L10:L45) -> 6 | M46: =LARGE(M10:M45,1)+LARGE(M10:M45,2)+LARGE(M10:M45,3) -> 0 | N46: =SUM(N10:N45) -> 6 | O46: =LARGE(O10:O45,1)+LARGE(O10:O45,2)+LARGE(O10:O45,3) -> 0 | P46: =SUM(P10:P45) -> 6 | Q46: =LARGE(Q10:Q45,1)+LARGE(Q10:Q45,2)+LARGE(Q10:Q45,3) -> 0 | R46: =SUM(R10:S45) -> 6
C47: per Email an: sk-huemmling@gmx.de

Sheet Ausdruck
B1: Verein / Gruppe | C1: Ergebnisse | D1: =Übersicht!K1 -> 2024/2025 | X1: Austragungsort:
A2: 1 | B2: ='Wettkampf 1'!B2 -> Börger II | D2: Klasse: | X2: Wettkampftag:
A3: 2 | B3: ='Wettkampf 1'!B3 -> Neuvrees II | D3: =Übersicht!M1 -> 3. Kreisklasse
A4: 3 | B4: ='Wettkampf 1'!B4 -> Börgermoor I | D4: =Übersicht!P1 -> Damen | Z4: Ansprechpartner für Rückfragen:
A5: 4 | B5: ='Wettkampf 1'!B5 -> Lorup III | X5: Name:
A6: 5 | B6: ='Wettkampf 1'!B6 -> Ostenwalde II | X6: Tel:
A7: 6 | B7: ='Wettkampf 1'!B7 -> Spahnharrenstätte I | X7: Standaufsicht:
B9: Name Schütze | C9: Verein/Gruppe | D9: Ergebnis | E9: AW? | G9: Verein 1 | I9: Verein 2 | K9: Verein 3 | M9: Verein 4 | O9: Verein 5 | Q9: Verein 6 | U9: Geburts-datum | W9: Proberechnung bei Streifen:
A10: 1 | B10: ='Wettkampf 1'!B10 -> Gertrud Kuchta | C10: ='Wettkampf 1'!C10 -> Börger II | F10: =IF(E10="x","0",D10) -> 0 | G10: =IF(C10=$B$2,F10,0) -> 0 | H10: =(IF(AND($E10="",$C10=$B$2),1,0)) -> 1 | I10: =IF($C10=$B$3,F10,0) -> 0 | J10: =(IF(AND($E10="",$C10=$B$3),1,0)) -> 0 | K10: =IF($C10=$B$4,F10,0) -> 0 | L10: =(IF(AND($E10="",$C10=$B$4),1,0)) -> 0 | M10: =IF($C10=$B$5,F10,0) -> 0 | N10: =(IF(AND($E10="",$C10=$B$5),1,0)) -> 0 | O10: =IF($C10=$B$6,F10,0) -> 0 | P10: =(IF(AND($E10="",$C10=$B$6),1,0)) -> 0 | Q10: =IF($C10=$B$7,F10,0) -> 0 | R10: =(IF(AND($E10="",$C10=$B$7),1,0)) -> 0 | AA10: =IF(Z10=D10,1,0) -> 1 | AB10: =IF(Z10=0,0,1) -> 0 | AC10: =IF(AA10+AB10=2,"Korrekt","") -> 
A11: 2 | B11: ='Wettkampf 1'!B11 -> Sarah Breer | C11: ='Wettkampf 1'!C11 -> Börger II | F11: =IF(E11="x","0",D11) -> 0 | G11: =IF(C11=$B$2,F11,0) -> 0 | H11: =(IF(AND($E11="",$C11=$B$2),1,0)) -> 1 | I11: =IF($C11=$B$3,F11,0) -> 0 | J11: =(IF(AND($E11="",$C11=$B$3),1,0)) -> 0 | K11: =IF($C11=$B$4,F11,0) -> 0 | L11: =(IF(AND($E11="",$C11=$B$4),1,0)) -> 0 | M11: =IF($C11=$B$5,F11,0) -> 0 | N11: =(IF(AND($E11="",$C11=$B$5),1,0)) -> 0 | O11: =IF($C11=$B$6,F11,0) -> 0 | P11: =(IF(AND($E11="",$C11=$B$6),1,0)) -> 0 | Q11: =IF($C11=$B$7,F11,0) -> 0 | R11: =(IF(AND($E11="",$C11=$B$7),1,0)) -> 0 | AA11: =IF(Z11=D11,1,0) -> 1 | AB11: =IF(Z11=0,0,1) -> 0 | AC11: =IF(AA11+AB11=2,"Korrekt","") -> 
A12: 3 | B12: ='Wettkampf 1'!B12 -> Margret Pohlgeers | C12: ='Wettkampf 1'!C12 -> Börger II | F12: 0 | G12: 0 | H12: 1 | I12: 0 | J12: 0 | K12: 0 | L12: 0 | M12: 0 | N12: 0 | O12: 0 | P12: 0 | Q12: 0 | R12: 0 | AA12: 1 | AB12: 0
A13: 4 | B13: ='Wettkampf 1'!B13 -> Gundula Schwarte | C13: ='Wettkampf 1'!C13 -> Börger II | F13: 0 | G13: 0 | H13: 1 | I13: 0 | J13: 0 | K13: 0 | L13: 0 | M13: 0 | N13: 0 | O13: 0 | P13: 0 | Q13: 0 | R13: 0 | AA13: 1 | AB13: 0
A14: 5 | B14: ='Wettkampf 1'!B14 -> Annette Schwarte | C14: ='Wettkampf 1'!C14 -> Börger II | F14: 0 | G14: 0 | H14: 1 | I14: 0 | J14: 0 | K14: 0 | L14: 0 | M14: 0 | N14: 0 | O14: 0 | P14: 0 | Q14: 0 | R14: 0 | AA14: 1 | AB14: 0
A15: 6 | B15: ='Wettkampf 1'!B15 -> Petra Dödtmann | C15: ='Wettkampf 1'!C15 -> Börger II | F15: 0 | G15: 0 | H15: 1 | I15: 0 | J15: 0 | K15: 0 | L15: 0 | M15: 0 | N15: 0 | O15: 0 | P15: 0 | Q15: 0 | R15: 0 | AA15: 1 | AB15: 0
A16: 7 | B16: ='Wettkampf 1'!B16 -> Sarah Deyen | C16: ='Wettkampf 1'!C16 -> Neuvrees II | F16: 0 | G16: 0 | H16: 0 | I16: 0 | J16: 1 | K16: 0 | L16: 0 | M16: 0 | N16: 0 | O16: 0 | P16: 0 | Q16: 0 | R16: 0 | AA16: 1 | AB16: 0
A17: 8 | B17: ='Wettkampf 1'!B17 -> Silvia Thunert | C17: ='Wettkampf 1'!C17 -> Neuvrees II | F17: 0 | G17: 0 | H17: 0 | I17: 0 | J17: 1 | K17: 0 | L17: 0 | M17: 0 | N17: 0 | O17: 0 | P17: 0 | Q17: 0 | R17: 0 | AA17: 1 | AB17: 0
A18: 9 | B18: ='Wettkampf 1'!B18 -> Margret Pohlmann | C18: ='Wettkampf 1'!C18 -> Neuvrees II | F18: 0 | G18: 0 | H18: 0 | I18: 0 | J18: 1 | K18: 0 | L18: 0 | M18: 0 | N18: 0 | O18: 0 | P18: 0 | Q18: 0 | R18: 0 | AA18: 1 | AB18: 0
A19: 10 | B19: ='Wettkampf 1'!B19 -> Harma Steenken | C19: ='Wettkampf 1'!C19 -> Neuvrees II | F19: 0 | G19: 0 | H19: 0 | I19: 0 | J19: 1 | K19: 0 | L19: 0 | M19: 0 | N19: 0 | O19: 0 | P19: 0 | Q19: 0 | R19: 0 | AA19: 1 | AB19: 0
A20: 11 | B20: ='Wettkampf 1'!B20 -> Claudia Rolfes | C20: ='Wettkampf 1'!C20 -> Neuvrees II | F20: 0 | G20: 0 | H20: 0 | I20: 0 | J20: 1 | K20: 0 | L20: 0 | M20: 0 | N20: 0 | O20: 0 | P20: 0 | Q20: 0 | R20: 0 | AA20: 1 | AB20: 0
A21: 12 | B21: ='Wettkampf 1'!B21 -> Silvia Junge | C21: ='Wettkampf 1'!C21 -> Neuvrees II | F21: 0 | G21: 0 | H21: 0 | I21: 0 | J21: 1 | K21: 0 | L21: 0 | M21: 0 | N21: 0 | O21: 0 | P21: 0 | Q21: 0 | R21: 0 | AA21: 1 | AB21: 0
A22: 13 | B22: ='Wettkampf 1'!B22 -> Ulla Schnieders | C22: ='Wettkampf 1'!C22 -> Börgermoor I | F22: 0 | G22: 0 | H22: 0 | I22: 0 | J22: 0 | K22: 0 | L22: 1 | M22: 0 | N22: 0 | O22: 0 | P22: 0 | Q22: 0 | R22: 0 | AA22: 1 | AB22: 0
A23: 14 | B23: ='Wettkampf 1'!B23 -> Jasmin Kramer | C23: ='Wettkampf 1'!C23 -> Börgermoor I | F23: 0 | G23: 0 | H23: 0 | I23: 0 | J23: 0 | K23: 0 | L23: 1 | M23: 0 | N23: 0 | O23: 0 | P23: 0 | Q23: 0 | R23: 0 | AA23: 1 | AB23: 0
A24: 15 | B24: ='Wettkampf 1'!B24 -> Anni Küwen | C24: ='Wettkampf 1'!C24 -> Börgermoor I | F24: 0 | G24: 0 | H24: 0 | I24: 0 | J24: 0 | K24: 0 | L24: 1 | M24: 0 | N24: 0 | O24: 0 | P24: 0 | Q24: 0 | R24: 0 | AA24: 1 | AB24: 0
A25: 16 | B25: ='Wettkampf 1'!B25 -> Waltraud Dobelmann | C25: ='Wettkampf 1'!C25 -> Börgermoor I | F25: 0 | G25: 0 | H25: 0 | I25: 0 | J25: 0 | K25: 0 | L25: 1 | M25: 0 | N25: 0 | O25: 0 | P25: 0 | Q25: 0 | R25: 0 | AA25: 1 | AB25: 0
A26: 17 | B26: ='Wettkampf 1'!B26 -> Schütze 17 | C26: ='Wettkampf 1'!C26 -> Börgermoor I | F26: 0 | G26: 0 | H26: 0 | I26: 0 | J26: 0 | K26: 0 | L26: 1 | M26: 0 | N26: 0 | O26: 0 | P26: 0 | Q26: 0 | R26: 0 | AA26: 1 | AB26: 0
A27: 18 | B27: ='Wettkampf 1'!B27 -> Schütze 18 | C27: ='Wettkampf 1'!C27 -> Börgermoor I | F27: 0 | G27: 0 | H27: 0 | I27: 0 | J27: 0 | K27: 0 | L27: 1 | M27: 0 | N27: 0 | O27: 0 | P27: 0 | Q27: 0 | R27: 0 | AA27: 1 | AB27: 0
A28: 19 | B28: ='Wettkampf 1'!B28 -> Hanna Gebken | C28: ='Wettkampf 1'!C28 -> Lorup III | F28: 0 | G28: 0 | H28: 0 | I28: 0 | J28: 0 | K28: 0 | L28: 0 | M28: 0 | N28: 1 | O28: 0 | P28: 0 | Q28: 0 | R28: 0 | AA28: 1 | AB28: 0
A29: 20 | B29: ='Wettkampf 1'!B29 -> Monika Reimann | C29: ='Wettkampf 1'!C29 -> Lorup III | F29: 0 | G29: 0 | H29: 0 | I29: 0 | J29: 0 | K29: 0 | L29: 0 | M29: 0 | N29: 1 | O29: 0 | P29: 0 | Q29: 0 | R29: 0 | AA29: 1 | AB29: 0
A30: 21 | B30: ='Wettkampf 1'!B30 -> Marina Schrand | C30: ='Wettkampf 1'!C30 -> Lorup III | F30: 0 | G30: 0 | H30: 0 | I30: 0 | J30: 0 | K30: 0 | L30: 0 | M30: 0 | N30: 1 | O30: 0 | P30: 0 | Q30: 0 | R30: 0 | AA30: 1 | AB30: 0
A31: 22 | B31: ='Wettkampf 1'!B31 -> Nadine Krömer | C31: ='Wettkampf 1'!C31 -> Lorup III | F31: 0 | G31: 0 | H31: 0 | I31: 0 | J31: 0 | K31: 0 | L31: 0 | M31: 0 | N31: 1 | O31: 0 | P31: 0 | Q31: 0 | R31: 0 | AA31: 1 | AB31: 0
A32: 23 | B32: ='Wettkampf 1'!B32 -> Nina Krömer | C32: ='Wettkampf 1'!C32 -> Lorup III | F32: 0 | G32: 0 | H32: 0 | I32: 0 | J32: 0 | K32: 0 | L32: 0 | M32: 0 | N32: 1 | O32: 0 | P32: 0 | Q32: 0 | R32: 0 | AA32: 1 | AB32: 0
A33: 24 | B33: ='Wettkampf 1'!B33 -> Margret Büter | C33: ='Wettkampf 1'!C33 -> Lorup III | F33: 0 | G33: 0 | H33: 0 | I33: 0 | J33: 0 | K33: 0 | L33: 0 | M33: 0 | N33: 1 | O33: 0 | P33: 0 | Q33: 0 | R33: 0 | AA33: 1 | AB33: 0
A34: 25 | B34: ='Wettkampf 1'!B34 -> Sarah Meiners | C34: ='Wettkampf 1'!C34 -> Ostenwalde II | F34: 0 | G34: 0 | H34: 0 | I34: 0 | J34: 0 | K34: 0 | L34: 0 | M34: 0 | N34: 0 | O34: 0 | P34: 1 | Q34: 0 | R34: 0 | AA34: 1 | AB34: 0
A35: 26 | B35: ='Wettkampf 1'!B35 -> Anna Temmen | C35: ='Wettkampf 1'!C35 -> Ostenwalde II | F35: 0 | G35: 0 | H35: 0 | I35: 0 | J35: 0 | K35: 0 | L35: 0 | M35: 0 | N35: 0 | O35: 0 | P35: 1 | Q35: 0 | R35: 0 | AA35: 1 | AB35: 0
A36: 27 | B36: ='Wettkampf 1'!B36 -> Helga Meiners | C36: ='Wettkampf 1'!C36 -> Ostenwalde II | F36: 0 | G36: 0 | H36: 0 | I36: 0 | J36: 0 | K36: 0 | L36: 0 | M36: 0 | N36: 0 | O36: 0 | P36: 1 | Q36: 0 | R36: 0 | AA36: 1 | AB36: 0
A37: 28 | B37: ='Wettkampf 1'!B37 -> Carmen Benten | C37: ='Wettkampf 1'!C37 -> Ostenwalde II | F37: 0 | G37: 0 | H37: 0 | I37: 0 | J37: 0 | K37: 0 | L37: 0 | M37: 0 | N37: 0 | O37: 0 | P37: 1 | Q37: 0 | R37: 0 | AA37: 1 | AB37: 0
A38: 29 | B38: ='Wettkampf 1'!B38 -> Anna -Maria Wimberg | C38: ='Wettkampf 1'!C38 -> Ostenwalde II | F38: 0 | G38: 0 | H38: 0 | I38: 0 | J38: 0 | K38: 0 | L38: 0 | M38: 0 | N38: 0 | O38: 0 | P38: 1 | Q38: 0 | R38: 0 | AA38: 1 | AB38: 0
A39: 30 | B39: ='Wettkampf 1'!B39 -> Evelyn Feder | C39: ='Wettkampf 1'!C39 -> Ostenwalde II | F39: 0 | G39: 0 | H39: 0 | I39: 0 | J39: 0 | K39: 0 | L39: 0 | M39: 0 | N39: 0 | O39: 0 | P39: 1 | Q39: 0 | R39: 0 | AA39: 1 | AB39: 0
A40: 31 | B40: ='Wettkampf 1'!B40 -> Monika Jansen | C40: ='Wettkampf 1'!C40 -> Spahnharrenstätte I | F40: 0 | G40: 0 | H40: 0 | I40: 0 | J40: 0 | K40: 0 | L40: 0 | M40: 0 | N40: 0 | O40: 0 | P40: 0 | Q40: 0 | R40: 1 | AA40: 1 | AB40: 0
A41: 32 | B41: ='Wettkampf 1'!B41 -> Kerstin Sträche | C41: ='Wettkampf 1'!C41 -> Spahnharrenstätte I | F41: 0 | G41: 0 | H41: 0 | I41: 0 | J41: 0 | K41: 0 | L41: 0 | M41: 0 | N41: 0 | O41: 0 | P41: 0 | Q41: 0 | R41: 1 | AA41: 1 | AB41: 0
A42: 33 | B42: ='Wettkampf 1'!B42 -> Rita Hanekamp | C42: ='Wettkampf 1'!C42 -> Spahnharrenstätte I | F42: 0 | G42: 0 | H42: 0 | I42: 0 | J42: 0 | K42: 0 | L42: 0 | M42: 0 | N42: 0 | O42: 0 | P42: 0 | Q42: 0 | R42: 1 | AA42: 1 | AB42: 0
A43: 34 | B43: ='Wettkampf 1'!B43 -> Maria Beusing | C43: ='Wettkampf 1'!C43 -> Spahnharrenstätte I | F43: 0 | G43: 0 | H43: 0 | I43: 0 | J43: 0 | K43: 0 | L43: 0 | M43: 0 | N43: 0 | O43: 0 | P43: 0 | Q43: 0 | R43: 1 | AA43: 1 | AB43: 0
A44: 35 | B44: ='Wettkampf 1'!B44 -> Schütze 35 | C44: ='Wettkampf 1'!C44 -> Spahnharrenstätte I | F44: 0 | G44: 0 | H44: 0 | I44: 0 | J44: 0 | K44: 0 | L44: 0 | M44: 0 | N44: 0 | O44: 0 | P44: 0 | Q44: 0 | R44: 1 | AA44: 1 | AB44: 0
A45: 36 | B45: ='Wettkampf 1'!B45 -> Schütze 36 | C45: ='Wettkampf 1'!C45 -> Spahnharrenstätte I | F45: 0 | G45: 0 | H45: 0 | I45: 0 | J45: 0 | K45: 0 | L45: 0 | M45: 0 | N45: 0 | O45: 0 | P45: 0 | Q45: 0 | R45: 1 | AA45: 1 | AB45: 0
G46: =LARGE(G10:G45,1)+LARGE(G10:G45,2)+LARGE(G10:G45,3) -> 0 | H46: =SUM(H10:H45) -> 6 | I46: =LARGE(I10:I45,1)+LARGE(I10:I45,2)+LARGE(I10:I45,3) -> 0 | J46: =SUM(J10:J45) -> 6 | K46: =LARGE(K10:K45,1)+LARGE(K10:K45,2)+LARGE(K10:K45,3) -> 0 | L46: =SUM(L10:L45) -> 6 | M46: =LARGE(M10:M45,1)+LARGE(M10:M45,2)+LARGE(M10:M45,3) -> 0 | N46: =SUM(N10:N45) -> 6 | O46: =LARGE(O10:O45,1)+LARGE(O10:O45,2)+LARGE(O10:O45,3) -> 0 | P46: =SUM(P10:P45) -> 6 | Q46: =LARGE(Q10:Q45,1)+LARGE(Q10:Q45,2)+LARGE(Q10:Q45,3) -> 0 | R46: =SUM(R10:S45) -> 6
B48: Bitte beachtet, dass die Standaufsicht benannt werden muss

Sheet Ausdruck blank
B1: Verein / Gruppe | C1: Ergebnisse | D1: =Übersicht!K1 -> 2024/2025 | X1: Austragungsort:
A2: 1 | D2: Klasse: | X2: Wettkampftag:
A3: 2
A4: 3 | Z4: Ansprechpartner für Rückfragen:
A5: 4 | X5: Name:
A6: 5 | X6: Tel:
A7: 6 | X7: Standaufsicht:
B9: Name Schütze | C9: Verein/Gruppe | D9: Ergebnis | E9: AW? | G9: Verein 1 | I9: Verein 2 | K9: Verein 3 | M9: Verein 4 | O9: Verein 5 | Q9: Verein 6 | U9: Geburts-datum | W9: Proberechnung bei Streifen:
A10: 1 | F10: =IF(E10="x","0",D10) -> 0 | G10: =IF(C10=$B$2,F10,0) -> 0 | H10: =(IF(AND($E10="",$C10=$B$2),1,0)) -> 1 | I10: =IF($C10=$B$3,F10,0) -> 0 | J10: =(IF(AND($E10="",$C10=$B$3),1,0)) -> 1 | K10: =IF($C10=$B$4,F10,0) -> 0 | L10: =(IF(AND($E10="",$C10=$B$4),1,0)) -> 1 | M10: =IF($C10=$B$5,F10,0) -> 0 | N10: =(IF(AND($E10="",$C10=$B$5),1,0)) -> 1 | O10: =IF($C10=$B$6,F10,0) -> 0 | P10: =(IF(AND($E10="",$C10=$B$6),1,0)) -> 1 | Q10: =IF($C10=$B$7,F10,0) -> 0 | R10: =(IF(AND($E10="",$C10=$B$7),1,0)) -> 1 | AA10: =IF(Z10=D10,1,0) -> 1 | AB10: =IF(Z10=0,0,1) -> 0 | AC10: =IF(AA10+AB10=2,"Korrekt","") -> 
A11: 2 | F11: =IF(E11="x","0",D11) -> 0 | G11: =IF(C11=$B$2,F11,0) -> 0 | H11: =(IF(AND($E11="",$C11=$B$2),1,0)) -> 1 | I11: =IF($C11=$B$3,F11,0) -> 0 | J11: =(IF(AND($E11="",$C11=$B$3),1,0)) -> 1 | K11: =IF($C11=$B$4,F11,0) -> 0 | L11: =(IF(AND($E11="",$C11=$B$4),1,0)) -> 1 | M11: =IF($C11=$B$5,F11,0) -> 0 | N11: =(IF(AND($E11="",$C11=$B$5),1,0)) -> 1 | O11: =IF($C11=$B$6,F11,0) -> 0 | P11: =(IF(AND($E11="",$C11=$B$6),1,0)) -> 1 | Q11: =IF($C11=$B$7,F11,0) -> 0 | R11: =(IF(AND($E11="",$C11=$B$7),1,0)) -> 1 | AA11: =IF(Z11=D11,1,0) -> 1 | AB11: =IF(Z11=0,0,1) -> 0 | AC11: =IF(AA11+AB11=2,"Korrekt","") -> 
A12: 3 | F12: 0 | G12: 0 | H12: 1 | I12: 0 | J12: 1 | K12: 0 | L12: 1 | M12: 0 | N12: 1 | O12: 0 | P12: 1 | Q12: 0 | R12: 1 | AA12: 1 | AB12: 0
A13: 4 | F13: 0 | G13: 0 | H13: 1 | I13: 0 | J13: 1 | K13: 0 | L13: 1 | M13: 0 | N13: 1 | O13: 0 | P13: 1 | Q13: 0 | R13: 1 | AA13: 1 | AB13: 0
A14: 5 | F14: 0 | G14: 0 | H14: 1 | I14: 0 | J14: 1 | K14: 0 | L14: 1 | M14: 0 | N14: 1 | O14: 0 | P14: 1 | Q14: 0 | R14: 1 | AA14: 1 | AB14: 0
A15: 6 | F15: 0 | G15: 0 | H15: 1 | I15: 0 | J15: 1 | K15: 0 | L15: 1 | M15: 0 | N15: 1 | O15: 0 | P15: 1 | Q15: 0 | R15: 1 | AA15: 1 | AB15: 0
A16: 7 | F16: 0 | G16: 0 | H16: 1 | I16: 0 | J16: 1 | K16: 0 | L16: 1 | M16: 0 | N16: 1 | O16: 0 | P16: 1 | Q16: 0 | R16: 1 | AA16: 1 | AB16: 0
A17: 8 | F17: 0 | G17: 0 | H17: 1 | I17: 0 | J17: 1 | K17: 0 | L17: 1 | M17: 0 | N17: 1 | O17: 0 | P17: 1 | Q17: 0 | R17: 1 | AA17: 1 | AB17: 0
A18: 9 | F18: 0 | G18: 0 | H18: 1 | I18: 0 | J18: 1 | K18: 0 | L18: 1 | M18: 0 | N18: 1 | O18: 0 | P18: 1 | Q18: 0 | R18: 1 | AA18: 1 | AB18: 0
A19: 10 | F19: 0 | G19: 0 | H19: 1 | I19: 0 | J19: 1 | K19: 0 | L19: 1 | M19: 0 | N19: 1 | O19: 0 | P19: 1 | Q19: 0 | R19: 1 | AA19: 1 | AB19: 0
A20: 11 | F20: 0 | G20: 0 | H20: 1 | I20: 0 | J20: 1 | K20: 0 | L20: 1 | M20: 0 | N20: 1 | O20: 0 | P20: 1 | Q20: 0 | R20: 1 | AA20: 1 | AB20: 0
A21: 12 | F21: 0 | G21: 0 | H21: 1 | I21: 0 | J21: 1 | K21: 0 | L21: 1 | M21: 0 | N21: 1 | O21: 0 | P21: 1 | Q21: 0 | R21: 1 | AA21: 1 | AB21: 0
A22: 13 | F22: 0 | G22: 0 | H22: 1 | I22: 0 | J22: 1 | K22: 0 | L22: 1 | M22: 0 | N22: 1 | O22: 0 | P22: 1 | Q22: 0 | R22: 1 | AA22: 1 | AB22: 0
A23: 14 | F23: 0 | G23: 0 | H23: 1 | I23: 0 | J23: 1 | K23: 0 | L23: 1 | M23: 0 | N23: 1 | O23: 0 | P23: 1 | Q23: 0 | R23: 1 | AA23: 1 | AB23: 0
A24: 15 | F24: 0 | G24: 0 | H24: 1 | I24: 0 | J24: 1 | K24: 0 | L24: 1 | M24: 0 | N24: 1 | O24: 0 | P24: 1 | Q24: 0 | R24: 1 | AA24: 1 | AB24: 0
A25: 16 | F25: 0 | G25: 0 | H25: 1 | I25: 0 | J25: 1 | K25: 0 | L25: 1 | M25: 0 | N25: 1 | O25: 0 | P25: 1 | Q25: 0 | R25: 1 | AA25: 1 | AB25: 0
A26: 17 | F26: 0 | G26: 0 | H26: 1 | I26: 0 | J26: 1 | K26: 0 | L26: 1 | M26: 0 | N26: 1 | O26: 0 | P26: 1 | Q26: 0 | R26: 1 | AA26: 1 | AB26: 0
A27: 18 | F27: 0 | G27: 0 | H27: 1 | I27: 0 | J27: 1 | K27: 0 | L27: 1 | M27: 0 | N27: 1 | O27: 0 | P27: 1 | Q27: 0 | R27: 1 | AA27: 1 | AB27: 0
A28: 19 | F28: 0 | G28: 0 | H28: 1 | I28: 0 | J28: 1 | K28: 0 | L28: 1 | M28: 0 | N28: 1 | O28: 0 | P28: 1 | Q28: 0 | R28: 1 | AA28: 1 | AB28: 0
A29: 20 | F29: 0 | G29: 0 | H29: 1 | I29: 0 | J29: 1 | K29: 0 | L29: 1 | M29: 0 | N29: 1 | O29: 0 | P29: 1 | Q29: 0 | R29: 1 | AA29: 1 | AB29: 0
A30: 21 | F30: 0 | G30: 0 | H30: 1 | I30: 0 | J30: 1 | K30: 0 | L30: 1 | M30: 0 | N30: 1 | O30: 0 | P30: 1 | Q30: 0 | R30: 1 | AA30: 1 | AB30: 0
A31: 22 | F31: 0 | G31: 0 | H31: 1 | I31: 0 | J31: 1 | K31: 0 | L31: 1 | M31: 0 | N31: 1 | O31: 0 | P31: 1 | Q31: 0 | R31: 1 | AA31: 1 | AB31: 0
A32: 23 | F32: 0 | G32: 0 | H32: 1 | I32: 0 | J32: 1 | K32: 0 | L32: 1 | M32: 0 | N32: 1 | O32: 0 | P32: 1 | Q32: 0 | R32: 1 | AA32: 1 | AB32: 0
A33: 24 | F33: 0 | G33: 0 | H33: 1 | I33: 0 | J33: 1 | K33: 0 | L33: 1 | M33: 0 | N33: 1 | O33: 0 | P33: 1 | Q33: 0 | R33: 1 | AA33: 1 | AB33: 0
A34: 25 | F34: 0 | G34: 0 | H34: 1 | I34: 0 | J34: 1 | K34: 0 | L34: 1 | M34: 0 | N34: 1 | O34: 0 | P34: 1 | Q34: 0 | R34: 1 | AA34: 1 | AB34: 0
A35: 26 | F35: 0 | G35: 0 | H35: 1 | I35: 0 | J35: 1 | K35: 0 | L35: 1 | M35: 0 | N35: 1 | O35: 0 | P35: 1 | Q35: 0 | R35: 1 | AA35: 1 | AB35: 0
A36: 27 | F36: 0 | G36: 0 | H36: 1 | I36: 0 | J36: 1 | K36: 0 | L36: 1 | M36: 0 | N36: 1 | O36: 0 | P36: 1 | Q36: 0 | R36: 1 | AA36: 1 | AB36: 0
A37: 28 | F37: 0 | G37: 0 | H37: 1 | I37: 0 | J37: 1 | K37: 0 | L37: 1 | M37: 0 | N37: 1 | O37: 0 | P37: 1 | Q37: 0 | R37: 1 | AA37: 1 | AB37: 0
A38: 29 | F38: 0 | G38: 0 | H38: 1 | I38: 0 | J38: 1 | K38: 0 | L38: 1 | M38: 0 | N38: 1 | O38: 0 | P38: 1 | Q38: 0 | R38: 1 | AA38: 1 | AB38: 0
A39: 30 | F39: 0 | G39: 0 | H39: 1 | I39: 0 | J39: 1 | K39: 0 | L39: 1 | M39: 0 | N39: 1 | O39: 0 | P39: 1 | Q39: 0 | R39: 1 | AA39: 1 | AB39: 0
A40: 31 | F40: 0 | G40: 0 | H40: 1 | I40: 0 | J40: 1 | K40: 0 | L40: 1 | M40: 0 | N40: 1 | O40: 0 | P40: 1 | Q40: 0 | R40: 1 | AA40: 1 | AB40: 0
A41: 32 | F41: 0 | G41: 0 | H41: 1 | I41: 0 | J41: 1 | K41: 0 | L41: 1 | M41: 0 | N41: 1 | O41: 0 | P41: 1 | Q41: 0 | R41: 1 | AA41: 1 | AB41: 0
A42: 33 | F42: 0 | G42: 0 | H42: 1 | I42: 0 | J42: 1 | K42: 0 | L42: 1 | M42: 0 | N42: 1 | O42: 0 | P42: 1 | Q42: 0 | R42: 1 | AA42: 1 | AB42: 0
A43: 34 | F43: 0 | G43: 0 | H43: 1 | I43: 0 | J43: 1 | K43: 0 | L43: 1 | M43: 0 | N43: 1 | O43: 0 | P43: 1 | Q43: 0 | R43: 1 | AA43: 1 | AB43: 0
A44: 35 | F44: 0 | G44: 0 | H44: 1 | I44: 0 | J44: 1 | K44: 0 | L44: 1 | M44: 0 | N44: 1 | O44: 0 | P44: 1 | Q44: 0 | R44: 1 | AA44: 1 | AB44: 0
A45: 36 | F45: 0 | G45: 0 | H45: 1 | I45: 0 | J45: 1 | K45: 0 | L45: 1 | M45: 0 | N45: 1 | O45: 0 | P45: 1 | Q45: 0 | R45: 1 | AA45: 1 | AB45: 0
G46: =LARGE(G10:G45,1)+LARGE(G10:G45,2)+LARGE(G10:G45,3) -> 0 | H46: =SUM(H10:H45) -> 36 | I46: =LARGE(I10:I45,1)+LARGE(I10:I45,2)+LARGE(I10:I45,3) -> 0 | J46: =SUM(J10:J45) -> 36 | K46: =LARGE(K10:K45,1)+LARGE(K10:K45,2)+LARGE(K10:K45,3) -> 0 | L46: =SUM(L10:L45) -> 36 | M46: =LARGE(M10:M45,1)+LARGE(M10:M45,2)+LARGE(M10:M45,3) -> 0 | N46: =SUM(N10:N45) -> 36 | O46: =LARGE(O10:O45,1)+LARGE(O10:O45,2)+LARGE(O10:O45,3) -> 0 | P46: =SUM(P10:P45) -> 36 | Q46: =LARGE(Q10:Q45,1)+LARGE(Q10:Q45,2)+LARGE(Q10:Q45,3) -> 0 | R46: =SUM(R10:S45) -> 36
B48: Bitte beachtet, dass die Standaufsicht benannt werden muss

Sheet Übersicht Schützen (hidden)
C1: 1.0 | D1: 2.0 | E1: 3.0 | F1: 4.0 | G1: 5.0 | H1: 6.0 | L1: 7.0 | M1: 8.0 | N1: 9.0 | O1: 10.0 | P1: 11.0 | Q1: 12.0
A2: Nadine Krömer | B2: =VLOOKUP(A2,'Wettkampf 1'!$B$10:$C$45,2,FALSE) -> Lorup III | C2: =VLOOKUP(A2,'Wettkampf 1'!$B$10:$D$45,3,FALSE) -> 314.2 | D2: =VLOOKUP($A2,'2'!$B$10:$D$45,3,FALSE) -> 313.3 | E2: =VLOOKUP($A2,'3'!$B$10:$D$45,3,FALSE) -> 313.8 | F2: =VLOOKUP($A2,'4'!$B$10:$D$45,3,FALSE) -> 315.1 | G2: =VLOOKUP($A2,'5'!$B$10:$D$45,3,FALSE) -> 308.1 | H2: =VLOOKUP($A2,'6'!$B$10:$D$45,3,FALSE) -> 312.2 | I2: =IF(J2 > 0,K2/J2,0) -> 312.8 | J2: =VLOOKUP(A2,Formelhilfe!$A$9:$H$44,8,FALSE) -> 6.0 | K2: =SUM(C2:H2) -> 1,876.7 | L2: =VLOOKUP($A2,'7'!$B$10:$D$45,3,FALSE) -> 310.4 | M2: =VLOOKUP($A2,'8'!$B$10:$D$45,3,FALSE) -> 312.1 | N2: =VLOOKUP($A2,'9'!$B$10:$D$45,3,FALSE) -> 312.6 | O2: =VLOOKUP($A2,'10'!$B$10:$D$45,3,FALSE) -> 315.7 | P2: =VLOOKUP($A2,'11'!$B$10:$D$45,3,FALSE) -> 309.8 | Q2: =VLOOKUP($A2,'12'!$B$10:$D$45,3,FALSE) -> 0.0 | R2: =IF(S2 >0,T2/S2,0) -> 312.1 | S2: =VLOOKUP(A2,Formelhilfe!$A$9:$O$44,15,FALSE) -> 5.0 | T2: =SUM(L2:Q2) -> 1,560.6 | U2: =IF(V2>0,W2/V2,0) -> 312.5 | V2: =VLOOKUP(A2,Formelhilfe!$A$9:$P$44,16,FALSE) -> 11.0 | W2: =SUM(C2:H2,L2:Q2) -> 3,437.3
A3: Anna Temmen | B3: =VLOOKUP(A3,'Wettkampf 1'!$B$10:$C$45,2,FALSE) -> Ostenwalde II | C3: =VLOOKUP(A3,'Wettkampf 1'!$B$10:$D$45,3,FALSE) -> 307.5 | D3: =VLOOKUP($A3,'2'!$B$10:$D$45,3,FALSE) -> 311.9 | E3: =VLOOKUP($A3,'3'!$B$10:$D$45,3,FALSE) -> 316.6 | F3: =VLOOKUP($A3,'4'!$B$10:$D$45,3,FALSE) -> 315.0 | G3: =VLOOKUP($A3,'5'!$B$10:$D$45,3,FALSE) -> 311.6 | H3: =VLOOKUP($A3,'6'!$B$10:$D$45,3,FALSE) -> 311.6 | I3: =IF(J3 > 0,K3/J3,0) -> 312.4 | J3: =VLOOKUP(A3,Formelhilfe!$A$9:$H$44,8,FALSE) -> 6.0 | K3: =SUM(C3:H3) -> 1,874.2 | L3: =VLOOKUP($A3,'7'!$B$10:$D$45,3,FALSE) -> 309.5 | M3: =VLOOKUP($A3,'8'!$B$10:$D$45,3,FALSE) -> 311.3 | N3: =VLOOKUP($A3,'9'!$B$10:$D$45,3,FALSE) -> 310.8 | O3: =VLOOKUP($A3,'10'!$B$10:$D$45,3,FALSE) -> 313.3 | P3: =VLOOKUP($A3,'11'!$B$10:$D$45,3,FALSE) -> 312.2 | Q3: =VLOOKUP($A3,'12'!$B$10:$D$45,3,FALSE) -> 0.0 | R3: =IF(S3 >0,T3/S3,0) -> 311.4 | S3: =VLOOKUP(A3,Formelhilfe!$A$9:$O$44,15,FALSE) -> 5.0 | T3: =SUM(L3:Q3) -> 1,557.1 | U3: =IF(V3>0,W3/V3,0) -> 311.9 | V3: =VLOOKUP(A3,Formelhilfe!$A$9:$P$44,16,FALSE) -> 11.0 | W3: =SUM(C3:H3,L3:Q3) -> 3,431.3
A4: Margret Pohlgeers | B4: =VLOOKUP(A4,'Wettkampf 1'!$B$10:$C$45,2,FALSE) -> Börger II | C4: =VLOOKUP(A4,'Wettkampf 1'!$B$10:$D$45,3,FALSE) -> 310.6 | D4: =VLOOKUP($A4,'2'!$B$10:$D$45,3,FALSE) -> 307.4 | E4: =VLOOKUP($A4,'3'!$B$10:$D$45,3,FALSE) -> 311.3 | F4: =VLOOKUP($A4,'4'!$B$10:$D$45,3,FALSE) -> 315.2 | G4: =VLOOKUP($A4,'5'!$B$10:$D$45,3,FALSE) -> 311.3 | H4: =VLOOKUP($A4,'6'!$B$10:$D$45,3,FALSE) -> 312.9 | I4: =IF(J4 > 0,K4/J4,0) -> 311.5 | J4: =VLOOKUP(A4,Formelhilfe!$A$9:$H$44,8,FALSE) -> 6.0 | K4: =SUM(C4:H4) -> 1,868.7 | L4: =VLOOKUP($A4,'7'!$B$10:$D$45,3,FALSE) -> 308.8 | M4: =VLOOKUP($A4,'8'!$B$10:$D$45,3,FALSE) -> 312.9 | N4: =VLOOKUP($A4,'9'!$B$10:$D$45,3,FALSE) -> 312.4 | O4: =VLOOKUP($A4,'10'!$B$10:$D$45,3,FALSE) -> 313.7 | P4: =VLOOKUP($A4,'11'!$B$10:$D$45,3,FALSE) -> 308.5 | Q4: =VLOOKUP($A4,'12'!$B$10:$D$45,3,FALSE) -> 0.0 | R4: =IF(S4 >0,T4/S4,0) -> 311.3 | S4: =VLOOKUP(A4,Formelhilfe!$A$9:$O$44,15,FALSE) -> 5.0 | T4: =SUM(L4:Q4) -> 1,556.3 | U4: =IF(V4>0,W4/V4,0) -> 311.4 | V4: =VLOOKUP(A4,Formelhilfe!$A$9:$P$44,16,FALSE) -> 11.0 | W4: =SUM(C4:H4,L4:Q4) -> 3,425.0
A5: Monika Jansen | B5: =VLOOKUP(A5,'Wettkampf 1'!$B$10:$C$45,2,FALSE) -> Spahnharrenstätte I | C5: =VLOOKUP(A5,'Wettkampf 1'!$B$10:$D$45,3,FALSE) -> 312.1 | D5: =VLOOKUP($A5,'2'!$B$10:$D$45,3,FALSE) -> 312.7 | E5: =VLOOKUP($A5,'3'!$B$10:$D$45,3,FALSE) -> 315.1 | F5: =VLOOKUP($A5,'4'!$B$10:$D$45,3,FALSE) -> 316.1 | G5: =VLOOKUP($A5,'5'!$B$10:$D$45,3,FALSE) -> 303.0 | H5: =VLOOKUP($A5,'6'!$B$10:$D$45,3,FALSE) -> 311.3 | I5: =IF(J5 > 0,K5/J5,0) -> 311.7 | J5: =VLOOKUP(A5,Formelhilfe!$A$9:$H$44,8,FALSE) -> 6.0 | K5: =SUM(C5:H5) -> 1,870.3 | L5: =VLOOKUP($A5,'7'!$B$10:$D$45,3,FALSE) -> 304.5 | M5: =VLOOKUP($A5,'8'!$B$10:$D$45,3,FALSE) -> 309.6 | N5: =VLOOKUP($A5,'9'!$B$10:$D$45,3,FALSE) -> 309.7 | O5: =VLOOKUP($A5,'10'!$B$10:$D$45,3,FALSE) -> 308.6 | P5: =VLOOKUP($A5,'11'!$B$10:$D$45,3,FALSE) -> 309.9 | Q5: =VLOOKUP($A5,'12'!$B$10:$D$45,3,FALSE) -> 0.0 | R5: =IF(S5 >0,T5/S5,0) -> 308.5 | S5: =VLOOKUP(A5,Formelhilfe!$A$9:$O$44,15,FALSE) -> 5.0 | T5: =SUM(L5:Q5) -> 1,542.3 | U5: =IF(V5>0,W5/V5,0) -> 310.2 | V5: =VLOOKUP(A5,Formelhilfe!$A$9:$P$44,16,FALSE) -> 11.0 | W5: =SUM(C5:H5,L5:Q5) -> 3,412.6
A6: Hanna Gebken | B6: =VLOOKUP(A6,'Wettkampf 1'!$B$10:$C$45,2,FALSE) -> Lorup III | C6: =VLOOKUP(A6,'Wettkampf 1'!$B$10:$D$45,3,FALSE) -> 309.8 | D6: =VLOOKUP($A6,'2'!$B$10:$D$45,3,FALSE) -> 311.6 | E6: =VLOOKUP($A6,'3'!$B$10:$D$45,3,FALSE) -> 309.9 | F6: =VLOOKUP($A6,'4'!$B$10:$D$45,3,FALSE) -> 312.2 | G6: =VLOOKUP($A6,'5'!$B$10:$D$45,3,FALSE) -> 312.1 | H6: =VLOOKUP($A6,'6'!$B$10:$D$45,3,FALSE) -> 306.7 | I6: =IF(J6 > 0,K6/J6,0) -> 310.4 | J6: =VLOOKUP(A6,Formelhilfe!$A$9:$H$44,8,FALSE) -> 6.0 | K6: =SUM(C6:H6) -> 1,862.3 | L6: =VLOOKUP($A6,'7'!$B$10:$D$45,3,FALSE) -> 309.6 | M6: =VLOOKUP($A6,'8'!$B$10:$D$45,3,FALSE) -> 307.2 | N6: =VLOOKUP($A6,'9'!$B$10:$D$45,3,FALSE) -> 309.4 | O6: =VLOOKUP($A6,'10'!$B$10:$D$45,3,FALSE) -> 307.5 | P6: =VLOOKUP($A6,'11'!$B$10:$D$45,3,FALSE) -> 305.1 | Q6: =VLOOKUP($A6,'12'!$B$10:$D$45,3,FALSE) -> 0.0 | R6: =IF(S6 >0,T6/S6,0) -> 307.8 | S6: =VLOOKUP(A6,Formelhilfe!$A$9:$O$44,15,FALSE) -> 5.0 | T6: =SUM(L6:Q6) -> 1,538.8 | U6: =IF(V6>0,W6/V6,0) -> 309.2 | V6: =VLOOKUP(A6,Formelhilfe!$A$9:$P$44,16,FALSE) -> 11.0 | W6: =SUM(C6:H6,L6:Q6) -> 3,401.1
A7: Maria Beusing | B7: =VLOOKUP(A7,'Wettkampf 1'!$B$10:$C$45,2,FALSE) -> Spahnharrenstätte I | C7: =VLOOKUP(A7,'Wettkampf 1'!$B$10:$D$45,3,FALSE) -> 304.1 | D7: =VLOOKUP($A7,'2'!$B$10:$D$45,3,FALSE) -> 308.3 | E7: =VLOOKUP($A7,'3'!$B$10:$D$45,3,FALSE) -> 308.1 | F7: =VLOOKUP($A7,'4'!$B$10:$D$45,3,FALSE) -> 310.8 | G7: =VLOOKUP($A7,'5'!$B$10:$D$45,3,FALSE) -> 308.6 | H7: =VLOOKUP($A7,'6'!$B$10:$D$45,3,FALSE) -> 309.6 | I7: =IF(J7 > 0,K7/J7,0) -> 308.3 | J7: =VLOOKUP(A7,Formelhilfe!$A$9:$H$44,8,FALSE) -> 6.0 | K7: =SUM(C7:H7) -> 1,849.5 | L7: =VLOOKUP($A7,'7'!$B$10:$D$45,3,FALSE) -> 314.9 | M7: =VLOOKUP($A7,'8'!$B$10:$D$45,3,FALSE) -> 309.9 | N7: =VLOOKUP($A7,'9'!$B$10:$D$45,3,FALSE) -> 310.8 | O7: =VLOOKUP($A7,'10'!$B$10:$D$45,3,FALSE) -> 308.6 | P7: =VLOOKUP($A7,'11'!$B$10:$D$45,3,FALSE) -> 307.0 | Q7: =VLOOKUP($A7,'12'!$B$10:$D$45,3,FALSE) -> 0.0 | R7: =IF(S7 >0,T7/S7,0) -> 310.2 | S7: =VLOOKUP(A7,Formelhilfe!$A$9:$O$44,15,FALSE) -> 5.0 | T7: =SUM(L7:Q7) -> 1,551.2 | U7: =IF(V7>0,W7/V7,0) -> 309.2 | V7: =VLOOKUP(A7,Formelhilfe!$A$9:$P$44,16,FALSE) -> 11.0 | W7: =SUM(C7:H7,L7:Q7) -> 3,400.7
A8: Claudia Rolfes | B8: =VLOOKUP(A8,'Wettkampf 1'!$B$10:$C$45,2,FALSE) -> Neuvrees II | C8: =VLOOKUP(A8,'Wettkampf 1'!$B$10:$D$45,3,FALSE) -> 305.2 | D8: =VLOOKUP($A8,'2'!$B$10:$D$45,3,FALSE) -> 305.4 | E8: =VLOOKUP($A8,'3'!$B$10:$D$45,3,FALSE) -> 306.8 | F8: =VLOOKUP($A8,'4'!$B$10:$D$45,3,FALSE) -> 311.3 | G8: =VLOOKUP($A8,'5'!$B$10:$D$45,3,FALSE) -> 305.4 | H8: =VLOOKUP($A8,'6'!$B$10:$D$45,3,FALSE) -> 311.4 | I8: =IF(J8 > 0,K8/J8,0) -> 307.6 | J8: =VLOOKUP(A8,Formelhilfe!$A$9:$H$44,8,FALSE) -> 6.0 | K8: =SUM(C8:H8) -> 1,845.5 | L8: =VLOOKUP($A8,'7'!$B$10:$D$45,3,FALSE) -> 313.1 | M8: =VLOOKUP($A8,'8'!$B$10:$D$45,3,FALSE) -> 309.2 | N8: =VLOOKUP($A8,'9'!$B$10:$D$45,3,FALSE) -> 307.9 | O8: =VLOOKUP($A8,'10'!$B$10:$D$45,3,FALSE) -> 313.3 | P8: =VLOOKUP($A8,'11'!$B$10:$D$45,3,FALSE) -> 303.7 | Q8: =VLOOKUP($A8,'12'!$B$10:$D$45,3,FALSE) -> 0.0 | R8: =IF(S8 >0,T8/S8,0) -> 309.4 | S8: =VLOOKUP(A8,Formelhilfe!$A$9:$O$44,15,FALSE) -> 5.0 | T8: =SUM(L8:Q8) -> 1,547.2 | U8: =IF(V8>0,W8/V8,0) -> 308.4 | V8: =VLOOKUP(A8,Formelhilfe!$A$9:$P$44,16,FALSE) -> 11.0 | W8: =SUM(C8:H8,L8:Q8) -> 3,392.7
A9: Silvia Thunert | B9: =VLOOKUP(A9,'Wettkampf 1'!$B$10:$C$45,2,FALSE) -> Neuvrees II | C9: =VLOOKUP(A9,'Wettkampf 1'!$B$10:$D$45,3,FALSE) -> 310.7 | D9: =VLOOKUP($A9,'2'!$B$10:$D$45,3,FALSE) -> 311.3 | E9: =VLOOKUP($A9,'3'!$B$10:$D$45,3,FALSE) -> 309.0 | F9: =VLOOKUP($A9,'4'!$B$10:$D$45,3,FALSE) -> 307.4 | G9: =VLOOKUP($A9,'5'!$B$10:$D$45,3,FALSE) -> 301.7 | H9: =VLOOKUP($A9,'6'!$B$10:$D$45,3,FALSE) -> 312.0 | I9: =IF(J9 > 0,K9/J9,0) -> 308.7 | J9: =VLOOKUP(A9,Formelhilfe!$A$9:$H$44,8,FALSE) -> 6.0 | K9: =SUM(C9:H9) -> 1,852.1 | L9: =VLOOKUP($A9,'7'!$B$10:$D$45,3,FALSE) -> 307.2 | M9: =VLOOKUP($A9,'8'!$B$10:$D$45,3,FALSE) -> 306.8 | N9: =VLOOKUP($A9,'9'!$B$10:$D$45,3,FALSE) -> 311.3 | O9: =VLOOKUP($A9,'10'!$B$10:$D$45,3,FALSE) -> 307.0 | P9: =VLOOKUP($A9,'11'!$B$10:$D$45,3,FALSE) -> 304.8 | Q9: =VLOOKUP($A9,'12'!$B$10:$D$45,3,FALSE) -> 0.0 | R9: =IF(S9 >0,T9/S9,0) -> 307.4 | S9: =VLOOKUP(A9,Formelhilfe!$A$9:$O$44,15,FALSE) -> 5.0 | T9: =SUM(L9:Q9) -> 1,537.1 | U9: =IF(V9>0,W9/V9,0) -> 308.1 | V9: =VLOOKUP(A9,Formelhilfe!$A$9:$P$44,16,FALSE) -> 11.0 | W9: =SUM(C9:H9,L9:Q9) -> 3,389.2
A10: Sarah Deyen | B10: =VLOOKUP(A10,'Wettkampf 1'!$B$10:$C$45,2,FALSE) -> Neuvrees II | C10: =VLOOKUP(A10,'Wettkampf 1'!$B$10:$D$45,3,FALSE) -> 308.1 | D10: =VLOOKUP($A10,'2'!$B$10:$D$45,3,FALSE) -> 305.2 | E10: =VLOOKUP($A10,'3'!$B$10:$D$45,3,FALSE) -> 309.7 | F10: =VLOOKUP($A10,'4'!$B$10:$D$45,3,FALSE) -> 312.6 | G10: =VLOOKUP($A10,'5'!$B$10:$D$45,3,FALSE) -> 301.4 | H10: =VLOOKUP($A10,'6'!$B$10:$D$45,3,FALSE) -> 310.1 | I10: =IF(J10 > 0,K10/J10,0) -> 307.9 | J10: =VLOOKUP(A10,Formelhilfe!$A$9:$H$44,8,FALSE) -> 6.0 | K10: =SUM(C10:H10) -> 1,847.1 | L10: =VLOOKUP($A10,'7'!$B$10:$D$45,3,FALSE) -> 302.3 | M10: =VLOOKUP($A10,'8'!$B$10:$D$45,3,FALSE) -> 311.1 | N10: =VLOOKUP($A10,'9'!$B$10:$D$45,3,FALSE) -> 306.0 | O10: =VLOOKUP($A10,'10'!$B$10:$D$45,3,FALSE) -> 309.0 | P10: =VLOOKUP($A10,'11'!$B$10:$D$45,3,FALSE) -> 304.4 | Q10: =VLOOKUP($A10,'12'!$B$10:$D$45,3,FALSE) -> 0.0 | R10: =IF(S10 >0,T10/S10,0) -> 306.6 | S10: =VLOOKUP(A10,Formelhilfe!$A$9:$O$44,15,FALSE) -> 5.0 | T10: =SUM(L10:Q10) -> 1,532.8 | U10: =IF(V10>0,W10/V10,0) -> 307.3 | V10: =VLOOKUP(A10,Formelhilfe!$A$9:$P$44,16,FALSE) -> 11.0 | W10: =SUM(C10:H10,L10:Q10) -> 3,379.9
A11: Ulla Schnieders | B11: =VLOOKUP(A11,'Wettkampf 1'!$B$10:$C$45,2,FALSE) -> Börgermoor I | C11: =VLOOKUP(A11,'Wettkampf 1'!$B$10:$D$45,3,FALSE) -> 306.6 | D11: =VLOOKUP($A11,'2'!$B$10:$D$45,3,FALSE) -> 308.5 | E11: =VLOOKUP($A11,'3'!$B$10:$D$45,3,FALSE) -> 309.8 | F11: =VLOOKUP($A11,'4'!$B$10:$D$45,3,FALSE) -> 310.1 | G11: =VLOOKUP($A11,'5'!$B$10:$D$45,3,FALSE) -> 308.8 | H11: =VLOOKUP($A11,'6'!$B$10:$D$45,3,FALSE) -> 307.1 | I11: =IF(J11 > 0,K11/J11,0) -> 308.5 | J11: =VLOOKUP(A11,Formelhilfe!$A$9:$H$44,8,FALSE) -> 6.0 | K11: =SUM(C11:H11) -> 1,850.9 | L11: =VLOOKUP($A11,'7'!$B$10:$D$45,3,FALSE) -> 300.9 | M11: =VLOOKUP($A11,'8'!$B$10:$D$45,3,FALSE) -> 302.9 | N11: =VLOOKUP($A11,'9'!$B$10:$D$45,3,FALSE) -> 304.0 | O11: =VLOOKUP($A11,'10'!$B$10:$D$45,3,FALSE) -> 308.2 | P11: =VLOOKUP($A11,'11'!$B$10:$D$45,3,FALSE) -> 310.0 | Q11: =VLOOKUP($A11,'12'!$B$10:$D$45,3,FALSE) -> 0.0 | R11: =IF(S11 >0,T11/S11,0) -> 305.2 | S11: =VLOOKUP(A11,Formelhilfe!$A$9:$O$44,15,FALSE) -> 5.0 | T11: =SUM(L11:Q11) -> 1,526.0 | U11: =IF(V11>0,W11/V11,0) -> 307.0 | V11: =VLOOKUP(A11,Formelhilfe!$A$9:$P$44,16,FALSE) -> 11.0 | W11: =SUM(C11:H11,L11:Q11) -> 3,376.9
A12: Kerstin Sträche | B12: =VLOOKUP(A12,'Wettkampf 1'!$B$10:$C$45,2,FALSE) -> Spahnharrenstätte I | C12: =VLOOKUP(A12,'Wettkampf 1'!$B$10:$D$45,3,FALSE) -> 302.8 | D12: =VLOOKUP($A12,'2'!$B$10:$D$45,3,FALSE) -> 311.9 | E12: =VLOOKUP($A12,'3'!$B$10:$D$45,3,FALSE) -> 305.0 | F12: =VLOOKUP($A12,'4'!$B$10:$D$45,3,FALSE) -> 302.0 | G12: =VLOOKUP($A12,'5'!$B$10:$D$45,3,FALSE) -> 305.7 | H12: =VLOOKUP($A12,'6'!$B$10:$D$45,3,FALSE) -> 307.3 | I12: =IF(J12 > 0,K12/J12,0) -> 305.8 | J12: =VLOOKUP(A12,Formelhilfe!$A$9:$H$44,8,FALSE) -> 6.0 | K12: =SUM(C12:H12) -> 1,834.7 | L12: =VLOOKUP($A12,'7'!$B$10:$D$45,3,FALSE) -> 307.8 | M12: =VLOOKUP($A12,'8'!$B$10:$D$45,3,FALSE) -> 299.7 | N12: =VLOOKUP($A12,'9'!$B$10:$D$45,3,FALSE) -> 308.4 | O12: =VLOOKUP($A12,'10'!$B$10:$D$45,3,FALSE) -> 304.8 | P12: =VLOOKUP($A12,'11'!$B$10:$D$45,3,FALSE) -> 307.3 | Q12: =VLOOKUP($A12,'12'!$B$10:$D$45,3,FALSE) -> 0.0 | R12: =IF(S12 >0,T12/S12,0) -> 305.6 | S12: =VLOOKUP(A12,Formelhilfe!$A$9:$O$44,15,FALSE) -> 5.0 | T12: =SUM(L12:Q12) -> 1,528.0 | U12: =IF(V12>0,W12/V12,0) -> 305.7 | V12: =VLOOKUP(A12,Formelhilfe!$A$9:$P$44,16,FALSE) -> 11.0 | W12: =SUM(C12:H12,L12:Q12) -> 3,362.7
A13: Marina Schrand | B13: =VLOOKUP(A13,'Wettkampf 1'!$B$10:$C$45,2,FALSE) -> Lorup III | C13: =VLOOKUP(A13,'Wettkampf 1'!$B$10:$D$45,3,FALSE) -> 305.9 | D13: =VLOOKUP($A13,'2'!$B$10:$D$45,3,FALSE) -> 306.4 | E13: =VLOOKUP($A13,'3'!$B$10:$D$45,3,FALSE) -> 303.9 | F13: =VLOOKUP($A13,'4'!$B$10:$D$45,3,FALSE) -> 306.2 | G13: =VLOOKUP($A13,'5'!$B$10:$D$45,3,FALSE) -> 303.0 | H13: =VLOOKUP($A13,'6'!$B$10:$D$45,3,FALSE) -> 305.5 | I13: =IF(J13 > 0,K13/J13,0) -> 305.2 | J13: =VLOOKUP(A13,Formelhilfe!$A$9:$H$44,8,FALSE) -> 6.0 | K13: =SUM(C13:H13) -> 1,830.9 | L13: =VLOOKUP($A13,'7'!$B$10:$D$45,3,FALSE) -> 304.1 | M13: =VLOOKUP($A13,'8'!$B$10:$D$45,3,FALSE) -> 306.7 | N13: =VLOOKUP($A13,'9'!$B$10:$D$45,3,FALSE) -> 303.5 | O13: =VLOOKUP($A13,'10'!$B$10:$D$45,3,FALSE) -> 308.3 | P13: =VLOOKUP($A13,'11'!$B$10:$D$45,3,FALSE) -> 308.8 | Q13: =VLOOKUP($A13,'12'!$B$10:$D$45,3,FALSE) -> 0.0 | R13: =IF(S13 >0,T13/S13,0) -> 306.3 | S13: =VLOOKUP(A13,Formelhilfe!$A$9:$O$44,15,FALSE) -> 5.0 | T13: =SUM(L13:Q13) -> 1,531.4 | U13: =IF(V13>0,W13/V13,0) -> 305.7 | V13: =VLOOKUP(A13,Formelhilfe!$A$9:$P$44,16,FALSE) -> 11.0 | W13: =SUM(C13:H13,L13:Q13) -> 3,362.3
A14: Waltraud Dobelmann | B14: =VLOOKUP(A14,'Wettkampf 1'!$B$10:$C$45,2,FALSE) -> Börgermoor I | C14: =VLOOKUP(A14,'Wettkampf 1'!$B$10:$D$45,3,FALSE) -> 305.9 | D14: =VLOOKUP($A14,'2'!$B$10:$D$45,3,FALSE) -> 303.7 | E14: =VLOOKUP($A14,'3'!$B$10:$D$45,3,FALSE) -> 300.0 | F14: =VLOOKUP($A14,'4'!$B$10:$D$45,3,FALSE) -> 308.5 | G14: =VLOOKUP($A14,'5'!$B$10:$D$45,3,FALSE) -> 302.8 | H14: =VLOOKUP($A14,'6'!$B$10:$D$45,3,FALSE) -> 302.8 | I14: =IF(J14 > 0,K14/J14,0) -> 304.0 | J14: =VLOOKUP(A14,Formelhilfe!$A$9:$H$44,8,FALSE) -> 6.0 | K14: =SUM(C14:H14) -> 1,823.7 | L14: =VLOOKUP($A14,'7'!$B$10:$D$45,3,FALSE) -> 303.6 | M14: =VLOOKUP($A14,'8'!$B$10:$D$45,3,FALSE) -> 311.1 | N14: =VLOOKUP($A14,'9'!$B$10:$D$45,3,FALSE) -> 304.6 | O14: =VLOOKUP($A14,'10'!$B$10:$D$45,3,FALSE) -> 304.7 | P14: =VLOOKUP($A14,'11'!$B$10:$D$45,3,FALSE) -> 309.2 | Q14: =VLOOKUP($A14,'12'!$B$10:$D$45,3,FALSE) -> 0.0 | R14: =IF(S14 >0,T14/S14,0) -> 306.6 | S14: =VLOOKUP(A14,Formelhilfe!$A$9:$O$44,15,FALSE) -> 5.0 | T14: =SUM(L14:Q14) -> 1,533.2 | U14: =IF(V14>0,W14/V14,0) -> 305.2 | V14: =VLOOKUP(A14,Formelhilfe!$A$9:$P$44,16,FALSE) -> 11.0 | W14: =SUM(C14:H14,L14:Q14) -> 3,356.9
A15: Anni Küwen | B15: =VLOOKUP(A15,'Wettkampf 1'!$B$10:$C$45,2,FALSE) -> Börgermoor I | C15: =VLOOKUP(A15,'Wettkampf 1'!$B$10:$D$45,3,FALSE) -> 299.3 | D15: =VLOOKUP($A15,'2'!$B$10:$D$45,3,FALSE) -> 300.1 | E15: =VLOOKUP($A15,'3'!$B$10:$D$45,3,FALSE) -> 306.2 | F15: =VLOOKUP($A15,'4'!$B$10:$D$45,3,FALSE) -> 312.6 | G15: =VLOOKUP($A15,'5'!$B$10:$D$45,3,FALSE) -> 297.9 | H15: =VLOOKUP($A15,'6'!$B$10:$D$45,3,FALSE) -> 308.9 | I15: =IF(J15 > 0,K15/J15,0) -> 304.2 | J15: =VLOOKUP(A15,Formelhilfe!$A$9:$H$44,8,FALSE) -> 6.0 | K15: =SUM(C15:H15) -> 1,825.0 | L15: =VLOOKUP($A15,'7'!$B$10:$D$45,3,FALSE) -> 308.6 | M15: =VLOOKUP($A15,'8'!$B$10:$D$45,3,FALSE) -> 310.7 | N15: =VLOOKUP($A15,'9'!$B$10:$D$45,3,FALSE) -> 311.1 | O15: =VLOOKUP($A15,'10'!$B$10:$D$45,3,FALSE) -> 302.0 | P15: =VLOOKUP($A15,'11'!$B$10:$D$45,3,FALSE) -> 297.6 | Q15: =VLOOKUP($A15,'12'!$B$10:$D$45,3,FALSE) -> 0.0 | R15: =IF(S15 >0,T15/S15,0) -> 306.0 | S15: =VLOOKUP(A15,Formelhilfe!$A$9:$O$44,15,FALSE) -> 5.0 | T15: =SUM(L15:Q15) -> 1,530.0 | U15: =IF(V15>0,W15/V15,0) -> 305.0 | V15: =VLOOKUP(A15,Formelhilfe!$A$9:$P$44,16,FALSE) -> 11.0 | W15: =SUM(C15:H15,L15:Q15) -> 3,355.0
A16: Monika Reimann | B16: =VLOOKUP(A16,'Wettkampf 1'!$B$10:$C$45,2,FALSE) -> Lorup III | C16: =VLOOKUP(A16,'Wettkampf 1'!$B$10:$D$45,3,FALSE) -> 307.6 | D16: =VLOOKUP($A16,'2'!$B$10:$D$45,3,FALSE) -> 303.8 | E16: =VLOOKUP($A16,'3'!$B$10:$D$45,3,FALSE) -> 299.9 | F16: =VLOOKUP($A16,'4'!$B$10:$D$45,3,FALSE) -> 305.8 | G16: =VLOOKUP($A16,'5'!$B$10:$D$45,3,FALSE) -> 305.2 | H16: =VLOOKUP($A16,'6'!$B$10:$D$45,3,FALSE) -> 304.6 | I16: =IF(J16 > 0,K16/J16,0) -> 304.5 | J16: =VLOOKUP(A16,Formelhilfe!$A$9:$H$44,8,FALSE) -> 6.0 | K16: =SUM(C16:H16) -> 1,826.9 | L16: =VLOOKUP($A16,'7'!$B$10:$D$45,3,FALSE) -> 308.3 | M16: =VLOOKUP($A16,'8'!$B$10:$D$45,3,FALSE) -> 301.8 | N16: =VLOOKUP($A16,'9'!$B$10:$D$45,3,FALSE) -> 305.7 | O16: =VLOOKUP($A16,'10'!$B$10:$D$45,3,FALSE) -> 304.1 | P16: =VLOOKUP($A16,'11'!$B$10:$D$45,3,FALSE) -> 304.8 | Q16: =VLOOKUP($A16,'12'!$B$10:$D$45,3,FALSE) -> 0.0 | R16: =IF(S16 >0,T16/S16,0) -> 304.9 | S16: =VLOOKUP(A16,Formelhilfe!$A$9:$O$44,15,FALSE) -> 5.0 | T16: =SUM(L16:Q16) -> 1,524.7 | U16: =IF(V16>0,W16/V16,0) -> 304.7 | V16: =VLOOKUP(A16,Formelhilfe!$A$9:$P$44,16,FALSE) -> 11.0 | W16: =SUM(C16:H16,L16:Q16) -> 3,351.6
A17: Gertrud Kuchta | B17: =VLOOKUP(A17,'Wettkampf 1'!$B$10:$C$45,2,FALSE) -> Börger II | C17: =VLOOKUP(A17,'Wettkampf 1'!$B$10:$D$45,3,FALSE) -> 300.7 | D17: =VLOOKUP($A17,'2'!$B$10:$D$45,3,FALSE) -> 303.7 | E17: =VLOOKUP($A17,'3'!$B$10:$D$45,3,FALSE) -> 305.3 | F17: =VLOOKUP($A17,'4'!$B$10:$D$45,3,FALSE) -> 305.0 | G17: =VLOOKUP($A17,'5'!$B$10:$D$45,3,FALSE) -> 301.0 | H17: =VLOOKUP($A17,'6'!$B$10:$D$45,3,FALSE) -> 310.4 | I17: =IF(J17 > 0,K17/J17,0) -> 304.4 | J17: =VLOOKUP(A17,Formelhilfe!$A$9:$H$44,8,FALSE) -> 6.0 | K17: =SUM(C17:H17) -> 1,826.1 | L17: =VLOOKUP($A17,'7'!$B$10:$D$45,3,FALSE) -> 303.7 | M17: =VLOOKUP($A17,'8'!$B$10:$D$45,3,FALSE) -> 305.8 | N17: =VLOOKUP($A17,'9'!$B$10:$D$45,3,FALSE) -> 307.5 | O17: =VLOOKUP($A17,'10'!$B$10:$D$45,3,FALSE) -> 301.6 | P17: =VLOOKUP($A17,'11'!$B$10:$D$45,3,FALSE) -> 304.8 | Q17: =VLOOKUP($A17,'12'!$B$10:$D$45,3,FALSE) -> 0.0 | R17: =IF(S17 >0,T17/S17,0) -> 304.7 | S17: =VLOOKUP(A17,Formelhilfe!$A$9:$O$44,15,FALSE) -> 5.0 | T17: =SUM(L17:Q17) -> 1,523.4 | U17: =IF(V17>0,W17/V17,0) -> 304.5 | V17: =VLOOKUP(A17,Formelhilfe!$A$9:$P$44,16,FALSE) -> 11.0 | W17: =SUM(C17:H17,L17:Q17) -> 3,349.5
A18: Carmen Benten | B18: =VLOOKUP(A18,'Wettkampf 1'!$B$10:$C$45,2,FALSE) -> Ostenwalde II | C18: =VLOOKUP(A18,'Wettkampf 1'!$B$10:$D$45,3,FALSE) -> 301.6 | D18: =VLOOKUP($A18,'2'!$B$10:$D$45,3,FALSE) -> 308.7 | E18: =VLOOKUP($A18,'3'!$B$10:$D$45,3,FALSE) -> 308.4 | F18: =VLOOKUP($A18,'4'!$B$10:$D$45,3,FALSE) -> 304.5 | G18: =VLOOKUP($A18,'5'!$B$10:$D$45,3,FALSE) -> 296.8 | H18: =VLOOKUP($A18,'6'!$B$10:$D$45,3,FALSE) -> 297.8 | I18: =IF(J18 > 0,K18/J18,0) -> 303.0 | J18: =VLOOKUP(A18,Formelhilfe!$A$9:$H$44,8,FALSE) -> 6.0 | K18: =SUM(C18:H18) -> 1,817.8 | L18: =VLOOKUP($A18,'7'!$B$10:$D$45,3,FALSE) -> 306.8 | M18: =VLOOKUP($A18,'8'!$B$10:$D$45,3,FALSE) -> 298.0 | N18: =VLOOKUP($A18,'9'!$B$10:$D$45,3,FALSE) -> 309.8 | O18: =VLOOKUP($A18,'10'!$B$10:$D$45,3,FALSE) -> 307.2 | P18: =VLOOKUP($A18,'11'!$B$10:$D$45,3,FALSE) -> 308.0 | Q18: =VLOOKUP($A18,'12'!$B$10:$D$45,3,FALSE) -> 0.0 | R18: =IF(S18 >0,T18/S18,0) -> 306.0 | S18: =VLOOKUP(A18,Formelhilfe!$A$9:$O$44,15,FALSE) -> 5.0 | T18: =SUM(L18:Q18) -> 1,529.8 | U18: =IF(V18>0,W18/V18,0) -> 304.3 | V18: =VLOOKUP(A18,Formelhilfe!$A$9:$P$44,16,FALSE) -> 11.0 | W18: =SUM(C18:H18,L18:Q18) -> 3,347.6
A19: Gundula Schwarte | B19: =VLOOKUP(A19,'Wettkampf 1'!$B$10:$C$45,2,FALSE) -> Börger II | C19: =VLOOKUP(A19,'Wettkampf 1'!$B$10:$D$45,3,FALSE) -> 297.5 | D19: =VLOOKUP($A19,'2'!$B$10:$D$45,3,FALSE) -> 298.7 | E19: =VLOOKUP($A19,'3'!$B$10:$D$45,3,FALSE) -> 307.5 | F19: =VLOOKUP($A19,'4'!$B$10:$D$45,3,FALSE) -> 308.9 | G19: =VLOOKUP($A19,'5'!$B$10:$D$45,3,FALSE) -> 304.4 | H19: =VLOOKUP($A19,'6'!$B$10:$D$45,3,FALSE) -> 301.6 | I19: =IF(J19 > 0,K19/J19,0) -> 303.1 | J19: =VLOOKUP(A19,Formelhilfe!$A$9:$H$44,8,FALSE) -> 6.0 | K19: =SUM(C19:H19) -> 1,818.6 | L19: =VLOOKUP($A19,'7'!$B$10:$D$45,3,FALSE) -> 300.6 | M19: =VLOOKUP($A19,'8'!$B$10:$D$45,3,FALSE) -> 300.3 | N19: =VLOOKUP($A19,'9'!$B$10:$D$45,3,FALSE) -> 303.0 | O19: =VLOOKUP($A19,'10'!$B$10:$D$45,3,FALSE) -> 305.2 | P19: =VLOOKUP($A19,'11'!$B$10:$D$45,3,FALSE) -> 307.9 | Q19: =VLOOKUP($A19,'12'!$B$10:$D$45,3,FALSE) -> 0.0 | R19: =IF(S19 >0,T19/S19,0) -> 303.4 | S19: =VLOOKUP(A19,Formelhilfe!$A$9:$O$44,15,FALSE) -> 5.0 | T19: =SUM(L19:Q19) -> 1,517.0 | U19: =IF(V19>0,W19/V19,0) -> 303.2 | V19: =VLOOKUP(A19,Formelhilfe!$A$9:$P$44,16,FALSE) -> 11.0 | W19: =SUM(C19:H19,L19:Q19) -> 3,335.6
A20: Margret Pohlmann | B20: =VLOOKUP(A20,'Wettkampf 1'!$B$10:$C$45,2,FALSE) -> Neuvrees II | C20: =VLOOKUP(A20,'Wettkampf 1'!$B$10:$D$45,3,FALSE) -> 298.4 | D20: =VLOOKUP($A20,'2'!$B$10:$D$45,3,FALSE) -> 302.3 | E20: =VLOOKUP($A20,'3'!$B$10:$D$45,3,FALSE) -> 296.6 | F20: =VLOOKUP($A20,'4'!$B$10:$D$45,3,FALSE) -> 302.3 | G20: =VLOOKUP($A20,'5'!$B$10:$D$45,3,FALSE) -> 306.7 | H20: =VLOOKUP($A20,'6'!$B$10:$D$45,3,FALSE) -> 301.1 | I20: =IF(J20 > 0,K20/J20,0) -> 301.2 | J20: =VLOOKUP(A20,Formelhilfe!$A$9:$H$44,8,FALSE) -> 6.0 | K20: =SUM(C20:H20) -> 1,807.4 | L20: =VLOOKUP($A20,'7'!$B$10:$D$45,3,FALSE) -> 301.2 | M20: =VLOOKUP($A20,'8'!$B$10:$D$45,3,FALSE) -> 302.0 | N20: =VLOOKUP($A20,'9'!$B$10:$D$45,3,FALSE) -> 300.8 | O20: =VLOOKUP($A20,'10'!$B$10:$D$45,3,FALSE) -> 297.6 | P20: =VLOOKUP($A20,'11'!$B$10:$D$45,3,FALSE) -> 304.3 | Q20: =VLOOKUP($A20,'12'!$B$10:$D$45,3,FALSE) -> 0.0 | R20: =IF(S20 >0,T20/S20,0) -> 301.2 | S20: =VLOOKUP(A20,Formelhilfe!$A$9:$O$44,15,FALSE) -> 5.0 | T20: =SUM(L20:Q20) -> 1,505.9 | U20: =IF(V20>0,W20/V20,0) -> 301.2 | V20: =VLOOKUP(A20,Formelhilfe!$A$9:$P$44,16,FALSE) -> 11.0 | W20: =SUM(C20:H20,L20:Q20) -> 3,313.3
A21: Annette Schwarte | B21: =VLOOKUP(A21,'Wettkampf 1'!$B$10:$C$45,2,FALSE) -> Börger II | C21: =VLOOKUP(A21,'Wettkampf 1'!$B$10:$D$45,3,FALSE) -> 301.2 | D21: =VLOOKUP($A21,'2'!$B$10:$D$45,3,FALSE) -> 298.2 | E21: =VLOOKUP($A21,'3'!$B$10:$D$45,3,FALSE) -> 306.1 | F21: =VLOOKUP($A21,'4'!$B$10:$D$45,3,FALSE) -> 304.3 | G21: =VLOOKUP($A21,'5'!$B$10:$D$45,3,FALSE) -> 301.2 | H21: =VLOOKUP($A21,'6'!$B$10:$D$45,3,FALSE) -> 305.3 | I21: =IF(J21 > 0,K21/J21,0) -> 302.7 | J21: =VLOOKUP(A21,Formelhilfe!$A$9:$H$44,8,FALSE) -> 6.0 | K21: =SUM(C21:H21) -> 1,816.3 | L21: =VLOOKUP($A21,'7'!$B$10:$D$45,3,FALSE) -> 296.1 | M21: =VLOOKUP($A21,'8'!$B$10:$D$45,3,FALSE) -> 303.1 | N21: =VLOOKUP($A21,'9'!$B$10:$D$45,3,FALSE) -> 299.0 | O21: =VLOOKUP($A21,'10'!$B$10:$D$45,3,FALSE) -> 304.5 | P21: =VLOOKUP($A21,'11'!$B$10:$D$45,3,FALSE) -> 290.6 | Q21: =VLOOKUP($A21,'12'!$B$10:$D$45,3,FALSE) -> 0.0 | R21: =IF(S21 >0,T21/S21,0) -> 298.7 | S21: =VLOOKUP(A21,Formelhilfe!$A$9:$O$44,15,FALSE) -> 5.0 | T21: =SUM(L21:Q21) -> 1,493.3 | U21: =IF(V21>0,W21/V21,0) -> 300.9 | V21: =VLOOKUP(A21,Formelhilfe!$A$9:$P$44,16,FALSE) -> 11.0 | W21: =SUM(C21:H21,L21:Q21) -> 3,309.6
A22: Nina Krömer | B22: =VLOOKUP(A22,'Wettkampf 1'!$B$10:$C$45,2,FALSE) -> Lorup III | C22: =VLOOKUP(A22,'Wettkampf 1'!$B$10:$D$45,3,FALSE) -> 274.4 | D22: =VLOOKUP($A22,'2'!$B$10:$D$45,3,FALSE) -> 292.3 | E22: =VLOOKUP($A22,'3'!$B$10:$D$45,3,FALSE) -> 304.6 | F22: =VLOOKUP($A22,'4'!$B$10:$D$45,3,FALSE) -> 298.0 | G22: =VLOOKUP($A22,'5'!$B$10:$D$45,3,FALSE) -> 287.8 | H22: =VLOOKUP($A22,'6'!$B$10:$D$45,3,FALSE) -> 305.4 | I22: =IF(J22 > 0,K22/J22,0) -> 293.8 | J22: =VLOOKUP(A22,Formelhilfe!$A$9:$H$44,8,FALSE) -> 6.0 | K22: =SUM(C22:H22) -> 1,762.5 | L22: =VLOOKUP($A22,'7'!$B$10:$D$45,3,FALSE) -> 299.7 | M22: =VLOOKUP($A22,'8'!$B$10:$D$45,3,FALSE) -> 292.7 | N22: =VLOOKUP($A22,'9'!$B$10:$D$45,3,FALSE) -> 296.0 | O22: =VLOOKUP($A22,'10'!$B$10:$D$45,3,FALSE) -> 303.1 | P22: =VLOOKUP($A22,'11'!$B$10:$D$45,3,FALSE) -> 291.6 | Q22: =VLOOKUP($A22,'12'!$B$10:$D$45,3,FALSE) -> 0.0 | R22: =IF(S22 >0,T22/S22,0) -> 296.6 | S22: =VLOOKUP(A22,Formelhilfe!$A$9:$O$44,15,FALSE) -> 5.0 | T22: =SUM(L22:Q22) -> 1,483.1 | U22: =IF(V22>0,W22/V22,0) -> 295.1 | V22: =VLOOKUP(A22,Formelhilfe!$A$9:$P$44,16,FALSE) -> 11.0 | W22: =SUM(C22:H22,L22:Q22) -> 3,245.6
A23: Silvia Junge | B23: =VLOOKUP(A23,'Wettkampf 1'!$B$10:$C$45,2,FALSE) -> Neuvrees II | C23: =VLOOKUP(A23,'Wettkampf 1'!$B$10:$D$45,3,FALSE) -> 296.5 | D23: =VLOOKUP($A23,'2'!$B$10:$D$45,3,FALSE) -> 294.8 | E23: =VLOOKUP($A23,'3'!$B$10:$D$45,3,FALSE) -> 283.0 | F23: =VLOOKUP($A23,'4'!$B$10:$D$45,3,FALSE) -> 280.9 | G23: =VLOOKUP($A23,'5'!$B$10:$D$45,3,FALSE) -> 290.8 | H23: =VLOOKUP($A23,'6'!$B$10:$D$45,3,FALSE) -> 299.5 | I23: =IF(J23 > 0,K23/J23,0) -> 290.9 | J23: =VLOOKUP(A23,Formelhilfe!$A$9:$H$44,8,FALSE) -> 6.0 | K23: =SUM(C23:H23) -> 1,745.5 | L23: =VLOOKUP($A23,'7'!$B$10:$D$45,3,FALSE) -> 300.3 | M23: =VLOOKUP($A23,'8'!$B$10:$D$45,3,FALSE) -> 299.8 | N23: =VLOOKUP($A23,'9'!$B$10:$D$45,3,FALSE) -> 247.4 | O23: =VLOOKUP($A23,'10'!$B$10:$D$45,3,FALSE) -> 297.2 | P23: =VLOOKUP($A23,'11'!$B$10:$D$45,3,FALSE) -> 301.9 | Q23: =VLOOKUP($A23,'12'!$B$10:$D$45,3,FALSE) -> 0.0 | R23: =IF(S23 >0,T23/S23,0) -> 289.3 | S23: =VLOOKUP(A23,Formelhilfe!$A$9:$O$44,15,FALSE) -> 5.0 | T23: =SUM(L23:Q23) -> 1,446.6 | U23: =IF(V23>0,W23/V23,0) -> 290.2 | V23: =VLOOKUP(A23,Formelhilfe!$A$9:$P$44,16,FALSE) -> 11.0 | W23: =SUM(C23:H23,L23:Q23) -> 3,192.1
A24: Jasmin Kramer | B24: =VLOOKUP(A24,'Wettkampf 1'!$B$10:$C$45,2,FALSE) -> Börgermoor I | C24: =VLOOKUP(A24,'Wettkampf 1'!$B$10:$D$45,3,FALSE) -> 298.8 | D24: =VLOOKUP($A24,'2'!$B$10:$D$45,3,FALSE) -> 302.4 | E24: =VLOOKUP($A24,'3'!$B$10:$D$45,3,FALSE) -> 306.2 | F24: =VLOOKUP($A24,'4'!$B$10:$D$45,3,FALSE) -> 310.5 | G24: =VLOOKUP($A24,'5'!$B$10:$D$45,3,FALSE) -> 310.3 | H24: =VLOOKUP($A24,'6'!$B$10:$D$45,3,FALSE) -> 309.3 | I24: =IF(J24 > 0,K24/J24,0) -> 306.3 | J24: =VLOOKUP(A24,Formelhilfe!$A$9:$H$44,8,FALSE) -> 6.0 | K24: =SUM(C24:H24) -> 1,837.5 | L24: =VLOOKUP($A24,'7'!$B$10:$D$45,3,FALSE) -> 311.7 | M24: =VLOOKUP($A24,'8'!$B$10:$D$45,3,FALSE) -> 312.3 | N24: =VLOOKUP($A24,'9'!$B$10:$D$45,3,FALSE) -> 312.3 | O24: =VLOOKUP($A24,'10'!$B$10:$D$45,3,FALSE) -> 305.4 | P24: =VLOOKUP($A24,'11'!$B$10:$D$45,3,FALSE) -> 0.0 | Q24: =VLOOKUP($A24,'12'!$B$10:$D$45,3,FALSE) -> 0.0 | R24: =IF(S24 >0,T24/S24,0) -> 310.4 | S24: =VLOOKUP(A24,Formelhilfe!$A$9:$O$44,15,FALSE) -> 4.0 | T24: =SUM(L24:Q24) -> 1,241.7 | U24: =IF(V24>0,W24/V24,0) -> 307.9 | V24: =VLOOKUP(A24,Formelhilfe!$A$9:$P$44,16,FALSE) -> 10.0 | W24: =SUM(C24:H24,L24:Q24) -> 3,079.2
A25: Rita Hanekamp | B25: =VLOOKUP(A25,'Wettkampf 1'!$B$10:$C$45,2,FALSE) -> Spahnharrenstätte I | C25: =VLOOKUP(A25,'Wettkampf 1'!$B$10:$D$45,3,FALSE) -> 295.1 | D25: =VLOOKUP($A25,'2'!$B$10:$D$45,3,FALSE) -> 300.5 | E25: =VLOOKUP($A25,'3'!$B$10:$D$45,3,FALSE) -> 288.4 | F25: =VLOOKUP($A25,'4'!$B$10:$D$45,3,FALSE) -> 296.9 | G25: =VLOOKUP($A25,'5'!$B$10:$D$45,3,FALSE) -> 287.8 | H25: =VLOOKUP($A25,'6'!$B$10:$D$45,3,FALSE) -> 287.0 | I25: =IF(J25 > 0,K25/J25,0) -> 292.6 | J25: =VLOOKUP(A25,Formelhilfe!$A$9:$H$44,8,FALSE) -> 6.0 | K25: =SUM(C25:H25) -> 1,755.7 | L25: =VLOOKUP($A25,'7'!$B$10:$D$45,3,FALSE) -> 0.0 | M25: =VLOOKUP($A25,'8'!$B$10:$D$45,3,FALSE) -> 284.9 | N25: =VLOOKUP($A25,'9'!$B$10:$D$45,3,FALSE) -> 296.3 | O25: =VLOOKUP($A25,'10'!$B$10:$D$45,3,FALSE) -> 295.2 | P25: =VLOOKUP($A25,'11'!$B$10:$D$45,3,FALSE) -> 291.8 | Q25: =VLOOKUP($A25,'12'!$B$10:$D$45,3,FALSE) -> 0.0 | R25: =IF(S25 >0,T25/S25,0) -> 292.1 | S25: =VLOOKUP(A25,Formelhilfe!$A$9:$O$44,15,FALSE) -> 4.0 | T25: =SUM(L25:Q25) -> 1,168.2 | U25: =IF(V25>0,W25/V25,0) -> 292.4 | V25: =VLOOKUP(A25,Formelhilfe!$A$9:$P$44,16,FALSE) -> 10.0 | W25: =SUM(C25:H25,L25:Q25) -> 2,923.9
A26: Petra Dödtmann | B26: =VLOOKUP(A26,'Wettkampf 1'!$B$10:$C$45,2,FALSE) -> Börger II | C26: =VLOOKUP(A26,'Wettkampf 1'!$B$10:$D$45,3,FALSE) -> 0.0 | D26: =VLOOKUP($A26,'2'!$B$10:$D$45,3,FALSE) -> 304.5 | E26: =VLOOKUP($A26,'3'!$B$10:$D$45,3,FALSE) -> 0.0 | F26: =VLOOKUP($A26,'4'!$B$10:$D$45,3,FALSE) -> 315.1 | G26: =VLOOKUP($A26,'5'!$B$10:$D$45,3,FALSE) -> 305.4 | H26: =VLOOKUP($A26,'6'!$B$10:$D$45,3,FALSE) -> 309.8 | I26: =IF(J26 > 0,K26/J26,0) -> 308.7 | J26: =VLOOKUP(A26,Formelhilfe!$A$9:$H$44,8,FALSE) -> 4.0 | K26: =SUM(C26:H26) -> 1,234.8 | L26: =VLOOKUP($A26,'7'!$B$10:$D$45,3,FALSE) -> 310.5 | M26: =VLOOKUP($A26,'8'!$B$10:$D$45,3,FALSE) -> 308.9 | N26: =VLOOKUP($A26,'9'!$B$10:$D$45,3,FALSE) -> 307.6 | O26: =VLOOKUP($A26,'10'!$B$10:$D$45,3,FALSE) -> 309.9 | P26: =VLOOKUP($A26,'11'!$B$10:$D$45,3,FALSE) -> 312.3 | Q26: =VLOOKUP($A26,'12'!$B$10:$D$45,3,FALSE) -> 0.0 | R26: =IF(S26 >0,T26/S26,0) -> 309.8 | S26: =VLOOKUP(A26,Formelhilfe!$A$9:$O$44,15,FALSE) -> 5.0 | T26: =SUM(L26:Q26) -> 1,549.2 | U26: =IF(V26>0,W26/V26,0) -> 309.3 | V26: =VLOOKUP(A26,Formelhilfe!$A$9:$P$44,16,FALSE) -> 9.0 | W26: =SUM(C26:H26,L26:Q26) -> 2,784.0
A27: Sarah Meiners | B27: =VLOOKUP(A27,'Wettkampf 1'!$B$10:$C$45,2,FALSE) -> Ostenwalde II | C27: =VLOOKUP(A27,'Wettkampf 1'!$B$10:$D$45,3,FALSE) -> 292.6 | D27: =VLOOKUP($A27,'2'!$B$10:$D$45,3,FALSE) -> 291.6 | E27: =VLOOKUP($A27,'3'!$B$10:$D$45,3,FALSE) -> 286.0 | F27: =VLOOKUP($A27,'4'!$B$10:$D$45,3,FALSE) -> 290.4 | G27: =VLOOKUP($A27,'5'!$B$10:$D$45,3,FALSE) -> 286.8 | H27: =VLOOKUP($A27,'6'!$B$10:$D$45,3,FALSE) -> 278.1 | I27: =IF(J27 > 0,K27/J27,0) -> 287.6 | J27: =VLOOKUP(A27,Formelhilfe!$A$9:$H$44,8,FALSE) -> 6.0 | K27: =SUM(C27:H27) -> 1,725.5 | L27: =VLOOKUP($A27,'7'!$B$10:$D$45,3,FALSE) -> 286.3 | M27: =VLOOKUP($A27,'8'!$B$10:$D$45,3,FALSE) -> 0.0 | N27: =VLOOKUP($A27,'9'!$B$10:$D$45,3,FALSE) -> 291.9 | O27: =VLOOKUP($A27,'10'!$B$10:$D$45,3,FALSE) -> 291.9 | P27: =VLOOKUP($A27,'11'!$B$10:$D$45,3,FALSE) -> 0.0 | Q27: =VLOOKUP($A27,'12'!$B$10:$D$45,3,FALSE) -> 0.0 | R27: =IF(S27 >0,T27/S27,0) -> 290.0 | S27: =VLOOKUP(A27,Formelhilfe!$A$9:$O$44,15,FALSE) -> 3.0 | T27: =SUM(L27:Q27) -> 870.1 | U27: =IF(V27>0,W27/V27,0) -> 288.4 | V27: =VLOOKUP(A27,Formelhilfe!$A$9:$P$44,16,FALSE) -> 9.0 | W27: =SUM(C27:H27,L27:Q27) -> 2,595.6
A28: Helga Meiners | B28: =VLOOKUP(A28,'Wettkampf 1'!$B$10:$C$45,2,FALSE) -> Ostenwalde II | C28: =VLOOKUP(A28,'Wettkampf 1'!$B$10:$D$45,3,FALSE) -> 302.1 | D28: =VLOOKUP($A28,'2'!$B$10:$D$45,3,FALSE) -> 293.4 | E28: =VLOOKUP($A28,'3'!$B$10:$D$45,3,FALSE) -> 299.3 | F28: =VLOOKUP($A28,'4'!$B$10:$D$45,3,FALSE) -> 298.7 | G28: =VLOOKUP($A28,'5'!$B$10:$D$45,3,FALSE) -> 299.4 | H28: =VLOOKUP($A28,'6'!$B$10:$D$45,3,FALSE) -> 299.9 | I28: =IF(J28 > 0,K28/J28,0) -> 298.8 | J28: =VLOOKUP(A28,Formelhilfe!$A$9:$H$44,8,FALSE) -> 6.0 | K28: =SUM(C28:H28) -> 1,792.8 | L28: =VLOOKUP($A28,'7'!$B$10:$D$45,3,FALSE) -> 296.1 | M28: =VLOOKUP($A28,'8'!$B$10:$D$45,3,FALSE) -> 291.6 | N28: =VLOOKUP($A28,'9'!$B$10:$D$45,3,FALSE) -> 0.0 | O28: =VLOOKUP($A28,'10'!$B$10:$D$45,3,FALSE) -> 0.0 | P28: =VLOOKUP($A28,'11'!$B$10:$D$45,3,FALSE) -> 0.0 | Q28: =VLOOKUP($A28,'12'!$B$10:$D$45,3,FALSE) -> 0.0 | R28: =IF(S28 >0,T28/S28,0) -> 293.9 | S28: =VLOOKUP(A28,Formelhilfe!$A$9:$O$44,15,FALSE) -> 2.0 | T28: =SUM(L28:Q28) -> 587.7 | U28: =IF(V28>0,W28/V28,0) -> 297.6 | V28: =VLOOKUP(A28,Formelhilfe!$A$9:$P$44,16,FALSE) -> 8.0 | W28: =SUM(C28:H28,L28:Q28) -> 2,380.5
A29: Sarah Breer | B29: =VLOOKUP(A29,'Wettkampf 1'!$B$10:$C$45,2,FALSE) -> Börger II | C29: =VLOOKUP(A29,'Wettkampf 1'!$B$10:$D$45,3,FALSE) -> 288.8 | D29: =VLOOKUP($A29,'2'!$B$10:$D$45,3,FALSE) -> 283.5 | E29: =VLOOKUP($A29,'3'!$B$10:$D$45,3,FALSE) -> 284.3 | F29: =VLOOKUP($A29,'4'!$B$10:$D$45,3,FALSE) -> 0.0 | G29: =VLOOKUP($A29,'5'!$B$10:$D$45,3,FALSE) -> 266.4 | H29: =VLOOKUP($A29,'6'!$B$10:$D$45,3,FALSE) -> 271.9 | I29: =IF(J29 > 0,K29/J29,0) -> 279.0 | J29: =VLOOKUP(A29,Formelhilfe!$A$9:$H$44,8,FALSE) -> 5.0 | K29: =SUM(C29:H29) -> 1,394.9 | L29: =VLOOKUP($A29,'7'!$B$10:$D$45,3,FALSE) -> 266.2 | M29: =VLOOKUP($A29,'8'!$B$10:$D$45,3,FALSE) -> 0.0 | N29: =VLOOKUP($A29,'9'!$B$10:$D$45,3,FALSE) -> 0.0 | O29: =VLOOKUP($A29,'10'!$B$10:$D$45,3,FALSE) -> 0.0 | P29: =VLOOKUP($A29,'11'!$B$10:$D$45,3,FALSE) -> 0.0 | Q29: =VLOOKUP($A29,'12'!$B$10:$D$45,3,FALSE) -> 0.0 | R29: =IF(S29 >0,T29/S29,0) -> 266.2 | S29: =VLOOKUP(A29,Formelhilfe!$A$9:$O$44,15,FALSE) -> 1.0 | T29: =SUM(L29:Q29) -> 266.2 | U29: =IF(V29>0,W29/V29,0) -> 276.8 | V29: =VLOOKUP(A29,Formelhilfe!$A$9:$P$44,16,FALSE) -> 6.0 | W29: =SUM(C29:H29,L29:Q29) -> 1,661.1
A30: Harma Steenken | B30: =VLOOKUP(A30,'Wettkampf 1'!$B$10:$C$45,2,FALSE) -> Neuvrees II | C30: =VLOOKUP(A30,'Wettkampf 1'!$B$10:$D$45,3,FALSE) -> 275.9 | D30: =VLOOKUP($A30,'2'!$B$10:$D$45,3,FALSE) -> 297.5 | E30: =VLOOKUP($A30,'3'!$B$10:$D$45,3,FALSE) -> 0.0 | F30: =VLOOKUP($A30,'4'!$B$10:$D$45,3,FALSE) -> 268.4 | G30: =VLOOKUP($A30,'5'!$B$10:$D$45,3,FALSE) -> 0.0 | H30: =VLOOKUP($A30,'6'!$B$10:$D$45,3,FALSE) -> 0.0 | I30: =IF(J30 > 0,K30/J30,0) -> 280.6 | J30: =VLOOKUP(A30,Formelhilfe!$A$9:$H$44,8,FALSE) -> 3.0 | K30: =SUM(C30:H30) -> 841.8 | L30: =VLOOKUP($A30,'7'!$B$10:$D$45,3,FALSE) -> 261.1 | M30: =VLOOKUP($A30,'8'!$B$10:$D$45,3,FALSE) -> 0.0 | N30: =VLOOKUP($A30,'9'!$B$10:$D$45,3,FALSE) -> 282.0 | O30: =VLOOKUP($A30,'10'!$B$10:$D$45,3,FALSE) -> 0.0 | P30: =VLOOKUP($A30,'11'!$B$10:$D$45,3,FALSE) -> 0.0 | Q30: =VLOOKUP($A30,'12'!$B$10:$D$45,3,FALSE) -> 0.0 | R30: =IF(S30 >0,T30/S30,0) -> 271.6 | S30: =VLOOKUP(A30,Formelhilfe!$A$9:$O$44,15,FALSE) -> 2.0 | T30: =SUM(L30:Q30) -> 543.1 | U30: =IF(V30>0,W30/V30,0) -> 277.0 | V30: =VLOOKUP(A30,Formelhilfe!$A$9:$P$44,16,FALSE) -> 5.0 | W30: =SUM(C30:H30,L30:Q30) -> 1,384.9
A31: Margret Büter | B31: =VLOOKUP(A31,'Wettkampf 1'!$B$10:$C$45,2,FALSE) -> Lorup III | C31: =VLOOKUP(A31,'Wettkampf 1'!$B$10:$D$45,3,FALSE) -> 288.4 | D31: =VLOOKUP($A31,'2'!$B$10:$D$45,3,FALSE) -> 277.1 | E31: =VLOOKUP($A31,'3'!$B$10:$D$45,3,FALSE) -> 0.0 | F31: =VLOOKUP($A31,'4'!$B$10:$D$45,3,FALSE) -> 0.0 | G31: =VLOOKUP($A31,'5'!$B$10:$D$45,3,FALSE) -> 0.0 | H31: =VLOOKUP($A31,'6'!$B$10:$D$45,3,FALSE) -> 0.0 | I31: =IF(J31 > 0,K31/J31,0) -> 282.8 | J31: =VLOOKUP(A31,Formelhilfe!$A$9:$H$44,8,FALSE) -> 2.0 | K31: =SUM(C31:H31) -> 565.5 | L31: =VLOOKUP($A31,'7'!$B$10:$D$45,3,FALSE) -> 0.0 | M31: =VLOOKUP($A31,'8'!$B$10:$D$45,3,FALSE) -> 0.0 | N31: =VLOOKUP($A31,'9'!$B$10:$D$45,3,FALSE) -> 0.0 | O31: =VLOOKUP($A31,'10'!$B$10:$D$45,3,FALSE) -> 0.0 | P31: =VLOOKUP($A31,'11'!$B$10:$D$45,3,FALSE) -> 0.0 | Q31: =VLOOKUP($A31,'12'!$B$10:$D$45,3,FALSE) -> 0.0 | R31: =IF(S31 >0,T31/S31,0) -> 0.0 | S31: =VLOOKUP(A31,Formelhilfe!$A$9:$O$44,15,FALSE) -> 0.0 | T31: =SUM(L31:Q31) -> 0.0 | U31: =IF(V31>0,W31/V31,0) -> 282.8 | V31: =VLOOKUP(A31,Formelhilfe!$A$9:$P$44,16,FALSE) -> 2.0 | W31: =SUM(C31:H31,L31:Q31) -> 565.5
A32: Evelyn Feder | B32: =VLOOKUP(A32,'Wettkampf 1'!$B$10:$C$45,2,FALSE) -> Ostenwalde II | C32: =VLOOKUP(A32,'Wettkampf 1'!$B$10:$D$45,3,FALSE) -> 0.0 | D32: =VLOOKUP($A32,'2'!$B$10:$D$45,3,FALSE) -> 0.0 | E32: =VLOOKUP($A32,'3'!$B$10:$D$45,3,FALSE) -> 0.0 | F32: =VLOOKUP($A32,'4'!$B$10:$D$45,3,FALSE) -> 0.0 | G32: =VLOOKUP($A32,'5'!$B$10:$D$45,3,FALSE) -> 0.0 | H32: =VLOOKUP($A32,'6'!$B$10:$D$45,3,FALSE) -> 0.0 | I32: =IF(J32 > 0,K32/J32,0) -> 0.0 | J32: =VLOOKUP(A32,Formelhilfe!$A$9:$H$44,8,FALSE) -> 0.0 | K32: =SUM(C32:H32) -> 0.0 | L32: =VLOOKUP($A32,'7'!$B$10:$D$45,3,FALSE) -> 0.0 | M32: =VLOOKUP($A32,'8'!$B$10:$D$45,3,FALSE) -> 299.5 | N32: =VLOOKUP($A32,'9'!$B$10:$D$45,3,FALSE) -> 0.0 | O32: =VLOOKUP($A32,'10'!$B$10:$D$45,3,FALSE) -> 0.0 | P32: =VLOOKUP($A32,'11'!$B$10:$D$45,3,FALSE) -> 0.0 | Q32: =VLOOKUP($A32,'12'!$B$10:$D$45,3,FALSE) -> 0.0 | R32: =IF(S32 >0,T32/S32,0) -> 299.5 | S32: =VLOOKUP(A32,Formelhilfe!$A$9:$O$44,15,FALSE) -> 1.0 | T32: =SUM(L32:Q32) -> 299.5 | U32: =IF(V32>0,W32/V32,0) -> 299.5 | V32: =VLOOKUP(A32,Formelhilfe!$A$9:$P$44,16,FALSE) -> 1.0 | W32: =SUM(C32:H32,L32:Q32) -> 299.5
A33: Anna -Maria Wimberg | B33: =VLOOKUP(A33,'Wettkampf 1'!$B$10:$C$45,2,FALSE) -> Ostenwalde II | C33: =VLOOKUP(A33,'Wettkampf 1'!$B$10:$D$45,3,FALSE) -> 0.0 | D33: =VLOOKUP($A33,'2'!$B$10:$D$45,3,FALSE) -> 0.0 | E33: =VLOOKUP($A33,'3'!$B$10:$D$45,3,FALSE) -> 0.0 | F33: =VLOOKUP($A33,'4'!$B$10:$D$45,3,FALSE) -> 0.0 | G33: =VLOOKUP($A33,'5'!$B$10:$D$45,3,FALSE) -> 0.0 | H33: =VLOOKUP($A33,'6'!$B$10:$D$45,3,FALSE) -> 0.0 | I33: =IF(J33 > 0,K33/J33,0) -> 0.0 | J33: =VLOOKUP(A33,Formelhilfe!$A$9:$H$44,8,FALSE) -> 0.0 | K33: =SUM(C33:H33) -> 0.0 | L33: =VLOOKUP($A33,'7'!$B$10:$D$45,3,FALSE) -> 0.0 | M33: =VLOOKUP($A33,'8'!$B$10:$D$45,3,FALSE) -> 0.0 | N33: =VLOOKUP($A33,'9'!$B$10:$D$45,3,FALSE) -> 0.0 | O33: =VLOOKUP($A33,'10'!$B$10:$D$45,3,FALSE) -> 0.0 | P33: =VLOOKUP($A33,'11'!$B$10:$D$45,3,FALSE) -> 296.8 | Q33: =VLOOKUP($A33,'12'!$B$10:$D$45,3,FALSE) -> 0.0 | R33: =IF(S33 >0,T33/S33,0) -> 296.8 | S33: =VLOOKUP(A33,Formelhilfe!$A$9:$O$44,15,FALSE) -> 1.0 | T33: =SUM(L33:Q33) -> 296.8 | U33: =IF(V33>0,W33/V33,0) -> 296.8 | V33: =VLOOKUP(A33,Formelhilfe!$A$9:$P$44,16,FALSE) -> 1.0 | W33: =SUM(C33:H33,L33:Q33) -> 296.8
A34: Schütze 35 | B34: =VLOOKUP(A34,'Wettkampf 1'!$B$10:$C$45,2,FALSE) -> Spahnharrenstätte I | C34: =VLOOKUP(A34,'Wettkampf 1'!$B$10:$D$45,3,FALSE) -> 0.0 | D34: =VLOOKUP($A34,'2'!$B$10:$D$45,3,FALSE) -> 278.6 | E34: =VLOOKUP($A34,'3'!$B$10:$D$45,3,FALSE) -> 0.0 | F34: =VLOOKUP($A34,'4'!$B$10:$D$45,3,FALSE) -> 0.0 | G34: =VLOOKUP($A34,'5'!$B$10:$D$45,3,FALSE) -> 0.0 | H34: =VLOOKUP($A34,'6'!$B$10:$D$45,3,FALSE) -> 0.0 | I34: =IF(J34 > 0,K34/J34,0) -> 278.6 | J34: =VLOOKUP(A34,Formelhilfe!$A$9:$H$44,8,FALSE) -> 1.0 | K34: =SUM(C34:H34) -> 278.6 | L34: =VLOOKUP($A34,'7'!$B$10:$D$45,3,FALSE) -> 0.0 | M34: =VLOOKUP($A34,'8'!$B$10:$D$45,3,FALSE) -> 0.0 | N34: =VLOOKUP($A34,'9'!$B$10:$D$45,3,FALSE) -> 0.0 | O34: =VLOOKUP($A34,'10'!$B$10:$D$45,3,FALSE) -> 0.0 | P34: =VLOOKUP($A34,'11'!$B$10:$D$45,3,FALSE) -> 0.0 | Q34: =VLOOKUP($A34,'12'!$B$10:$D$45,3,FALSE) -> 0.0 | R34: =IF(S34 >0,T34/S34,0) -> 0.0 | S34: =VLOOKUP(A34,Formelhilfe!$A$9:$O$44,15,FALSE) -> 0.0 | T34: =SUM(L34:Q34) -> 0.0 | U34: =IF(V34>0,W34/V34,0) -> 278.6 | V34: =VLOOKUP(A34,Formelhilfe!$A$9:$P$44,16,FALSE) -> 1.0 | W34: =SUM(C34:H34,L34:Q34) -> 278.6
A35: Schütze 17 | B35: =VLOOKUP(A35,'Wettkampf 1'!$B$10:$C$45,2,FALSE) -> Börgermoor I | C35: =VLOOKUP(A35,'Wettkampf 1'!$B$10:$D$45,3,FALSE) -> 0.0 | D35: =VLOOKUP($A35,'2'!$B$10:$D$45,3,FALSE) -> 0.0 | E35: =VLOOKUP($A35,'3'!$B$10:$D$45,3,FALSE) -> 0.0 | F35: =VLOOKUP($A35,'4'!$B$10:$D$45,3,FALSE) -> 0.0 | G35: =VLOOKUP($A35,'5'!$B$10:$D$45,3,FALSE) -> 0.0 | H35: =VLOOKUP($A35,'6'!$B$10:$D$45,3,FALSE) -> 0.0 | I35: =IF(J35 > 0,K35/J35,0) -> 0.0 | J35: =VLOOKUP(A35,Formelhilfe!$A$9:$H$44,8,FALSE) -> 0.0 | K35: =SUM(C35:H35) -> 0.0 | L35: =VLOOKUP($A35,'7'!$B$10:$D$45,3,FALSE) -> 0.0 | M35: =VLOOKUP($A35,'8'!$B$10:$D$45,3,FALSE) -> 0.0 | N35: =VLOOKUP($A35,'9'!$B$10:$D$45,3,FALSE) -> 0.0 | O35: =VLOOKUP($A35,'10'!$B$10:$D$45,3,FALSE) -> 0.0 | P35: =VLOOKUP($A35,'11'!$B$10:$D$45,3,FALSE) -> 0.0 | Q35: =VLOOKUP($A35,'12'!$B$10:$D$45,3,FALSE) -> 0.0 | R35: =IF(S35 >0,T35/S35,0) -> 0.0 | S35: =VLOOKUP(A35,Formelhilfe!$A$9:$O$44,15,FALSE) -> 0.0 | T35: =SUM(L35:Q35) -> 0.0 | U35: =IF(V35>0,W35/V35,0) -> 0.0 | V35: =VLOOKUP(A35,Formelhilfe!$A$9:$P$44,16,FALSE) -> 0.0 | W35: =SUM(C35:H35,L35:Q35) -> 0.0
A36: Schütze 18 | B36: =VLOOKUP(A36,'Wettkampf 1'!$B$10:$C$45,2,FALSE) -> Börgermoor I | C36: =VLOOKUP(A36,'Wettkampf 1'!$B$10:$D$45,3,FALSE) -> 0.0 | D36: =VLOOKUP($A36,'2'!$B$10:$D$45,3,FALSE) -> 0.0 | E36: =VLOOKUP($A36,'3'!$B$10:$D$45,3,FALSE) -> 0.0 | F36: =VLOOKUP($A36,'4'!$B$10:$D$45,3,FALSE) -> 0.0 | G36: =VLOOKUP($A36,'5'!$B$10:$D$45,3,FALSE) -> 0.0 | H36: =VLOOKUP($A36,'6'!$B$10:$D$45,3,FALSE) -> 0.0 | I36: =IF(J36 > 0,K36/J36,0) -> 0.0 | J36: =VLOOKUP(A36,Formelhilfe!$A$9:$H$44,8,FALSE) -> 0.0 | K36: =SUM(C36:H36) -> 0.0 | L36: =VLOOKUP($A36,'7'!$B$10:$D$45,3,FALSE) -> 0.0 | M36: =VLOOKUP($A36,'8'!$B$10:$D$45,3,FALSE) -> 0.0 | N36: =VLOOKUP($A36,'9'!$B$10:$D$45,3,FALSE) -> 0.0 | O36: =VLOOKUP($A36,'10'!$B$10:$D$45,3,FALSE) -> 0.0 | P36: =VLOOKUP($A36,'11'!$B$10:$D$45,3,FALSE) -> 0.0 | Q36: =VLOOKUP($A36,'12'!$B$10:$D$45,3,FALSE) -> 0.0 | R36: =IF(S36 >0,T36/S36,0) -> 0.0 | S36: =VLOOKUP(A36,Formelhilfe!$A$9:$O$44,15,FALSE) -> 0.0 | T36: =SUM(L36:Q36) -> 0.0 | U36: =IF(V36>0,W36/V36,0) -> 0.0 | V36: =VLOOKUP(A36,Formelhilfe!$A$9:$P$44,16,FALSE) -> 0.0 | W36: =SUM(C36:H36,L36:Q36) -> 0.0
A37: Schütze 36 | B37: =VLOOKUP(A37,'Wettkampf 1'!$B$10:$C$45,2,FALSE) -> Spahnharrenstätte I | C37: =VLOOKUP(A37,'Wettkampf 1'!$B$10:$D$45,3,FALSE) -> 0.0 | D37: =VLOOKUP($A37,'2'!$B$10:$D$45,3,FALSE) -> 0.0 | E37: =VLOOKUP($A37,'3'!$B$10:$D$45,3,FALSE) -> 0.0 | F37: =VLOOKUP($A37,'4'!$B$10:$D$45,3,FALSE) -> 0.0 | G37: =VLOOKUP($A37,'5'!$B$10:$D$45,3,FALSE) -> 0.0 | H37: =VLOOKUP($A37,'6'!$B$10:$D$45,3,FALSE) -> 0.0 | I37: =IF(J37 > 0,K37/J37,0) -> 0.0 | J37: =VLOOKUP(A37,Formelhilfe!$A$9:$H$44,8,FALSE) -> 0.0 | K37: =SUM(C37:H37) -> 0.0 | L37: =VLOOKUP($A37,'7'!$B$10:$D$45,3,FALSE) -> 0.0 | M37: =VLOOKUP($A37,'8'!$B$10:$D$45,3,FALSE) -> 0.0 | N37: =VLOOKUP($A37,'9'!$B$10:$D$45,3,FALSE) -> 0.0 | O37: =VLOOKUP($A37,'10'!$B$10:$D$45,3,FALSE) -> 0.0 | P37: =VLOOKUP($A37,'11'!$B$10:$D$45,3,FALSE) -> 0.0 | Q37: =VLOOKUP($A37,'12'!$B$10:$D$45,3,FALSE) -> 0.0 | R37: =IF(S37 >0,T37/S37,0) -> 0.0 | S37: =VLOOKUP(A37,Formelhilfe!$A$9:$O$44,15,FALSE) -> 0.0 | T37: =SUM(L37:Q37) -> 0.0 | U37: =IF(V37>0,W37/V37,0) -> 0.0 | V37: =VLOOKUP(A37,Formelhilfe!$A$9:$P$44,16,FALSE) -> 0.0 | W37: =SUM(C37:H37,L37:Q37) -> 0.0

Sheet Formelhilfe (hidden)
B1: 1 | C1: 2 | D1: 3 | E1: 4 | F1: 5 | G1: 6 | H1: Hinrunde Schnitt | I1: 7 | J1: 8 | K1: 9 | L1: 10 | M1: 11 | N1: 12 | O1: Rückrunde Schnitt | P1: Gesamt Schnitt | S1: Kreisoberliga | T1: Schützen | U1: 2023/2024
A2: ='Wettkampf 1'!B2 -> Börger II | B2: =IF('Wettkampf 1'!D2>0,1,0) -> 1 | C2: =IF('2'!$D2>0,1,0) -> 1 | D2: =IF('3'!$D2>0,1,0) -> 1 | E2: =IF('4'!$D2>0,1,0) -> 1 | F2: =IF('5'!$D2>0,1,0) -> 1 | G2: =IF('6'!$D2>0,1,0) -> 1 | H2: =SUM(B2:G2) -> 6 | I2: =IF('7'!$D2>0,1,0) -> 1 | J2: =IF('8'!$D2>0,1,0) -> 1 | K2: =IF('9'!$D2>0,1,0) -> 1 | L2: =IF('10'!$D2>0,1,0) -> 1 | M2: =IF('11'!$D2>0,1,0) -> 1 | N2: =IF('12'!$D2>0,1,0) -> 0 | O2: =SUM(I2:N2) -> 5 | P2: =O2+H2 -> 11 | S2: 1. Kreisliga | T2: Damen | U2: 2024/2025
A3: ='Wettkampf 1'!B3 -> Neuvrees II | B3: =IF('Wettkampf 1'!D3>0,1,0) -> 1 | C3: =IF('2'!$D3>0,1,0) -> 1 | D3: =IF('3'!$D3>0,1,0) -> 1 | E3: =IF('4'!$D3>0,1,0) -> 1 | F3: =IF('5'!$D3>0,1,0) -> 1 | G3: =IF('6'!$D3>0,1,0) -> 1 | H3: =SUM(B3:G3) -> 6 | I3: =IF('7'!$D3>0,1,0) -> 1 | J3: =IF('8'!$D3>0,1,0) -> 1 | K3: =IF('9'!$D3>0,1,0) -> 1 | L3: =IF('10'!$D3>0,1,0) -> 1 | M3: =IF('11'!$D3>0,1,0) -> 1 | N3: =IF('12'!$D3>0,1,0) -> 0 | O3: =SUM(I3:N3) -> 5 | P3: =O3+H3 -> 11 | S3: 2. Kreisliga | T3: Altersgruppe | U3: 2025/2026
A4: ='Wettkampf 1'!B4 -> Börgermoor I | B4: =IF('Wettkampf 1'!D4>0,1,0) -> 1 | C4: =IF('2'!$D4>0,1,0) -> 1 | D4: =IF('3'!$D4>0,1,0) -> 1 | E4: =IF('4'!$D4>0,1,0) -> 1 | F4: =IF('5'!$D4>0,1,0) -> 1 | G4: =IF('6'!$D4>0,1,0) -> 1 | H4: 6 | I4: =IF('7'!$D4>0,1,0) -> 1 | J4: =IF('8'!$D4>0,1,0) -> 1 | K4: =IF('9'!$D4>0,1,0) -> 1 | L4: =IF('10'!$D4>0,1,0) -> 1 | M4: =IF('11'!$D4>0,1,0) -> 1 | N4: =IF('12'!$D4>0,1,0) -> 0 | O4: 5 | P4: 11 | S4: 1. Kreisklasse | T4: Senioren | U4: 2026/2027
A5: ='Wettkampf 1'!B5 -> Lorup III | B5: =IF('Wettkampf 1'!D5>0,1,0) -> 1 | C5: =IF('2'!$D5>0,1,0) -> 1 | D5: =IF('3'!$D5>0,1,0) -> 1 | E5: =IF('4'!$D5>0,1,0) -> 1 | F5: =IF('5'!$D5>0,1,0) -> 1 | G5: =IF('6'!$D5>0,1,0) -> 1 | H5: 6 | I5: =IF('7'!$D5>0,1,0) -> 1 | J5: =IF('8'!$D5>0,1,0) -> 1 | K5: =IF('9'!$D5>0,1,0) -> 1 | L5: =IF('10'!$D5>0,1,0) -> 1 | M5: =IF('11'!$D5>0,1,0) -> 1 | N5: =IF('12'!$D5>0,1,0) -> 0 | O5: 5 | P5: 11 | S5: 2. Kreisklasse | T5: Jugend | U5: 2027/2028
A6: ='Wettkampf 1'!B6 -> Ostenwalde II | B6: =IF('Wettkampf 1'!D6>0,1,0) -> 1 | C6: =IF('2'!$D6>0,1,0) -> 1 | D6: =IF('3'!$D6>0,1,0) -> 1 | E6: =IF('4'!$D6>0,1,0) -> 1 | F6: =IF('5'!$D6>0,1,0) -> 1 | G6: =IF('6'!$D6>0,1,0) -> 1 | H6: 6 | I6: =IF('7'!$D6>0,1,0) -> 1 | J6: =IF('8'!$D6>0,1,0) -> 1 | K6: =IF('9'!$D6>0,1,0) -> 1 | L6: =IF('10'!$D6>0,1,0) -> 1 | M6: =IF('11'!$D6>0,1,0) -> 1 | N6: =IF('12'!$D6>0,1,0) -> 0 | O6: 5 | P6: 11 | S6: 3. Kreisklasse | T6: Schüler | U6: 2028/2029
A7: ='Wettkampf 1'!B7 -> Spahnharrenstätte I | B7: =IF('Wettkampf 1'!D7>0,1,0) -> 1 | C7: =IF('2'!$D7>0,1,0) -> 1 | D7: =IF('3'!$D7>0,1,0) -> 1 | E7: =IF('4'!$D7>0,1,0) -> 1 | F7: =IF('5'!$D7>0,1,0) -> 1 | G7: =IF('6'!$D7>0,1,0) -> 1 | H7: 6 | I7: =IF('7'!$D7>0,1,0) -> 1 | J7: =IF('8'!$D7>0,1,0) -> 1 | K7: =IF('9'!$D7>0,1,0) -> 1 | L7: =IF('10'!$D7>0,1,0) -> 1 | M7: =IF('11'!$D7>0,1,0) -> 1 | N7: =IF('12'!$D7>0,1,0) -> 0 | O7: 5 | P7: 11 | S7: 4. Kreisklasse | T7: offene Klasse FHLG | U7: 2039/2030
S8: 5. Kreisklasse | T8: Luftpistole
A9: Gertrud Kuchta | B9: =IF('Wettkampf 1'!D10>0,1,0) -> 1 | C9: =IF('2'!$D10>0,1,0) -> 1 | D9: =IF('3'!$D10>0,1,0) -> 1 | E9: =IF('4'!$D10>0,1,0) -> 1 | F9: =IF('5'!$D10>0,1,0) -> 1 | G9: =IF('6'!$D10>0,1,0) -> 1 | H9: 6 | I9: =IF('7'!$D10>0,1,0) -> 1 | J9: =IF('8'!$D10>0,1,0) -> 1 | K9: =IF('9'!$D10>0,1,0) -> 1 | L9: =IF('10'!$D10>0,1,0) -> 1 | M9: =IF('11'!$D10>0,1,0) -> 1 | N9: =IF('12'!$D10>0,1,0) -> 0 | O9: 5 | P9: =O9+H9 -> 11 | S9: 6. Kreisklasse
A10: Sarah Breer | B10: =IF('Wettkampf 1'!D11>0,1,0) -> 1 | C10: =IF('2'!$D11>0,1,0) -> 1 | D10: =IF('3'!$D11>0,1,0) -> 1 | E10: =IF('4'!$D11>0,1,0) -> 0 | F10: =IF('5'!$D11>0,1,0) -> 1 | G10: =IF('6'!$D11>0,1,0) -> 1 | H10: 5 | I10: =IF('7'!$D11>0,1,0) -> 1 | J10: =IF('8'!$D11>0,1,0) -> 0 | K10: =IF('9'!$D11>0,1,0) -> 0 | L10: =IF('10'!$D11>0,1,0) -> 0 | M10: =IF('11'!$D11>0,1,0) -> 0 | N10: =IF('12'!$D11>0,1,0) -> 0 | O10: 1 | P10: =O10+H10 -> 6 | S10: 7. Kreisklasse
A11: Margret Pohlgeers | B11: =IF('Wettkampf 1'!D12>0,1,0) -> 1 | C11: =IF('2'!$D12>0,1,0) -> 1 | D11: =IF('3'!$D12>0,1,0) -> 1 | E11: =IF('4'!$D12>0,1,0) -> 1 | F11: =IF('5'!$D12>0,1,0) -> 1 | G11: =IF('6'!$D12>0,1,0) -> 1 | H11: 6 | I11: =IF('7'!$D12>0,1,0) -> 1 | J11: =IF('8'!$D12>0,1,0) -> 1 | K11: =IF('9'!$D12>0,1,0) -> 1 | L11: =IF('10'!$D12>0,1,0) -> 1 | M11: =IF('11'!$D12>0,1,0) -> 1 | N11: =IF('12'!$D12>0,1,0) -> 0 | O11: 5 | P11: 11
A12: Gundula Schwarte | B12: =IF('Wettkampf 1'!D13>0,1,0) -> 1 | C12: =IF('2'!$D13>0,1,0) -> 1 | D12: =IF('3'!$D13>0,1,0) -> 1 | E12: =IF('4'!$D13>0,1,0) -> 1 | F12: =IF('5'!$D13>0,1,0) -> 1 | G12: =IF('6'!$D13>0,1,0) -> 1 | H12: 6 | I12: =IF('7'!$D13>0,1,0) -> 1 | J12: =IF('8'!$D13>0,1,0) -> 1 | K12: =IF('9'!$D13>0,1,0) -> 1 | L12: =IF('10'!$D13>0,1,0) -> 1 | M12: =IF('11'!$D13>0,1,0) -> 1 | N12: =IF('12'!$D13>0,1,0) -> 0 | O12: 5 | P12: 11
A13: Annette Schwarte | B13: =IF('Wettkampf 1'!D14>0,1,0) -> 1 | C13: =IF('2'!$D14>0,1,0) -> 1 | D13: =IF('3'!$D14>0,1,0) -> 1 | E13: =IF('4'!$D14>0,1,0) -> 1 | F13: =IF('5'!$D14>0,1,0) -> 1 | G13: =IF('6'!$D14>0,1,0) -> 1 | H13: 6 | I13: =IF('7'!$D14>0,1,0) -> 1 | J13: =IF('8'!$D14>0,1,0) -> 1 | K13: =IF('9'!$D14>0,1,0) -> 1 | L13: =IF('10'!$D14>0,1,0) -> 1 | M13: =IF('11'!$D14>0,1,0) -> 1 | N13: =IF('12'!$D14>0,1,0) -> 0 | O13: 5 | P13: 11
A14: Petra Dödtmann | B14: =IF('Wettkampf 1'!D15>0,1,0) -> 0 | C14: =IF('2'!$D15>0,1,0) -> 1 | D14: =IF('3'!$D15>0,1,0) -> 0 | E14: =IF('4'!$D15>0,1,0) -> 1 | F14: =IF('5'!$D15>0,1,0) -> 1 | G14: =IF('6'!$D15>0,1,0) -> 1 | H14: 4 | I14: =IF('7'!$D15>0,1,0) -> 1 | J14: =IF('8'!$D15>0,1,0) -> 1 | K14: =IF('9'!$D15>0,1,0) -> 1 | L14: =IF('10'!$D15>0,1,0) -> 1 | M14: =IF('11'!$D15>0,1,0) -> 1 | N14: =IF('12'!$D15>0,1,0) -> 0 | O14: 5 | P14: 9
A15: Sarah Deyen | B15: =IF('Wettkampf 1'!D16>0,1,0) -> 1 | C15: =IF('2'!$D16>0,1,0) -> 1 | D15: =IF('3'!$D16>0,1,0) -> 1 | E15: =IF('4'!$D16>0,1,0) -> 1 | F15: =IF('5'!$D16>0,1,0) -> 1 | G15: =IF('6'!$D16>0,1,0) -> 1 | H15: 6 | I15: =IF('7'!$D16>0,1,0) -> 1 | J15: =IF('8'!$D16>0,1,0) -> 1 | K15: =IF('9'!$D16>0,1,0) -> 1 | L15: =IF('10'!$D16>0,1,0) -> 1 | M15: =IF('11'!$D16>0,1,0) -> 1 | N15: =IF('12'!$D16>0,1,0) -> 0 | O15: 5 | P15: 11
A16: Silvia Thunert | B16: =IF('Wettkampf 1'!D17>0,1,0) -> 1 | C16: =IF('2'!$D17>0,1,0) -> 1 | D16: =IF('3'!$D17>0,1,0) -> 1 | E16: =IF('4'!$D17>0,1,0) -> 1 | F16: =IF('5'!$D17>0,1,0) -> 1 | G16: =IF('6'!$D17>0,1,0) -> 1 | H16: 6 | I16: =IF('7'!$D17>0,1,0) -> 1 | J16: =IF('8'!$D17>0,1,0) -> 1 | K16: =IF('9'!$D17>0,1,0) -> 1 | L16: =IF('10'!$D17>0,1,0) -> 1 | M16: =IF('11'!$D17>0,1,0) -> 1 | N16: =IF('12'!$D17>0,1,0) -> 0 | O16: 5 | P16: 11
A17: Margret Pohlmann | B17: =IF('Wettkampf 1'!D18>0,1,0) -> 1 | C17: =IF('2'!$D18>0,1,0) -> 1 | D17: =IF('3'!$D18>0,1,0) -> 1 | E17: =IF('4'!$D18>0,1,0) -> 1 | F17: =IF('5'!$D18>0,1,0) -> 1 | G17: =IF('6'!$D18>0,1,0) -> 1 | H17: 6 | I17: =IF('7'!$D18>0,1,0) -> 1 | J17: =IF('8'!$D18>0,1,0) -> 1 | K17: =IF('9'!$D18>0,1,0) -> 1 | L17: =IF('10'!$D18>0,1,0) -> 1 | M17: =IF('11'!$D18>0,1,0) -> 1 | N17: =IF('12'!$D18>0,1,0) -> 0 | O17: 5 | P17: 11
A18: Harma Steenken | B18: =IF('Wettkampf 1'!D19>0,1,0) -> 1 | C18: =IF('2'!$D19>0,1,0) -> 1 | D18: =IF('3'!$D19>0,1,0) -> 0 | E18: =IF('4'!$D19>0,1,0) -> 1 | F18: =IF('5'!$D19>0,1,0) -> 0 | G18: =IF('6'!$D19>0,1,0) -> 0 | H18: 3 | I18: =IF('7'!$D19>0,1,0) -> 1 | J18: =IF('8'!$D19>0,1,0) -> 0 | K18: =IF('9'!$D19>0,1,0) -> 1 | L18: =IF('10'!$D19>0,1,0) -> 0 | M18: =IF('11'!$D19>0,1,0) -> 0 | N18: =IF('12'!$D19>0,1,0) -> 0 | O18: 2 | P18: 5
A19: Claudia Rolfes | B19: =IF('Wettkampf 1'!D20>0,1,0) -> 1 | C19: =IF('2'!$D20>0,1,0) -> 1 | D19: =IF('3'!$D20>0,1,0) -> 1 | E19: =IF('4'!$D20>0,1,0) -> 1 | F19: =IF('5'!$D20>0,1,0) -> 1 | G19: =IF('6'!$D20>0,1,0) -> 1 | H19: 6 | I19: =IF('7'!$D20>0,1,0) -> 1 | J19: =IF('8'!$D20>0,1,0) -> 1 | K19: =IF('9'!$D20>0,1,0) -> 1 | L19: =IF('10'!$D20>0,1,0) -> 1 | M19: =IF('11'!$D20>0,1,0) -> 1 | N19: =IF('12'!$D20>0,1,0) -> 0 | O19: 5 | P19: 11
A20: Silvia Junge | B20: =IF('Wettkampf 1'!D21>0,1,0) -> 1 | C20: =IF('2'!$D21>0,1,0) -> 1 | D20: =IF('3'!$D21>0,1,0) -> 1 | E20: =IF('4'!$D21>0,1,0) -> 1 | F20: =IF('5'!$D21>0,1,0) -> 1 | G20: =IF('6'!$D21>0,1,0) -> 1 | H20: 6 | I20: =IF('7'!$D21>0,1,0) -> 1 | J20: =IF('8'!$D21>0,1,0) -> 1 | K20: =IF('9'!$D21>0,1,0) -> 1 | L20: =IF('10'!$D21>0,1,0) -> 1 | M20: =IF('11'!$D21>0,1,0) -> 1 | N20: =IF('12'!$D21>0,1,0) -> 0 | O20: 5 | P20: 11
A21: Ulla Schnieders | B21: =IF('Wettkampf 1'!D22>0,1,0) -> 1 | C21: =IF('2'!$D22>0,1,0) -> 1 | D21: =IF('3'!$D22>0,1,0) -> 1 | E21: =IF('4'!$D22>0,1,0) -> 1 | F21: =IF('5'!$D22>0,1,0) -> 1 | G21: =IF('6'!$D22>0,1,0) -> 1 | H21: 6 | I21: =IF('7'!$D22>0,1,0) -> 1 | J21: =IF('8'!$D22>0,1,0) -> 1 | K21: =IF('9'!$D22>0,1,0) -> 1 | L21: =IF('10'!$D22>0,1,0) -> 1 | M21: =IF('11'!$D22>0,1,0) -> 1 | N21: =IF('12'!$D22>0,1,0) -> 0 | O21: 5 | P21: 11
A22: Jasmin Kramer | B22: =IF('Wettkampf 1'!D23>0,1,0) -> 1 | C22: =IF('2'!$D23>0,1,0) -> 1 | D22: =IF('3'!$D23>0,1,0) -> 1 | E22: =IF('4'!$D23>0,1,0) -> 1 | F22: =IF('5'!$D23>0,1,0) -> 1 | G22: =IF('6'!$D23>0,1,0) -> 1 | H22: 6 | I22: =IF('7'!$D23>0,1,0) -> 1 | J22: =IF('8'!$D23>0,1,0) -> 1 | K22: =IF('9'!$D23>0,1,0) -> 1 | L22: =IF('10'!$D23>0,1,0) -> 1 | M22: =IF('11'!$D23>0,1,0) -> 0 | N22: =IF('12'!$D23>0,1,0) -> 0 | O22: 4 | P22: 10
A23: Anni Küwen | B23: =IF('Wettkampf 1'!D24>0,1,0) -> 1 | C23: =IF('2'!$D24>0,1,0) -> 1 | D23: =IF('3'!$D24>0,1,0) -> 1 | E23: =IF('4'!$D24>0,1,0) -> 1 | F23: =IF('5'!$D24>0,1,0) -> 1 | G23: =IF('6'!$D24>0,1,0) -> 1 | H23: 6 | I23: =IF('7'!$D24>0,1,0) -> 1 | J23: =IF('8'!$D24>0,1,0) -> 1 | K23: =IF('9'!$D24>0,1,0) -> 1 | L23: =IF('10'!$D24>0,1,0) -> 1 | M23: =IF('11'!$D24>0,1,0) -> 1 | N23: =IF('12'!$D24>0,1,0) -> 0 | O23: 5 | P23: 11
A24: Waltraud Dobelmann | B24: =IF('Wettkampf 1'!D25>0,1,0) -> 1 | C24: =IF('2'!$D25>0,1,0) -> 1 | D24: =IF('3'!$D25>0,1,0) -> 1 | E24: =IF('4'!$D25>0,1,0) -> 1 | F24: =IF('5'!$D25>0,1,0) -> 1 | G24: =IF('6'!$D25>0,1,0) -> 1 | H24: 6 | I24: =IF('7'!$D25>0,1,0) -> 1 | J24: =IF('8'!$D25>0,1,0) -> 1 | K24: =IF('9'!$D25>0,1,0) -> 1 | L24: =IF('10'!$D25>0,1,0) -> 1 | M24: =IF('11'!$D25>0,1,0) -> 1 | N24: =IF('12'!$D25>0,1,0) -> 0 | O24: 5 | P24: 11
A25: Schütze 17 | B25: =IF('Wettkampf 1'!D26>0,1,0) -> 0 | C25: =IF('2'!$D26>0,1,0) -> 0 | D25: =IF('3'!$D26>0,1,0) -> 0 | E25: =IF('4'!$D26>0,1,0) -> 0 | F25: =IF('5'!$D26>0,1,0) -> 0 | G25: =IF('6'!$D26>0,1,0) -> 0 | H25: 0 | I25: =IF('7'!$D26>0,1,0) -> 0 | J25: =IF('8'!$D26>0,1,0) -> 0 | K25: =IF('9'!$D26>0,1,0) -> 0 | L25: =IF('10'!$D26>0,1,0) -> 0 | M25: =IF('11'!$D26>0,1,0) -> 0 | N25: =IF('12'!$D26>0,1,0) -> 0 | O25: 0 | P25: 0
A26: Schütze 18 | B26: =IF('Wettkampf 1'!D27>0,1,0) -> 0 | C26: =IF('2'!$D27>0,1,0) -> 0 | D26: =IF('3'!$D27>0,1,0) -> 0 | E26: =IF('4'!$D27>0,1,0) -> 0 | F26: =IF('5'!$D27>0,1,0) -> 0 | G26: =IF('6'!$D27>0,1,0) -> 0 | H26: 0 | I26: =IF('7'!$D27>0,1,0) -> 0 | J26: =IF('8'!$D27>0,1,0) -> 0 | K26: =IF('9'!$D27>0,1,0) -> 0 | L26: =IF('10'!$D27>0,1,0) -> 0 | M26: =IF('11'!$D27>0,1,0) -> 0 | N26: =IF('12'!$D27>0,1,0) -> 0 | O26: 0 | P26: 0
A27: Hanna Gebken | B27: =IF('Wettkampf 1'!D28>0,1,0) -> 1 | C27: =IF('2'!$D28>0,1,0) -> 1 | D27: =IF('3'!$D28>0,1,0) -> 1 | E27: =IF('4'!$D28>0,1,0) -> 1 | F27: =IF('5'!$D28>0,1,0) -> 1 | G27: =IF('6'!$D28>0,1,0) -> 1 | H27: 6 | I27: =IF('7'!$D28>0,1,0) -> 1 | J27: =IF('8'!$D28>0,1,0) -> 1 | K27: =IF('9'!$D28>0,1,0) -> 1 | L27: =IF('10'!$D28>0,1,0) -> 1 | M27: =IF('11'!$D28>0,1,0) -> 1 | N27: =IF('12'!$D28>0,1,0) -> 0 | O27: 5 | P27: 11
A28: Monika Reimann | B28: =IF('Wettkampf 1'!D29>0,1,0) -> 1 | C28: =IF('2'!$D29>0,1,0) -> 1 | D28: =IF('3'!$D29>0,1,0) -> 1 | E28: =IF('4'!$D29>0,1,0) -> 1 | F28: =IF('5'!$D29>0,1,0) -> 1 | G28: =IF('6'!$D29>0,1,0) -> 1 | H28: 6 | I28: =IF('7'!$D29>0,1,0) -> 1 | J28: =IF('8'!$D29>0,1,0) -> 1 | K28: =IF('9'!$D29>0,1,0) -> 1 | L28: =IF('10'!$D29>0,1,0) -> 1 | M28: =IF('11'!$D29>0,1,0) -> 1 | N28: =IF('12'!$D29>0,1,0) -> 0 | O28: 5 | P28: 11
A29: Marina Schrand | B29: =IF('Wettkampf 1'!D30>0,1,0) -> 1 | C29: =IF('2'!$D30>0,1,0) -> 1 | D29: =IF('3'!$D30>0,1,0) -> 1 | E29: =IF('4'!$D30>0,1,0) -> 1 | F29: =IF('5'!$D30>0,1,0) -> 1 | G29: =IF('6'!$D30>0,1,0) -> 1 | H29: 6 | I29: =IF('7'!$D30>0,1,0) -> 1 | J29: =IF('8'!$D30>0,1,0) -> 1 | K29: =IF('9'!$D30>0,1,0) -> 1 | L29: =IF('10'!$D30>0,1,0) -> 1 | M29: =IF('11'!$D30>0,1,0) -> 1 | N29: =IF('12'!$D30>0,1,0) -> 0 | O29: 5 | P29: 11
A30: Nadine Krömer | B30: =IF('Wettkampf 1'!D31>0,1,0) -> 1 | C30: =IF('2'!$D31>0,1,0) -> 1 | D30: =IF('3'!$D31>0,1,0) -> 1 | E30: =IF('4'!$D31>0,1,0) -> 1 | F30: =IF('5'!$D31>0,1,0) -> 1 | G30: =IF('6'!$D31>0,1,0) -> 1 | H30: 6 | I30: =IF('7'!$D31>0,1,0) -> 1 | J30: =IF('8'!$D31>0,1,0) -> 1 | K30: =IF('9'!$D31>0,1,0) -> 1 | L30: =IF('10'!$D31>0,1,0) -> 1 | M30: =IF('11'!$D31>0,1,0) -> 1 | N30: =IF('12'!$D31>0,1,0) -> 0 | O30: 5 | P30: 11
A31: Nina Krömer | B31: =IF('Wettkampf 1'!D32>0,1,0) -> 1 | C31: =IF('2'!$D32>0,1,0) -> 1 | D31: =IF('3'!$D32>0,1,0) -> 1 | E31: =IF('4'!$D32>0,1,0) -> 1 | F31: =IF('5'!$D32>0,1,0) -> 1 | G31: =IF('6'!$D32>0,1,0) -> 1 | H31: 6 | I31: =IF('7'!$D32>0,1,0) -> 1 | J31: =IF('8'!$D32>0,1,0) -> 1 | K31: =IF('9'!$D32>0,1,0) -> 1 | L31: =IF('10'!$D32>0,1,0) -> 1 | M31: =IF('11'!$D32>0,1,0) -> 1 | N31: =IF('12'!$D32>0,1,0) -> 0 | O31: 5 | P31: 11
A32: Margret Büter | B32: =IF('Wettkampf 1'!D33>0,1,0) -> 1 | C32: =IF('2'!$D33>0,1,0) -> 1 | D32: =IF('3'!$D33>0,1,0) -> 0 | E32: =IF('4'!$D33>0,1,0) -> 0 | F32: =IF('5'!$D33>0,1,0) -> 0 | G32: =IF('6'!$D33>0,1,0) -> 0 | H32: 2 | I32: =IF('7'!$D33>0,1,0) -> 0 | J32: =IF('8'!$D33>0,1,0) -> 0 | K32: =IF('9'!$D33>0,1,0) -> 0 | L32: =IF('10'!$D33>0,1,0) -> 0 | M32: =IF('11'!$D33>0,1,0) -> 0 | N32: =IF('12'!$D33>0,1,0) -> 0 | O32: 0 | P32: 2
A33: Sarah Meiners | B33: =IF('Wettkampf 1'!D34>0,1,0) -> 1 | C33: =IF('2'!$D34>0,1,0) -> 1 | D33: =IF('3'!$D34>0,1,0) -> 1 | E33: =IF('4'!$D34>0,1,0) -> 1 | F33: =IF('5'!$D34>0,1,0) -> 1 | G33: =IF('6'!$D34>0,1,0) -> 1 | H33: 6 | I33: =IF('7'!$D34>0,1,0) -> 1 | J33: =IF('8'!$D34>0,1,0) -> 0 | K33: =IF('9'!$D34>0,1,0) -> 1 | L33: =IF('10'!$D34>0,1,0) -> 1 | M33: =IF('11'!$D34>0,1,0) -> 0 | N33: =IF('12'!$D34>0,1,0) -> 0 | O33: 3 | P33: 9
A34: Anna Temmen | B34: =IF('Wettkampf 1'!D35>0,1,0) -> 1 | C34: =IF('2'!$D35>0,1,0) -> 1 | D34: =IF('3'!$D35>0,1,0) -> 1 | E34: =IF('4'!$D35>0,1,0) -> 1 | F34: =IF('5'!$D35>0,1,0) -> 1 | G34: =IF('6'!$D35>0,1,0) -> 1 | H34: 6 | I34: =IF('7'!$D35>0,1,0) -> 1 | J34: =IF('8'!$D35>0,1,0) -> 1 | K34: =IF('9'!$D35>0,1,0) -> 1 | L34: =IF('10'!$D35>0,1,0) -> 1 | M34: =IF('11'!$D35>0,1,0) -> 1 | N34: =IF('12'!$D35>0,1,0) -> 0 | O34: 5 | P34: 11
A35: Helga Meiners | B35: =IF('Wettkampf 1'!D36>0,1,0) -> 1 | C35: =IF('2'!$D36>0,1,0) -> 1 | D35: =IF('3'!$D36>0,1,0) -> 1 | E35: =IF('4'!$D36>0,1,0) -> 1 | F35: =IF('5'!$D36>0,1,0) -> 1 | G35: =IF('6'!$D36>0,1,0) -> 1 | H35: 6 | I35: =IF('7'!$D36>0,1,0) -> 1 | J35: =IF('8'!$D36>0,1,0) -> 1 | K35: =IF('9'!$D36>0,1,0) -> 0 | L35: =IF('10'!$D36>0,1,0) -> 0 | M35: =IF('11'!$D36>0,1,0) -> 0 | N35: =IF('12'!$D36>0,1,0) -> 0 | O35: 2 | P35: 8
A36: Carmen Benten | B36: =IF('Wettkampf 1'!D37>0,1,0) -> 1 | C36: =IF('2'!$D37>0,1,0) -> 1 | D36: =IF('3'!$D37>0,1,0) -> 1 | E36: =IF('4'!$D37>0,1,0) -> 1 | F36: =IF('5'!$D37>0,1,0) -> 1 | G36: =IF('6'!$D37>0,1,0) -> 1 | H36: 6 | I36: =IF('7'!$D37>0,1,0) -> 1 | J36: =IF('8'!$D37>0,1,0) -> 1 | K36: =IF('9'!$D37>0,1,0) -> 1 | L36: =IF('10'!$D37>0,1,0) -> 1 | M36: =IF('11'!$D37>0,1,0) -> 1 | N36: =IF('12'!$D37>0,1,0) -> 0 | O36: 5 | P36: 11
A37: Anna -Maria Wimberg | B37: =IF('Wettkampf 1'!D38>0,1,0) -> 0 | C37: =IF('2'!$D38>0,1,0) -> 0 | D37: =IF('3'!$D38>0,1,0) -> 0 | E37: =IF('4'!$D38>0,1,0) -> 0 | F37: =IF('5'!$D38>0,1,0) -> 0 | G37: =IF('6'!$D38>0,1,0) -> 0 | H37: 0 | I37: =IF('7'!$D38>0,1,0) -> 0 | J37: =IF('8'!$D38>0,1,0) -> 0 | K37: =IF('9'!$D38>0,1,0) -> 0 | L37: =IF('10'!$D38>0,1,0) -> 0 | M37: =IF('11'!$D38>0,1,0) -> 1 | N37: =IF('12'!$D38>0,1,0) -> 0 | O37: 1 | P37: 1
A38: Evelyn Feder | B38: =IF('Wettkampf 1'!D39>0,1,0) -> 0 | C38: =IF('2'!$D39>0,1,0) -> 0 | D38: =IF('3'!$D39>0,1,0) -> 0 | E38: =IF('4'!$D39>0,1,0) -> 0 | F38: =IF('5'!$D39>0,1,0) -> 0 | G38: =IF('6'!$D39>0,1,0) -> 0 | H38: 0 | I38: =IF('7'!$D39>0,1,0) -> 0 | J38: =IF('8'!$D39>0,1,0) -> 1 | K38: =IF('9'!$D39>0,1,0) -> 0 | L38: =IF('10'!$D39>0,1,0) -> 0 | M38: =IF('11'!$D39>0,1,0) -> 0 | N38: =IF('12'!$D39>0,1,0) -> 0 | O38: 1 | P38: 1
A39: Monika Jansen | B39: =IF('Wettkampf 1'!D40>0,1,0) -> 1 | C39: =IF('2'!$D40>0,1,0) -> 1 | D39: =IF('3'!$D40>0,1,0) -> 1 | E39: =IF('4'!$D40>0,1,0) -> 1 | F39: =IF('5'!$D40>0,1,0) -> 1 | G39: =IF('6'!$D40>0,1,0) -> 1 | H39: 6 | I39: =IF('7'!$D40>0,1,0) -> 1 | J39: =IF('8'!$D40>0,1,0) -> 1 | K39: =IF('9'!$D40>0,1,0) -> 1 | L39: =IF('10'!$D40>0,1,0) -> 1 | M39: =IF('11'!$D40>0,1,0) -> 1 | N39: =IF('12'!$D40>0,1,0) -> 0 | O39: 5 | P39: =O39+H39 -> 11
A40: Kerstin Sträche | B40: =IF('Wettkampf 1'!D41>0,1,0) -> 1 | C40: =IF('2'!$D41>0,1,0) -> 1 | D40: =IF('3'!$D41>0,1,0) -> 1 | E40: =IF('4'!$D41>0,1,0) -> 1 | F40: =IF('5'!$D41>0,1,0) -> 1 | G40: =IF('6'!$D41>0,1,0) -> 1 | H40: 6 | I40: =IF('7'!$D41>0,1,0) -> 1 | J40: =IF('8'!$D41>0,1,0) -> 1 | K40: =IF('9'!$D41>0,1,0) -> 1 | L40: =IF('10'!$D41>0,1,0) -> 1 | M40: =IF('11'!$D41>0,1,0) -> 1 | N40: =IF('12'!$D41>0,1,0) -> 0 | O40: 5 | P40: 11
A41: Rita Hanekamp | B41: =IF('Wettkampf 1'!D42>0,1,0) -> 1 | C41: =IF('2'!$D42>0,1,0) -> 1 | D41: =IF('3'!$D42>0,1,0) -> 1 | E41: =IF('4'!$D42>0,1,0) -> 1 | F41: =IF('5'!$D42>0,1,0) -> 1 | G41: =IF('6'!$D42>0,1,0) -> 1 | H41: 6 | I41: =IF('7'!$D42>0,1,0) -> 0 | J41: =IF('8'!$D42>0,1,0) -> 1 | K41: =IF('9'!$D42>0,1,0) -> 1 | L41: =IF('10'!$D42>0,1,0) -> 1 | M41: =IF('11'!$D42>0,1,0) -> 1 | N41: =IF('12'!$D42>0,1,0) -> 0 | O41: 4 | P41: 10
A42: Maria Beusing | B42: =IF('Wettkampf 1'!D43>0,1,0) -> 1 | C42: =IF('2'!$D43>0,1,0) -> 1 | D42: =IF('3'!$D43>0,1,0) -> 1 | E42: =IF('4'!$D43>0,1,0) -> 1 | F42: =IF('5'!$D43>0,1,0) -> 1 | G42: =IF('6'!$D43>0,1,0) -> 1 | H42: 6 | I42: =IF('7'!$D43>0,1,0) -> 1 | J42: =IF('8'!$D43>0,1,0) -> 1 | K42: =IF('9'!$D43>0,1,0) -> 1 | L42: =IF('10'!$D43>0,1,0) -> 1 | M42: =IF('11'!$D43>0,1,0) -> 1 | N42: =IF('12'!$D43>0,1,0) -> 0 | O42: 5 | P42: 11
A43: Schütze 35 | B43: =IF('Wettkampf 1'!D44>0,1,0) -> 0 | C43: =IF('2'!$D44>0,1,0) -> 1 | D43: =IF('3'!$D44>0,1,0) -> 0 | E43: =IF('4'!$D44>0,1,0) -> 0 | F43: =IF('5'!$D44>0,1,0) -> 0 | G43: =IF('6'!$D44>0,1,0) -> 0 | H43: 1 | I43: =IF('7'!$D44>0,1,0) -> 0 | J43: =IF('8'!$D44>0,1,0) -> 0 | K43: =IF('9'!$D44>0,1,0) -> 0 | L43: =IF('10'!$D44>0,1,0) -> 0 | M43: =IF('11'!$D44>0,1,0) -> 0 | N43: =IF('12'!$D44>0,1,0) -> 0 | O43: 0 | P43: 1
A44: Schütze 36 | B44: =IF('Wettkampf 1'!D45>0,1,0) -> 0 | C44: =IF('2'!$D45>0,1,0) -> 0 | D44: =IF('3'!$D45>0,1,0) -> 0 | E44: =IF('4'!$D45>0,1,0) -> 0 | F44: =IF('5'!$D45>0,1,0) -> 0 | G44: =IF('6'!$D45>0,1,0) -> 0 | H44: 0 | I44: =IF('7'!$D45>0,1,0) -> 0 | J44: =IF('8'!$D45>0,1,0) -> 0 | K44: =IF('9'!$D45>0,1,0) -> 0 | L44: =IF('10'!$D45>0,1,0) -> 0 | M44: =IF('11'!$D45>0,1,0) -> 0 | N44: =IF('12'!$D45>0,1,0) -> 0 | O44: 0 | P44: 0
B45: =SUM(B9:B44) -> 29.00 | C45: =SUM(C9:C44) -> 31.00 | D45: 27.00 | E45: 28.00 | F45: 28.00 | G45: 28.00 | H45: =SUM(H9:H44) -> 171.00 | I45: =SUM(I9:I44) -> 28.00 | J45: =SUM(J9:J44) -> 27.00 | K45: 27.00 | L45: 26.00 | M45: 25.00 | N45: 0.00 | O45: =SUM(O9:O44) -> 133.00 | P45: =SUM(P9:P44) -> 304.00

Sheet Übersicht Gruppen (hidden)
B2: Lorup III | C2: =VLOOKUP($B$2:$B$7,'Wettkampf 1'!$B$2:$D$7,3,FALSE) -> 931.6 | D2: =VLOOKUP($B$2:$B$7,'2'!$B$2:$D$7,3,FALSE) -> 931.3 | E2: =VLOOKUP($B$2:$B$7,'3'!$B$2:$D$7,3,FALSE) -> 927.6 | F2: =VLOOKUP($B$2:$B$7,'4'!$B$2:$D$7,3,FALSE) -> 933.5 | G2: =VLOOKUP($B$2:$B$7,'5'!$B$2:$D$7,3,FALSE) -> 920.3 | H2: =VLOOKUP($B$2:$B$7,'6'!$B$2:$D$7,3,FALSE) -> 924.4 | I2: =IF(Formelhilfe!H2 > 0,J2/Formelhilfe!H2,0) -> 928.1 | J2: =SUM(C2:H2) -> 5,568.7 | K2: =VLOOKUP($B$2:$B$7,'7'!$B$2:$D$7,3,FALSE) -> 924.1 | L2: =VLOOKUP($B$2:$B$7,'8'!$B$2:$D$7,3,FALSE) -> 926.0 | M2: =VLOOKUP($B$2:$B$7,'9'!$B$2:$D$7,3,FALSE) -> 927.7 | N2: =VLOOKUP($B$2:$B$7,'10'!$B$2:$D$7,3,FALSE) -> 931.5 | O2: =VLOOKUP($B$2:$B$7,'11'!$B$2:$D$7,3,FALSE) -> 923.7 | P2: =VLOOKUP($B$2:$B$7,'12'!$B$2:$D$7,3,FALSE) -> 0.0 | Q2: =IF(Formelhilfe!O2>0,R2/Formelhilfe!O2,0) -> 926.6 | R2: =SUM(K2:P2) -> 4,633.0 | S2: =IF(Formelhilfe!P2>0,T2/Formelhilfe!P2,0) -> 927.4 | T2: =SUM(C2:H2,K2:P2) -> 10,201.7
B3: Spahnharrenstätte I | C3: =VLOOKUP($B$2:$B$7,'Wettkampf 1'!$B$2:$D$7,3,FALSE) -> 919.0 | D3: =VLOOKUP($B$2:$B$7,'2'!$B$2:$D$7,3,FALSE) -> 932.9 | E3: =VLOOKUP($B$2:$B$7,'3'!$B$2:$D$7,3,FALSE) -> 928.2 | F3: =VLOOKUP($B$2:$B$7,'4'!$B$2:$D$7,3,FALSE) -> 928.9 | G3: =VLOOKUP($B$2:$B$7,'5'!$B$2:$D$7,3,FALSE) -> 917.3 | H3: =VLOOKUP($B$2:$B$7,'6'!$B$2:$D$7,3,FALSE) -> 928.2 | I3: =IF(Formelhilfe!H3 > 0,J3/Formelhilfe!H3,0) -> 925.8 | J3: =SUM(C3:H3) -> 5,554.5 | K3: =VLOOKUP($B$2:$B$7,'7'!$B$2:$D$7,3,FALSE) -> 927.2 | L3: =VLOOKUP($B$2:$B$7,'8'!$B$2:$D$7,3,FALSE) -> 919.2 | M3: =VLOOKUP($B$2:$B$7,'9'!$B$2:$D$7,3,FALSE) -> 928.9 | N3: =VLOOKUP($B$2:$B$7,'10'!$B$2:$D$7,3,FALSE) -> 922.0 | O3: =VLOOKUP($B$2:$B$7,'11'!$B$2:$D$7,3,FALSE) -> 924.2 | P3: =VLOOKUP($B$2:$B$7,'12'!$B$2:$D$7,3,FALSE) -> 0.0 | Q3: =IF(Formelhilfe!O3>0,R3/Formelhilfe!O3,0) -> 924.3 | R3: =SUM(K3:P3) -> 4,621.5 | S3: =IF(Formelhilfe!P3>0,T3/Formelhilfe!P3,0) -> 925.1 | T3: =SUM(C3:H3,K3:P3) -> 10,176.0
B4: Börger II | C4: =VLOOKUP($B$2:$B$7,'Wettkampf 1'!$B$2:$D$7,3,FALSE) -> 912.5 | D4: =VLOOKUP($B$2:$B$7,'2'!$B$2:$D$7,3,FALSE) -> 915.6 | E4: =VLOOKUP($B$2:$B$7,'3'!$B$2:$D$7,3,FALSE) -> 922.7 | F4: =VLOOKUP($B$2:$B$7,'4'!$B$2:$D$7,3,FALSE) -> 935.3 | G4: =VLOOKUP($B$2:$B$7,'5'!$B$2:$D$7,3,FALSE) -> 921.1 | H4: =VLOOKUP($B$2:$B$7,'6'!$B$2:$D$7,3,FALSE) -> 933.1 | I4: =IF(Formelhilfe!H5 > 0,J4/Formelhilfe!H5,0) -> 923.4 | J4: =SUM(C4:H4) -> 5,540.3 | K4: =VLOOKUP($B$2:$B$7,'7'!$B$2:$D$7,3,FALSE) -> 923.0 | L4: =VLOOKUP($B$2:$B$7,'8'!$B$2:$D$7,3,FALSE) -> 927.6 | M4: =VLOOKUP($B$2:$B$7,'9'!$B$2:$D$7,3,FALSE) -> 927.5 | N4: =VLOOKUP($B$2:$B$7,'10'!$B$2:$D$7,3,FALSE) -> 928.8 | O4: =VLOOKUP($B$2:$B$7,'11'!$B$2:$D$7,3,FALSE) -> 928.7 | P4: =VLOOKUP($B$2:$B$7,'12'!$B$2:$D$7,3,FALSE) -> 0.0 | Q4: =IF(Formelhilfe!O5>0,R4/Formelhilfe!O5,0) -> 927.1 | R4: =SUM(K4:P4) -> 4,635.6 | S4: =IF(Formelhilfe!P5>0,T4/Formelhilfe!P5,0) -> 925.1 | T4: =SUM(C4:H4,K4:P4) -> 10,175.9
B5: Neuvrees II | C5: =VLOOKUP($B$2:$B$7,'Wettkampf 1'!$B$2:$D$7,3,FALSE) -> 924.0 | D5: =VLOOKUP($B$2:$B$7,'2'!$B$2:$D$7,3,FALSE) -> 921.9 | E5: =VLOOKUP($B$2:$B$7,'3'!$B$2:$D$7,3,FALSE) -> 925.5 | F5: =VLOOKUP($B$2:$B$7,'4'!$B$2:$D$7,3,FALSE) -> 931.3 | G5: =VLOOKUP($B$2:$B$7,'5'!$B$2:$D$7,3,FALSE) -> 913.8 | H5: =VLOOKUP($B$2:$B$7,'6'!$B$2:$D$7,3,FALSE) -> 933.5 | I5: =IF(Formelhilfe!H6 > 0,J5/Formelhilfe!H6,0) -> 925.0 | J5: =SUM(C5:H5) -> 5,550.0 | K5: =VLOOKUP($B$2:$B$7,'7'!$B$2:$D$7,3,FALSE) -> 922.6 | L5: =VLOOKUP($B$2:$B$7,'8'!$B$2:$D$7,3,FALSE) -> 927.1 | M5: =VLOOKUP($B$2:$B$7,'9'!$B$2:$D$7,3,FALSE) -> 925.2 | N5: =VLOOKUP($B$2:$B$7,'10'!$B$2:$D$7,3,FALSE) -> 929.3 | O5: =VLOOKUP($B$2:$B$7,'11'!$B$2:$D$7,3,FALSE) -> 913.5 | P5: =VLOOKUP($B$2:$B$7,'12'!$B$2:$D$7,3,FALSE) -> 0.0 | Q5: =IF(Formelhilfe!O6>0,R5/Formelhilfe!O6,0) -> 923.5 | R5: =SUM(K5:P5) -> 4,617.7 | S5: =IF(Formelhilfe!P6>0,T5/Formelhilfe!P6,0) -> 924.3 | T5: =SUM(C5:H5,K5:P5) -> 10,167.7
B6: Börgermoor I | C6: =VLOOKUP($B$2:$B$7,'Wettkampf 1'!$B$2:$D$7,3,FALSE) -> 911.8 | D6: =VLOOKUP($B$2:$B$7,'2'!$B$2:$D$7,3,FALSE) -> 914.6 | E6: =VLOOKUP($B$2:$B$7,'3'!$B$2:$D$7,3,FALSE) -> 922.2 | F6: =VLOOKUP($B$2:$B$7,'4'!$B$2:$D$7,3,FALSE) -> 933.2 | G6: =VLOOKUP($B$2:$B$7,'5'!$B$2:$D$7,3,FALSE) -> 921.9 | H6: =VLOOKUP($B$2:$B$7,'6'!$B$2:$D$7,3,FALSE) -> 925.3 | I6: =IF(Formelhilfe!H4 > 0,J6/Formelhilfe!H4,0) -> 921.5 | J6: =SUM(C6:H6) -> 5,529.0 | K6: =VLOOKUP($B$2:$B$7,'7'!$B$2:$D$7,3,FALSE) -> 923.9 | L6: =VLOOKUP($B$2:$B$7,'8'!$B$2:$D$7,3,FALSE) -> 934.1 | M6: =VLOOKUP($B$2:$B$7,'9'!$B$2:$D$7,3,FALSE) -> 928.0 | N6: =VLOOKUP($B$2:$B$7,'10'!$B$2:$D$7,3,FALSE) -> 918.3 | O6: =VLOOKUP($B$2:$B$7,'11'!$B$2:$D$7,3,FALSE) -> 916.8 | P6: =VLOOKUP($B$2:$B$7,'12'!$B$2:$D$7,3,FALSE) -> 0.0 | Q6: =IF(Formelhilfe!O4>0,R6/Formelhilfe!O4,0) -> 924.2 | R6: =SUM(K6:P6) -> 4,621.1 | S6: =IF(Formelhilfe!P4>0,T6/Formelhilfe!P4,0) -> 922.7 | T6: =SUM(C6:H6,K6:P6) -> 10,150.1
B7: Ostenwalde II | C7: =VLOOKUP($B$2:$B$7,'Wettkampf 1'!$B$2:$D$7,3,FALSE) -> 911.2 | D7: =VLOOKUP($B$2:$B$7,'2'!$B$2:$D$7,3,FALSE) -> 914.0 | E7: =VLOOKUP($B$2:$B$7,'3'!$B$2:$D$7,3,FALSE) -> 924.3 | F7: =VLOOKUP($B$2:$B$7,'4'!$B$2:$D$7,3,FALSE) -> 918.2 | G7: =VLOOKUP($B$2:$B$7,'5'!$B$2:$D$7,3,FALSE) -> 907.8 | H7: =VLOOKUP($B$2:$B$7,'6'!$B$2:$D$7,3,FALSE) -> 909.3 | I7: =IF(Formelhilfe!H7 > 0,J7/Formelhilfe!H7,0) -> 914.1 | J7: =SUM(C7:H7) -> 5,484.8 | K7: =VLOOKUP($B$2:$B$7,'7'!$B$2:$D$7,3,FALSE) -> 912.4 | L7: =VLOOKUP($B$2:$B$7,'8'!$B$2:$D$7,3,FALSE) -> 908.8 | M7: =VLOOKUP($B$2:$B$7,'9'!$B$2:$D$7,3,FALSE) -> 912.5 | N7: =VLOOKUP($B$2:$B$7,'10'!$B$2:$D$7,3,FALSE) -> 912.4 | O7: =VLOOKUP($B$2:$B$7,'11'!$B$2:$D$7,3,FALSE) -> 917.0 | P7: =VLOOKUP($B$2:$B$7,'12'!$B$2:$D$7,3,FALSE) -> 0.0 | Q7: =IF(Formelhilfe!O7>0,R7/Formelhilfe!O7,0) -> 912.6 | R7: =SUM(K7:P7) -> 4,563.1 | S7: =IF(Formelhilfe!P7>0,T7/Formelhilfe!P7,0) -> 913.4 | T7: =SUM(C7:H7,K7:P7) -> 10,047.9
